{"text_format":"1","workbook":"xlsx","n_sheets":24,"sheets":["Accueil","Tutoriel Chauffage","Chauffage","Données Elec","PDF chauffage","Tutoriel double service","Double Service Elec","Données Double Service Elec","Données ECS Double Service Elec","PDF Double Service Elec","Tutoriel ECS","ECS","Données ECS ECS","Données ECS","PDF ECS","Tutoriel chauffage Hybride","Chauffage hybride","Données Hybride","PDF chauffage Hybride","Préférence Pac","Validation des Données","Informations Devis","ImageDimensionsPac","Schématèque"],"not_rendered":{"charts":0,"images":201,"macros":1,"external_links":0,"defined_names":428,"comments":4,"pivot_tables":0},"unopened":[],"bounds":{"document_bytes":16777216,"sheet_cells":100000,"rows_first":2000,"rows_last":500,"rows_between":2000,"halvings":0,"cell_chars":16384,"cell_head_chars":4096},"cells_cut":0,"cells_raw":0,"read":"whole","date_system":"1900"}

{"sheet":"Accueil","index":0,"n_rows":43,"n_cols":13,"rows_kept":43,"cut":false,"hidden":false,"merged":[[41,10,41,11],[41,12,41,13],[42,6,42,7],[42,8,42,9],[42,10,42,11],[42,12,42,13],[34,3,34,5],[35,3,35,5],[38,3,38,5],[41,6,41,7],[41,8,41,9],[41,3,41,5],[42,3,42,5],[5,2,5,13],[33,2,43,2],[14,11,15,15],[1,4,3,11],[2,12,2,13],[39,3,39,5],[40,3,40,5],[37,3,37,5],[9,1,10,15],[6,3,6,12],[14,7,15,10],[20,1,21,3],[29,1,30,3],[23,4,24,6],[14,4,15,6]]}
[]
[null,null,null,null,"OUTIL DE DIMENSIONNEMENT PAC COLLECTIVE"]
[null,null,null,null,null,null,null,null,null,null,null,null,{"$f":"\"Version \"&version","v":"Version 4.0"}]
[]
[]
[null,null,"Cet utilitaire de dimensionnement vous accompagne dans vos projets de chauffage, ECS et double service thermodynamique collectif et tertiaire."]
[null,null,null,"Identifiez la solution Izea la plus adaptée à votre projet grâce aux nombreux filtres de comparaisons."]
[]
[]
[null,"Accédez à 4 interfaces, pour le chauffage 100% électrique,le chauffage hybride, le double service 100% électrique ou l'ECS 100% électrique."]
[]
[]
[]
[]
[null,null,null,null,"Chauffage 100% électrique",null,null,"Double service 100% électrique",null,null,null,"ECS 100% électrique"]
[]
[]
[]
[]
[]
[null,"100% électrique"]
[]
[]
[null,null,null,null,"Chauffage Hybride"]
[]
[]
[]
[]
[]
[null,"Hybride"]
[]
[]
[]
[null,null,"IZEA"]
[null,null,null,"Fluide frigorigène: R290"]
[null,null,null,"GWP = 0,02"]
[]
[null,null,null,"T°C max: 75°C (S,M,L), 70°C (XL)"]
[]
[null,null,null,"PAC Monobloc"]
[]
[null,null,null,"De 15 à 65 kW*",null,null,"Châssis S",null,"Châssis M",null,"Châssis L",null,"Châssis XL"]
[null,null,null,"*pour Text 7°C / Eau 35°C",null,null,"Izea 15-18",null,"Izea 23-27",null,"Izea 40-50",null,"Izea 65"]

{"sheet":"Tutoriel Chauffage","index":1,"n_rows":82,"n_cols":6,"rows_kept":82,"cut":false,"hidden":false,"merged":[[38,5,39,16],[41,5,42,16],[50,4,51,16],[52,4,53,16],[27,3,28,4],[27,5,28,6],[29,3,30,4],[29,5,30,6],[58,4,59,16],[66,4,67,16],[75,4,76,16],[1,2,2,6],[7,1,7,2],[9,1,9,2],[56,1,56,2],[57,1,57,2],[21,1,21,2],[25,3,26,4],[25,5,26,6],[10,3,11,16],[12,3,13,16],[15,1,15,2],[15,3,16,16],[18,3,19,16]]}
[]
[null,null,"Tutoriel interface chauffage"]
[]
[]
[null,"Utilisez cette interface afin de dimensionner votre projet de chauffage 100% électrique en plusieurs étapes:"]
[]
["1)","Paramétrez votre étude en remplissant les différents champs de données d'entrées:"]
[null,"Référence de l'étude",null,"Donnez un nom à votre étude, celui-ci sera le nom du document généré à l'issue de l'étude"]
[]
[null,"Localisation",null,"Indiquez la station météo la plus proche de votre projet, vous pouvez ensuite ajuster l'altitude ou directement la température extérieure de base"]
[null,null,null,"Choisissez si vous voulez appliquer un traitement anti-corrosion à la PAC. Si vous choisissez un dimensionnement en Izea 65, notez que le traitement anti-corosion est de série sur cette machine."]
[]
[null,null,null,"Pour certaines stations météo vous devrez indiquer si vous vous trouvez dans une zone montagne ou bord de mer: cela applique automatiquement un facteur correctif sur les performances de la PAC"]
[]
[]
[null,"Installation",null,"Indiquez les distances entre la PAC et le batiment et entre la PAC et le ballon, afin d'estimer le volume primaire contenu dans les canalisations. Si vous ne les connaissez pas, des valeurs par défaut sont initialisées"]
[]
[null,null,null,"Si votre installation nécessite du glycol, indiquez le taux de glycol Attention: 10% maximum. Autrement, laissez 0%."]
[null,null,null,"Si vous avez des contraintes de tailles (hauteur sous plafond, passage de porte etc) veuillez les indiquer dans le champs contraintes chaufferie. Le volume primaire de votre solution sera, si possible, adapté à ces contraintes."]
[]
[]
[null,"Circuits de chauffage",null,"Paramétrez jusqu'à 5 circuits de chauffage. Appuyez sur \"+\" pour ajouter et sur \"-\" pour retirer un circuit."]
[null,null,null,"Indiquez le type de circuit (constant ou régulé) ainsi que sa puissance. "]
[null,null,null,"Renseignez la consigne de température associée au circuit: Attention, les consignes de départ maximales diffèrent selon le type de circuits et la technologie PAC:"]
[]
[null,null,null,"Type de circuit",null,"Consigne départ maximale (°C)"]
[]
[null,null,null,"Circuit régulé",null,75]
[]
[null,null,null,"Circuit constant",null,70]
[]
[]
[null,null,null,"Renseignez enfin le delta T du circuit: différence de température entre le départ et retour du circuit."]
[]
["2)","Choisissez votre objectif de dimensionnement"]
[null,"Faites votre choix parmi 2 types de dimensionnement:"]
[null,"Un dimensionnement avec appoint électrique:",null,null,null,"Dimensionnement selon le DTU65-16: 70% ≤ Part Pac à Tbase ≤ 100% et 120% ≤ Part PAC + Appoint"]
[null,"Un dimensionnement sans appoint électrique:",null,null,null,"Dimensionnement sans appoint, 100% thermodynamique, ou avec le minimum d'appoint pour les régions avec une Température de base très basse."]
[null,null,null,null,null,"Le système est dimensionné avec un minimum de 20 % de majoration sur la puissance chauffage. Veuillez contacter notre service avant vente pour un pourcentage de majoration différent."]
[]
[]
[null,"Préférence PAC (facultatif):",null,null,null,"Choisissez une PAC dans la liste déroulante. Un dimensionnement vous sera proposé avec cette dernière, si le paramétrage de l'étude le permet, dans la 3ème colonne des résultats."]
[]
[]
["3)","Générez des solutions, en cliquant sur le bouton prévu à cet effet"]
[null,null,null,"Attention, si vous modifiez les paramètres de l'étude après avoir généré des solutions, veuillez rappuyer sur \"générer des solutions\"."]
[]
["4)","Identifiez la solution la plus adaptée à votre projet: "]
[null,"Faites votre choix parmi 3 solutions complètes:"]
[null,"La solution la plus économique:",null,null,"Solution respectant le type de dimensionnement sélectionné lorsque les données d’entrées le permettent et la moins chère en termes de coûts de fourniture."]
[null,"La solution la moins encombrante",null,null,"Solution respectant le type de dimensionnement sélectionné lorsque les données d’entrées le permettent et occupant le moins de place en extérieur (surface PAC + dégagements) Cette solution peut parfois être la même que la solution « la + économique »."]
[]
[null,"La solution choix PAC utilisateur",null,null,"Solution \"la plus économique\", avec la PAC sélectionnée dans l'onglet \"préférence PAC\". Attention, il est possible qu'il n'existe pas de solution dans cette colonne si le choix de la PAC n'est pas adapté à l'étude renseignée."]
[]
[]
[null,"Accédez à de nombreuses données techniques sur les solutions proposées:"]
[null,"PAC",null,null,"Choix de la PAC et nombre"]
[null,"Appoint électrique total",null,null,"Somme des appoints électriques dimensionnés, voir dans les trois lignes en dessous leur répartition dans les différents ballons"]
[null,"Ballons de charge / supplémentaires",null,null,"Possibilité de solutions jusqu’à 3 ballons :ballon de charge 1 et 2 et ballon supplémentaire. Description dans la ligne inférieure de la répartition des appoints électriques."]
[]
[]
[null,"Part PAC à Tbase",null,null,"Part PAC à Tbase de la solution correspondante. Critère déterminant pour le respect du DTU 65-16, un message s’affiche pour confirmer ou non le respect du DTU 65-16 "]
[null,"Puissance totale PAC à Tbase",null,null,"Puissance calorifique totale à Tbase de la solution"]
[null,"Taux de couverture PAC annuel estimé",null,null,"Taux de couverture annuel estimé pour la solution"]
[]
[null,"Données électriques",null,null,"Puissance et intensité électrique max associées à la solution: PAC + Appoint(s) électrique(s). "]
[null,null,null,null,"Puissance apparente associée à la solution (seulement PAC + appoint). Permet de donner une indication sur la possibilité ou non pour le client d’un tarif bleu. Un message s’affiche lorsque le tarif bleu est jugé possible, sur la base des données PAC et appoints."]
[]
[null,"Données hydrauliques",null,null,"Débit PAC préconisé de la solution, Diamètre des canalisations préconisé entre la/les PAC et le ballon. Hauteur manométrique disponible pour la solution "]
[null,null,null,null,"Pression maximale: Attention: la pression maximale est de 6 bar pour Izea châssis M, L et XL. La pression max est de 3 bar pour Izea châssis S."]
[]
[null,"Données dimensionnelles",null,null,"Surface nécessaire à l’installation PAC, dimensions pour 1 PAC, hauteur et diamètre du plus gros ballon"]
[]
[null,"Données acoustiques",null,null,"\nPuissance sonore pour la solution PAC à pleine charge et puissance sonore pour une PAC à charge partielle, selon la norme EN 12102"]
[]
[null,"Coût",null,null,"Prix Public Hors Taxe de la solution choisie.  Il s’agit d’une enveloppe qui comprend le prix du système PAC + ballon(s) primaire(s) + appoint(s) + système de régulation et accessoires obligatoires. Le devis final peut légèrement différer de cette enveloppe."]
[]
[]
["5)","Cliquez sur \"générer étude de prédimensionnement\" afin d'être redirigé vers la synthèse de l'étude"]
[null,"Vous retrouverez sur cette onglet un récapitulatif de votre étude ainsi qu'un schéma de principe de votre solution PAC et les dimensions de la PAC sélectionnée."]
[]
["6)","Cliquez sur \"télecharger le rapport\" si vous souhaitez sauvegarder votre étude sur votre PC"]

{"sheet":"Chauffage","index":2,"n_rows":117,"n_cols":22,"rows_kept":117,"cut":false,"hidden":false,"merged":[[41,5,41,6],[41,11,41,12],[43,11,43,12],[35,8,35,9],[41,8,41,9],[43,8,43,9],[35,11,35,12],[37,11,37,12],[39,11,39,12],[39,8,39,9],[39,5,39,6],[37,5,37,6],[35,5,35,6],[37,8,37,9],[41,17,41,18],[43,17,43,18],[35,14,35,15],[37,14,37,15],[39,14,39,15],[41,14,41,15],[43,14,43,15],[35,17,35,18],[37,17,37,18],[39,17,39,18],[0,7,1,15],[15,6,15,8],[8,5,8,17],[19,17,19,18],[15,17,15,18],[17,17,17,18],[19,2,19,5],[17,6,17,8],[19,6,19,8],[21,2,21,5],[25,17,25,18],[23,2,23,4],[23,6,23,8],[23,17,23,18],[21,6,21,8],[93,3,94,6],[108,3,108,6],[96,3,96,6],[110,3,110,6],[103,3,103,6],[97,3,99,6],[100,3,100,6],[102,3,102,6],[104,3,104,6],[106,3,106,6],[84,30,84,31],[43,5,43,6],[79,18,79,21],[79,13,79,16],[74,18,74,21],[74,8,74,11],[74,13,74,16],[75,18,75,21],[75,13,75,16],[70,19,70,20],[80,13,80,16],[80,18,80,21],[77,18,77,21],[63,1,63,21],[84,3,84,6],[70,9,70,10],[86,19,87,19],[86,15,87,15],[86,10,87,10],[86,14,87,14],[86,9,87,9],[86,20,87,20],[49,4,50,8],[49,15,50,18],[52,7,53,10],[52,15,53,18],[86,3,87,6],[79,8,79,11],[70,14,70,15],[77,8,77,11],[77,13,77,16],[52,2,53,5],[54,2,55,5],[54,7,55,11],[82,3,82,6],[75,8,75,11],[80,8,80,11],[106,13,106,15],[106,18,106,20],[116,13,117,14],[116,15,117,15],[116,18,117,19],[116,20,117,20],[106,8,106,10],[112,2,112,6],[113,3,113,6],[114,2,114,6],[116,7,117,7],[116,8,117,9],[116,4,117,6],[116,10,117,10]]}
[null,null,null,null,null,null,null,"APPLICATION  CHAUFFAGE"]
[]
[]
[]
[]
[]
[]
[]
[null,null,null,null,null,"Référence"]
[]
[]
[]
[]
[]
[]
[null,null,"Ville",null,null,null,"01 - AMBERIEU",null,null,null,null,null,null,"Distance PAC / ballon",null,null,null,null,null,"m"]
[]
[null,null,"Altitude",null,null,null,250,null,null,"m",null,null,null,"Distance PAC / Bâtiment",null,null,null,null,null,"m"]
[]
[null,null,"T° extérieure de base (Tbase)",null,null,null,-11,null,null,"°C",null,null,null,"Taux de glycol",null,null,null,0,null,"%"]
[]
[null,null,"Traitement Anti Corrosion",null,null,null,"Non",null,null,null,null,null,null,"Contraintes local technique / accès (si connues)"]
[]
[null,null,{"$f":"IF(VLOOKUP(G16,'Validation des Données'!A3:B174,2,FALSE)=0,\"\",VLOOKUP(G16,'Validation des Données'!A3:B174,2,FALSE))","v":""},null,null,null,null,null,null,null,null,null,null,"Hauteur sous plafond",null,null,null,null,null,"mm"]
[]
[null,null,null,null,null,null,null,null,null,null,null,null,null,"Largeur de passage",null,null,null,null,null,"mm"]
[]
[]
[]
[]
[null,null,null,null,null,null,null,null,null,null,null,"*Pris en charge par la PAC"]
[]
[null,null,null,null,null,null,null,null,null,"Ajouter un circuit",null,null,null,"Supprimer un circuit"]
[]
[]
[null,null,null,null,null,"Circuit 1"]
[]
[null,null,null,"Type"]
[]
[null,null,null,"Puissance circuit",null,null,null,"kW",null,null,"kW",null,null,"kW",null,null,"kW",null,null,"kW"]
[]
[null,null,null,"Consigne de départ",null,null,null,"°C",null,null,"°C",null,null,"°C",null,null,"°C",null,null,"°C"]
[]
[null,null,null,"Delta T°",null,null,null,"K",null,null,"K",null,null,"K",null,null,"K",null,null,"K"]
[]
[]
[]
[]
[]
[null,null,null,null,"Type de dimensionnement",null,null,null,null,null,null,null,null,null,null,"Préférence PAC (facultatif)"]
[]
[]
[null,null,"Avec appoint électrique",null,null,null,null,"Sans appoint électrique"]
[]
[null,null,"Dimensionnement selon le DTU65-16.",null,null,null,null,"Le système est dimensionné avec un minimum de 20% de majoration sur la puissance chauffage. Veuillez contacter notre service avant vente pour un pourcentage de majoration différent."]
[]
[]
[]
[]
[]
[]
[]
[]
[null,"Ce dimensionnement est réalisé à titre indicatif afin de guider l'utilisateur vers un système en fonction des données d'entrées renseignées. Il ne remplace pas une étude de dimensionnement finale effectuée par le service Avant Vente ACV."]
[]
[]
[]
[]
[]
[]
[null,null,null,null,null,null,"PAC",null,null,{"$f":"IF(ISBLANK('Données Elec'!D21),\"\",'Données Elec'!D22&\" x \"&'Données Elec'!D21)","v":""},null,null,null,null,{"$f":"IF(ISBLANK('Données Elec'!E21),\"\",'Données Elec'!E22&\" x \"&'Données Elec'!E21)","v":""},null,null,null,null,{"$f":"IF(ISBLANK('Données Elec'!F21),\"\",'Données Elec'!F22&\" x \"&'Données Elec'!F21)","v":""}]
[]
[null,null,null,null,null,null,"Appoint électrique total",null,null,{"$f":"IF(ISBLANK('Données Elec'!D24),\"\",'Données Elec'!D24)","v":""},"kW",null,null,null,{"$f":"IF(ISBLANK('Données Elec'!E24),\"\",'Données Elec'!E24)","v":""},"kW",null,null,null,{"$f":"IF(ISBLANK('Données Elec'!F24),\"\",'Données Elec'!F24)","v":""},"kW"]
[]
[null,null,null,null,null,null,"Ballon de charge 1",null,{"$f":"IF(ISBLANK('Données Elec'!D25),\"\",'Données Elec'!D25)","v":""},null,null,null,null,{"$f":"IF(ISBLANK('Données Elec'!E25),\"\",'Données Elec'!E25)","v":""},null,null,null,null,{"$f":"IF(ISBLANK('Données Elec'!F25),\"\",'Données Elec'!F25)","v":""}]
[null,null,null,null,null,null,"Appoint.s équipé.s",null,{"$f":"IF('Données Elec'!D26<>\"\",'Données Elec'!D26&\" kW\",\"\")&IF('Données Elec'!D27<>\"\",\" + \"&'Données Elec'!D27&\" kW\",\"\")&IF('Données Elec'!D28<>\"\",\" + \"&'Données Elec'!D28&\" kW\",\"\")","v":""},null,null,null,null,{"$f":"IF('Données Elec'!E26<>\"\",'Données Elec'!E26&\" kW\",\"\")&IF('Données Elec'!E27<>\"\",\" + \"&'Données Elec'!E27&\" kW\",\"\")&IF('Données Elec'!E28<>\"\",\" + \"&'Données Elec'!E28&\" kW\",\"\")","v":""},null,null,null,null,{"$f":"IF('Données Elec'!F26<>\"\",'Données Elec'!F26&\" kW\",\"\")&IF('Données Elec'!F27<>\"\",\" + \"&'Données Elec'!F27&\" kW\",\"\")&IF('Données Elec'!F28<>\"\",\" + \"&'Données Elec'!F28&\" kW\",\"\")","v":""}]
[]
[null,null,null,null,null,null,"Ballon de charge 2",null,{"$f":"IF(ISBLANK('Données Elec'!D29),\"\",'Données Elec'!D29)","v":""},null,null,null,null,{"$f":"IF(ISBLANK('Données Elec'!E29),\"\",'Données Elec'!E29)","v":""},null,null,null,null,{"$f":"IF(ISBLANK('Données Elec'!F29),\"\",'Données Elec'!F29)","v":""}]
[]
[null,null,null,null,null,null,"Ballon Supplémentaire",null,{"$f":"IF(ISBLANK('Données Elec'!D30),\"\",'Données Elec'!D30)","v":""},null,null,null,null,{"$f":"IF(ISBLANK('Données Elec'!E30),\"\",'Données Elec'!E30)","v":""},null,null,null,null,{"$f":"IF(ISBLANK('Données Elec'!F30),\"\",'Données Elec'!F30)","v":""}]
[null,null,null,null,null,null,"Appoint.s équipé.s",null,{"$f":"IF('Données Elec'!D31<>\"\",'Données Elec'!D31&\" kW\",\"\")&IF('Données Elec'!D32<>\"\",\" + \"&'Données Elec'!D32&\" kW\",\"\")&IF('Données Elec'!D33<>\"\",\" + \"&'Données Elec'!D33&\" kW\",\"\")","v":""},null,null,null,null,{"$f":"IF('Données Elec'!E31<>\"\",'Données Elec'!E31&\" kW\",\"\")&IF('Données Elec'!E32<>\"\",\" + \"&'Données Elec'!E32&\" kW\",\"\")&IF('Données Elec'!E33<>\"\",\" + \"&'Données Elec'!E33&\" kW\",\"\")","v":""},null,null,null,null,{"$f":"IF('Données Elec'!F31<>\"\",'Données Elec'!F31&\" kW\",\"\")&IF('Données Elec'!F32<>\"\",\" + \"&'Données Elec'!F32&\" kW\",\"\")&IF('Données Elec'!F33<>\"\",\" + \"&'Données Elec'!F33&\" kW\",\"\")","v":""}]
[]
[null,null,null,"Part PAC à Tbase",null,null,null,null,null,{"$f":"IF(ISBLANK('Données Elec'!D34),\"\",'Données Elec'!D34 * 100)","v":""},"%",null,null,null,{"$f":"IF(ISBLANK('Données Elec'!E34),\"\",'Données Elec'!E34 * 100)","v":""},"%",null,null,null,{"$f":"IF(ISBLANK('Données Elec'!F34),\"\",'Données Elec'!F34 * 100)","v":""},"%"]
[]
[null,null,null,"Puissance Totale PAC à Tbase",null,null,null,null,null,{"$f":"IF(ISBLANK('Données Elec'!D35),\"\",'Données Elec'!D35)","v":""},"kW",null,null,null,{"$f":"IF(ISBLANK('Données Elec'!E35),\"\",'Données Elec'!E35)","v":""},"kW",null,null,null,{"$f":"IF(ISBLANK('Données Elec'!F35),\"\",'Données Elec'!F35)","v":""},"kW"]
[]
[null,null,null,"Taux de couverture PAC annuel estimé",null,null,null,null,null,{"$f":"IF(ISBLANK('Données Elec'!D36),\"\",'Données Elec'!D36 * 100)","v":""},"%",null,null,null,{"$f":"IF(ISBLANK('Données Elec'!E36),\"\",'Données Elec'!E36 * 100)","v":""},"%",null,null,null,{"$f":"IF(ISBLANK('Données Elec'!F36),\"\",'Données Elec'!F36 * 100)","v":""},"%"]
[]
[]
[null,null,null,null,null,null,"Puissance électrique max",null,null,{"$f":"IF(ISBLANK('Données Elec'!D37),\"\",'Données Elec'!D37)","v":""},"kW",null,null,null,{"$f":"IF(ISBLANK('Données Elec'!E37),\"\",'Données Elec'!E37)","v":""},"kW",null,null,null,{"$f":"IF(ISBLANK('Données Elec'!F37),\"\",'Données Elec'!F37)","v":""},"kW"]
[]
[null,null,null,null,null,null,"Intensité électrique max",null,null,{"$f":"IF(ISBLANK('Données Elec'!D38),\"\",'Données Elec'!D38)","v":""},"A",null,null,null,{"$f":"IF(ISBLANK('Données Elec'!E38),\"\",'Données Elec'!E38)","v":""},"A",null,null,null,{"$f":"IF(ISBLANK('Données Elec'!F38),\"\",'Données Elec'!F38)","v":""},"A"]
[]
[null,null,null,"Puissance apparente",null,null,null,null,null,{"$f":"IF(ISBLANK('Données Elec'!D39),\"\",'Données Elec'!D39)","v":""},"kVA",null,null,null,{"$f":"IF(ISBLANK('Données Elec'!E39),\"\",'Données Elec'!E39)","v":""},"kVA",null,null,null,{"$f":"IF(ISBLANK('Données Elec'!F39),\"\",'Données Elec'!F39)","v":""},"kVA"]
[]
[]
[null,null,null,"Débit global PAC préconisé",null,null,null,null,null,{"$f":"IF(ISBLANK('Données Elec'!D40),\"\",'Données Elec'!D40)","v":""},"m³/h",null,null,null,{"$f":"IF(ISBLANK('Données Elec'!E40),\"\",'Données Elec'!E40)","v":""},"m³/h",null,null,null,{"$f":"IF(ISBLANK('Données Elec'!F40),\"\",'Données Elec'!F40)","v":""},"m³/h"]
[null,null,null,"Diamètre préconisé des canalisations"]
[null,null,null,null,null,null,null,null,null,{"$f":"IF(AND('Données Elec'!I7<>\"\",'Données Elec'!I8<>\"\"),IF(ISBLANK('Données Elec'!D41),\"\",'Données Elec'!D41),IF(ISBLANK('Données Elec'!D41),\"\",\"---\"))","v":""},null,null,null,null,{"$f":"IF(AND('Données Elec'!I7<>\"\",'Données Elec'!I8<>\"\"),IF(ISBLANK('Données Elec'!E41),\"\",'Données Elec'!D41),IF(ISBLANK('Données Elec'!E41),\"\",\"---\"))","v":""},null,null,null,null,{"$f":"IF(AND('Données Elec'!I7<>\"\",'Données Elec'!I8<>\"\"),IF(ISBLANK('Données Elec'!F41),\"\",'Données Elec'!F41),IF(ISBLANK('Données Elec'!F41),\"\",\"---\"))","v":""}]
[]
[null,null,null,"HMT disponible",null,null,null,null,null,{"$f":"IF(ISBLANK('Données Elec'!D42),\"\",'Données Elec'!D42)","v":""},"kPa",null,null,null,{"$f":"IF(ISBLANK('Données Elec'!E42),\"\",'Données Elec'!E42)","v":""},"kPa",null,null,null,{"$f":"IF(ISBLANK('Données Elec'!F42),\"\",'Données Elec'!F42)","v":""},"kPa"]
[]
[null,null,null,"Pression maximum de service",null,null,null,null,null,{"$f":"IF(ISBLANK('Données Elec'!D43),\"\",'Données Elec'!D43)","v":""},"bar",null,null,null,{"$f":"IF(ISBLANK('Données Elec'!E43),\"\",'Données Elec'!E43)","v":""},"bar",null,null,null,{"$f":"IF(ISBLANK('Données Elec'!E43),\"\",'Données Elec'!E43)","v":""},"bar"]
[]
[null,null,null,"Surface nécessaire installation PAC",null,null,null,null,null,{"$f":"IF(ISBLANK('Données Elec'!D44),\"\",'Données Elec'!D44)","v":""},"m²",null,null,null,{"$f":"IF(ISBLANK('Données Elec'!E44),\"\",'Données Elec'!E44)","v":""},"m²",null,null,null,{"$f":"IF(ISBLANK('Données Elec'!F44),\"\",'Données Elec'!F44)","v":""},"m²"]
[]
[null,null,null,"Dimensions 1 PAC (HxLxP)",null,null,null,null,{"$f":"IF(ISBLANK('Données Elec'!D45),\"\",'Données Elec'!D45&\" x \"&'Données Elec'!D46&\" x \"&'Données Elec'!D47)","v":""},null,null,"mm",null,{"$f":"IF(ISBLANK('Données Elec'!E45),\"\",'Données Elec'!E45&\" x \"&'Données Elec'!E46&\" x \"&'Données Elec'!E47)","v":""},null,null,"mm",null,{"$f":"IF(ISBLANK('Données Elec'!F45),\"\",'Données Elec'!F45&\" x \"&'Données Elec'!F46&\" x \"&'Données Elec'!F47)","v":""},null,null,"mm"]
[]
[null,null,null,"Hauteur minimale local",null,null,null,null,null,{"$f":"IF(ISBLANK('Données Elec'!D48),\"\",'Données Elec'!D48)","v":""},"mm",null,null,null,{"$f":"IF(ISBLANK('Données Elec'!E48),\"\",'Données Elec'!E48)","v":""},"mm",null,null,null,{"$f":"IF(ISBLANK('Données Elec'!F48),\"\",'Données Elec'!F48)","v":""},"mm"]
[]
[null,null,null,"Largeur de passage minimale local",null,null,null,null,null,{"$f":"IF(ISBLANK('Données Elec'!D49),\"\",'Données Elec'!D49)","v":""},"mm",null,null,null,{"$f":"IF(ISBLANK('Données Elec'!E49),\"\",'Données Elec'!E49)","v":""},"mm",null,null,null,{"$f":"IF(ISBLANK('Données Elec'!F49),\"\",'Données Elec'!F49)","v":""},"mm"]
[]
[null,null,"Puissance sonore 1 PAC à charge partielle\nPuissance sonore 1 PAC à charge partielle\nPuissance sonore 1 PAC à charge partielle",null,null,null,null,null,null,{"$f":"IF(ISBLANK('Données Elec'!D50),\"\",'Données Elec'!D50)","v":""},"dB(A)",null,null,null,{"$f":"IF(ISBLANK('Données Elec'!E50),\"\",'Données Elec'!E50)","v":""},"dB(A)",null,null,null,{"$f":"IF(ISBLANK('Données Elec'!F50),\"\",'Données Elec'!F50)","v":""},"dB(A)"]
[null,null,null,"Selon la norme EN 12-102"]
[null,null,"Puissance sonore totale à pleine charge",null,null,null,null,null,null,{"$f":"IF(ISBLANK('Données Elec'!D51),\"\",'Données Elec'!D51)","v":""},"dB(A)",null,null,null,{"$f":"IF(ISBLANK('Données Elec'!E51),\"\",'Données Elec'!E51)","v":""},"dB(A)",null,null,null,{"$f":"IF(ISBLANK('Données Elec'!F51),\"\",'Données Elec'!F51)","v":""},"dB(A)"]
[]
[null,null,null,null,"PPHT estimé",null,null,null,{"$f":"IF(ISBLANK('Données Elec'!D52),\"\",'Données Elec'!D52)","v":""},null,"€",null,null,{"$f":"IF(ISBLANK('Données Elec'!E52),\"\",'Données Elec'!E52)","v":""},null,"€",null,null,{"$f":"IF(ISBLANK('Données Elec'!F52),\"\",'Données Elec'!F52)","v":""},null,"€"]

{"sheet":"Données Elec","index":3,"n_rows":192,"n_cols":13,"rows_kept":192,"cut":false,"hidden":true,"merged":[[168,1,191,1],[60,0,191,0],[16,1,17,1],[60,1,119,1],[128,1,167,1],[51,1,52,1],[53,1,59,1],[18,7,59,7],[0,0,15,0],[0,1,5,1],[12,1,15,1],[6,1,11,1],[18,0,59,0],[20,1,22,1],[23,1,32,1],[33,1,35,1],[36,1,38,1],[39,1,42,1],[43,1,48,1],[49,1,50,1],[18,1,19,1]]}
["Entrées","Localisation","Ville",{"$f":"Chauffage!G16","v":"01 - AMBERIEU"},"Sans modification"]
[null,null,"Altitude",{"$f":"Chauffage!G18","v":250}]
[null,null,"Température de base (Tbase)",{"$f":"Chauffage!G20","v":-11},-11]
[null,null,"Température été (Tete)",35]
[null,null,"Traitement Anti Corrosion",{"$f":"Chauffage!G22=\"Oui\"","v":false}]
[null,null,"BordDeMer / Montagne",{"$f":"IF(Chauffage!C24 = \"\",\"\",Chauffage!G24=\"Oui\")","v":""}]
[null,"Installation","Distance PAC / ballon",{"$f":"IF(Chauffage!R16=\"\",\"\",Chauffage!R16)","v":""}]
[null,null,"Distance PAC / Bâtiment",{"$f":"IF(Chauffage!R18=\"\",\"\",Chauffage!R18)","v":""}]
[null,null,"taux de glycol",{"$f":"Chauffage!R20","v":0}]
[null,null,"Hauteur sous plafond",{"$f":"IF(Chauffage!R24=\"\",\"\",Chauffage!R24)","v":""}]
[null,null,"Largeur de porte",{"$f":"IF(Chauffage!R26=\"\",\"\",Chauffage!R26)","v":""}]
[null,null,"Gamme de Pac",{"$f":"IF(E12= 1,\"AHP60\",\"AHP70\")","v":"AHP70"},2]
[null,"Circuit.s","Type",{"$f":"\"\"&Chauffage!F38","v":""},{"$f":"\"\"&Chauffage!I38","v":""},{"$f":"\"\"&Chauffage!L38","v":""},{"$f":"\"\"&Chauffage!O38","v":""},{"$f":"\"\"&Chauffage!R38","v":""}]
[null,null,"Puissance circuit",{"$f":"IF(Chauffage!F40 = \"\", \"\", Chauffage!F40)","v":""},{"$f":"IF(Chauffage!I40 = \"\", \"\", Chauffage!I40)","v":""},{"$f":"IF(Chauffage!L40 = \"\", \"\", Chauffage!L40)","v":""},{"$f":"IF(Chauffage!O40 = \"\", \"\", Chauffage!O40)","v":""},{"$f":"IF(Chauffage!R40 = \"\", \"\", Chauffage!R40)","v":""}]
[null,null,"Consigne de départ",{"$f":"IF(Chauffage!F42 = \"\", \"\", Chauffage!F42)","v":""},{"$f":"IF(Chauffage!I42 = \"\", \"\", Chauffage!I42)","v":""},{"$f":"IF(Chauffage!L42 = \"\", \"\", Chauffage!L42)","v":""},{"$f":"IF(Chauffage!O42 = \"\", \"\", Chauffage!O42)","v":""},{"$f":"IF(Chauffage!R42 = \"\", \"\", Chauffage!R42)","v":""}]
[null,null,"Delta T",{"$f":"IF(Chauffage!F44 = \"\", \"\", Chauffage!F44)","v":""},{"$f":"IF(Chauffage!I44 = \"\", \"\", Chauffage!I44)","v":""},{"$f":"IF(Chauffage!L44 = \"\", \"\", Chauffage!L44)","v":""},{"$f":"IF(Chauffage!O44 = \"\", \"\", Chauffage!O44)","v":""},{"$f":"IF(Chauffage!R44 = \"\", \"\", Chauffage!R44)","v":""}]
[null,"Objectif","Type de dimensionnement",{"$f":"E17=2","v":false},1]
[null,null,"Preference PAC",{"$f":"IF(E18=\"\",\"\",INDEX('Préférence Pac'!A3:A15,MATCH(E18,_xlfn.ANCHORARRAY('Préférence Pac'!B3),0)))","v":""},{"$f":"\"\"&Chauffage!P53","v":""}]
["Sorties","Solutions","nom","Economique","Encombrement","Economique - Choix Utilisateur",null,"Système choisi pour générer le PDF"]
[null,null,"nom pdf","La + economique","La - encombrante","Choix PAC utilisateur"]
[null,"Pac","nom Pac"]
[null,null,"nb Pac"]
[null,null,"ChassisPac"]
[null,"Ballon & Appoints","Puissance App élec total"]
[null,null,"Ballon de charge 1"]
[null,null,"Ballon de charge 1 Appoint 1"]
[null,null,"Ballon de charge 1 Appoint 2"]
[null,null,"Ballon de charge 1 Appoint 3"]
[null,null,"Ballon de charge 2"]
[null,null,"Ballon Supplémentaire"]
[null,null,"Ballon Sup Appoint 1",null,null,null,null,null,null,null,{"$f":"IF(D31<>\"\",D31&\" kW\",\"\")&IF(D32<>\"\",\" + \"&D32&\" kW\",\"\")&IF(D33<>\"\",\" + \"&D33&\" kW\",\"\")","v":""},null,{"$f":"IF(F31<>\"\",F31&\" kW\",\"\")&IF(F32<>\"\",\" + \"&F32&\" kW\",\"\")&IF(F33<>\"\",\" + \"&F33&\" kW\",\"\")","v":""}]
[null,null,"Ballon Sup Appoint 2"]
[null,null,"Ballon Sup Appoint 3"]
[null,"Stats","Part PAC à Tbase"]
[null,null,"Puissance PAC à Tbase"]
[null,null,"Taux de couverture PAC annuel estimé"]
[null,"Besoins Elec","Puissance électrique max"]
[null,null,"Intensité électrique max"]
[null,null,"Puissance active"]
[null,"Hydraulique","Débit PAC préconisé"]
[null,null,"Diamètre préconisé des canalisations"]
[null,null,"HMT disponible"]
[null,null,"Pression maximale"]
[null,"Dimensions","Surface nécessaire installation PAC"]
[null,null,"Hauteur Pac"]
[null,null,"Largeur Pac"]
[null,null,"Profondeur Pac"]
[null,null,"Hauteur du plus gros ballon"]
[null,null,"Diametre du plus gros ballon"]
[null,"Puissance Sonore","P.sonore Charge partielle"]
[null,null,"P.sonore Pleine charge"]
[null,"Prix","PPHT estimé"]
[null,null,"code schéma"]
[null,"Données ECS","Choix Ballon serpentin"]
[null,null,"Choix Ballon stockage 1"]
[null,null,"Choix Ballon stockage 2"]
[null,null,"DS part pac à Tbase"]
[null,null,"DS part pac + appoint à Tbase"]
[null,null,"Debit Primaire préconisé"]
[null,null,"Debit Secondaire préconisé"]
["DEVIS","PANIER","code"]
[null,null,"nom"]
[null,null,"prix"]
[null,null,"qte"]
[null,null,"code"]
[null,null,"nom"]
[null,null,"prix"]
[null,null,"qte"]
[null,null,"code"]
[null,null,"nom"]
[null,null,"prix"]
[null,null,"qte"]
[null,null,"code"]
[null,null,"nom"]
[null,null,"prix"]
[null,null,"qte"]
[null,null,"code"]
[null,null,"nom"]
[null,null,"prix"]
[null,null,"qte"]
[null,null,"code"]
[null,null,"nom"]
[null,null,"prix"]
[null,null,"qte"]
[null,null,"code"]
[null,null,"nom"]
[null,null,"prix"]
[null,null,"qte"]
[null,null,"code"]
[null,null,"nom"]
[null,null,"prix"]
[null,null,"qte"]
[null,null,"code"]
[null,null,"nom"]
[null,null,"prix"]
[null,null,"qte"]
[null,null,"code"]
[null,null,"nom"]
[null,null,"prix"]
[null,null,"qte"]
[null,null,"code"]
[null,null,"nom"]
[null,null,"prix"]
[null,null,"qte"]
[null,null,"code"]
[null,null,"nom"]
[null,null,"prix"]
[null,null,"qte"]
[null,null,"code"]
[null,null,"nom"]
[null,null,"prix"]
[null,null,"qte"]
[null,null,"code"]
[null,null,"nom"]
[null,null,"prix"]
[null,null,"qte"]
[null,null,"code"]
[null,null,"nom"]
[null,null,"prix"]
[null,null,"qte"]
[null,null,"code"]
[null,null,"nom"]
[null,null,"prix"]
[null,null,"qte"]
[null,null,"code"]
[null,null,"nom"]
[null,null,"prix"]
[null,null,"qte"]
[null,"ACCESSOIRES","code"]
[null,null,"nom"]
[null,null,"prix"]
[null,null,"qte"]
[null,null,"code"]
[null,null,"nom"]
[null,null,"prix"]
[null,null,"qte"]
[null,null,"code"]
[null,null,"nom"]
[null,null,"prix"]
[null,null,"qte"]
[null,null,"code"]
[null,null,"nom"]
[null,null,"prix"]
[null,null,"qte"]
[null,null,"code"]
[null,null,"nom"]
[null,null,"prix"]
[null,null,"qte"]
[null,null,"code"]
[null,null,"nom"]
[null,null,"prix"]
[null,null,"qte"]
[null,null,"code"]
[null,null,"nom"]
[null,null,"prix"]
[null,null,"qte"]
[null,null,"code"]
[null,null,"nom"]
[null,null,"prix"]
[null,null,"qte"]
[null,null,"code"]
[null,null,"nom"]
[null,null,"prix"]
[null,null,"qte"]
[null,null,"code"]
[null,null,"nom"]
[null,null,"prix"]
[null,null,"qte"]
[null,"SERVICES","code"]
[null,null,"nom"]
[null,null,"prix"]
[null,null,"qte"]
[null,null,"code"]
[null,null,"nom"]
[null,null,"prix"]
[null,null,"qte"]
[null,null,"code"]
[null,null,"nom"]
[null,null,"prix"]
[null,null,"qte"]
[null,null,"code"]
[null,null,"nom"]
[null,null,"prix"]
[null,null,"qte"]
[null,null,"code"]
[null,null,"nom"]
[null,null,"prix"]
[null,null,"qte"]
[null,null,"code"]
[null,null,"nom"]
[null,null,"prix"]
[null,null,"qte"]

{"sheet":"PDF chauffage","index":4,"n_rows":184,"n_cols":11,"rows_kept":184,"cut":false,"hidden":false,"merged":[[113,1,133,10],[183,7,183,8],[183,9,183,10],[174,7,174,8],[181,7,181,8],[181,9,181,10],[174,1,174,4],[177,1,177,4],[178,1,178,4],[179,1,179,4],[180,1,180,4],[179,7,179,8],[179,9,179,10],[180,7,180,8],[180,9,180,10],[177,7,177,8],[177,9,177,10],[178,7,178,8],[178,9,178,10],[181,1,181,4],[182,1,182,4],[183,1,183,4],[182,7,182,8],[182,9,182,10],[166,9,166,10],[167,9,167,10],[168,9,168,10],[169,9,169,10],[172,7,172,8],[173,7,173,8],[172,1,172,4],[173,1,173,4],[170,7,170,8],[171,7,171,8],[170,1,170,4],[171,1,171,4],[170,9,170,10],[171,9,171,10],[172,9,172,10],[173,9,173,10],[168,7,168,8],[174,9,174,10],[146,7,146,8],[169,7,169,8],[168,1,168,4],[169,1,169,4],[143,7,143,8],[166,7,166,8],[144,7,144,8],[167,7,167,8],[166,1,166,4],[167,1,167,4],[164,7,164,8],[165,7,165,8],[164,1,164,4],[165,1,165,4],[155,7,155,8],[156,7,156,8],[159,7,159,8],[144,1,144,4],[145,1,145,4],[146,1,146,4],[147,1,147,4],[147,7,147,8],[148,7,148,8],[160,1,160,8],[143,9,143,10],[145,9,145,10],[146,9,146,10],[147,9,147,10],[148,9,148,10],[149,9,149,10],[150,9,150,10],[151,9,151,10],[152,9,152,10],[144,9,144,10],[151,7,151,8],[157,1,157,4],[157,7,157,8],[158,1,158,4],[158,7,158,8],[155,9,155,10],[156,9,156,10],[153,1,153,4],[154,1,154,4],[155,1,155,4],[156,1,156,4],[159,1,159,4],[153,7,153,8],[164,9,164,10],[165,9,165,10],[160,9,160,10],[159,9,159,10],[153,9,153,10],[154,9,154,10],[157,9,157,10],[158,9,158,10],[46,1,46,3],[53,1,53,4],[52,1,52,4],[53,5,53,6],[52,5,52,6],[51,5,51,6],[50,5,50,6],[47,6,47,8],[112,5,112,6],[65,1,88,10],[92,1,111,10],[60,1,60,4],[161,1,161,8],[161,9,161,10],[136,1,136,4],[138,1,139,10],[39,1,39,4],[56,1,57,2],[51,1,51,4],[50,1,50,4],[45,1,45,3],[44,1,44,3],[41,1,41,4],[40,1,40,4],[23,1,23,2],[24,1,24,2],[25,1,25,2],[26,1,26,2],[56,3,56,5],[57,3,57,5],[36,1,36,2],[31,3,31,4],[32,1,32,2],[36,3,36,4],[35,3,35,4],[34,5,34,6],[34,3,34,4],[35,1,35,2],[34,1,34,2],[31,1,31,2],[1,3,1,8],[18,7,18,8],[17,7,17,8],[14,4,14,5],[14,1,14,3],[9,4,9,7],[10,4,10,7],[18,1,18,4],[15,7,15,8],[14,7,14,8],[16,7,16,8],[17,1,17,4],[16,1,16,4],[15,1,15,4],[3,1,6,10],[46,6,46,8],[36,7,36,8],[35,7,35,8],[44,6,44,8],[45,6,45,8],[28,8,28,10],[29,8,29,10],[34,7,34,8],[30,8,30,10],[35,5,35,6],[154,7,154,8],[149,7,149,8],[150,7,150,8],[142,1,142,4],[142,7,142,8],[142,9,142,10],[148,1,148,4],[149,1,149,4],[150,1,150,4],[151,1,151,4],[152,1,152,4],[143,1,143,4],[145,7,145,8],[152,7,152,8]]}
[]
[null,null,null,"CHAUFFAGE",null,null,null,null,null,null,{"$f":"\"Version \"&version","v":"Version 4.0"}]
[]
[null,"Cet outil est avant tout un outil où les Utilisateurs se voient proposer une aide au dimensionnement pour les pompes à chaleur pour la production de chauffage collectif. \nLes informations indiquées sur l'Outil sont données à titre indicatif, et sont susceptibles d’évoluer. Par ailleurs, les renseignements figurant sur l'Outil ne sont pas exhaustifs. Ils sont donnés sous réserve de modifications ayant été apportées depuis leur mise en ligne. ACV n'assume aucune responsabilité quant aux conséquences directes ou indirectes, quelle qu'en soit la nature, de l'utilisation de l’Outil et de son Contenu.\n"]
[]
[]
[]
[]
[]
[null,null,null,"Référence du projet:",{"$f":"Chauffage!F9","v":"Référence"}]
[null,null,null,"Date:",{"$f":"TODAY()","v":"2025-04-03"}]
[]
[null,"Localisation",null,null,null,null,null,"Installation"]
[]
[null,"Ville",null,null,{"$f":"\"\"&'Données Elec'!I1","v":""},null,null,"Distance PAC / ballon",null,{"$f":"IF('Données Elec'!I7=\"\",\"---\",'Données Elec'!I7)","v":"---"},"m"]
[null,"Altitude",null,null,null,{"$f":"\"\"&'Données Elec'!I2","v":""},"m","Distance PAC / Bâtiment",null,{"$f":"IF('Données Elec'!I8=\"\",\"---\",'Données Elec'!I8)","v":"---"},"m"]
[null,{"$f":"\"Température extérieure de base\"&IF('Données Elec'!I3='Données Elec'!J3,\"\",\" modifiée\")","v":"Température extérieure de base"},null,null,null,{"$f":"\"\"&'Données Elec'!I3","v":""},"°C","Taux de glycol",null,{"$f":"\"\"&'Données Elec'!I9","v":""},"%"]
[null,"Traitement Anti Corrosion nécessaire",null,null,null,{"$f":"IF('Données Elec'!I5,\"oui\",\"non\")","v":"non"},null,"Hauteur sous plafond",null,{"$f":"\"\"&'Données Elec'!I10","v":""},"mm"]
[null,"Zone \"montagne ou bord de mer\"",null,null,null,{"$f":"IF('Données Elec'!I6=TRUE,\"oui\",\"non\")","v":"non"},null,"Largeur de passage",null,{"$f":"\"\"&'Données Elec'!I11","v":""},"mm"]
[]
[null,"Circuits de chauffage"]
[]
[null,null,null,null,"Circuit 1","Circuit 2","Circuit 3","Circuit 4","Circuit 5"]
[null,"Type",null,"-",{"$f":"\"\"&'Données Elec'!I13","v":""},{"$f":"\"\"&'Données Elec'!J13","v":""},{"$f":"\"\"&'Données Elec'!K13","v":""},{"$f":"\"\"&'Données Elec'!L13","v":""},{"$f":"\"\"&'Données Elec'!M13","v":""}]
[null,"Puissance",null,"kW",{"$f":"\"\"&'Données Elec'!I14","v":""},{"$f":"\"\"&'Données Elec'!J14","v":""},{"$f":"\"\"&'Données Elec'!K14","v":""},{"$f":"\"\"&'Données Elec'!L14","v":""},{"$f":"\"\"&'Données Elec'!M14","v":""}]
[null,"Consigne",null,"°C",{"$f":"\"\"&'Données Elec'!I15","v":""},{"$f":"\"\"&'Données Elec'!J15","v":""},{"$f":"\"\"&'Données Elec'!K15","v":""},{"$f":"\"\"&'Données Elec'!L15","v":""},{"$f":"\"\"&'Données Elec'!M15","v":""}]
[null,"Delta T°",null,"K",{"$f":"\"\"&'Données Elec'!I16","v":""},{"$f":"\"\"&'Données Elec'!J16","v":""},{"$f":"\"\"&'Données Elec'!K16","v":""},{"$f":"\"\"&'Données Elec'!L16","v":""},{"$f":"\"\"&'Données Elec'!M16","v":""}]
[]
[null,"Résultat",null,null,null,null,null,"Solution choisie",{"$f":"_xlfn.SWITCH('Données Elec'!I17,FALSE,\"Avec appoint électrique\",TRUE,\"Sans appoint électrique\",\"\")","v":""}]
[null,null,null,null,null,null,null,null,{"$f":"'Données Elec'!I20","v":0}]
[null,"Equipement",null,null,null,null,null,{"$f":"IF('Données Elec'!I20='Données Elec'!F20,\"Préférence PAC\",\"\")","v":""},{"$f":"IF('Données Elec'!I20='Données Elec'!F20,'Données Elec'!J18,\"\")","v":""}]
[null,"PAC",null,{"$f":"IF(ISBLANK('Données Elec'!I21),\"\",'Données Elec'!I22&\" x \"&'Données Elec'!I21)","v":""}]
[null,"Appoint électrique total",null,{"$f":"'Données Elec'!I24","v":0},"kW"]
[]
[null,"Ballon",null,"Ballon de charge 1",null,"Ballon de charge 2",null,"Ballon Supplémentaire"]
[null,"Type",null,{"$f":"IF('Données Elec'!I25=\"\",\"\",'Données Elec'!I25)","v":""},null,{"$f":"IF('Données Elec'!I29=\"\",\"\",'Données Elec'!I29)","v":""},null,{"$f":"IF('Données Elec'!I30=\"\",\"\",'Données Elec'!I30)","v":""}]
[null,"Appoint(s) équipé(s)",null,{"$f":"IF('Données Elec'!I26<>\"\",'Données Elec'!I26&\" kW\",\"\")&IF('Données Elec'!I27<>\"\",\" + \"&'Données Elec'!I27&\" kW\",\"\")&IF('Données Elec'!I28<>\"\",\" + \"&'Données Elec'!I28&\" kW\",\"\")","v":""},null,null,null,{"$f":"IF('Données Elec'!I31<>\"\",'Données Elec'!I31&\" kW\",\"\")&IF('Données Elec'!I32<>\"\",\" + \"&'Données Elec'!I32&\" kW\",\"\")&IF('Données Elec'!I33<>\"\",\" + \"&'Données Elec'!I33&\" kW\",\"\")","v":""}]
[]
[null,"Performances estimées"]
[null,"Part PAC à la température de base",null,null,null,{"$f":"'Données Elec'!I34","v":0}]
[null,"Puissance PAC à la température de base",null,null,null,{"$f":"'Données Elec'!I35","v":0},"kW"]
[null,"Taux de couverture PAC annuel estimé",null,null,null,{"$f":"'Données Elec'!I36","v":0}]
[]
[null,"Données électriques",null,null,null,null,"Données hydrauliques"]
[null,"Puissance électrique max",null,null,{"$f":"'Données Elec'!I37","v":0},"kW","HMT disponible PAC",null,null,{"$f":"'Données Elec'!I42","v":0},"kPa"]
[null,"Intensité électrique max",null,null,{"$f":"'Données Elec'!I38","v":0},"A","Diamètre préconisé des canalisations*",null,null,{"$f":"IF(AND(J15<>\"---\",J16<>\"---\"),'Données Elec'!I41,\"---\")","v":"---"}]
[null,"Puissance apparente",null,null,{"$f":"'Données Elec'!I39","v":0},"kVA","Débit global PAC préconisé",null,null,{"$f":"'Données Elec'!I40","v":0},"m³/h"]
[null,null,null,null,null,null,"Pression maximum de service",null,null,{"$f":"'Données Elec'!I43","v":0},"bar"]
[null,null,null,null,null,null,"*selon la distance PAC-ballons renseignée et la HMT PAC"]
[null,"Dimensions et encombrement"]
[null,"Surface nécessaire installation PAC",null,null,null,{"$f":"'Données Elec'!I44","v":0},null,"m²"]
[null,"Dimensions 1 PAC (HxLxP)",null,null,null,{"$f":"IF(ISBLANK('Données Elec'!I45),\"\",'Données Elec'!I45&\" x \"&'Données Elec'!I46&\" x \"&'Données Elec'!I47)","v":""},null,"mm"]
[null,"Hauteur minimale local",null,null,null,{"$f":"'Données Elec'!I48","v":0},null,"mm"]
[null,"Largeur de passage minimale local",null,null,null,{"$f":"'Données Elec'!I49","v":0},null,"mm"]
[]
[null,"Acoustique"]
[null,"Puissance sonore\nselon EN 12 102",null,"Pour une PAC à charge partielle",null,null,{"$f":"'Données Elec'!I50","v":0},"dB(A)"]
[null,null,null,"Pour la solution à pleine charge",null,null,{"$f":"'Données Elec'!I51","v":0},"dB(A)"]
[]
[null,"Coût"]
[null,"PPHT estimé",null,null,null,{"$f":"'Données Elec'!I52","v":0},"€"]
[]
[]
[]
[null,"Schéma de principe"]
[null,{"$f":"getSchemaElec","v":{"$error":"#VALUE!"}}]
[]
[]
[]
[]
[]
[]
[]
[]
[]
[]
[]
[]
[]
[]
[]
[]
[]
[]
[]
[]
[]
[]
[]
[]
[]
[null,"Caractéristiques dimensionnelles (en mm)"]
[null,{"$f":"getImageDimensionsPacElec","v":{"$error":"#VALUE!"}}]
[]
[]
[]
[]
[]
[]
[]
[]
[]
[]
[]
[]
[]
[]
[]
[]
[]
[]
[]
[null,null,null,null,null,{"$f":"\"\"&'Données Elec'!I21","v":""}]
[null,{"$f":"INDEX(ImageDimensionsPac!$C$3:$C$10,_xlfn.XMATCH(IFERROR(_xlfn.TEXTJOIN(\"_\",TRUE, _xlfn.TEXTBEFORE('Données Elec'!$I$21, \" \"),CHOOSE('Données Elec'!$I$23,\"S\",\"M\",\"L\",\"XL\")),\"X\"),ImageDimensionsPac!$A$3:$A$10))","v":{"$error":"#VALUE!"}}]
[]
[]
[]
[]
[]
[]
[]
[]
[]
[]
[]
[]
[]
[]
[]
[]
[]
[]
[]
[]
[]
[]
[null,"Récapitulatif des références "]
[]
[null,"Pour plus de détails sur les fournitures et services ci-dessous, veuillez consulter le catalogue ACV, disponible sur le site pro: https://www.acv.com/france/espace-professionnel"]
[]
[]
[null,"Fournitures obligatoires incluses dans le chiffrage "]
[null,"Désignation",null,null,null,"Quantité","Référence","PPHT Unitaire (€)",null,"PPHT Total (€)"]
[null,{"$f":"IF(INDIRECT(\"'Données Elec'!I\"&(ROW()-ROW(panier))*4+1+ROW('Données Elec'!panier))=0,\"\",INDIRECT(\"'Données Elec'!I\"&(ROW()-ROW(panier))*4+1+ROW('Données Elec'!panier)))","v":""},null,null,null,{"$f":"IF(B144=\"\",\"\",INDIRECT(\"'Données Elec'!I\"&(ROW()-ROW(panier))*4+3+ROW('Données Elec'!panier)))","v":""},{"$f":"IF(B144=\"\",\"\",INDIRECT(\"'Données Elec'!I\"&(ROW()-ROW(panier))*4+0+ROW('Données Elec'!panier)))","v":""},{"$f":"IF(B144=\"\",\"\",INDIRECT(\"'Données Elec'!I\"&(ROW()-ROW(panier))*4+2+ROW('Données Elec'!panier)))","v":""},null,{"$f":"IFERROR(H144*F144,\"\")","v":""}]
[null,{"$f":"IF(INDIRECT(\"'Données Elec'!I\"&(ROW()-ROW(panier))*4+1+ROW('Données Elec'!panier))=0,\"\",INDIRECT(\"'Données Elec'!I\"&(ROW()-ROW(panier))*4+1+ROW('Données Elec'!panier)))","v":""},null,null,null,{"$f":"IF(B145=\"\",\"\",INDIRECT(\"'Données Elec'!I\"&(ROW()-ROW(panier))*4+3+ROW('Données Elec'!panier)))","v":""},{"$f":"IF(B145=\"\",\"\",INDIRECT(\"'Données Elec'!I\"&(ROW()-ROW(panier))*4+0+ROW('Données Elec'!panier)))","v":""},{"$f":"IF(B145=\"\",\"\",INDIRECT(\"'Données Elec'!I\"&(ROW()-ROW(panier))*4+2+ROW('Données Elec'!panier)))","v":""},null,{"$f":"IFERROR(H145*F145,\"\")","v":""}]
[null,{"$f":"IF(INDIRECT(\"'Données Elec'!I\"&(ROW()-ROW(panier))*4+1+ROW('Données Elec'!panier))=0,\"\",INDIRECT(\"'Données Elec'!I\"&(ROW()-ROW(panier))*4+1+ROW('Données Elec'!panier)))","v":""},null,null,null,{"$f":"IF(B146=\"\",\"\",INDIRECT(\"'Données Elec'!I\"&(ROW()-ROW(panier))*4+3+ROW('Données Elec'!panier)))","v":""},{"$f":"IF(B146=\"\",\"\",INDIRECT(\"'Données Elec'!I\"&(ROW()-ROW(panier))*4+0+ROW('Données Elec'!panier)))","v":""},{"$f":"IF(B146=\"\",\"\",INDIRECT(\"'Données Elec'!I\"&(ROW()-ROW(panier))*4+2+ROW('Données Elec'!panier)))","v":""},null,""]
[null,{"$f":"IF(INDIRECT(\"'Données Elec'!I\"&(ROW()-ROW(panier))*4+1+ROW('Données Elec'!panier))=0,\"\",INDIRECT(\"'Données Elec'!I\"&(ROW()-ROW(panier))*4+1+ROW('Données Elec'!panier)))","v":""},null,null,null,{"$f":"IF(B147=\"\",\"\",INDIRECT(\"'Données Elec'!I\"&(ROW()-ROW(panier))*4+3+ROW('Données Elec'!panier)))","v":""},{"$f":"IF(B147=\"\",\"\",INDIRECT(\"'Données Elec'!I\"&(ROW()-ROW(panier))*4+0+ROW('Données Elec'!panier)))","v":""},{"$f":"IF(B147=\"\",\"\",INDIRECT(\"'Données Elec'!I\"&(ROW()-ROW(panier))*4+2+ROW('Données Elec'!panier)))","v":""},null,""]
[null,{"$f":"IF(INDIRECT(\"'Données Elec'!I\"&(ROW()-ROW(panier))*4+1+ROW('Données Elec'!panier))=0,\"\",INDIRECT(\"'Données Elec'!I\"&(ROW()-ROW(panier))*4+1+ROW('Données Elec'!panier)))","v":""},null,null,null,{"$f":"IF(B148=\"\",\"\",INDIRECT(\"'Données Elec'!I\"&(ROW()-ROW(panier))*4+3+ROW('Données Elec'!panier)))","v":""},{"$f":"IF(B148=\"\",\"\",INDIRECT(\"'Données Elec'!I\"&(ROW()-ROW(panier))*4+0+ROW('Données Elec'!panier)))","v":""},{"$f":"IF(B148=\"\",\"\",INDIRECT(\"'Données Elec'!I\"&(ROW()-ROW(panier))*4+2+ROW('Données Elec'!panier)))","v":""},null,""]
[null,{"$f":"IF(INDIRECT(\"'Données Elec'!I\"&(ROW()-ROW(panier))*4+1+ROW('Données Elec'!panier))=0,\"\",INDIRECT(\"'Données Elec'!I\"&(ROW()-ROW(panier))*4+1+ROW('Données Elec'!panier)))","v":""},null,null,null,{"$f":"IF(B149=\"\",\"\",INDIRECT(\"'Données Elec'!I\"&(ROW()-ROW(panier))*4+3+ROW('Données Elec'!panier)))","v":""},{"$f":"IF(B149=\"\",\"\",INDIRECT(\"'Données Elec'!I\"&(ROW()-ROW(panier))*4+0+ROW('Données Elec'!panier)))","v":""},{"$f":"IF(B149=\"\",\"\",INDIRECT(\"'Données Elec'!I\"&(ROW()-ROW(panier))*4+2+ROW('Données Elec'!panier)))","v":""},null,""]
[null,{"$f":"IF(INDIRECT(\"'Données Elec'!I\"&(ROW()-ROW(panier))*4+1+ROW('Données Elec'!panier))=0,\"\",INDIRECT(\"'Données Elec'!I\"&(ROW()-ROW(panier))*4+1+ROW('Données Elec'!panier)))","v":""},null,null,null,{"$f":"IF(B150=\"\",\"\",INDIRECT(\"'Données Elec'!I\"&(ROW()-ROW(panier))*4+3+ROW('Données Elec'!panier)))","v":""},{"$f":"IF(B150=\"\",\"\",INDIRECT(\"'Données Elec'!I\"&(ROW()-ROW(panier))*4+0+ROW('Données Elec'!panier)))","v":""},{"$f":"IF(B150=\"\",\"\",INDIRECT(\"'Données Elec'!I\"&(ROW()-ROW(panier))*4+2+ROW('Données Elec'!panier)))","v":""},null,""]
[null,{"$f":"IF(INDIRECT(\"'Données Elec'!I\"&(ROW()-ROW(panier))*4+1+ROW('Données Elec'!panier))=0,\"\",INDIRECT(\"'Données Elec'!I\"&(ROW()-ROW(panier))*4+1+ROW('Données Elec'!panier)))","v":""},null,null,null,{"$f":"IF(B151=\"\",\"\",INDIRECT(\"'Données Elec'!I\"&(ROW()-ROW(panier))*4+3+ROW('Données Elec'!panier)))","v":""},{"$f":"IF(B151=\"\",\"\",INDIRECT(\"'Données Elec'!I\"&(ROW()-ROW(panier))*4+0+ROW('Données Elec'!panier)))","v":""},{"$f":"IF(B151=\"\",\"\",INDIRECT(\"'Données Elec'!I\"&(ROW()-ROW(panier))*4+2+ROW('Données Elec'!panier)))","v":""},null,""]
[null,{"$f":"IF(INDIRECT(\"'Données Elec'!I\"&(ROW()-ROW(panier))*4+1+ROW('Données Elec'!panier))=0,\"\",INDIRECT(\"'Données Elec'!I\"&(ROW()-ROW(panier))*4+1+ROW('Données Elec'!panier)))","v":""},null,null,null,{"$f":"IF(B152=\"\",\"\",INDIRECT(\"'Données Elec'!I\"&(ROW()-ROW(panier))*4+3+ROW('Données Elec'!panier)))","v":""},{"$f":"IF(B152=\"\",\"\",INDIRECT(\"'Données Elec'!I\"&(ROW()-ROW(panier))*4+0+ROW('Données Elec'!panier)))","v":""},{"$f":"IF(B152=\"\",\"\",INDIRECT(\"'Données Elec'!I\"&(ROW()-ROW(panier))*4+2+ROW('Données Elec'!panier)))","v":""},null,""]
[null,{"$f":"IF(INDIRECT(\"'Données Elec'!I\"&(ROW()-ROW(panier))*4+1+ROW('Données Elec'!panier))=0,\"\",INDIRECT(\"'Données Elec'!I\"&(ROW()-ROW(panier))*4+1+ROW('Données Elec'!panier)))","v":""},null,null,null,{"$f":"IF(B153=\"\",\"\",INDIRECT(\"'Données Elec'!I\"&(ROW()-ROW(panier))*4+3+ROW('Données Elec'!panier)))","v":""},{"$f":"IF(B153=\"\",\"\",INDIRECT(\"'Données Elec'!I\"&(ROW()-ROW(panier))*4+0+ROW('Données Elec'!panier)))","v":""},{"$f":"IF(B153=\"\",\"\",INDIRECT(\"'Données Elec'!I\"&(ROW()-ROW(panier))*4+2+ROW('Données Elec'!panier)))","v":""},null,""]
[null,{"$f":"IF(INDIRECT(\"'Données Elec'!I\"&(ROW()-ROW(panier))*4+1+ROW('Données Elec'!panier))=0,\"\",INDIRECT(\"'Données Elec'!I\"&(ROW()-ROW(panier))*4+1+ROW('Données Elec'!panier)))","v":""},null,null,null,{"$f":"IF(B154=\"\",\"\",INDIRECT(\"'Données Elec'!I\"&(ROW()-ROW(panier))*4+3+ROW('Données Elec'!panier)))","v":""},{"$f":"IF(B154=\"\",\"\",INDIRECT(\"'Données Elec'!I\"&(ROW()-ROW(panier))*4+0+ROW('Données Elec'!panier)))","v":""},{"$f":"IF(B154=\"\",\"\",INDIRECT(\"'Données Elec'!I\"&(ROW()-ROW(panier))*4+2+ROW('Données Elec'!panier)))","v":""},null,""]
[null,{"$f":"IF(INDIRECT(\"'Données Elec'!I\"&(ROW()-ROW(panier))*4+1+ROW('Données Elec'!panier))=0,\"\",INDIRECT(\"'Données Elec'!I\"&(ROW()-ROW(panier))*4+1+ROW('Données Elec'!panier)))","v":""},null,null,null,{"$f":"IF(B155=\"\",\"\",INDIRECT(\"'Données Elec'!I\"&(ROW()-ROW(panier))*4+3+ROW('Données Elec'!panier)))","v":""},{"$f":"IF(B155=\"\",\"\",INDIRECT(\"'Données Elec'!I\"&(ROW()-ROW(panier))*4+0+ROW('Données Elec'!panier)))","v":""},{"$f":"IF(B155=\"\",\"\",INDIRECT(\"'Données Elec'!I\"&(ROW()-ROW(panier))*4+2+ROW('Données Elec'!panier)))","v":""},null,""]
[null,{"$f":"IF(INDIRECT(\"'Données Elec'!I\"&(ROW()-ROW(panier))*4+1+ROW('Données Elec'!panier))=0,\"\",INDIRECT(\"'Données Elec'!I\"&(ROW()-ROW(panier))*4+1+ROW('Données Elec'!panier)))","v":""},null,null,null,{"$f":"IF(B156=\"\",\"\",INDIRECT(\"'Données Elec'!I\"&(ROW()-ROW(panier))*4+3+ROW('Données Elec'!panier)))","v":""},{"$f":"IF(B156=\"\",\"\",INDIRECT(\"'Données Elec'!I\"&(ROW()-ROW(panier))*4+0+ROW('Données Elec'!panier)))","v":""},{"$f":"IF(B156=\"\",\"\",INDIRECT(\"'Données Elec'!I\"&(ROW()-ROW(panier))*4+2+ROW('Données Elec'!panier)))","v":""},null,""]
[null,{"$f":"IF(INDIRECT(\"'Données Elec'!I\"&(ROW()-ROW(panier))*4+1+ROW('Données Elec'!panier))=0,\"\",INDIRECT(\"'Données Elec'!I\"&(ROW()-ROW(panier))*4+1+ROW('Données Elec'!panier)))","v":""},null,null,null,{"$f":"IF(B157=\"\",\"\",INDIRECT(\"'Données Elec'!I\"&(ROW()-ROW(panier))*4+3+ROW('Données Elec'!panier)))","v":""},{"$f":"IF(B157=\"\",\"\",INDIRECT(\"'Données Elec'!I\"&(ROW()-ROW(panier))*4+0+ROW('Données Elec'!panier)))","v":""},{"$f":"IF(B157=\"\",\"\",INDIRECT(\"'Données Elec'!I\"&(ROW()-ROW(panier))*4+2+ROW('Données Elec'!panier)))","v":""},null,""]
[null,{"$f":"IF(INDIRECT(\"'Données Elec'!I\"&(ROW()-ROW(panier))*4+1+ROW('Données Elec'!panier))=0,\"\",INDIRECT(\"'Données Elec'!I\"&(ROW()-ROW(panier))*4+1+ROW('Données Elec'!panier)))","v":""},null,null,null,{"$f":"IF(B158=\"\",\"\",INDIRECT(\"'Données Elec'!I\"&(ROW()-ROW(panier))*4+3+ROW('Données Elec'!panier)))","v":""},{"$f":"IF(B158=\"\",\"\",INDIRECT(\"'Données Elec'!I\"&(ROW()-ROW(panier))*4+0+ROW('Données Elec'!panier)))","v":""},{"$f":"IF(B158=\"\",\"\",INDIRECT(\"'Données Elec'!I\"&(ROW()-ROW(panier))*4+2+ROW('Données Elec'!panier)))","v":""},null,""]
[null,{"$f":"IF(INDIRECT(\"'Données Elec'!I\"&(ROW()-ROW(panier))*4+1+ROW('Données Elec'!panier))=0,\"\",INDIRECT(\"'Données Elec'!I\"&(ROW()-ROW(panier))*4+1+ROW('Données Elec'!panier)))","v":""},null,null,null,{"$f":"IF(B159=\"\",\"\",INDIRECT(\"'Données Elec'!I\"&(ROW()-ROW(panier))*4+3+ROW('Données Elec'!panier)))","v":""},{"$f":"IF(B159=\"\",\"\",INDIRECT(\"'Données Elec'!I\"&(ROW()-ROW(panier))*4+0+ROW('Données Elec'!panier)))","v":""},{"$f":"IF(B159=\"\",\"\",INDIRECT(\"'Données Elec'!I\"&(ROW()-ROW(panier))*4+2+ROW('Données Elec'!panier)))","v":""},null,""]
[null,{"$f":"IF(INDIRECT(\"'Données Elec'!I\"&(ROW()-ROW(panier))*4+1+ROW('Données Elec'!panier))=0,\"\",INDIRECT(\"'Données Elec'!I\"&(ROW()-ROW(panier))*4+1+ROW('Données Elec'!panier)))","v":""},null,null,null,{"$f":"IF(B160=\"\",\"\",INDIRECT(\"'Données Elec'!I\"&(ROW()-ROW(panier))*4+3+ROW('Données Elec'!panier)))","v":""},{"$f":"IF(B160=\"\",\"\",INDIRECT(\"'Données Elec'!I\"&(ROW()-ROW(panier))*4+0+ROW('Données Elec'!panier)))","v":""},{"$f":"IF(B160=\"\",\"\",INDIRECT(\"'Données Elec'!I\"&(ROW()-ROW(panier))*4+2+ROW('Données Elec'!panier)))","v":""},null,""]
[null,"Total fournitures",null,null,null,null,null,null,null,{"$f":"SUM(J144:K160)","v":0}]
[null,"Total fournitures + services obligatoires (voir section service ci-dessous)",null,null,null,null,null,null,null,{"$f":"J161+IFERROR(IF(SEARCH(\"Obligatoire\",B179),J179,0),0)+IFERROR(IF(SEARCH(\"Obligatoire\",B180),J180,0),0)","v":0}]
[]
[null,"Accessoires optionnels non inclus dans le chiffrage "]
[null,"Désignation",null,null,null,"Quantité","Référence","PPHT Unitaire (€)",null,"PPHT Total (€)"]
[null,{"$f":"IF(INDIRECT(\"'Données Elec'!I\"&(ROW()-ROW(accessoires))*4+1+ROW('Données Elec'!accessoires))=0,\"\",INDIRECT(\"'Données Elec'!I\"&(ROW()-ROW(accessoires))*4+1+ROW('Données Elec'!accessoires)))","v":""},null,null,null,{"$f":"IF(B166=\"\",\"\",INDIRECT(\"'Données Elec'!I\"&(ROW()-ROW(accessoires))*4+3+ROW('Données Elec'!accessoires)))","v":""},{"$f":"IF(B166=\"\",\"\",INDIRECT(\"'Données Elec'!I\"&(ROW()-ROW(accessoires))*4+0+ROW('Données Elec'!accessoires)))","v":""},{"$f":"IF(B166=\"\",\"\",INDIRECT(\"'Données Elec'!I\"&(ROW()-ROW(accessoires))*4+2+ROW('Données Elec'!accessoires)))","v":""},null,{"$f":"IFERROR(F166*H166,\"\")","v":""}]
[null,{"$f":"IF(INDIRECT(\"'Données Elec'!I\"&(ROW()-ROW(accessoires))*4+1+ROW('Données Elec'!accessoires))=0,\"\",INDIRECT(\"'Données Elec'!I\"&(ROW()-ROW(accessoires))*4+1+ROW('Données Elec'!accessoires)))","v":""},null,null,null,{"$f":"IF(B167=\"\",\"\",INDIRECT(\"'Données Elec'!I\"&(ROW()-ROW(accessoires))*4+3+ROW('Données Elec'!accessoires)))","v":""},{"$f":"IF(B167=\"\",\"\",INDIRECT(\"'Données Elec'!I\"&(ROW()-ROW(accessoires))*4+0+ROW('Données Elec'!accessoires)))","v":""},{"$f":"IF(B167=\"\",\"\",INDIRECT(\"'Données Elec'!I\"&(ROW()-ROW(accessoires))*4+2+ROW('Données Elec'!accessoires)))","v":""},null,{"$f":"IFERROR(F167*H167,\"\")","v":""}]
[null,{"$f":"IF(INDIRECT(\"'Données Elec'!I\"&(ROW()-ROW(accessoires))*4+1+ROW('Données Elec'!accessoires))=0,\"\",INDIRECT(\"'Données Elec'!I\"&(ROW()-ROW(accessoires))*4+1+ROW('Données Elec'!accessoires)))","v":""},null,null,null,{"$f":"IF(B168=\"\",\"\",INDIRECT(\"'Données Elec'!I\"&(ROW()-ROW(accessoires))*4+3+ROW('Données Elec'!accessoires)))","v":""},{"$f":"IF(B168=\"\",\"\",INDIRECT(\"'Données Elec'!I\"&(ROW()-ROW(accessoires))*4+0+ROW('Données Elec'!accessoires)))","v":""},{"$f":"IF(B168=\"\",\"\",INDIRECT(\"'Données Elec'!I\"&(ROW()-ROW(accessoires))*4+2+ROW('Données Elec'!accessoires)))","v":""},null,""]
[null,{"$f":"IF(INDIRECT(\"'Données Elec'!I\"&(ROW()-ROW(accessoires))*4+1+ROW('Données Elec'!accessoires))=0,\"\",INDIRECT(\"'Données Elec'!I\"&(ROW()-ROW(accessoires))*4+1+ROW('Données Elec'!accessoires)))","v":""},null,null,null,{"$f":"IF(B169=\"\",\"\",INDIRECT(\"'Données Elec'!I\"&(ROW()-ROW(accessoires))*4+3+ROW('Données Elec'!accessoires)))","v":""},{"$f":"IF(B169=\"\",\"\",INDIRECT(\"'Données Elec'!I\"&(ROW()-ROW(accessoires))*4+0+ROW('Données Elec'!accessoires)))","v":""},{"$f":"IF(B169=\"\",\"\",INDIRECT(\"'Données Elec'!I\"&(ROW()-ROW(accessoires))*4+2+ROW('Données Elec'!accessoires)))","v":""},null,""]
[null,{"$f":"IF(INDIRECT(\"'Données Elec'!I\"&(ROW()-ROW(accessoires))*4+1+ROW('Données Elec'!accessoires))=0,\"\",INDIRECT(\"'Données Elec'!I\"&(ROW()-ROW(accessoires))*4+1+ROW('Données Elec'!accessoires)))","v":""},null,null,null,{"$f":"IF(B170=\"\",\"\",INDIRECT(\"'Données Elec'!I\"&(ROW()-ROW(accessoires))*4+3+ROW('Données Elec'!accessoires)))","v":""},{"$f":"IF(B170=\"\",\"\",INDIRECT(\"'Données Elec'!I\"&(ROW()-ROW(accessoires))*4+0+ROW('Données Elec'!accessoires)))","v":""},{"$f":"IF(B170=\"\",\"\",INDIRECT(\"'Données Elec'!I\"&(ROW()-ROW(accessoires))*4+2+ROW('Données Elec'!accessoires)))","v":""},null,""]
[null,{"$f":"IF(INDIRECT(\"'Données Elec'!I\"&(ROW()-ROW(accessoires))*4+1+ROW('Données Elec'!accessoires))=0,\"\",INDIRECT(\"'Données Elec'!I\"&(ROW()-ROW(accessoires))*4+1+ROW('Données Elec'!accessoires)))","v":""},null,null,null,{"$f":"IF(B171=\"\",\"\",INDIRECT(\"'Données Elec'!I\"&(ROW()-ROW(accessoires))*4+3+ROW('Données Elec'!accessoires)))","v":""},{"$f":"IF(B171=\"\",\"\",INDIRECT(\"'Données Elec'!I\"&(ROW()-ROW(accessoires))*4+0+ROW('Données Elec'!accessoires)))","v":""},{"$f":"IF(B171=\"\",\"\",INDIRECT(\"'Données Elec'!I\"&(ROW()-ROW(accessoires))*4+2+ROW('Données Elec'!accessoires)))","v":""},null,""]
[null,{"$f":"IF(INDIRECT(\"'Données Elec'!I\"&(ROW()-ROW(accessoires))*4+1+ROW('Données Elec'!accessoires))=0,\"\",INDIRECT(\"'Données Elec'!I\"&(ROW()-ROW(accessoires))*4+1+ROW('Données Elec'!accessoires)))","v":""},null,null,null,{"$f":"IF(B172=\"\",\"\",INDIRECT(\"'Données Elec'!I\"&(ROW()-ROW(accessoires))*4+3+ROW('Données Elec'!accessoires)))","v":""},{"$f":"IF(B172=\"\",\"\",INDIRECT(\"'Données Elec'!I\"&(ROW()-ROW(accessoires))*4+0+ROW('Données Elec'!accessoires)))","v":""},{"$f":"IF(B172=\"\",\"\",INDIRECT(\"'Données Elec'!I\"&(ROW()-ROW(accessoires))*4+2+ROW('Données Elec'!accessoires)))","v":""},null,{"$f":"IFERROR(F172*H172,\"\")","v":""}]
[null,{"$f":"IF(INDIRECT(\"'Données Elec'!I\"&(ROW()-ROW(accessoires))*4+1+ROW('Données Elec'!accessoires))=0,\"\",INDIRECT(\"'Données Elec'!I\"&(ROW()-ROW(accessoires))*4+1+ROW('Données Elec'!accessoires)))","v":""},null,null,null,{"$f":"IF(B173=\"\",\"\",INDIRECT(\"'Données Elec'!I\"&(ROW()-ROW(accessoires))*4+3+ROW('Données Elec'!accessoires)))","v":""},{"$f":"IF(B173=\"\",\"\",INDIRECT(\"'Données Elec'!I\"&(ROW()-ROW(accessoires))*4+0+ROW('Données Elec'!accessoires)))","v":""},{"$f":"IF(B173=\"\",\"\",INDIRECT(\"'Données Elec'!I\"&(ROW()-ROW(accessoires))*4+2+ROW('Données Elec'!accessoires)))","v":""},null,""]
[null,{"$f":"IF(INDIRECT(\"'Données Elec'!I\"&(ROW()-ROW(accessoires))*4+1+ROW('Données Elec'!accessoires))=0,\"\",INDIRECT(\"'Données Elec'!I\"&(ROW()-ROW(accessoires))*4+1+ROW('Données Elec'!accessoires)))","v":""},null,null,null,{"$f":"IF(B174=\"\",\"\",INDIRECT(\"'Données Elec'!I\"&(ROW()-ROW(accessoires))*4+3+ROW('Données Elec'!accessoires)))","v":""},{"$f":"IF(B174=\"\",\"\",INDIRECT(\"'Données Elec'!I\"&(ROW()-ROW(accessoires))*4+0+ROW('Données Elec'!accessoires)))","v":""},{"$f":"IF(B174=\"\",\"\",INDIRECT(\"'Données Elec'!I\"&(ROW()-ROW(accessoires))*4+2+ROW('Données Elec'!accessoires)))","v":""},null,""]
[null,{"$f":"IF(INDIRECT(\"'Données Elec'!I\"&(ROW()-ROW(accessoires))*4+1+ROW('Données Elec'!accessoires))=0,\"\",INDIRECT(\"'Données Elec'!I\"&(ROW()-ROW(accessoires))*4+1+ROW('Données Elec'!accessoires)))","v":""},null,null,null,{"$f":"IF(B175=\"\",\"\",INDIRECT(\"'Données Elec'!I\"&(ROW()-ROW(accessoires))*4+3+ROW('Données Elec'!accessoires)))","v":""},{"$f":"IF(B175=\"\",\"\",INDIRECT(\"'Données Elec'!I\"&(ROW()-ROW(accessoires))*4+0+ROW('Données Elec'!accessoires)))","v":""},{"$f":"IF(B175=\"\",\"\",INDIRECT(\"'Données Elec'!I\"&(ROW()-ROW(accessoires))*4+2+ROW('Données Elec'!accessoires)))","v":""},null,""]
[]
[null,"Services"]
[null,"Désignation",null,null,null,"Quantité","Référence","PPHT Unitaire (€)",null,"PPHT Total (€)"]
[null,{"$f":"IF(INDIRECT(\"'Données Elec'!I\"&(ROW()-ROW(services))*4+1+ROW('Données Elec'!services))=0,\"\",INDIRECT(\"'Données Elec'!I\"&(ROW()-ROW(services))*4+1+ROW('Données Elec'!services))&IF(OR(INDIRECT(\"'Données Elec'!I\"&(ROW()-ROW(services))*4+0+ROW('Données Elec'!services))=\"880620\",INDIRECT(\"'Données Elec'!I\"&(ROW()-ROW(services))*4+0+ROW('Données Elec'!services))=\"880320\",INDIRECT(\"'Données Elec'!I\"&(ROW()-ROW(services))*4+0+ROW('Données Elec'!services))=\"880720\"),\" (Obligatoire)\",\"\"))","v":""},null,null,null,{"$f":"IF(B179=\"\",\"\",INDIRECT(\"'Données Elec'!I\"&(ROW()-ROW(services))*4+3+ROW('Données Elec'!services)))","v":""},{"$f":"IF(B179=\"\",\"\",INDIRECT(\"'Données Elec'!I\"&(ROW()-ROW(services))*4+0+ROW('Données Elec'!services)))","v":""},{"$f":"IF(B179=\"\",\"\",INDIRECT(\"'Données Elec'!I\"&(ROW()-ROW(services))*4+2+ROW('Données Elec'!services)))","v":""},null,{"$f":"IFERROR(F179*H179,\"\")","v":""}]
[null,{"$f":"IF(INDIRECT(\"'Données Elec'!I\"&(ROW()-ROW(services))*4+1+ROW('Données Elec'!services))=0,\"\",INDIRECT(\"'Données Elec'!I\"&(ROW()-ROW(services))*4+1+ROW('Données Elec'!services))&IF(OR(INDIRECT(\"'Données Elec'!I\"&(ROW()-ROW(services))*4+0+ROW('Données Elec'!services))=\"880621\",INDIRECT(\"'Données Elec'!I\"&(ROW()-ROW(services))*4+0+ROW('Données Elec'!services))=\"880321\"),\" (Obligatoire)\",\"\"))","v":""},null,null,null,{"$f":"IF(B180=\"\",\"\",INDIRECT(\"'Données Elec'!I\"&(ROW()-ROW(services))*4+3+ROW('Données Elec'!services)))","v":""},{"$f":"IF(B180=\"\",\"\",INDIRECT(\"'Données Elec'!I\"&(ROW()-ROW(services))*4+0+ROW('Données Elec'!services)))","v":""},{"$f":"IF(B180=\"\",\"\",INDIRECT(\"'Données Elec'!I\"&(ROW()-ROW(services))*4+2+ROW('Données Elec'!services)))","v":""},null,{"$f":"IFERROR(F180*H180,\"\")","v":""}]
[null,{"$f":"IF(INDIRECT(\"'Données Elec'!I\"&(ROW()-ROW(services))*4+1+ROW('Données Elec'!services))=0,\"\",INDIRECT(\"'Données Elec'!I\"&(ROW()-ROW(services))*4+1+ROW('Données Elec'!services)))","v":""},null,null,null,{"$f":"IF(B181=\"\",\"\",INDIRECT(\"'Données Elec'!I\"&(ROW()-ROW(services))*4+3+ROW('Données Elec'!services)))","v":""},{"$f":"IF(B181=\"\",\"\",INDIRECT(\"'Données Elec'!I\"&(ROW()-ROW(services))*4+0+ROW('Données Elec'!services)))","v":""},{"$f":"IF(B181=\"\",\"\",INDIRECT(\"'Données Elec'!I\"&(ROW()-ROW(services))*4+2+ROW('Données Elec'!services)))","v":""},null,""]
[null,{"$f":"IF(INDIRECT(\"'Données Elec'!I\"&(ROW()-ROW(services))*4+1+ROW('Données Elec'!services))=0,\"\",INDIRECT(\"'Données Elec'!I\"&(ROW()-ROW(services))*4+1+ROW('Données Elec'!services)))","v":""},null,null,null,{"$f":"IF(B182=\"\",\"\",INDIRECT(\"'Données Elec'!I\"&(ROW()-ROW(services))*4+3+ROW('Données Elec'!services)))","v":""},{"$f":"IF(B182=\"\",\"\",INDIRECT(\"'Données Elec'!I\"&(ROW()-ROW(services))*4+0+ROW('Données Elec'!services)))","v":""},{"$f":"IF(B182=\"\",\"\",INDIRECT(\"'Données Elec'!I\"&(ROW()-ROW(services))*4+2+ROW('Données Elec'!services)))","v":""},null,""]
[null,{"$f":"IF(INDIRECT(\"'Données Elec'!I\"&(ROW()-ROW(services))*4+1+ROW('Données Elec'!services))=0,\"\",INDIRECT(\"'Données Elec'!I\"&(ROW()-ROW(services))*4+1+ROW('Données Elec'!services)))","v":""},null,null,null,{"$f":"IF(B183=\"\",\"\",INDIRECT(\"'Données Elec'!I\"&(ROW()-ROW(services))*4+3+ROW('Données Elec'!services)))","v":""},{"$f":"IF(B183=\"\",\"\",INDIRECT(\"'Données Elec'!I\"&(ROW()-ROW(services))*4+0+ROW('Données Elec'!services)))","v":""},{"$f":"IF(B183=\"\",\"\",INDIRECT(\"'Données Elec'!I\"&(ROW()-ROW(services))*4+2+ROW('Données Elec'!services)))","v":""},null,""]
[null,{"$f":"IF(INDIRECT(\"'Données Elec'!I\"&(ROW()-ROW(services))*4+1+ROW('Données Elec'!services))=0,\"\",INDIRECT(\"'Données Elec'!I\"&(ROW()-ROW(services))*4+1+ROW('Données Elec'!services)))","v":""},null,null,null,{"$f":"IF(B184=\"\",\"\",INDIRECT(\"'Données Elec'!I\"&(ROW()-ROW(services))*4+3+ROW('Données Elec'!services)))","v":""},{"$f":"IF(B184=\"\",\"\",INDIRECT(\"'Données Elec'!I\"&(ROW()-ROW(services))*4+0+ROW('Données Elec'!services)))","v":""},{"$f":"IF(B184=\"\",\"\",INDIRECT(\"'Données Elec'!I\"&(ROW()-ROW(services))*4+2+ROW('Données Elec'!services)))","v":""},null,""]

{"sheet":"Tutoriel double service","index":5,"n_rows":93,"n_cols":6,"rows_kept":93,"cut":false,"hidden":false,"merged":[[30,3,31,4],[30,5,31,6],[4,1,4,9],[43,3,43,16],[14,3,15,16],[19,3,20,16],[22,1,22,2],[26,3,27,4],[26,5,27,6],[28,3,29,4],[28,5,29,6],[12,3,13,16],[35,1,35,2],[35,3,35,16],[38,3,39,16],[42,3,42,16],[1,2,2,6],[7,1,7,2],[9,1,9,2],[17,1,17,2],[17,3,18,16],[10,3,11,16],[50,5,51,16],[73,1,74,2],[77,4,78,16],[86,4,87,16],[58,4,59,16],[60,4,61,16],[65,1,65,2],[66,4,67,16],[68,4,68,16],[64,1,64,2]]}
[]
[null,null,"Tutoriel interface Double service"]
[]
[]
[null,"Utilisez cette interface afin de dimensionner votre projet double service 100% électrique en plusieurs étapes:"]
[]
["1)","Paramétrez votre étude en remplissant les différents champs de données d'entrées:"]
[null,"Référence de l'étude",null,"Donnez un nom à votre étude, celui-ci sera le nom du document généré à l'issue de l'étude"]
[]
[null,"Localisation",null,"Indiquez la station météo la plus proche de votre projet, vous pouvez ensuite ajuster l'altitude ou directement la température extérieure de base"]
[null,null,null,"Choisissez si vous voulez appliquer un traitement anti-corrosion à la PAC. Si vous choisissez un dimensionnement en Izea 65, notez que le traitement anti-corosion est de série sur cette machine."]
[]
[null,null,null,"Pour certaines stations météo vous devrez indiquer si vous vous trouvez dans une zone montagne ou bord de mer: cela applique automatiquement un facteur correctif sur les performances de la PAC"]
[]
[null,null,null,"Indiquez la température extérieure maximale atteinte à l'emplacement où la PAC sera installée, en été. Ce paramètre impacte la production d'ECS en été et devra être compris entre 35 et 40°C."]
[]
[]
[null,"Installation",null,"Indiquez les distances entre la PAC et le batiment et entre la PAC et le ballon, afin d'estimer le volume primaire contenu dans les canalisations. Si vous ne les connaissez pas, des valeurs par défaut sont initialisées"]
[]
[null,null,null,"Si vous avez des contraintes de tailles (hauteur sous plafond, passage de porte etc) veuillez les indiquer dans le champs contraintes chaufferie. Le volume primaire de votre solution sera, si possible, adapté à ces contraintes."]
[]
[]
[null,"Circuits de chauffage",null,"Paramétrez jusqu'à 5 circuits de chauffage. Appuyez sur \"+\" pour ajouter et sur \"-\" pour retirer un circuit."]
[null,null,null,"Indiquez le type de circuit (constant ou régulé) ainsi que sa puissance. "]
[null,null,null,"Renseignez la consigne de température associée au circuit: Attention, les consignes de départ maximales diffèrent selon le type de circuits:"]
[]
[null,null,null,"Type de circuit",null,"Consigne départ maximale (°C)"]
[]
[null,null,null,"Circuit régulé",null,75]
[]
[null,null,null,"Circuit constant",null,70]
[]
[]
[null,null,null,"Renseignez enfin le delta T du circuit: différence de température entre le départ et retour du circuit."]
[]
[null,"Besoin ECS",null,"Paramétrez votre batiment en indiquant le type parmis logements privés, sociaux ou senior et sa typologie. Le nombre total de logement est ensuite calculé automoatiquement."]
[null,null,null,"Indiquez la température minimale d'eau froide ainsi que les pertes thermiques du bouclage"]
[null,null,null,"Le volume journalier (en litres à 60°C) est aussi calculé automatiquement"]
[null,null,null,"Indiquez si la PAC doit prendre en charge les cycles anti-légionnelles. Si oui, précisez ensuite la consigne du cycle anti-légionnelles. Notez que pour une consigne suppérieure à 60°C, le cycle anti-légionnelle nécessitera l'usage d'un appoint supplémentaire."]
[]
[]
["2)","Déterminez le préparateur ECS, en cliquant sur le bouton prévu à cet effet"]
[null,null,null,"Choisissez ensuite dans la liste déroulante le préparateur ECS qui correspond le mieux à votre étude avant de générer des solutions."]
[null,null,null,"Attention, si vous modifiez les paramètres ECS après avoir appuyé sur \"Déterminer le préparateur ECS\", veuillez rappuyer sur ce même bouton."]
[]
["3)","Choisissez votre objectif de dimensionnement"]
[null,"Faites votre choix parmi 2 types de dimensionnement:"]
[null,"Un dimensionnement avec appoint électrique:",null,null,null,"Dimensionnement avec un appoint, pouvant permettre de limiter le nombre de PAC et ainsi le coût total de fournture par rapport à une solution sans appoint."]
[null,"Un dimensionnement sans appoint électrique:",null,null,null,"Dimensionnement sans appoint, 100% thermodynamique, ou avec le minimum d'appoint pour les régions avec une Température de base très basse."]
[]
[null,"Préférence PAC (facultatif):",null,null,null,"Choisissez une PAC dans la liste déroulante. Un dimensionnement vous sera proposé avec cette dernière, si le paramétrage de l'étude le permet, dans la 3ème colonne des résultats."]
[]
["4)","Générez des solutions, en cliquant sur le bouton prévu à cet effet"]
[null,null,null,"Attention, si vous modifiez les paramètres de l'étude après avoir généré des solutions, veuillez rappuyer sur \"générer des solutions\"."]
[]
["5)","Identifiez la solution la plus adaptée à votre projet: "]
[null,"Faites votre choix parmi 3 solutions complètes:"]
[null,"La solution la plus économique:",null,null,"Solution respectant le type de dimensionnement sélectionné lorsque les données d’entrées le permettent et la moins chère en termes de coûts de fourniture."]
[null,"La solution la moins encombrante",null,null,"Solution respectant le type de dimensionnement sélectionné lorsque les données d’entrées le permettent et occupant le moins de place en extérieur (surface PAC + dégagements) Cette solution peut parfois être la même que la solution « la + économique »."]
[]
[null,"La solution choix PAC utilisateur",null,null,"Solution \"la plus économique\", avec la PAC sélectionnée dans l'onglet \"préférence PAC\". Attention, il est possible qu'il n'existe pas de solution dans cette colonne si le choix de la PAC n'est pas adapté à l'étude renseignée."]
[]
[]
[null,"Accédez à de nombreuses données techniques sur les solutions proposées:"]
[null,"PAC",null,null,"Choix de la PAC et nombre"]
[null,"Appoint électrique total",null,null,"Somme des appoints électriques dimensionnés, voir dans les trois lignes en dessous leur répartition dans les différents ballons"]
[null,"Ballons de charge / supplémentaires",null,null,"Possibilité de solutions jusqu’à 3 ballons :ballon de charge 1 et 2 et ballon supplémentaire. Description dans la ligne inférieure de la répartition des appoints électriques."]
[]
[null,"Ballon préparateur ECS",null,null,"Retrouvez le ballon préparateur ECS que vous avez choisi"]
[]
[null,"Part PAC à Tbase",null,null,"Part PAC à Tbase de la solution correspondante, pour le poste chauffage ou chauffage + ECS"]
[null,"Part PAC + appoint(s) à Tbase",null,null,"Part PAC + appoint(s) à Tbase de la solution correspondante, pour le poste chauffage + ECS"]
[null,"Puissance totale PAC à Tbase",null,null,"Puissance calorifique totale à Tbase de la solution"]
[null,"Taux de couverture (Chauffage) PAC annuel estimé",null,null,"Taux de couverture annuel estimé pour la solution, sur les besoins de chauffage uniquement"]
[]
[]
[null,"Données électriques",null,null,"Puissance et intensité électrique max associées à la solution: PAC + Appoint(s) électrique(s). "]
[null,null,null,null,"Puissance apparente associée à la solution (seulement PAC + appoint). Permet de donner une indication sur la possibilité ou non pour le client d’un tarif bleu. Un message s’affiche lorsque le tarif bleu est jugé possible, sur la base des données PAC et appoints."]
[]
[null,"Données hydrauliques",null,null,"Débit PAC préconisé de la solution, Diamètre des canalisations préconisé entre la/les PAC et le ballon. Hauteur manométrique disponible pour la solution "]
[null,null,null,null,"Pression maximale: Attention: la pression maximale est de 6 bar pour Izea châssis M, L et XL. La pression max est de 3 bar pour Izea châssis S."]
[]
[null,"Données dimensionnelles",null,null,"Surface nécessaire à l’installation PAC, dimensions pour 1 PAC, hauteur et diamètre du plus gros ballon"]
[]
[null,"Données acoustiques",null,null,"Puissance sonore pour la solution PAC à pleine charge et puissance sonore pour une PAC à charge partielle, selon la norme EN 12102"]
[]
[null,"Coût",null,null,"Prix Public Hors Taxe de la solution choisie. Il s’agit d’une enveloppe qui comprend le prix du système PAC + ballon(s) primaire(s) + ballon prépérateur + appoint(s) + système de régulation et accessoires obligatoires. Le devis final peut légèrement différer de cette enveloppe."]
[]
[]
["6)","Cliquez sur \"générer étude de prédimensionnement\" afin d'être redirigé vers la synthèse de l'étude"]
[null,"Vous retrouverez sur cette onglet un récapitulatif de votre étude ainsi qu'un schéma de principe de votre solution PAC et les dimensions de la PAC sélectionnée."]
[]
["7)","Cliquez sur \"télecharger le rapport\" si vous souhaitez sauvegarder votre étude sur votre PC"]

{"sheet":"Double Service Elec","index":6,"n_rows":172,"n_cols":22,"rows_kept":172,"cut":false,"hidden":false,"merged":[[57,17,57,18],[63,17,63,18],[59,17,59,18],[61,17,61,18],[56,4,56,6],[64,7,64,9],[64,1,64,4],[69,16,70,17],[69,18,70,19],[62,12,64,15],[70,8,70,10],[58,6,58,9],[60,6,60,9],[62,6,62,9],[58,1,58,4],[60,1,60,4],[62,1,62,4],[56,13,56,15],[67,3,67,4],[68,11,68,13],[69,8,69,10],[80,11,80,13],[118,13,118,16],[88,15,89,18],[91,15,92,18],[77,11,77,13],[88,4,89,8],[116,13,116,16],[80,16,81,18],[91,3,92,5],[91,7,92,10],[77,8,77,10],[77,5,77,7],[77,3,77,4],[82,3,82,4],[82,5,82,7],[82,8,82,10],[82,11,82,13],[78,3,78,4],[78,5,78,7],[78,8,78,10],[103,1,103,21],[111,9,111,10],[111,14,111,15],[111,19,111,20],[161,18,161,20],[151,9,151,10],[151,14,151,15],[151,19,151,20],[96,3,96,19],[146,3,147,6],[147,8,147,11],[147,13,147,16],[147,18,147,21],[137,3,137,6],[133,3,133,6],[135,2,135,6],[139,19,140,19],[139,10,140,10],[139,14,140,14],[139,15,140,15],[139,3,140,6],[139,9,140,9],[146,7,147,7],[139,20,140,20],[116,18,116,21],[116,8,116,11],[131,3,131,6],[118,18,118,21],[115,8,115,11],[115,13,115,16],[115,18,115,21],[47,14,47,15],[47,17,47,18],[49,5,49,6],[49,8,49,9],[81,3,81,4],[68,5,68,7],[81,8,81,10],[81,5,81,7],[81,11,81,13],[71,11,71,13],[72,11,72,13],[73,11,73,13],[74,11,74,13],[75,11,75,13],[80,3,80,4],[80,5,80,7],[80,8,80,10],[80,19,81,19],[67,8,67,10],[68,8,68,10],[68,3,68,4],[171,18,172,19],[171,20,172,20],[168,3,168,6],[169,2,169,6],[171,4,172,6],[171,8,172,9],[171,10,172,10],[171,13,172,14],[171,7,172,7],[167,2,167,6],[149,3,149,6],[150,3,152,6],[153,3,153,6],[155,3,155,6],[159,3,159,6],[161,3,161,6],[157,3,157,6],[171,15,172,15],[161,8,161,10],[161,13,161,15],[43,5,43,6],[43,8,43,9],[43,11,43,12],[43,14,43,15],[43,17,43,18],[45,5,45,6],[45,8,45,9],[163,3,163,6],[165,3,165,6],[45,11,45,12],[45,14,45,15],[45,17,45,18],[69,5,69,7],[56,8,56,10],[49,11,49,12],[49,14,49,15],[49,17,49,18],[57,12,59,14],[60,12,60,14],[67,5,67,7],[118,8,118,11],[69,11,69,13],[70,11,70,13],[47,5,47,6],[25,2,25,5],[25,6,25,8],[25,17,25,18],[29,2,29,5],[29,6,29,8],[27,2,27,5],[27,6,27,8],[31,6,31,8],[131,30,131,31],[120,8,120,11],[120,13,120,16],[120,18,120,21],[121,8,121,11],[121,13,121,16],[121,18,121,21],[123,8,123,11],[123,13,123,16],[123,18,123,21],[125,8,125,11],[127,8,127,11],[125,13,125,16],[127,13,127,16],[125,18,125,21],[127,18,127,21],[73,8,73,10],[75,8,75,10],[45,1,46,3],[71,8,71,10],[72,8,72,10],[74,5,74,7],[47,8,47,9],[47,11,47,12],[0,7,1,15],[8,5,8,17],[14,5,14,7],[14,15,14,17],[21,6,21,8],[21,17,21,18],[29,17,29,18],[31,17,31,18],[41,5,41,6],[41,8,41,9],[41,11,41,12],[41,14,41,15],[41,17,41,18],[31,2,31,5],[23,6,23,8],[23,17,23,18],[78,11,78,13],[79,3,79,4],[79,5,79,7],[79,8,79,10],[67,14,68,14],[74,8,74,10],[74,3,74,4],[73,3,73,4],[79,11,79,13],[72,5,72,7],[71,5,71,7],[70,5,70,7],[72,3,72,4],[71,3,71,4],[70,3,70,4],[69,3,69,4],[76,8,76,10],[67,11,67,13],[76,11,76,13],[73,5,73,7],[76,5,76,7],[75,5,75,7],[76,3,76,4],[75,3,75,4]]}
[null,null,null,null,null,null,null,"APPLICATION DOUBLE SERVICE"]
[]
[]
[]
[]
[]
[]
[]
[null,null,null,null,null,"Référence"]
[]
[]
[]
[]
[]
[null,null,null,null,null,"Effipac - fluide R32",null,null,null,null,null,null,null,null,null,"Aptae - fluide R290"]
[]
[]
[]
[]
[]
[]
[null,null,"Ville",null,null,null,"01 - AMBERIEU",null,null,null,null,null,null,"Distance PAC / ballon",null,null,null,null,null,"m"]
[]
[null,null,"Altitude",null,null,null,250,null,null,"m",null,null,null,"Distance PAC / Bâtiment",null,null,null,null,null,"m"]
[]
[null,null,"T° extérieure de base (Tbase)",null,null,null,-11,null,null,"°C"]
[]
[null,null,"T° extérieure maximale été",null,null,null,35,null,null,"°C",null,null,null,"Contraintes local technique / accès (si connues)"]
[]
[null,null,"Traitement Anti Corrosion",null,null,null,"Non",null,null,null,null,null,null,"Hauteur sous plafond",null,null,null,null,null,"mm"]
[]
[null,null,{"$f":"IF(VLOOKUP(G22,'Validation des Données'!A3:B174,2,FALSE)=0,\"\",VLOOKUP(G22,'Validation des Données'!A3:B174,2,FALSE))","v":""},null,null,null,null,null,null,null,null,null,null,"Largeur de passage",null,null,null,null,null,"mm"]
[]
[]
[]
[]
[null,null,null,null,null,null,null,null,null,null,null,"*Pris en charge par la PAC"]
[]
[null,null,null,null,null,null,null,null,null,"Ajouter un circuit",null,null,null,"Supprimer un circuit"]
[]
[]
[null,null,null,null,null,"Circuit 1"]
[]
[null,null,null,"Type"]
[null,null,null,"Puissance circuit"]
[null,"(déperditions + surpuissance éventuelle)",null,null,null,null,null,"kW",null,null,"kW",null,null,"kW",null,null,"kW",null,null,"kW"]
[]
[null,null,null,"Consigne de départ",null,null,null,"°C",null,null,"°C",null,null,"°C",null,null,"°C",null,null,"°C"]
[]
[null,null,null,"Delta T°",null,null,null,"K",null,null,"K",null,null,"K",null,null,"K",null,null,"K"]
[]
[]
[]
[]
[]
[null,null,null,null,null,null,null,null,null,null,null,null,null,null,null,null,null,"Estimation des besoins ECS:"]
[null,null,null,"Bâtiment : ","Logements",null,null,"Type : ",null,null,null,null,null,"Anti-légionelle"]
[null,null,null,null,null,null,null,null,null,null,null,null,"Prise en charge cycle anti-légionnelle",null,null,null,null,"Volume journalier",null,{"$f":"IF('Données ECS Double Service Elec'!H2=\"\",\"\",'Données ECS Double Service Elec'!H2)","v":""},"litres à 60°C"]
[null,{"$f":"IF('Données ECS Double Service Elec'!N2=\"\",\"\",'Données ECS Double Service Elec'!N2)","v":""},null,null,null,null,{"$f":"IF('Données ECS Double Service Elec'!N5=\"\",\"\",'Données ECS Double Service Elec'!N5)","v":""},null,null,null,null,{"$f":"IF(OR(sous_applicatif=\"Stade de football\",sous_applicatif=\"Stade de rugby\",sous_applicatif=\"Gymnase / terrain couvert\"),\"min\",\"\")","v":""},null,null,null,"Non"]
[null,null,null,null,null,null,null,null,null,null,null,null,null,null,null,null,null,"Volume plurihoraire",null,{"$f":"IF('Données ECS Double Service Elec'!H4=\"\",\"\",'Données ECS Double Service Elec'!H4)","v":""},"litres à 60°C"]
[null,{"$f":"IF('Données ECS Double Service Elec'!N3=\"\",\"\",'Données ECS Double Service Elec'!N3)","v":""},null,null,null,null,{"$f":"IF('Données ECS Double Service Elec'!N6=\"\",\"\",'Données ECS Double Service Elec'!N6)","v":""},null,null,null,null,null,"Consigne anti-légionnelle",null,null,"60°C / 1h"]
[null,null,null,null,null,null,null,null,null,null,null,null,null,null,null,null,null,"Durée plurihoraire",null,{"$f":"IF('Données ECS Double Service Elec'!H5=\"\",\"\",'Données ECS Double Service Elec'!H5/60/24)","v":""},"hh:mm"]
[null,{"$f":"IF('Données ECS Double Service Elec'!N4=\"\",\"\",'Données ECS Double Service Elec'!N4)","v":""},null,null,null,null,{"$f":"IF('Données ECS Double Service Elec'!N7=\"\",\"\",'Données ECS Double Service Elec'!N7)","v":""},null,null,null,null,null,"Pour ces températures de consigne, le cycle anti-légionnelle nécessitera l'usage d'un appoint supplémentaire"]
[null,null,null,null,null,null,null,null,null,null,null,null,null,null,null,null,null,{"$f":"IF(applicatif='Validation des Données'!$AF$1,\"\",\"Volume 10min\")","v":"Volume 10min"},null,{"$f":"IF(applicatif='Validation des Données'!$AF$1,\"\",IF('Données ECS Double Service Elec'!H3=\"\",\"\",'Données ECS Double Service Elec'!H3))","v":""},{"$f":"IF(applicatif='Validation des Données'!$AF$1,\"\",\"litres à 60°C\")","v":"litres à 60°C"}]
[null,"Température minimale d'eau froide",null,null,null,10,"°C","Pertes thermiques du bouclage",null,null,null,"kW"]
[]
[]
[null,null,"Solution","Puissance ECS nécessaire",null,"Production ECS",null,null,"Ballon stockage ECS 1",null,null,"Ballon stockage ECS 2"]
[null,null,{"$f":"IF(D69<>\"\",ROW()-ROW($C$68),\"\")","v":""},{"$f":"IF('Données ECS Double Service Elec'!G2=\"\",IF('Données ECS Double Service Elec'!F2=\"\",\"\",ROUNDUP('Données ECS Double Service Elec'!F2,0)&\" kW\"),ROUNDUP('Données ECS Double Service Elec'!G2,0)&\" kW\")","v":""},null,{"$f":"IF('Données ECS Double Service Elec'!C2=\"\",\"\",INDEX('Informations Devis'!$B$5:$B$10001,MATCH('Données ECS Double Service Elec'!C2&\"\",'Informations Devis'!$A$5:$A$10001,0)))","v":""},null,null,{"$f":"IF('Données ECS Double Service Elec'!D2=\"\",\"\",INDEX('Informations Devis'!$C$5:$C$10001,MATCH('Données ECS Double Service Elec'!D2&\"\",'Informations Devis'!$A$5:$A$10001,0)))","v":""},null,null,{"$f":"IF('Données ECS Double Service Elec'!E2=\"\",\"\",INDEX('Informations Devis'!$C$5:$C$10001,MATCH('Données ECS Double Service Elec'!E2&\"\",'Informations Devis'!$A$5:$A$10001,0)))","v":""}]
[null,null,{"$f":"IF(D70<>\"\",ROW()-ROW($C$68),\"\")","v":""},{"$f":"IF('Données ECS Double Service Elec'!G3=\"\",IF('Données ECS Double Service Elec'!F3=\"\",\"\",ROUNDUP('Données ECS Double Service Elec'!F3,0)&\" kW\"),ROUNDUP('Données ECS Double Service Elec'!G3,0)&\" kW\")","v":""},null,{"$f":"IF('Données ECS Double Service Elec'!C3=\"\",\"\",INDEX('Informations Devis'!$B$5:$B$10001,MATCH('Données ECS Double Service Elec'!C3&\"\",'Informations Devis'!$A$5:$A$10001,0)))","v":""},null,null,{"$f":"IF('Données ECS Double Service Elec'!D3=\"\",\"\",INDEX('Informations Devis'!$C$5:$C$10001,MATCH('Données ECS Double Service Elec'!D3&\"\",'Informations Devis'!$A$5:$A$10001,0)))","v":""},null,null,{"$f":"IF('Données ECS Double Service Elec'!E3=\"\",\"\",INDEX('Informations Devis'!$C$5:$C$10001,MATCH('Données ECS Double Service Elec'!E3&\"\",'Informations Devis'!$A$5:$A$10001,0)))","v":""},null,null,null,null,"Production ECS : ",null,"Serpentin"]
[null,null,"",{"$f":"IF('Données ECS Double Service Elec'!G4=\"\",IF('Données ECS Double Service Elec'!F4=\"\",\"\",ROUNDUP('Données ECS Double Service Elec'!F4,0)&\" kW\"),ROUNDUP('Données ECS Double Service Elec'!G4,0)&\" kW\")","v":""},null,{"$f":"IF('Données ECS Double Service Elec'!C4=\"\",\"\",INDEX('Informations Devis'!$B$5:$B$10001,MATCH('Données ECS Double Service Elec'!C4&\"\",'Informations Devis'!$A$5:$A$10001,0)))","v":""},null,null,{"$f":"IF('Données ECS Double Service Elec'!D4=\"\",\"\",INDEX('Informations Devis'!$C$5:$C$10001,MATCH('Données ECS Double Service Elec'!D4&\"\",'Informations Devis'!$A$5:$A$10001,0)))","v":""},null,null,{"$f":"IF('Données ECS Double Service Elec'!E4=\"\",\"\",INDEX('Informations Devis'!$C$5:$C$10001,MATCH('Données ECS Double Service Elec'!E4&\"\",'Informations Devis'!$A$5:$A$10001,0)))","v":""}]
[null,null,"",{"$f":"IF('Données ECS Double Service Elec'!G5=\"\",IF('Données ECS Double Service Elec'!F5=\"\",\"\",ROUNDUP('Données ECS Double Service Elec'!F5,0)&\" kW\"),ROUNDUP('Données ECS Double Service Elec'!G5,0)&\" kW\")","v":""},null,{"$f":"IF('Données ECS Double Service Elec'!C5=\"\",\"\",INDEX('Informations Devis'!$B$5:$B$10001,MATCH('Données ECS Double Service Elec'!C5&\"\",'Informations Devis'!$A$5:$A$10001,0)))","v":""},null,null,{"$f":"IF('Données ECS Double Service Elec'!D5=\"\",\"\",INDEX('Informations Devis'!$C$5:$C$10001,MATCH('Données ECS Double Service Elec'!D5&\"\",'Informations Devis'!$A$5:$A$10001,0)))","v":""},null,null,{"$f":"IF('Données ECS Double Service Elec'!E5=\"\",\"\",INDEX('Informations Devis'!$C$5:$C$10001,MATCH('Données ECS Double Service Elec'!E5&\"\",'Informations Devis'!$A$5:$A$10001,0)))","v":""}]
[null,null,"",{"$f":"IF('Données ECS Double Service Elec'!G6=\"\",IF('Données ECS Double Service Elec'!F6=\"\",\"\",ROUNDUP('Données ECS Double Service Elec'!F6,0)&\" kW\"),ROUNDUP('Données ECS Double Service Elec'!G6,0)&\" kW\")","v":""},null,{"$f":"IF('Données ECS Double Service Elec'!C6=\"\",\"\",INDEX('Informations Devis'!$B$5:$B$10001,MATCH('Données ECS Double Service Elec'!C6&\"\",'Informations Devis'!$A$5:$A$10001,0)))","v":""},null,null,{"$f":"IF('Données ECS Double Service Elec'!D6=\"\",\"\",INDEX('Informations Devis'!$C$5:$C$10001,MATCH('Données ECS Double Service Elec'!D6&\"\",'Informations Devis'!$A$5:$A$10001,0)))","v":""},null,null,{"$f":"IF('Données ECS Double Service Elec'!E6=\"\",\"\",INDEX('Informations Devis'!$C$5:$C$10001,MATCH('Données ECS Double Service Elec'!E6&\"\",'Informations Devis'!$A$5:$A$10001,0)))","v":""}]
[null,null,"",{"$f":"IF('Données ECS Double Service Elec'!G7=\"\",IF('Données ECS Double Service Elec'!F7=\"\",\"\",ROUNDUP('Données ECS Double Service Elec'!F7,0)&\" kW\"),ROUNDUP('Données ECS Double Service Elec'!G7,0)&\" kW\")","v":""},null,{"$f":"IF('Données ECS Double Service Elec'!C7=\"\",\"\",INDEX('Informations Devis'!$B$5:$B$10001,MATCH('Données ECS Double Service Elec'!C7&\"\",'Informations Devis'!$A$5:$A$10001,0)))","v":""},null,null,{"$f":"IF('Données ECS Double Service Elec'!D7=\"\",\"\",INDEX('Informations Devis'!$C$5:$C$10001,MATCH('Données ECS Double Service Elec'!D7&\"\",'Informations Devis'!$A$5:$A$10001,0)))","v":""},null,null,{"$f":"IF('Données ECS Double Service Elec'!E7=\"\",\"\",INDEX('Informations Devis'!$C$5:$C$10001,MATCH('Données ECS Double Service Elec'!E7&\"\",'Informations Devis'!$A$5:$A$10001,0)))","v":""}]
[null,null,"",{"$f":"IF('Données ECS Double Service Elec'!G8=\"\",IF('Données ECS Double Service Elec'!F8=\"\",\"\",ROUNDUP('Données ECS Double Service Elec'!F8,0)&\" kW\"),ROUNDUP('Données ECS Double Service Elec'!G8,0)&\" kW\")","v":""},null,{"$f":"IF('Données ECS Double Service Elec'!C8=\"\",\"\",INDEX('Informations Devis'!$B$5:$B$10001,MATCH('Données ECS Double Service Elec'!C8&\"\",'Informations Devis'!$A$5:$A$10001,0)))","v":""},null,null,{"$f":"IF('Données ECS Double Service Elec'!D8=\"\",\"\",INDEX('Informations Devis'!$C$5:$C$10001,MATCH('Données ECS Double Service Elec'!D8&\"\",'Informations Devis'!$A$5:$A$10001,0)))","v":""},null,null,{"$f":"IF('Données ECS Double Service Elec'!E8=\"\",\"\",INDEX('Informations Devis'!$C$5:$C$10001,MATCH('Données ECS Double Service Elec'!E8&\"\",'Informations Devis'!$A$5:$A$10001,0)))","v":""}]
[null,null,"",{"$f":"IF('Données ECS Double Service Elec'!G9=\"\",IF('Données ECS Double Service Elec'!F9=\"\",\"\",ROUNDUP('Données ECS Double Service Elec'!F9,0)&\" kW\"),ROUNDUP('Données ECS Double Service Elec'!G9,0)&\" kW\")","v":""},null,{"$f":"IF('Données ECS Double Service Elec'!C9=\"\",\"\",INDEX('Informations Devis'!$B$5:$B$10001,MATCH('Données ECS Double Service Elec'!C9&\"\",'Informations Devis'!$A$5:$A$10001,0)))","v":""},null,null,{"$f":"IF('Données ECS Double Service Elec'!D9=\"\",\"\",INDEX('Informations Devis'!$C$5:$C$10001,MATCH('Données ECS Double Service Elec'!D9&\"\",'Informations Devis'!$A$5:$A$10001,0)))","v":""},null,null,{"$f":"IF('Données ECS Double Service Elec'!E9=\"\",\"\",INDEX('Informations Devis'!$C$5:$C$10001,MATCH('Données ECS Double Service Elec'!E9&\"\",'Informations Devis'!$A$5:$A$10001,0)))","v":""}]
[null,null,"",{"$f":"IF('Données ECS Double Service Elec'!G10=\"\",IF('Données ECS Double Service Elec'!F10=\"\",\"\",ROUNDUP('Données ECS Double Service Elec'!F10,0)&\" kW\"),ROUNDUP('Données ECS Double Service Elec'!G10,0)&\" kW\")","v":""},null,{"$f":"IF('Données ECS Double Service Elec'!C10=\"\",\"\",INDEX('Informations Devis'!$B$5:$B$10001,MATCH('Données ECS Double Service Elec'!C10&\"\",'Informations Devis'!$A$5:$A$10001,0)))","v":""},null,null,{"$f":"IF('Données ECS Double Service Elec'!D10=\"\",\"\",INDEX('Informations Devis'!$C$5:$C$10001,MATCH('Données ECS Double Service Elec'!D10&\"\",'Informations Devis'!$A$5:$A$10001,0)))","v":""},null,null,{"$f":"IF('Données ECS Double Service Elec'!E10=\"\",\"\",INDEX('Informations Devis'!$C$5:$C$10001,MATCH('Données ECS Double Service Elec'!E10&\"\",'Informations Devis'!$A$5:$A$10001,0)))","v":""}]
[null,null,"",{"$f":"IF('Données ECS Double Service Elec'!G11=\"\",IF('Données ECS Double Service Elec'!F11=\"\",\"\",ROUNDUP('Données ECS Double Service Elec'!F11,0)&\" kW\"),ROUNDUP('Données ECS Double Service Elec'!G11,0)&\" kW\")","v":""},null,{"$f":"IF('Données ECS Double Service Elec'!C11=\"\",\"\",INDEX('Informations Devis'!$B$5:$B$10001,MATCH('Données ECS Double Service Elec'!C11&\"\",'Informations Devis'!$A$5:$A$10001,0)))","v":""},null,null,{"$f":"IF('Données ECS Double Service Elec'!D11=\"\",\"\",INDEX('Informations Devis'!$C$5:$C$10001,MATCH('Données ECS Double Service Elec'!D11&\"\",'Informations Devis'!$A$5:$A$10001,0)))","v":""},null,null,{"$f":"IF('Données ECS Double Service Elec'!E11=\"\",\"\",INDEX('Informations Devis'!$C$5:$C$10001,MATCH('Données ECS Double Service Elec'!E11&\"\",'Informations Devis'!$A$5:$A$10001,0)))","v":""}]
[null,null,"",{"$f":"IF('Données ECS Double Service Elec'!G12=\"\",IF('Données ECS Double Service Elec'!F12=\"\",\"\",ROUNDUP('Données ECS Double Service Elec'!F12,0)&\" kW\"),ROUNDUP('Données ECS Double Service Elec'!G12,0)&\" kW\")","v":""},null,{"$f":"IF('Données ECS Double Service Elec'!C12=\"\",\"\",INDEX('Informations Devis'!$B$5:$B$10001,MATCH('Données ECS Double Service Elec'!C12&\"\",'Informations Devis'!$A$5:$A$10001,0)))","v":""},null,null,{"$f":"IF('Données ECS Double Service Elec'!D12=\"\",\"\",INDEX('Informations Devis'!$C$5:$C$10001,MATCH('Données ECS Double Service Elec'!D12&\"\",'Informations Devis'!$A$5:$A$10001,0)))","v":""},null,null,{"$f":"IF('Données ECS Double Service Elec'!E12=\"\",\"\",INDEX('Informations Devis'!$C$5:$C$10001,MATCH('Données ECS Double Service Elec'!E12&\"\",'Informations Devis'!$A$5:$A$10001,0)))","v":""}]
[null,null,"",{"$f":"IF('Données ECS Double Service Elec'!G13=\"\",IF('Données ECS Double Service Elec'!F13=\"\",\"\",ROUNDUP('Données ECS Double Service Elec'!F13,0)&\" kW\"),ROUNDUP('Données ECS Double Service Elec'!G13,0)&\" kW\")","v":""},null,{"$f":"IF('Données ECS Double Service Elec'!C13=\"\",\"\",INDEX('Informations Devis'!$B$5:$B$10001,MATCH('Données ECS Double Service Elec'!C13&\"\",'Informations Devis'!$A$5:$A$10001,0)))","v":""},null,null,{"$f":"IF('Données ECS Double Service Elec'!D13=\"\",\"\",INDEX('Informations Devis'!$C$5:$C$10001,MATCH('Données ECS Double Service Elec'!D13&\"\",'Informations Devis'!$A$5:$A$10001,0)))","v":""},null,null,{"$f":"IF('Données ECS Double Service Elec'!E13=\"\",\"\",INDEX('Informations Devis'!$C$5:$C$10001,MATCH('Données ECS Double Service Elec'!E13&\"\",'Informations Devis'!$A$5:$A$10001,0)))","v":""}]
[null,null,"",{"$f":"IF('Données ECS Double Service Elec'!G14=\"\",IF('Données ECS Double Service Elec'!F14=\"\",\"\",ROUNDUP('Données ECS Double Service Elec'!F14,0)&\" kW\"),ROUNDUP('Données ECS Double Service Elec'!G14,0)&\" kW\")","v":""},null,{"$f":"IF('Données ECS Double Service Elec'!C14=\"\",\"\",INDEX('Informations Devis'!$B$5:$B$10001,MATCH('Données ECS Double Service Elec'!C14&\"\",'Informations Devis'!$A$5:$A$10001,0)))","v":""},null,null,{"$f":"IF('Données ECS Double Service Elec'!D14=\"\",\"\",INDEX('Informations Devis'!$C$5:$C$10001,MATCH('Données ECS Double Service Elec'!D14&\"\",'Informations Devis'!$A$5:$A$10001,0)))","v":""},null,null,{"$f":"IF('Données ECS Double Service Elec'!E14=\"\",\"\",INDEX('Informations Devis'!$C$5:$C$10001,MATCH('Données ECS Double Service Elec'!E14&\"\",'Informations Devis'!$A$5:$A$10001,0)))","v":""},null,null,null,null,"Choix solution : "]
[null,null,"",{"$f":"IF('Données ECS Double Service Elec'!G15=\"\",IF('Données ECS Double Service Elec'!F15=\"\",\"\",ROUNDUP('Données ECS Double Service Elec'!F15,0)&\" kW\"),ROUNDUP('Données ECS Double Service Elec'!G15,0)&\" kW\")","v":""},null,{"$f":"IF('Données ECS Double Service Elec'!C15=\"\",\"\",INDEX('Informations Devis'!$B$5:$B$10001,MATCH('Données ECS Double Service Elec'!C15&\"\",'Informations Devis'!$A$5:$A$10001,0)))","v":""},null,null,{"$f":"IF('Données ECS Double Service Elec'!D15=\"\",\"\",INDEX('Informations Devis'!$C$5:$C$10001,MATCH('Données ECS Double Service Elec'!D15&\"\",'Informations Devis'!$A$5:$A$10001,0)))","v":""},null,null,{"$f":"IF('Données ECS Double Service Elec'!E15=\"\",\"\",INDEX('Informations Devis'!$C$5:$C$10001,MATCH('Données ECS Double Service Elec'!E15&\"\",'Informations Devis'!$A$5:$A$10001,0)))","v":""}]
[null,null,"",{"$f":"IF('Données ECS Double Service Elec'!G16=\"\",IF('Données ECS Double Service Elec'!F16=\"\",\"\",ROUNDUP('Données ECS Double Service Elec'!F16,0)&\" kW\"),ROUNDUP('Données ECS Double Service Elec'!G16,0)&\" kW\")","v":""},null,{"$f":"IF('Données ECS Double Service Elec'!C16=\"\",\"\",INDEX('Informations Devis'!$B$5:$B$10001,MATCH('Données ECS Double Service Elec'!C16&\"\",'Informations Devis'!$A$5:$A$10001,0)))","v":""},null,null,{"$f":"IF('Données ECS Double Service Elec'!D16=\"\",\"\",INDEX('Informations Devis'!$C$5:$C$10001,MATCH('Données ECS Double Service Elec'!D16&\"\",'Informations Devis'!$A$5:$A$10001,0)))","v":""},null,null,{"$f":"IF('Données ECS Double Service Elec'!E16=\"\",\"\",INDEX('Informations Devis'!$C$5:$C$10001,MATCH('Données ECS Double Service Elec'!E16&\"\",'Informations Devis'!$A$5:$A$10001,0)))","v":""}]
[]
[]
[]
[]
[]
[null,null,null,null,"Type de dimensionnement",null,null,null,null,null,null,null,null,null,null,"Préférence PAC (facultatif)"]
[]
[]
[null,null,null,"Avec appoint électrique",null,null,null,"Sans appoint électrique"]
[]
[]
[]
[]
[null,null,null,"Si vous modifiez des paramètres de l'étude après avoir généré des solutions, veuillez rappuyer sur \"Déterminer le préparateur ECS\" (si paramètres ECS modifiés), puis sur \"Générer des solutions\"."]
[]
[]
[]
[]
[]
[]
[null,"Ce dimensionnement est réalisé à titre indicatif afin de guider l'utilisateur vers un système en fonction des données d'entrées renseignées. Il ne remplace pas une étude de dimensionnement finale effectuée par le service Avant Vente ACV."]
[]
[]
[]
[]
[]
[]
[]
[null,null,null,null,null,null,"PAC",null,null,{"$f":"IF(ISBLANK('Données Double Service Elec'!D35),\"\",'Données Double Service Elec'!D36&\" x \"&'Données Double Service Elec'!D35)","v":""},null,null,null,null,{"$f":"IF(ISBLANK('Données Double Service Elec'!E35),\"\",'Données Double Service Elec'!E36&\" x \"&'Données Double Service Elec'!E35)","v":""},null,null,null,null,{"$f":"IF(ISBLANK('Données Double Service Elec'!F35),\"\",'Données Double Service Elec'!F36&\" x \"&'Données Double Service Elec'!F35)","v":""}]
[]
[null,null,null,null,null,null,"Appoint électrique total",null,null,{"$f":"IF(ISBLANK('Données Double Service Elec'!D38),\"\",'Données Double Service Elec'!D38)","v":""},"kW",null,null,null,{"$f":"IF(ISBLANK('Données Double Service Elec'!E38),\"\",'Données Double Service Elec'!E38)","v":""},"kW",null,null,null,{"$f":"IF(ISBLANK('Données Double Service Elec'!F38),\"\",'Données Double Service Elec'!F38)","v":""},"kW"]
[]
[null,null,null,null,null,null,"Ballon de charge 1",null,{"$f":"IF(ISBLANK('Données Double Service Elec'!D39),\"\",'Données Double Service Elec'!D39)","v":""},null,null,null,null,{"$f":"IF(ISBLANK('Données Double Service Elec'!E39),\"\",'Données Double Service Elec'!E39)","v":""},null,null,null,null,{"$f":"IF(ISBLANK('Données Double Service Elec'!F39),\"\",'Données Double Service Elec'!F39)","v":""}]
[null,null,null,null,null,null,"Appoint.s équipé.s",null,{"$f":"IF('Données Double Service Elec'!D40<>\"\",'Données Double Service Elec'!D40&\" kW\",\"\")&IF('Données Double Service Elec'!D41<>\"\",\" + \"&'Données Double Service Elec'!D41&\" kW\",\"\")&IF('Données Double Service Elec'!D42<>\"\",\" + \"&'Données Double Service Elec'!D42&\" kW\",\"\")","v":""},null,null,null,null,{"$f":"IF('Données Double Service Elec'!E40<>\"\",'Données Double Service Elec'!E40&\" kW\",\"\")&IF('Données Double Service Elec'!E41<>\"\",\" + \"&'Données Double Service Elec'!E41&\" kW\",\"\")&IF('Données Double Service Elec'!E42<>\"\",\" + \"&'Données Double Service Elec'!E42&\" kW\",\"\")","v":""},null,null,null,null,{"$f":"IF('Données Double Service Elec'!F40<>\"\",'Données Double Service Elec'!F40&\" kW\",\"\")&IF('Données Double Service Elec'!F41<>\"\",\" + \"&'Données Double Service Elec'!F41&\" kW\",\"\")&IF('Données Double Service Elec'!F42<>\"\",\" + \"&'Données Double Service Elec'!F42&\" kW\",\"\")","v":""}]
[]
[null,null,null,null,null,null,"Ballon de charge 2",null,{"$f":"IF(ISBLANK('Données Double Service Elec'!D43),\"\",'Données Double Service Elec'!D43)","v":""},null,null,null,null,{"$f":"IF(ISBLANK('Données Double Service Elec'!E43),\"\",'Données Double Service Elec'!E43)","v":""},null,null,null,null,{"$f":"IF(ISBLANK('Données Double Service Elec'!F43),\"\",'Données Double Service Elec'!F43)","v":""}]
[]
[null,null,null,null,null,null,"Ballon Supplémentaire",null,{"$f":"IF(ISBLANK('Données Double Service Elec'!D44),\"\",'Données Double Service Elec'!D44)","v":""},null,null,null,null,{"$f":"IF(ISBLANK('Données Double Service Elec'!E44),\"\",'Données Double Service Elec'!E44)","v":""},null,null,null,null,{"$f":"IF(ISBLANK('Données Double Service Elec'!F44),\"\",'Données Double Service Elec'!F44)","v":""}]
[null,null,null,null,null,null,"Appoint.s équipé.s",null,{"$f":"IF('Données Double Service Elec'!D45<>\"\",'Données Double Service Elec'!D45&\" kW\",\"\")&IF('Données Double Service Elec'!D46<>\"\",\" + \"&'Données Double Service Elec'!D46&\" kW\",\"\")&IF('Données Double Service Elec'!D47<>\"\",\" + \"&'Données Double Service Elec'!D47&\" kW\",\"\")","v":""},null,null,null,null,{"$f":"IF('Données Double Service Elec'!E45<>\"\",'Données Double Service Elec'!E45&\" kW\",\"\")&IF('Données Double Service Elec'!E46<>\"\",\" + \"&'Données Double Service Elec'!E46&\" kW\",\"\")&IF('Données Double Service Elec'!E47<>\"\",\" + \"&'Données Double Service Elec'!E47&\" kW\",\"\")","v":""},null,null,null,null,{"$f":"IF('Données Double Service Elec'!F45<>\"\",'Données Double Service Elec'!F45&\" kW\",\"\")&IF('Données Double Service Elec'!F46<>\"\",\" + \"&'Données Double Service Elec'!F46&\" kW\",\"\")&IF('Données Double Service Elec'!F47<>\"\",\" + \"&'Données Double Service Elec'!F47&\" kW\",\"\")","v":""}]
[]
[null,null,null,null,null,null,"Production ECS",null,{"$f":"IF(ISBLANK('Données Double Service Elec'!D68),\"\",'Données Double Service Elec'!D68)","v":""},null,null,null,null,{"$f":"IF(ISBLANK('Données Double Service Elec'!E68),\"\",'Données Double Service Elec'!E68)","v":""},null,null,null,null,{"$f":"IF(ISBLANK('Données Double Service Elec'!F68),\"\",'Données Double Service Elec'!F68)","v":""}]
[]
[null,null,null,null,null,null,"Ballon stockage ECS 1",null,{"$f":"IF(ISBLANK('Données Double Service Elec'!D69),\"\",'Données Double Service Elec'!D69)","v":""},null,null,null,null,{"$f":"IF(ISBLANK('Données Double Service Elec'!E69),\"\",'Données Double Service Elec'!E69)","v":""},null,null,null,null,{"$f":"IF(ISBLANK('Données Double Service Elec'!F69),\"\",'Données Double Service Elec'!F69)","v":""}]
[]
[null,null,null,null,null,null,"Ballon stockage ECS 2",null,{"$f":"IF(ISBLANK('Données Double Service Elec'!D70),\"\",'Données Double Service Elec'!D70)","v":""},null,null,null,null,{"$f":"IF(ISBLANK('Données Double Service Elec'!E70),\"\",'Données Double Service Elec'!E70)","v":""},null,null,null,null,{"$f":"IF(ISBLANK('Données Double Service Elec'!F70),\"\",'Données Double Service Elec'!F70)","v":""}]
[]
[]
[]
[null,null,null,"Part PAC à Tbase (Chauffage)",null,null,null,null,null,{"$f":"IF(ISBLANK('Données Double Service Elec'!D48),\"\",'Données Double Service Elec'!D48 * 100)","v":""},"%",null,null,null,{"$f":"IF(ISBLANK('Données Double Service Elec'!E48),\"\",'Données Double Service Elec'!E48 * 100)","v":""},"%",null,null,null,{"$f":"IF(ISBLANK('Données Double Service Elec'!F48),\"\",'Données Double Service Elec'!F48 * 100)","v":""},"%"]
[]
[null,null,null,"Part PAC à Tbase (Chauffage +ECS)",null,null,null,null,null,{"$f":"IF(ISBLANK('Données Double Service Elec'!D71),\"\",'Données Double Service Elec'!D71 * 100)","v":""},"%",null,null,null,{"$f":"IF(ISBLANK('Données Double Service Elec'!E71),\"\",'Données Double Service Elec'!E71 * 100)","v":""},"%",null,null,null,{"$f":"IF(ISBLANK('Données Double Service Elec'!F71),\"\",'Données Double Service Elec'!F71 * 100)","v":""},"%"]
[]
[null,null,"Part PAC + appoint à Tbase (Chauffage +ECS)",null,null,null,null,null,null,{"$f":"IF(ISBLANK('Données Double Service Elec'!D72),\"\",'Données Double Service Elec'!D72 * 100)","v":""},"%",null,null,null,{"$f":"IF(ISBLANK('Données Double Service Elec'!E72),\"\",'Données Double Service Elec'!E72 * 100)","v":""},"%",null,null,null,{"$f":"IF(ISBLANK('Données Double Service Elec'!F72),\"\",'Données Double Service Elec'!F72 * 100)","v":""},"%"]
[]
[null,null,null,"Puissance Totale PAC à Tbase",null,null,null,null,null,{"$f":"IF(ISBLANK('Données Double Service Elec'!D49),\"\",'Données Double Service Elec'!D49)","v":""},"kW",null,null,null,{"$f":"IF(ISBLANK('Données Double Service Elec'!E49),\"\",'Données Double Service Elec'!E49)","v":""},"kW",null,null,null,{"$f":"IF(ISBLANK('Données Double Service Elec'!F49),\"\",'Données Double Service Elec'!F49)","v":""},"kW"]
[]
[null,null,null,"Taux de couverture (Chauffage) PAC annuel estimé",null,null,null,null,null,{"$f":"IF(ISBLANK('Données Double Service Elec'!D50),\"\",'Données Double Service Elec'!D50 * 100)","v":""},"%",null,null,null,{"$f":"IF(ISBLANK('Données Double Service Elec'!E50),\"\",'Données Double Service Elec'!E50 * 100)","v":""},"%",null,null,null,{"$f":"IF(ISBLANK('Données Double Service Elec'!F50),\"\",'Données Double Service Elec'!F50 * 100)","v":""},"%"]
[]
[]
[null,null,null,null,null,null,"Puissance électrique max",null,null,{"$f":"IF(ISBLANK('Données Double Service Elec'!D51),\"\",'Données Double Service Elec'!D51)","v":""},"kW",null,null,null,{"$f":"IF(ISBLANK('Données Double Service Elec'!E51),\"\",'Données Double Service Elec'!E51)","v":""},"kW",null,null,null,{"$f":"IF(ISBLANK('Données Double Service Elec'!F51),\"\",'Données Double Service Elec'!F51)","v":""},"kW"]
[]
[null,null,null,null,null,null,"Intensité électrique max",null,null,{"$f":"IF(ISBLANK('Données Double Service Elec'!D52),\"\",'Données Double Service Elec'!D52)","v":""},"A",null,null,null,{"$f":"IF(ISBLANK('Données Double Service Elec'!E52),\"\",'Données Double Service Elec'!E52)","v":""},"A",null,null,null,{"$f":"IF(ISBLANK('Données Double Service Elec'!F52),\"\",'Données Double Service Elec'!F52)","v":""},"A"]
[]
[null,null,null,"Puissance apparente",null,null,null,null,null,{"$f":"IF(ISBLANK('Données Double Service Elec'!D53),\"\",'Données Double Service Elec'!D53)","v":""},"kVA",null,null,null,{"$f":"IF(ISBLANK('Données Double Service Elec'!E53),\"\",'Données Double Service Elec'!E53)","v":""},"kVA",null,null,null,{"$f":"IF(ISBLANK('Données Double Service Elec'!F53),\"\",'Données Double Service Elec'!F53)","v":""},"kVA"]
[]
[]
[null,null,null,"Débit global PAC préconisé",null,null,null,null,null,{"$f":"IF(ISBLANK('Données Double Service Elec'!D54),\"\",'Données Double Service Elec'!D54)","v":""},"m³/h",null,null,null,{"$f":"IF(ISBLANK('Données Double Service Elec'!E54),\"\",'Données Double Service Elec'!E54)","v":""},"m³/h",null,null,null,{"$f":"IF(ISBLANK('Données Double Service Elec'!F54),\"\",'Données Double Service Elec'!F54)","v":""},"m³/h"]
[null,null,null,"Diamètre préconisé des canalisations"]
[null,null,null,null,null,null,null,null,null,{"$f":"IF(AND('Données Double Service Elec'!I7<>\"\",'Données Double Service Elec'!I8<>\"\"),IF(ISBLANK('Données Double Service Elec'!D55),\"\",'Données Double Service Elec'!D55),IF(ISBLANK('Données Double Service Elec'!D55),\"\",\"---\"))","v":""},null,null,null,null,{"$f":"IF(AND('Données Double Service Elec'!I7<>\"\",'Données Double Service Elec'!I8<>\"\"),IF(ISBLANK('Données Double Service Elec'!E55),\"\",'Données Double Service Elec'!E55),IF(ISBLANK('Données Double Service Elec'!E55),\"\",\"---\"))","v":""},null,null,null,null,{"$f":"IF(AND('Données Double Service Elec'!I7<>\"\",'Données Double Service Elec'!I8<>\"\"),IF(ISBLANK('Données Double Service Elec'!F55),\"\",'Données Double Service Elec'!F55),IF(ISBLANK('Données Double Service Elec'!F55),\"\",\"---\"))","v":""}]
[]
[null,null,null,"HMT disponible",null,null,null,null,null,{"$f":"IF(ISBLANK('Données Double Service Elec'!D56),\"\",'Données Double Service Elec'!D56)","v":""},"kPa",null,null,null,{"$f":"IF(ISBLANK('Données Double Service Elec'!E56),\"\",'Données Double Service Elec'!E56)","v":""},"kPa",null,null,null,{"$f":"IF(ISBLANK('Données Double Service Elec'!F56),\"\",'Données Double Service Elec'!F56)","v":""},"kPa"]
[]
[null,null,null,"Pression maximum de service",null,null,null,null,null,{"$f":"IF(ISBLANK('Données Double Service Elec'!D57),\"\",'Données Double Service Elec'!D57)","v":""},"bar",null,null,null,{"$f":"IF(ISBLANK('Données Double Service Elec'!E57),\"\",'Données Double Service Elec'!E57)","v":""},"bar",null,null,null,{"$f":"IF(ISBLANK('Données Double Service Elec'!F57),\"\",'Données Double Service Elec'!F57)","v":""},"bar"]
[]
[null,null,null,{"$f":"IF('Données Double Service Elec'!K2=\"Serpentin\",\"Débit serpentin préconisé\",\"Débit primaire préconisé\")","v":"Débit primaire préconisé"},null,null,null,null,null,{"$f":"IF(ISBLANK('Données Double Service Elec'!D73),\"\",'Données Double Service Elec'!D73)","v":""},"m³/h",null,null,null,{"$f":"IF(ISBLANK('Données Double Service Elec'!E73),\"\",'Données Double Service Elec'!E73)","v":""},"m³/h",null,null,null,{"$f":"IF(ISBLANK('Données Double Service Elec'!F73),\"\",'Données Double Service Elec'!F73)","v":""},"m³/h"]
[]
[null,null,null,"Surface nécessaire installation PAC",null,null,null,null,null,{"$f":"IF(ISBLANK('Données Double Service Elec'!D58),\"\",'Données Double Service Elec'!D58)","v":""},"m²",null,null,null,{"$f":"IF(ISBLANK('Données Double Service Elec'!E58),\"\",'Données Double Service Elec'!E58)","v":""},"m²",null,null,null,{"$f":"IF(ISBLANK('Données Double Service Elec'!F58),\"\",'Données Double Service Elec'!F58)","v":""},"m²"]
[]
[null,null,null,"Dimensions 1 PAC (HxLxP)",null,null,null,null,{"$f":"IF(ISBLANK('Données Double Service Elec'!D59),\"\",'Données Double Service Elec'!D59&\" x \"&'Données Double Service Elec'!D60&\" x \"&'Données Double Service Elec'!D61)","v":""},null,null,"mm",null,{"$f":"IF(ISBLANK('Données Double Service Elec'!E59),\"\",'Données Double Service Elec'!E59&\" x \"&'Données Double Service Elec'!E60&\" x \"&'Données Double Service Elec'!E61)","v":""},null,null,"mm",null,{"$f":"IF(ISBLANK('Données Double Service Elec'!F59),\"\",'Données Double Service Elec'!F59&\" x \"&'Données Double Service Elec'!F60&\" x \"&'Données Double Service Elec'!F61)","v":""},null,null,"mm"]
[]
[null,null,null,"Hauteur minimale local",null,null,null,null,null,{"$f":"IF(ISBLANK('Données Double Service Elec'!D62),\"\",'Données Double Service Elec'!D62)","v":""},"mm",null,null,null,{"$f":"IF(ISBLANK('Données Double Service Elec'!E62),\"\",'Données Double Service Elec'!E62)","v":""},"mm",null,null,null,{"$f":"IF(ISBLANK('Données Double Service Elec'!F62),\"\",'Données Double Service Elec'!F62)","v":""},"mm"]
[]
[null,null,null,"Largeur de passage minimale local",null,null,null,null,null,{"$f":"IF(ISBLANK('Données Double Service Elec'!D63),\"\",'Données Double Service Elec'!D63)","v":""},"mm",null,null,null,{"$f":"IF(ISBLANK('Données Double Service Elec'!E63),\"\",'Données Double Service Elec'!E63)","v":""},"mm",null,null,null,{"$f":"IF(ISBLANK('Données Double Service Elec'!F63),\"\",'Données Double Service Elec'!F63)","v":""},"mm"]
[]
[null,null,"Puissance sonore 1 PAC à charge partielle\nPuissance sonore 1 PAC à charge partielle\nPuissance sonore 1 PAC à charge partielle",null,null,null,null,null,null,{"$f":"IF(ISBLANK('Données Double Service Elec'!D64),\"\",'Données Double Service Elec'!D64)","v":""},"dB(A)",null,null,null,{"$f":"IF(ISBLANK('Données Double Service Elec'!E64),\"\",'Données Double Service Elec'!E64)","v":""},"dB(A)",null,null,null,{"$f":"IF(ISBLANK('Données Double Service Elec'!F64),\"\",'Données Double Service Elec'!F64)","v":""},"dB(A)"]
[null,null,null,"Selon la norme EN 12-102"]
[null,null,"Puissance sonore totale à pleine charge",null,null,null,null,null,null,{"$f":"IF(ISBLANK('Données Double Service Elec'!D65),\"\",'Données Double Service Elec'!D65)","v":""},"dB(A)",null,null,null,{"$f":"IF(ISBLANK('Données Double Service Elec'!E65),\"\",'Données Double Service Elec'!E65)","v":""},"dB(A)",null,null,null,{"$f":"IF(ISBLANK('Données Double Service Elec'!F65),\"\",'Données Double Service Elec'!F65)","v":""},"dB(A)"]
[]
[null,null,null,null,"PPHT estimé",null,null,null,{"$f":"IF(ISBLANK('Données Double Service Elec'!D66),\"\",'Données Double Service Elec'!D66)","v":""},null,"€",null,null,{"$f":"IF(ISBLANK('Données Double Service Elec'!E66),\"\",'Données Double Service Elec'!E66)","v":""},null,"€",null,null,{"$f":"IF(ISBLANK('Données Double Service Elec'!F66),\"\",'Données Double Service Elec'!F66)","v":""},null,"€"]

{"sheet":"Données Double Service Elec","index":7,"n_rows":206,"n_cols":8,"rows_kept":206,"cut":false,"hidden":true,"merged":[[32,1,33,1],[74,1,141,1],[32,0,73,0],[142,1,181,1],[182,1,205,1],[74,0,205,0],[65,1,66,1],[63,1,64,1],[34,7,72,7],[53,1,56,1],[50,1,52,1],[47,1,49,1],[34,1,36,1],[37,1,46,1],[57,1,62,1],[67,1,73,1],[16,1,27,1],[0,1,5,1],[6,1,11,1],[12,1,15,1],[0,0,31,0],[30,1,31,1]]}
["Entrées","Localisation","Ville",{"$f":"'Double Service Elec'!G22","v":"01 - AMBERIEU"},"Sans modification","Production ECS"]
[null,null,"Altitude",{"$f":"'Double Service Elec'!$G$24","v":250},null,{"$f":"'Double Service Elec'!S70","v":"Serpentin"}]
[null,null,"Température de base (Tbase)",{"$f":"'Double Service Elec'!G26","v":-11},-11]
[null,null,"Température été (Tete)",{"$f":"'Double Service Elec'!$G$28","v":35}]
[null,null,"Traitement Anti Corrosion",{"$f":"'Double Service Elec'!G30=\"Oui\"","v":false}]
[null,null,"BordDeMer / Montagne",{"$f":"IF('Double Service Elec'!C32 = \"\",\"\",'Double Service Elec'!G32=\"Oui\")","v":""}]
[null,"Installation","Distance PAC / ballon",{"$f":"\"\"&'Double Service Elec'!R22","v":""}]
[null,null,"Distance PAC / Bâtiment",{"$f":"\"\"&'Double Service Elec'!R24","v":""}]
[null,null,"taux de glycol",0]
[null,null,"Hauteur sous plafond",{"$f":"\"\"&'Double Service Elec'!R30","v":""}]
[null,null,"Largeur de porte",{"$f":"\"\"&'Double Service Elec'!R32","v":""}]
[null,null,"Gamme de Pac","AHP70"]
[null,"Circuit.s","Type",{"$f":"\"\"& 'Double Service Elec'!F44","v":""},{"$f":"\"\"& 'Double Service Elec'!I44","v":""},{"$f":"\"\"& 'Double Service Elec'!L44","v":""},{"$f":"\"\"& 'Double Service Elec'!O44","v":""},{"$f":"\"\"& 'Double Service Elec'!R44","v":""}]
[null,null,"Puissance circuit",{"$f":"IF('Double Service Elec'!F46 = \"\", \"\", 'Double Service Elec'!F46)","v":""},{"$f":"IF('Double Service Elec'!I46 = \"\", \"\", 'Double Service Elec'!I46)","v":""},{"$f":"IF('Double Service Elec'!L46 = \"\", \"\", 'Double Service Elec'!L46)","v":""},{"$f":"IF('Double Service Elec'!O46 = \"\", \"\", 'Double Service Elec'!O46)","v":""},{"$f":"IF('Double Service Elec'!R46 = \"\", \"\", 'Double Service Elec'!R46)","v":""}]
[null,null,"Consigne de départ",{"$f":"IF('Double Service Elec'!F48 = \"\", \"\", 'Double Service Elec'!F48)","v":""},{"$f":"IF('Double Service Elec'!I48 = \"\", \"\", 'Double Service Elec'!I48)","v":""},{"$f":"IF('Double Service Elec'!L48 = \"\", \"\", 'Double Service Elec'!L48)","v":""},{"$f":"IF('Double Service Elec'!O48 = \"\", \"\", 'Double Service Elec'!O48)","v":""},{"$f":"IF('Double Service Elec'!R48 = \"\", \"\", 'Double Service Elec'!R48)","v":""}]
[null,null,"Delta T",{"$f":"IF('Double Service Elec'!F50 = \"\", \"\", 'Double Service Elec'!F50)","v":""},{"$f":"IF('Double Service Elec'!I50 = \"\", \"\", 'Double Service Elec'!I50)","v":""},{"$f":"IF('Double Service Elec'!L50 = \"\", \"\", 'Double Service Elec'!L50)","v":""},{"$f":"IF('Double Service Elec'!O50 = \"\", \"\", 'Double Service Elec'!O50)","v":""},{"$f":"IF('Double Service Elec'!R50 = \"\", \"\", 'Double Service Elec'!R50)","v":""}]
[null,"Circuit ECS","Applicatif",{"$f":"'Données ECS Double Service Elec'!applicatif_url","v":"logement"}]
[null,null,"Sous applicatif",{"$f":"'Données ECS Double Service Elec'!sous_applicatif_url","v":{"$error":"#N/A"}}]
[null,null,{"$f":"\"\"&'Données ECS Double Service Elec'!M2:M7","v":""},{"$f":"'Double Service Elec'!F59","v":0},{"$f":"\"\"&'Données ECS Double Service Elec'!N2:N7","v":""},null,"Besoins"]
[null,null,"",{"$f":"'Double Service Elec'!F61","v":0},"","Vj",{"$f":"'Double Service Elec'!T58","v":""}]
[null,null,"",{"$f":"'Double Service Elec'!F63","v":0},"","Vph",{"$f":"'Double Service Elec'!T60","v":""}]
[null,null,"",{"$f":"'Double Service Elec'!K59","v":0},"","Tph",{"$f":"'Double Service Elec'!T62","v":""}]
[null,null,"",{"$f":"'Double Service Elec'!K61","v":0},"","V10",{"$f":"'Double Service Elec'!T64","v":""}]
[null,null,"",{"$f":"'Double Service Elec'!K63","v":0},""]
[null,null,"Temperature eau froide",{"$f":"\"\"&'Double Service Elec'!F65","v":"10"}]
[null,null,"Perte thermique de bouclage",{"$f":"\"\"&'Double Service Elec'!K65","v":""}]
[null,null,"Cycle AL",{"$f":"IF('Double Service Elec'!P59=\"Non\",\"\",'Double Service Elec'!P61)","v":""}]
[null,null,"Choix Solution ECS",{"$f":"IF('Double Service Elec'!T81<>\"\",'Double Service Elec'!T81,0)","v":0}]
[null,null,"Puissance reelle",{"$f":"INDEX('Données ECS Double Service Elec'!F2:F16,choix_solution_ecs)","v":{"$error":"#VALUE!"}}]
[null,null,"Puissance optimisee",{"$f":"INDEX('Données ECS Double Service Elec'!G2:G16,choix_solution_ecs)","v":{"$error":"#VALUE!"}}]
[null,"Obectif","Type de dimensionnement",{"$f":"E31=2","v":true},2]
[null,null,"Preference PAC",{"$f":"IF(E32=\"\",\"\",INDEX('Préférence Pac'!A3:A15,MATCH(E32,_xlfn.ANCHORARRAY('Préférence Pac'!B3),0)))","v":""},{"$f":"\"\"&'Double Service Elec'!preference_pac","v":""}]
["Sorties","Solutions","nom","Economique","Encombrement","Economique - Choix Utilisateur"]
[null,null,"nom pdf","La + economique","La - encombrante","Choix PAC utilisateur"]
[null,"Pac","nom Pac",null,null,null,null,"Système choisi pour générer le PDF"]
[null,null,"nb Pac"]
[null,null,"ChassisPac"]
[null,"Ballon & Appoints","Puissance App élec total"]
[null,null,"Ballon de charge 1"]
[null,null,"Ballon de charge 1 Appoint 1"]
[null,null,"Ballon de charge 1 Appoint 2"]
[null,null,"Ballon de charge 1 Appoint 3"]
[null,null,"Ballon de charge 2"]
[null,null,"Ballon Supplémentaire"]
[null,null,"Ballon Sup Appoint 1"]
[null,null,"Ballon Sup Appoint 2"]
[null,null,"Ballon Sup Appoint 3"]
[null,"Stats","Part PAC à Tbase"]
[null,null,"Puissance PAC à Tbase"]
[null,null,"Taux de couverture PAC annuel estimé"]
[null,"Besoins Elec","Puissance électrique max"]
[null,null,"Intensité électrique max"]
[null,null,"Puissance active"]
[null,"Hydraulique","Débit PAC préconisé"]
[null,null,"Diamètre préconisé des canalisations"]
[null,null,"HMT disponible"]
[null,null,"Pression maximale"]
[null,"Dimensions","Surface nécessaire installation PAC"]
[null,null,"Hauteur Pac"]
[null,null,"Largeur Pac"]
[null,null,"Profondeur Pac"]
[null,null,"Hauteur du plus gros ballon"]
[null,null,"Diametre du plus gros ballon"]
[null,"Puissance Sonore","P.sonore Charge partielle"]
[null,null,"P.sonore Pleine charge"]
[null,"Prix","PPHT estimé"]
[null,null,"code schéma"]
[null,"Données ECS","Choix Ballon serpentin"]
[null,null,"Choix Ballon stockage 1"]
[null,null,"Choix Ballon stockage 2"]
[null,null,"DS part pac à Tbase"]
[null,null,"DS part pac + appoint à Tbase"]
[null,null,"Debit Primaire préconisé"]
[null,null,"Debit Secondaire préconisé"]
["DEVIS","PANIER","code"]
[null,null,"nom"]
[null,null,"prix"]
[null,null,"qte"]
[null,null,"code"]
[null,null,"nom"]
[null,null,"prix"]
[null,null,"qte"]
[null,null,"code"]
[null,null,"nom"]
[null,null,"prix"]
[null,null,"qte"]
[null,null,"code"]
[null,null,"nom"]
[null,null,"prix"]
[null,null,"qte"]
[null,null,"code"]
[null,null,"nom"]
[null,null,"prix"]
[null,null,"qte"]
[null,null,"code"]
[null,null,"nom"]
[null,null,"prix"]
[null,null,"qte"]
[null,null,"code"]
[null,null,"nom"]
[null,null,"prix"]
[null,null,"qte"]
[null,null,"code"]
[null,null,"nom"]
[null,null,"prix"]
[null,null,"qte"]
[null,null,"code"]
[null,null,"nom"]
[null,null,"prix"]
[null,null,"qte"]
[null,null,"code"]
[null,null,"nom"]
[null,null,"prix"]
[null,null,"qte"]
[null,null,"code"]
[null,null,"nom"]
[null,null,"prix"]
[null,null,"qte"]
[null,null,"code"]
[null,null,"nom"]
[null,null,"prix"]
[null,null,"qte"]
[null,null,"code"]
[null,null,"nom"]
[null,null,"prix"]
[null,null,"qte"]
[null,null,"code"]
[null,null,"nom"]
[null,null,"prix"]
[null,null,"qte"]
[null,null,"code"]
[null,null,"nom"]
[null,null,"prix"]
[null,null,"qte"]
[null,null,"code"]
[null,null,"nom"]
[null,null,"prix"]
[null,null,"qte"]
[null,null,"code"]
[null,null,"nom"]
[null,null,"prix"]
[null,null,"qte"]
[null,"ACCESSOIRES","code"]
[null,null,"nom"]
[null,null,"prix"]
[null,null,"qte"]
[null,null,"code"]
[null,null,"nom"]
[null,null,"prix"]
[null,null,"qte"]
[null,null,"code"]
[null,null,"nom"]
[null,null,"prix"]
[null,null,"qte"]
[null,null,"code"]
[null,null,"nom"]
[null,null,"prix"]
[null,null,"qte"]
[null,null,"code"]
[null,null,"nom"]
[null,null,"prix"]
[null,null,"qte"]
[null,null,"code"]
[null,null,"nom"]
[null,null,"prix"]
[null,null,"qte"]
[null,null,"code"]
[null,null,"nom"]
[null,null,"prix"]
[null,null,"qte"]
[null,null,"code"]
[null,null,"nom"]
[null,null,"prix"]
[null,null,"qte"]
[null,null,"code"]
[null,null,"nom"]
[null,null,"prix"]
[null,null,"qte"]
[null,null,"code"]
[null,null,"nom"]
[null,null,"prix"]
[null,null,"qte"]
[null,"SERVICES","code"]
[null,null,"nom"]
[null,null,"prix"]
[null,null,"qte"]
[null,null,"code"]
[null,null,"nom"]
[null,null,"prix"]
[null,null,"qte"]
[null,null,"code"]
[null,null,"nom"]
[null,null,"prix"]
[null,null,"qte"]
[null,null,"code"]
[null,null,"nom"]
[null,null,"prix"]
[null,null,"qte"]
[null,null,"code"]
[null,null,"nom"]
[null,null,"prix"]
[null,null,"qte"]
[null,null,"code"]
[null,null,"nom"]
[null,null,"prix"]
[null,null,"qte"]

{"sheet":"Données ECS Double Service Elec","index":8,"n_rows":21,"n_cols":15,"rows_kept":21,"cut":false,"hidden":true,"merged":[]}
["Puissance","Optimale (ECS Seul)","Code Ballon serpentin","Code Ballon stockage 1","Code Ballon stockage 2","Puissance reelle","Puissance optimisée","Besoins ECS",null,"Applicatif","Sous-Applicatif","Variable utilisée","Variables URL","Variables Menu","Variables Data"]
[null,null,null,null,null,null,null,null,"Vj",{"$f":"INDEX('Validation des Données'!AB26:AB29,MATCH('Double Service Elec'!applicatif,'Validation des Données'!AA26:AA29,0))","v":"logement"},{"$f":"INDEX('Validation des Données'!AB2:AB25,MATCH('Double Service Elec'!sous_applicatif,'Validation des Données'!AA2:AA25,0))","v":{"$error":"#N/A"}},{"$f":"IF(INDEX('Validation des Données'!B183:Y183,MATCH('Double Service Elec'!sous_applicatif,_xlfn.ANCHORARRAY('Validation des Données'!$B$182),0))=\"\",FALSE,TRUE)","v":{"$error":"#N/A"}},{"$f":"IFERROR(_xlfn._xlws.FILTER('Validation des Données'!A183:A202,L2:L21),\"\")","v":""},{"$f":"IF(M2=\"\",\"\",INDEX('Validation des Données'!$B$183:$Y$202,MATCH(M2,'Validation des Données'!$A$183:$A$202,0),MATCH('Double Service Elec'!sous_applicatif,_xlfn.ANCHORARRAY('Validation des Données'!$B$182),0)))","v":""},{"$f":"IF('Double Service Elec'!F59=\"\",\"\",'Double Service Elec'!F59)","v":""}]
[null,null,null,null,null,null,null,null,"V10",null,null,{"$f":"IF(INDEX('Validation des Données'!B184:Y184,MATCH('Double Service Elec'!sous_applicatif,_xlfn.ANCHORARRAY('Validation des Données'!$B$182),0))=\"\",FALSE,TRUE)","v":{"$error":"#N/A"}},null,{"$f":"IF(M3=\"\",\"\",INDEX('Validation des Données'!$B$183:$Y$202,MATCH(M3,'Validation des Données'!$A$183:$A$202,0),MATCH('Double Service Elec'!sous_applicatif,_xlfn.ANCHORARRAY('Validation des Données'!$B$182),0)))","v":""},{"$f":"IF('Double Service Elec'!F61=\"\",\"\",'Double Service Elec'!F61)","v":""}]
[null,null,null,null,null,null,null,null,"Vph",null,null,{"$f":"IF(INDEX('Validation des Données'!B185:Y185,MATCH('Double Service Elec'!sous_applicatif,_xlfn.ANCHORARRAY('Validation des Données'!$B$182),0))=\"\",FALSE,TRUE)","v":{"$error":"#N/A"}},null,{"$f":"IF(M4=\"\",\"\",INDEX('Validation des Données'!$B$183:$Y$202,MATCH(M4,'Validation des Données'!$A$183:$A$202,0),MATCH('Double Service Elec'!sous_applicatif,_xlfn.ANCHORARRAY('Validation des Données'!$B$182),0)))","v":""},{"$f":"IF('Double Service Elec'!F63=\"\",\"\",'Double Service Elec'!F63)","v":""}]
[null,null,null,null,null,null,null,null,"tph",null,null,{"$f":"IF(INDEX('Validation des Données'!B186:Y186,MATCH('Double Service Elec'!sous_applicatif,_xlfn.ANCHORARRAY('Validation des Données'!$B$182),0))=\"\",FALSE,TRUE)","v":{"$error":"#N/A"}},null,{"$f":"IF(M5=\"\",\"\",INDEX('Validation des Données'!$B$183:$Y$202,MATCH(M5,'Validation des Données'!$A$183:$A$202,0),MATCH('Double Service Elec'!sous_applicatif,_xlfn.ANCHORARRAY('Validation des Données'!$B$182),0)))","v":""},{"$f":"IF('Double Service Elec'!K59=\"\",\"\",'Double Service Elec'!K59)","v":""}]
[null,null,null,null,null,null,null,null,null,null,null,{"$f":"IF(INDEX('Validation des Données'!B187:Y187,MATCH('Double Service Elec'!sous_applicatif,_xlfn.ANCHORARRAY('Validation des Données'!$B$182),0))=\"\",FALSE,TRUE)","v":{"$error":"#N/A"}},null,{"$f":"IF(M6=\"\",\"\",INDEX('Validation des Données'!$B$183:$Y$202,MATCH(M6,'Validation des Données'!$A$183:$A$202,0),MATCH('Double Service Elec'!sous_applicatif,_xlfn.ANCHORARRAY('Validation des Données'!$B$182),0)))","v":""},{"$f":"IF('Double Service Elec'!K61=\"\",\"\",'Double Service Elec'!K61)","v":""}]
[null,null,null,null,null,null,null,null,null,null,null,{"$f":"IF(INDEX('Validation des Données'!B188:Y188,MATCH('Double Service Elec'!sous_applicatif,_xlfn.ANCHORARRAY('Validation des Données'!$B$182),0))=\"\",FALSE,TRUE)","v":{"$error":"#N/A"}},null,{"$f":"IF(M7=\"\",\"\",INDEX('Validation des Données'!$B$183:$Y$202,MATCH(M7,'Validation des Données'!$A$183:$A$202,0),MATCH('Double Service Elec'!sous_applicatif,_xlfn.ANCHORARRAY('Validation des Données'!$B$182),0)))","v":""},{"$f":"IF('Double Service Elec'!K63=\"\",\"\",'Double Service Elec'!K63)","v":""}]
[null,null,null,null,null,null,null,null,null,null,null,{"$f":"IF(INDEX('Validation des Données'!B189:Y189,MATCH('Double Service Elec'!sous_applicatif,_xlfn.ANCHORARRAY('Validation des Données'!$B$182),0))=\"\",FALSE,TRUE)","v":{"$error":"#N/A"}},null,{"$f":"IF(M8=\"\",\"\",INDEX('Validation des Données'!$B$183:$Y$202,MATCH(M8,'Validation des Données'!$A$183:$A$202,0),MATCH('Double Service Elec'!sous_applicatif,_xlfn.ANCHORARRAY('Validation des Données'!$B$182),0)))","v":""}]
[null,null,null,null,null,null,null,null,null,null,null,{"$f":"IF(INDEX('Validation des Données'!B190:Y190,MATCH('Double Service Elec'!sous_applicatif,_xlfn.ANCHORARRAY('Validation des Données'!$B$182),0))=\"\",FALSE,TRUE)","v":{"$error":"#N/A"}},null,{"$f":"IF(M9=\"\",\"\",INDEX('Validation des Données'!$B$183:$Y$202,MATCH(M9,'Validation des Données'!$A$183:$A$202,0),MATCH('Double Service Elec'!sous_applicatif,_xlfn.ANCHORARRAY('Validation des Données'!$B$182),0)))","v":""}]
[null,null,null,null,null,null,null,null,null,null,null,{"$f":"IF(INDEX('Validation des Données'!B191:Y191,MATCH('Double Service Elec'!sous_applicatif,_xlfn.ANCHORARRAY('Validation des Données'!$B$182),0))=\"\",FALSE,TRUE)","v":{"$error":"#N/A"}},null,{"$f":"IF(M10=\"\",\"\",INDEX('Validation des Données'!$B$183:$Y$202,MATCH(M10,'Validation des Données'!$A$183:$A$202,0),MATCH('Double Service Elec'!sous_applicatif,_xlfn.ANCHORARRAY('Validation des Données'!$B$182),0)))","v":""}]
[null,null,null,null,null,null,null,null,null,null,null,{"$f":"IF(INDEX('Validation des Données'!B192:Y192,MATCH('Double Service Elec'!sous_applicatif,_xlfn.ANCHORARRAY('Validation des Données'!$B$182),0))=\"\",FALSE,TRUE)","v":{"$error":"#N/A"}},null,{"$f":"IF(M11=\"\",\"\",INDEX('Validation des Données'!$B$183:$Y$202,MATCH(M11,'Validation des Données'!$A$183:$A$202,0),MATCH('Double Service Elec'!sous_applicatif,_xlfn.ANCHORARRAY('Validation des Données'!$B$182),0)))","v":""}]
[null,null,null,null,null,null,null,null,null,null,null,{"$f":"IF(INDEX('Validation des Données'!B193:Y193,MATCH('Double Service Elec'!sous_applicatif,_xlfn.ANCHORARRAY('Validation des Données'!$B$182),0))=\"\",FALSE,TRUE)","v":{"$error":"#N/A"}},null,{"$f":"IF(M12=\"\",\"\",INDEX('Validation des Données'!$B$183:$Y$202,MATCH(M12,'Validation des Données'!$A$183:$A$202,0),MATCH('Double Service Elec'!sous_applicatif,_xlfn.ANCHORARRAY('Validation des Données'!$B$182),0)))","v":""}]
[null,null,null,null,null,null,null,null,null,null,null,{"$f":"IF(INDEX('Validation des Données'!B194:Y194,MATCH('Double Service Elec'!sous_applicatif,_xlfn.ANCHORARRAY('Validation des Données'!$B$182),0))=\"\",FALSE,TRUE)","v":{"$error":"#N/A"}},null,{"$f":"IF(M13=\"\",\"\",INDEX('Validation des Données'!$B$183:$Y$202,MATCH(M13,'Validation des Données'!$A$183:$A$202,0),MATCH('Double Service Elec'!sous_applicatif,_xlfn.ANCHORARRAY('Validation des Données'!$B$182),0)))","v":""}]
[null,null,null,null,null,null,null,null,null,null,null,{"$f":"IF(INDEX('Validation des Données'!B195:Y195,MATCH('Double Service Elec'!sous_applicatif,_xlfn.ANCHORARRAY('Validation des Données'!$B$182),0))=\"\",FALSE,TRUE)","v":{"$error":"#N/A"}},null,{"$f":"IF(M14=\"\",\"\",INDEX('Validation des Données'!$B$183:$Y$202,MATCH(M14,'Validation des Données'!$A$183:$A$202,0),MATCH('Double Service Elec'!sous_applicatif,_xlfn.ANCHORARRAY('Validation des Données'!$B$182),0)))","v":""}]
[null,null,null,null,null,null,null,null,null,null,null,{"$f":"IF(INDEX('Validation des Données'!B196:Y196,MATCH('Double Service Elec'!sous_applicatif,_xlfn.ANCHORARRAY('Validation des Données'!$B$182),0))=\"\",FALSE,TRUE)","v":{"$error":"#N/A"}},null,{"$f":"IF(M15=\"\",\"\",INDEX('Validation des Données'!$B$183:$Y$202,MATCH(M15,'Validation des Données'!$A$183:$A$202,0),MATCH('Double Service Elec'!sous_applicatif,_xlfn.ANCHORARRAY('Validation des Données'!$B$182),0)))","v":""}]
[null,null,null,null,null,null,null,null,null,null,null,{"$f":"IF(INDEX('Validation des Données'!B197:Y197,MATCH('Double Service Elec'!sous_applicatif,_xlfn.ANCHORARRAY('Validation des Données'!$B$182),0))=\"\",FALSE,TRUE)","v":{"$error":"#N/A"}},null,{"$f":"IF(M16=\"\",\"\",INDEX('Validation des Données'!$B$183:$Y$202,MATCH(M16,'Validation des Données'!$A$183:$A$202,0),MATCH('Double Service Elec'!sous_applicatif,_xlfn.ANCHORARRAY('Validation des Données'!$B$182),0)))","v":""}]
[null,null,null,null,null,null,null,null,null,null,null,{"$f":"IF(INDEX('Validation des Données'!B198:Y198,MATCH('Double Service Elec'!sous_applicatif,_xlfn.ANCHORARRAY('Validation des Données'!$B$182),0))=\"\",FALSE,TRUE)","v":{"$error":"#N/A"}},null,{"$f":"IF(M17=\"\",\"\",INDEX('Validation des Données'!$B$183:$Y$202,MATCH(M17,'Validation des Données'!$A$183:$A$202,0),MATCH('Double Service Elec'!sous_applicatif,_xlfn.ANCHORARRAY('Validation des Données'!$B$182),0)))","v":""}]
[null,null,null,null,null,null,null,null,null,null,null,{"$f":"IF(INDEX('Validation des Données'!B199:Y199,MATCH('Double Service Elec'!sous_applicatif,_xlfn.ANCHORARRAY('Validation des Données'!$B$182),0))=\"\",FALSE,TRUE)","v":{"$error":"#N/A"}},null,{"$f":"IF(M18=\"\",\"\",INDEX('Validation des Données'!$B$183:$Y$202,MATCH(M18,'Validation des Données'!$A$183:$A$202,0),MATCH('Double Service Elec'!sous_applicatif,_xlfn.ANCHORARRAY('Validation des Données'!$B$182),0)))","v":""}]
[null,null,null,null,null,null,null,null,null,null,null,{"$f":"IF(INDEX('Validation des Données'!B200:Y200,MATCH('Double Service Elec'!sous_applicatif,_xlfn.ANCHORARRAY('Validation des Données'!$B$182),0))=\"\",FALSE,TRUE)","v":{"$error":"#N/A"}},null,{"$f":"IF(M19=\"\",\"\",INDEX('Validation des Données'!$B$183:$Y$202,MATCH(M19,'Validation des Données'!$A$183:$A$202,0),MATCH('Double Service Elec'!sous_applicatif,_xlfn.ANCHORARRAY('Validation des Données'!$B$182),0)))","v":""}]
[null,null,null,null,null,null,null,null,null,null,null,{"$f":"IF(INDEX('Validation des Données'!B201:Y201,MATCH('Double Service Elec'!sous_applicatif,_xlfn.ANCHORARRAY('Validation des Données'!$B$182),0))=\"\",FALSE,TRUE)","v":{"$error":"#N/A"}},null,{"$f":"IF(M20=\"\",\"\",INDEX('Validation des Données'!$B$183:$Y$202,MATCH(M20,'Validation des Données'!$A$183:$A$202,0),MATCH('Double Service Elec'!sous_applicatif,_xlfn.ANCHORARRAY('Validation des Données'!$B$182),0)))","v":""}]
[null,null,null,null,null,null,null,null,null,null,null,{"$f":"IF(INDEX('Validation des Données'!B202:Y202,MATCH('Double Service Elec'!sous_applicatif,_xlfn.ANCHORARRAY('Validation des Données'!$B$182),0))=\"\",FALSE,TRUE)","v":{"$error":"#N/A"}},null,{"$f":"IF(M21=\"\",\"\",INDEX('Validation des Données'!$B$183:$Y$202,MATCH(M21,'Validation des Données'!$A$183:$A$202,0),MATCH('Double Service Elec'!sous_applicatif,_xlfn.ANCHORARRAY('Validation des Données'!$B$182),0)))","v":""}]

{"sheet":"PDF Double Service Elec","index":9,"n_rows":216,"n_cols":11,"rows_kept":216,"cut":false,"hidden":false,"merged":[[204,1,204,4],[204,7,204,8],[204,9,204,10],[205,1,205,4],[205,7,205,8],[205,9,205,10],[202,1,202,4],[202,7,202,8],[202,9,202,10],[203,1,203,4],[203,7,203,8],[203,9,203,10],[210,1,210,4],[210,7,210,8],[210,9,210,10],[211,1,211,4],[211,7,211,8],[211,9,211,10],[206,1,206,4],[206,7,206,8],[206,9,206,10],[209,1,209,4],[209,7,209,8],[209,9,209,10],[214,1,214,4],[214,7,214,8],[214,9,214,10],[215,1,215,4],[215,7,215,8],[215,9,215,10],[212,1,212,4],[212,7,212,8],[212,9,212,10],[213,1,213,4],[213,7,213,8],[213,9,213,10],[200,1,200,4],[200,7,200,8],[200,9,200,10],[201,1,201,4],[201,7,201,8],[201,9,201,10],[198,1,198,4],[198,7,198,8],[198,9,198,10],[199,1,199,4],[199,7,199,8],[199,9,199,10],[196,1,196,4],[196,7,196,8],[196,9,196,10],[197,1,197,4],[197,7,197,8],[197,9,197,10],[190,1,190,4],[190,7,190,8],[190,9,190,10],[192,1,192,8],[192,9,192,10],[193,1,193,8],[193,9,193,10],[191,1,191,4],[61,3,61,4],[61,7,61,8],[64,1,64,4],[65,1,65,4],[61,1,61,2],[86,5,86,6],[89,1,90,2],[89,3,89,5],[90,3,90,5],[73,1,73,3],[76,1,76,3],[67,1,67,4],[68,1,68,4],[76,6,76,8],[79,1,79,3],[83,1,83,4],[83,5,83,6],[84,1,84,4],[84,5,84,6],[85,1,85,4],[86,1,86,4],[72,1,72,3],[77,1,77,3],[77,6,77,8],[40,1,40,3],[37,7,37,9],[56,7,56,8],[57,1,57,2],[57,3,57,4],[55,1,55,2],[55,3,55,4],[55,5,55,6],[56,1,56,2],[49,8,49,10],[50,8,50,10],[51,8,51,10],[56,3,56,4],[56,5,56,6],[46,1,46,3],[45,1,45,3],[44,1,44,3],[43,1,43,3],[17,1,17,4],[17,7,17,8],[18,1,18,4],[18,7,18,8],[20,1,20,4],[85,5,85,6],[32,3,32,4],[33,1,33,4],[33,6,33,9],[34,1,34,4],[34,6,34,9],[35,1,35,4],[35,6,35,9],[21,1,21,4],[19,7,19,8],[26,1,26,2],[27,1,27,2],[52,1,52,2],[53,1,53,2],[52,3,52,4],[66,1,66,4],[71,1,71,3],[78,1,78,3],[19,1,19,4],[1,3,1,8],[3,1,6,10],[9,4,9,7],[10,4,10,7],[12,3,12,4],[12,5,12,6],[60,1,60,2],[60,3,60,4],[60,5,60,6],[60,7,60,8],[28,1,28,2],[29,1,29,2],[59,1,59,2],[59,3,59,4],[59,5,59,6],[59,7,59,8],[55,7,55,8],[37,1,37,3],[38,1,38,3],[39,1,39,3],[32,1,32,2],[16,1,16,3],[16,4,16,5],[16,7,16,8],[189,7,189,8],[191,7,191,8],[189,9,189,10],[191,9,191,10],[178,9,178,10],[183,1,183,4],[183,7,183,8],[183,9,183,10],[184,1,184,4],[184,7,184,8],[184,9,184,10],[181,1,181,4],[181,7,181,8],[181,9,181,10],[182,1,182,4],[182,7,182,8],[179,7,179,8],[179,9,179,10],[180,1,180,4],[180,7,180,8],[180,9,180,10],[182,9,182,10],[189,1,189,4],[185,1,185,4],[93,1,93,4],[124,1,143,10],[177,1,177,4],[177,7,177,8],[177,9,177,10],[178,7,178,8],[179,1,179,4],[175,1,175,4],[175,7,175,8],[175,9,175,10],[176,1,176,4],[176,7,176,8],[176,9,176,10],[168,1,168,4],[170,1,171,10],[174,1,174,4],[174,7,174,8],[174,9,174,10],[145,1,165,10],[178,1,178,4],[144,5,144,6],[97,1,120,10],[185,7,185,8],[185,9,185,10],[186,1,186,4],[186,7,186,8],[186,9,186,10],[187,1,187,4],[187,7,187,8],[187,9,187,10],[188,1,188,4],[188,7,188,8],[188,9,188,10]]}
[]
[null,null,null,"DOUBLE SERVICE ELECTRIQUE",null,null,null,null,null,null,{"$f":"\"Version \"&version","v":"Version 4.0"}]
[]
[null,"Cet outil est avant tout un outil où les Utilisateurs se voient proposer une aide au dimensionnement pour les pompes à chaleur pour la production de chauffage collectif. \nLes informations indiquées sur l'Outil sont données à titre indicatif, et sont susceptibles d’évoluer. Par ailleurs, les renseignements figurant sur l'Outil ne sont pas exhaustifs. Ils sont donnés sous réserve de modifications ayant été apportées depuis leur mise en ligne. ACV n'assume aucune responsabilité quant aux conséquences directes ou indirectes, quelle qu'en soit la nature, de l'utilisation de l’Outil et de son Contenu.\n"]
[]
[]
[]
[]
[]
[null,null,null,"Référence du projet:",{"$f":"'Double Service Elec'!F9","v":"Référence"}]
[null,null,null,"Date:",{"$f":"TODAY()","v":"2025-04-03"}]
[]
[null,null,null,"Technologie",null,{"$f":"_xlfn.SWITCH('Données Double Service Elec'!I12, \"AHP60\", \"Effipac R32\", \"AHP70\", \"Aptae R290\",\"\")","v":""}]
[]
[null,"Localisation",null,null,null,null,null,"Installation"]
[]
[null,"Ville",null,null,{"$f":"\"\"&'Données Double Service Elec'!I1","v":""},null,null,"Distance PAC / ballon",null,{"$f":"IF('Données Double Service Elec'!I7=\"\",\"---\",'Données Double Service Elec'!I7)","v":"---"},"m"]
[null,"Altitude",null,null,null,{"$f":"'Données Double Service Elec'!I2","v":0},"m","Distance PAC / Bâtiment",null,{"$f":"IF('Données Double Service Elec'!I8=\"\",\"---\",'Données Double Service Elec'!I8)","v":"---"},"m"]
[null,{"$f":"\"Température extérieure de base\"&IF('Données Double Service Elec'!I3='Données Double Service Elec'!J3,\"\",\" modifiée\")","v":"Température extérieure de base"},null,null,null,{"$f":"'Données Double Service Elec'!I3","v":0},"°C","Hauteur sous plafond",null,{"$f":"'Données Double Service Elec'!I10","v":0},"mm"]
[null,"Température maximale été",null,null,null,{"$f":"'Données Double Service Elec'!I4","v":0},"°C","Largeur de passage",null,{"$f":"'Données Double Service Elec'!I11","v":0},"mm"]
[null,"Traitement Anti Corrosion nécessaire",null,null,null,{"$f":"IF('Données Double Service Elec'!I5,\"oui\",\"non\")","v":"non"}]
[null,"Zone \"montagne ou bord de mer\"",null,null,null,{"$f":"IF('Données Double Service Elec'!I6=TRUE,\"oui\",\"non\")","v":"non"}]
[]
[null,"Circuits de chauffage"]
[]
[null,null,null,null,"Circuit 1","Circuit 2","Circuit 3","Circuit 4","Circuit 5"]
[null,"Type",null,"-",{"$f":"\"\"&'Données Double Service Elec'!I13","v":""},{"$f":"\"\"&'Données Double Service Elec'!J13","v":""},{"$f":"\"\"&'Données Double Service Elec'!K13","v":""},{"$f":"\"\"&'Données Double Service Elec'!L13","v":""},{"$f":"\"\"&'Données Double Service Elec'!M13","v":""}]
[null,"Puissance",null,"kW",{"$f":"\"\"&'Données Double Service Elec'!I14","v":""},{"$f":"\"\"&'Données Double Service Elec'!J14","v":""},{"$f":"\"\"&'Données Double Service Elec'!K14","v":""},{"$f":"\"\"&'Données Double Service Elec'!L14","v":""},{"$f":"\"\"&'Données Double Service Elec'!M14","v":""}]
[null,"Consigne",null,"°C",{"$f":"\"\"&'Données Double Service Elec'!I15","v":""},{"$f":"\"\"&'Données Double Service Elec'!J15","v":""},{"$f":"\"\"&'Données Double Service Elec'!K15","v":""},{"$f":"\"\"&'Données Double Service Elec'!L15","v":""},{"$f":"\"\"&'Données Double Service Elec'!M15","v":""}]
[null,"Delta T°",null,"K",{"$f":"\"\"&'Données Double Service Elec'!I16","v":""},{"$f":"\"\"&'Données Double Service Elec'!J16","v":""},{"$f":"\"\"&'Données Double Service Elec'!K16","v":""},{"$f":"\"\"&'Données Double Service Elec'!L16","v":""},{"$f":"\"\"&'Données Double Service Elec'!M16","v":""}]
[]
[null,"Besoins ECS"]
[null,{"$f":"INDEX('Validation des Données'!AA2:AA29,MATCH('Données Double Service Elec'!I17,'Validation des Données'!AB2:AB29,0))","v":{"$error":"#N/A"}},null,{"$f":"INDEX('Validation des Données'!AA2:AA29,MATCH('Données Double Service Elec'!I18,'Validation des Données'!AB2:AB29,0))","v":{"$error":"#N/A"}}]
[null,{"$f":"'Données Double Service Elec'!J19","v":0},null,null,null,{"$f":"IF(B34=\"\",\"\",'Données Double Service Elec'!I19)","v":0},{"$f":"'Données Double Service Elec'!J22","v":0},null,null,null,{"$f":"IF(G34=\"\",\"\",'Données Double Service Elec'!I22)","v":0}]
[null,{"$f":"'Données Double Service Elec'!J20","v":0},null,null,null,{"$f":"IF(B35=\"\",\"\",'Données Double Service Elec'!I20)","v":0},{"$f":"'Données Double Service Elec'!J23","v":0},null,null,null,{"$f":"IF(G35=\"\",\"\",'Données Double Service Elec'!I23)","v":0}]
[null,{"$f":"'Données Double Service Elec'!J21","v":0},null,null,null,{"$f":"IF(B36=\"\",\"\",'Données Double Service Elec'!I21)","v":0},{"$f":"'Données Double Service Elec'!J24","v":0},null,null,null,{"$f":"IF(G36=\"\",\"\",'Données Double Service Elec'!I24)","v":0}]
[]
[null,"Température minimale d'eau froide",null,null,{"$f":"\"\"&'Données Double Service Elec'!I25","v":""},"°C",null,{"$f":"IF('Données Double Service Elec'!I17='Validation des Données'!AB26,\"Nombre total de logements\",\"\")","v":""},null,null,{"$f":"SUM(F34:F36,K34:K36)","v":0}]
[null,"Pertes thermiques du bouclage",null,null,{"$f":"\"\"&'Données Double Service Elec'!I26","v":""},"kW"]
[null,"Prise en charge anti-légionelle",null,null,{"$f":"IF(E41=\"\",\"Non\",\"Oui\")","v":"Non"}]
[null,"Consigne anti-légionelle",null,null,{"$f":"\"\"&'Données Double Service Elec'!I27","v":""}]
[]
[null,"Estimation des besoins ECS"]
[null,"Volume journalier",null,null,{"$f":"'Données Double Service Elec'!L20","v":0},"litres à 60°C"]
[null,"Volume plurihoraire",null,null,{"$f":"'Données Double Service Elec'!L21","v":0},"litres à 60°C"]
[null,"Durée plurihoraire",null,null,{"$f":"'Données Double Service Elec'!L22","v":"00:00:00"},"hh:mm"]
[null,"Volume 10min",null,null,{"$f":"IF('Données Double Service Elec'!L23<>\"\",'Données Double Service Elec'!L23,\"---\")","v":"---"},"litres à 60°C"]
[]
[]
[null,"Résultat",null,null,null,null,null,"Solution choisie",{"$f":"_xlfn.SWITCH('Données Double Service Elec'!I31,FALSE,\"Avec appoint électrique\",TRUE,\"Sans appoint électrique\",\"\")","v":""}]
[null,null,null,null,null,null,null,null,{"$f":"'Données Double Service Elec'!I34","v":0}]
[null,"Equipement",null,null,null,null,null,{"$f":"IF('Données Double Service Elec'!I33='Données Double Service Elec'!F33,\"Préférence PAC\",\"\")","v":""},{"$f":"IF('Données Double Service Elec'!I33='Données Double Service Elec'!F33,'Données Double Service Elec'!J32,\"\")","v":""}]
[null,"PAC",null,{"$f":"_xlfn.TEXTJOIN(\" \", TRUE, 'Données Double Service Elec'!I36,'Données Double Service Elec'!I35)","v":""}]
[null,"Appoint électrique total",null,{"$f":"'Données Double Service Elec'!I38","v":0},"kW"]
[]
[null,"Ballon ECS",null,"Production ECS",null,"Ballon  de stockage 1",null,"Ballon  de stockage 2"]
[null,"Type",null,{"$f":"\"\"&'Données Double Service Elec'!I68","v":""},null,{"$f":"\"\"&'Données Double Service Elec'!I69","v":""},null,{"$f":"\"\"&'Données Double Service Elec'!I70","v":""}]
[null,"Puissance ECS nécessaire",null,{"$f":"IF('Données Double Service Elec'!I28=0,\"\",IF(ROUNDUP(INDEX('Données ECS Double Service Elec'!G2:G16,'Données Double Service Elec'!I28),0)=0,ROUNDUP(INDEX('Données ECS Double Service Elec'!F2:F16,'Données Double Service Elec'!I28),0),ROUNDUP(INDEX('Données ECS Double Service Elec'!G2:G16,'Données Double Service Elec'!I28),0)))","v":""},null,"kW"]
[]
[null,"Ballon",null,"Ballon de charge 1",null,"Ballon de charge 2",null,"Ballon Supplémentaire"]
[null,"Type",null,{"$f":"\"\"&'Données Double Service Elec'!I39","v":""},null,{"$f":"\"\"&'Données Double Service Elec'!I43","v":""},null,{"$f":"\"\"&'Données Double Service Elec'!I44","v":""}]
[null,"Appoint(s) équipé(s)",null,{"$f":"_xlfn.TEXTJOIN(\" + \",TRUE,_xlfn.MAP('Données Double Service Elec'!I40:I42,_xlfn.LAMBDA(_xlpm.puissance,IF(_xlpm.puissance=\"\",\"\",_xlpm.puissance&\" kW\"))))","v":""},null,null,null,{"$f":"_xlfn.TEXTJOIN(\" + \",TRUE,_xlfn.MAP('Données Double Service Elec'!I45:I47,_xlfn.LAMBDA(_xlpm.puissance,IF(_xlpm.puissance=\"\",\"\",_xlpm.puissance&\" kW\"))))","v":""}]
[]
[null,"Performances estimées"]
[null,"Part PAC à la température de base",null,null,null,{"$f":"'Données Double Service Elec'!I48","v":0}]
[null,"Puissance PAC à la température de base",null,null,null,{"$f":"'Données Double Service Elec'!I49","v":0},"kW"]
[null,"Taux de couverture PAC annuel estimé",null,null,null,{"$f":"'Données Double Service Elec'!I50","v":0}]
[null,"DS part pac à Tbase",null,null,null,{"$f":"'Données Double Service Elec'!I71","v":0}]
[null,"DS part pac + appoint à Tbase",null,null,null,{"$f":"'Données Double Service Elec'!I72","v":0}]
[]
[null,"Données électriques"]
[null,"Puissance électrique max",null,null,{"$f":"'Données Double Service Elec'!I51","v":0},"kW"]
[null,"Intensité électrique max",null,null,{"$f":"'Données Double Service Elec'!I52","v":0},"A"]
[null,"Puissance apparente",null,null,{"$f":"'Données Double Service Elec'!I53","v":0},"kVA"]
[]
[null,"Données hydrauliques",null,null,null,null,"Données hydrauliques préparateur ECS"]
[null,"HMT disponible PAC",null,null,{"$f":"'Données Double Service Elec'!I56","v":0},"kPa",{"$f":"IF('Données Double Service Elec'!K2=\"Serpentin\",\"Débit serpentin préconisé\",\"Débit primaire préconisé HeatSwitch\")","v":"Débit primaire préconisé HeatSwitch"},null,null,{"$f":"'Données Double Service Elec'!I73","v":0},"m³/h"]
[null,"Diamètre préconisé des canalisations*",null,null,{"$f":"IF(AND(J17<>\"---\",J18<>\"---\"),'Données Double Service Elec'!I55,\"---\")","v":"---"},null,{"$f":"IF('Données Double Service Elec'!K2=\"Serpentin\",\"\",\"Débit secondaire préconisé HeatSwitch\")","v":"Débit secondaire préconisé HeatSwitch"},null,null,{"$f":"'Données Double Service Elec'!I74","v":0},{"$f":"IF(J78<>0,\"m³/h\",\"\")","v":""}]
[null,"Débit global PAC préconisé",null,null,{"$f":"'Données Double Service Elec'!I54","v":0},"m³/h"]
[null,"Pression maximum de service",null,null,{"$f":"'Données Double Service Elec'!I57","v":0},"bar"]
[null,"*selon la distance PAC-ballons renseignée et la HMT PAC"]
[]
[null,"Dimensions et encombrement"]
[null,"Surface nécessaire installation PAC",null,null,null,{"$f":"'Données Double Service Elec'!I58","v":0},null,"m²"]
[null,"Dimensions 1 PAC (HxLxP)",null,null,null,{"$f":"_xlfn.TEXTJOIN(\" x \", TRUE, 'Données Double Service Elec'!I59:I61)","v":""},null,"mm"]
[null,"Hauteur minimale local",null,null,null,{"$f":"'Données Double Service Elec'!I62","v":0},null,"mm"]
[null,"Largeur de passage minimale local",null,null,null,{"$f":"'Données Double Service Elec'!I63","v":0},null,"mm"]
[]
[null,"Acoustique"]
[null,"Puissance sonore\nselon EN 12 102",null,"Pour une PAC à charge partielle",null,null,{"$f":"'Données Double Service Elec'!I64","v":0},"dB(A)"]
[null,null,null,"Pour la solution à pleine charge",null,null,{"$f":"'Données Double Service Elec'!I65","v":0},"dB(A)"]
[]
[null,"Coût"]
[null,"PPHT estimé",null,null,null,{"$f":"'Données Double Service Elec'!I66","v":0},"€"]
[]
[]
[null,"Schéma de principe"]
[null,{"$f":"getSchemaDsElec","v":{"$error":"#VALUE!"}}]
[]
[]
[]
[]
[]
[]
[]
[]
[]
[]
[]
[]
[]
[]
[]
[]
[]
[]
[]
[]
[]
[]
[]
[]
[]
[null,"Caractéristiques dimensionnelles (en mm)"]
[null,{"$f":"getImageDimensionsPacDsElec","v":{"$error":"#VALUE!"}}]
[]
[]
[]
[]
[]
[]
[]
[]
[]
[]
[]
[]
[]
[]
[]
[]
[]
[]
[]
[null,null,null,null,null,{"$f":"\"\"&'Données Double Service Elec'!I35","v":""}]
[null,{"$f":"INDEX(ImageDimensionsPac!$C$3:$C$10,_xlfn.XMATCH(IFERROR(_xlfn.TEXTJOIN(\"_\",TRUE, _xlfn.TEXTBEFORE('Données Double Service Elec'!I35, \" \"),CHOOSE('Données Double Service Elec'!I37,\"S\",\"M\",\"L\",\"XL\")),\"X\"),ImageDimensionsPac!$A$3:$A$10))","v":{"$error":"#VALUE!"}}]
[]
[]
[]
[]
[]
[]
[]
[]
[]
[]
[]
[]
[]
[]
[]
[]
[]
[]
[]
[]
[]
[]
[null,"Récapitulatif des références "]
[]
[null,"Pour plus de détails sur les fournitures et services ci-dessous, veuillez consulter le catalogue ACV, disponible sur le site pro: https://www.acv.com/france/espace-professionnel"]
[]
[]
[null,"Fournitures obligatoires incluses dans le chiffrage "]
[null,"Désignation",null,null,null,"Quantité","Référence","PPHT Unitaire (€)",null,"PPHT Total (€)"]
[null,{"$f":"IF(INDIRECT(\"'Données Double Service Elec'!I\"&(ROW()-ROW(panier))*4+1+ROW('Données Double Service Elec'!panier))=0,\"\",INDIRECT(\"'Données Double Service Elec'!I\"&(ROW()-ROW(panier))*4+1+ROW('Données Double Service Elec'!panier)))","v":""},null,null,null,{"$f":"IF(B176=\"\",\"\",INDIRECT(\"'Données Double Service Elec'!I\"&(ROW()-ROW(panier))*4+3+ROW('Données Double Service Elec'!panier)))","v":""},{"$f":"IF(B176=\"\",\"\",INDIRECT(\"'Données Double Service Elec'!I\"&(ROW()-ROW(panier))*4+0+ROW('Données Double Service Elec'!panier)))","v":""},{"$f":"IF(B176=\"\",\"\",INDIRECT(\"'Données Double Service Elec'!I\"&(ROW()-ROW(panier))*4+2+ROW('Données Double Service Elec'!panier)))","v":""},null,{"$f":"IFERROR(H176*F176,\"\")","v":""}]
[null,{"$f":"IF(INDIRECT(\"'Données Double Service Elec'!I\"&(ROW()-ROW(panier))*4+1+ROW('Données Double Service Elec'!panier))=0,\"\",INDIRECT(\"'Données Double Service Elec'!I\"&(ROW()-ROW(panier))*4+1+ROW('Données Double Service Elec'!panier)))","v":""},null,null,null,{"$f":"IF(B177=\"\",\"\",INDIRECT(\"'Données Double Service Elec'!I\"&(ROW()-ROW(panier))*4+3+ROW('Données Double Service Elec'!panier)))","v":""},{"$f":"IF(B177=\"\",\"\",INDIRECT(\"'Données Double Service Elec'!I\"&(ROW()-ROW(panier))*4+0+ROW('Données Double Service Elec'!panier)))","v":""},{"$f":"IF(B177=\"\",\"\",INDIRECT(\"'Données Double Service Elec'!I\"&(ROW()-ROW(panier))*4+2+ROW('Données Double Service Elec'!panier)))","v":""},null,{"$f":"IFERROR(H177*F177,\"\")","v":""}]
[null,{"$f":"IF(INDIRECT(\"'Données Double Service Elec'!I\"&(ROW()-ROW(panier))*4+1+ROW('Données Double Service Elec'!panier))=0,\"\",INDIRECT(\"'Données Double Service Elec'!I\"&(ROW()-ROW(panier))*4+1+ROW('Données Double Service Elec'!panier)))","v":""},null,null,null,{"$f":"IF(B178=\"\",\"\",INDIRECT(\"'Données Double Service Elec'!I\"&(ROW()-ROW(panier))*4+3+ROW('Données Double Service Elec'!panier)))","v":""},{"$f":"IF(B178=\"\",\"\",INDIRECT(\"'Données Double Service Elec'!I\"&(ROW()-ROW(panier))*4+0+ROW('Données Double Service Elec'!panier)))","v":""},{"$f":"IF(B178=\"\",\"\",INDIRECT(\"'Données Double Service Elec'!I\"&(ROW()-ROW(panier))*4+2+ROW('Données Double Service Elec'!panier)))","v":""},null,""]
[null,{"$f":"IF(INDIRECT(\"'Données Double Service Elec'!I\"&(ROW()-ROW(panier))*4+1+ROW('Données Double Service Elec'!panier))=0,\"\",INDIRECT(\"'Données Double Service Elec'!I\"&(ROW()-ROW(panier))*4+1+ROW('Données Double Service Elec'!panier)))","v":""},null,null,null,{"$f":"IF(B179=\"\",\"\",INDIRECT(\"'Données Double Service Elec'!I\"&(ROW()-ROW(panier))*4+3+ROW('Données Double Service Elec'!panier)))","v":""},{"$f":"IF(B179=\"\",\"\",INDIRECT(\"'Données Double Service Elec'!I\"&(ROW()-ROW(panier))*4+0+ROW('Données Double Service Elec'!panier)))","v":""},{"$f":"IF(B179=\"\",\"\",INDIRECT(\"'Données Double Service Elec'!I\"&(ROW()-ROW(panier))*4+2+ROW('Données Double Service Elec'!panier)))","v":""},null,""]
[null,{"$f":"IF(INDIRECT(\"'Données Double Service Elec'!I\"&(ROW()-ROW(panier))*4+1+ROW('Données Double Service Elec'!panier))=0,\"\",INDIRECT(\"'Données Double Service Elec'!I\"&(ROW()-ROW(panier))*4+1+ROW('Données Double Service Elec'!panier)))","v":""},null,null,null,{"$f":"IF(B180=\"\",\"\",INDIRECT(\"'Données Double Service Elec'!I\"&(ROW()-ROW(panier))*4+3+ROW('Données Double Service Elec'!panier)))","v":""},{"$f":"IF(B180=\"\",\"\",INDIRECT(\"'Données Double Service Elec'!I\"&(ROW()-ROW(panier))*4+0+ROW('Données Double Service Elec'!panier)))","v":""},{"$f":"IF(B180=\"\",\"\",INDIRECT(\"'Données Double Service Elec'!I\"&(ROW()-ROW(panier))*4+2+ROW('Données Double Service Elec'!panier)))","v":""},null,""]
[null,{"$f":"IF(INDIRECT(\"'Données Double Service Elec'!I\"&(ROW()-ROW(panier))*4+1+ROW('Données Double Service Elec'!panier))=0,\"\",INDIRECT(\"'Données Double Service Elec'!I\"&(ROW()-ROW(panier))*4+1+ROW('Données Double Service Elec'!panier)))","v":""},null,null,null,{"$f":"IF(B181=\"\",\"\",INDIRECT(\"'Données Double Service Elec'!I\"&(ROW()-ROW(panier))*4+3+ROW('Données Double Service Elec'!panier)))","v":""},{"$f":"IF(B181=\"\",\"\",INDIRECT(\"'Données Double Service Elec'!I\"&(ROW()-ROW(panier))*4+0+ROW('Données Double Service Elec'!panier)))","v":""},{"$f":"IF(B181=\"\",\"\",INDIRECT(\"'Données Double Service Elec'!I\"&(ROW()-ROW(panier))*4+2+ROW('Données Double Service Elec'!panier)))","v":""},null,""]
[null,{"$f":"IF(INDIRECT(\"'Données Double Service Elec'!I\"&(ROW()-ROW(panier))*4+1+ROW('Données Double Service Elec'!panier))=0,\"\",INDIRECT(\"'Données Double Service Elec'!I\"&(ROW()-ROW(panier))*4+1+ROW('Données Double Service Elec'!panier)))","v":""},null,null,null,{"$f":"IF(B182=\"\",\"\",INDIRECT(\"'Données Double Service Elec'!I\"&(ROW()-ROW(panier))*4+3+ROW('Données Double Service Elec'!panier)))","v":""},{"$f":"IF(B182=\"\",\"\",INDIRECT(\"'Données Double Service Elec'!I\"&(ROW()-ROW(panier))*4+0+ROW('Données Double Service Elec'!panier)))","v":""},{"$f":"IF(B182=\"\",\"\",INDIRECT(\"'Données Double Service Elec'!I\"&(ROW()-ROW(panier))*4+2+ROW('Données Double Service Elec'!panier)))","v":""},null,""]
[null,{"$f":"IF(INDIRECT(\"'Données Double Service Elec'!I\"&(ROW()-ROW(panier))*4+1+ROW('Données Double Service Elec'!panier))=0,\"\",INDIRECT(\"'Données Double Service Elec'!I\"&(ROW()-ROW(panier))*4+1+ROW('Données Double Service Elec'!panier)))","v":""},null,null,null,{"$f":"IF(B183=\"\",\"\",INDIRECT(\"'Données Double Service Elec'!I\"&(ROW()-ROW(panier))*4+3+ROW('Données Double Service Elec'!panier)))","v":""},{"$f":"IF(B183=\"\",\"\",INDIRECT(\"'Données Double Service Elec'!I\"&(ROW()-ROW(panier))*4+0+ROW('Données Double Service Elec'!panier)))","v":""},{"$f":"IF(B183=\"\",\"\",INDIRECT(\"'Données Double Service Elec'!I\"&(ROW()-ROW(panier))*4+2+ROW('Données Double Service Elec'!panier)))","v":""},null,""]
[null,{"$f":"IF(INDIRECT(\"'Données Double Service Elec'!I\"&(ROW()-ROW(panier))*4+1+ROW('Données Double Service Elec'!panier))=0,\"\",INDIRECT(\"'Données Double Service Elec'!I\"&(ROW()-ROW(panier))*4+1+ROW('Données Double Service Elec'!panier)))","v":""},null,null,null,{"$f":"IF(B184=\"\",\"\",INDIRECT(\"'Données Double Service Elec'!I\"&(ROW()-ROW(panier))*4+3+ROW('Données Double Service Elec'!panier)))","v":""},{"$f":"IF(B184=\"\",\"\",INDIRECT(\"'Données Double Service Elec'!I\"&(ROW()-ROW(panier))*4+0+ROW('Données Double Service Elec'!panier)))","v":""},{"$f":"IF(B184=\"\",\"\",INDIRECT(\"'Données Double Service Elec'!I\"&(ROW()-ROW(panier))*4+2+ROW('Données Double Service Elec'!panier)))","v":""},null,""]
[null,{"$f":"IF(INDIRECT(\"'Données Double Service Elec'!I\"&(ROW()-ROW(panier))*4+1+ROW('Données Double Service Elec'!panier))=0,\"\",INDIRECT(\"'Données Double Service Elec'!I\"&(ROW()-ROW(panier))*4+1+ROW('Données Double Service Elec'!panier)))","v":""},null,null,null,{"$f":"IF(B185=\"\",\"\",INDIRECT(\"'Données Double Service Elec'!I\"&(ROW()-ROW(panier))*4+3+ROW('Données Double Service Elec'!panier)))","v":""},{"$f":"IF(B185=\"\",\"\",INDIRECT(\"'Données Double Service Elec'!I\"&(ROW()-ROW(panier))*4+0+ROW('Données Double Service Elec'!panier)))","v":""},{"$f":"IF(B185=\"\",\"\",INDIRECT(\"'Données Double Service Elec'!I\"&(ROW()-ROW(panier))*4+2+ROW('Données Double Service Elec'!panier)))","v":""},null,""]
[null,{"$f":"IF(INDIRECT(\"'Données Double Service Elec'!I\"&(ROW()-ROW(panier))*4+1+ROW('Données Double Service Elec'!panier))=0,\"\",INDIRECT(\"'Données Double Service Elec'!I\"&(ROW()-ROW(panier))*4+1+ROW('Données Double Service Elec'!panier)))","v":""},null,null,null,{"$f":"IF(B186=\"\",\"\",INDIRECT(\"'Données Double Service Elec'!I\"&(ROW()-ROW(panier))*4+3+ROW('Données Double Service Elec'!panier)))","v":""},{"$f":"IF(B186=\"\",\"\",INDIRECT(\"'Données Double Service Elec'!I\"&(ROW()-ROW(panier))*4+0+ROW('Données Double Service Elec'!panier)))","v":""},{"$f":"IF(B186=\"\",\"\",INDIRECT(\"'Données Double Service Elec'!I\"&(ROW()-ROW(panier))*4+2+ROW('Données Double Service Elec'!panier)))","v":""},null,""]
[null,{"$f":"IF(INDIRECT(\"'Données Double Service Elec'!I\"&(ROW()-ROW(panier))*4+1+ROW('Données Double Service Elec'!panier))=0,\"\",INDIRECT(\"'Données Double Service Elec'!I\"&(ROW()-ROW(panier))*4+1+ROW('Données Double Service Elec'!panier)))","v":""},null,null,null,{"$f":"IF(B187=\"\",\"\",INDIRECT(\"'Données Double Service Elec'!I\"&(ROW()-ROW(panier))*4+3+ROW('Données Double Service Elec'!panier)))","v":""},{"$f":"IF(B187=\"\",\"\",INDIRECT(\"'Données Double Service Elec'!I\"&(ROW()-ROW(panier))*4+0+ROW('Données Double Service Elec'!panier)))","v":""},{"$f":"IF(B187=\"\",\"\",INDIRECT(\"'Données Double Service Elec'!I\"&(ROW()-ROW(panier))*4+2+ROW('Données Double Service Elec'!panier)))","v":""},null,""]
[null,{"$f":"IF(INDIRECT(\"'Données Double Service Elec'!I\"&(ROW()-ROW(panier))*4+1+ROW('Données Double Service Elec'!panier))=0,\"\",INDIRECT(\"'Données Double Service Elec'!I\"&(ROW()-ROW(panier))*4+1+ROW('Données Double Service Elec'!panier)))","v":""},null,null,null,{"$f":"IF(B188=\"\",\"\",INDIRECT(\"'Données Double Service Elec'!I\"&(ROW()-ROW(panier))*4+3+ROW('Données Double Service Elec'!panier)))","v":""},{"$f":"IF(B188=\"\",\"\",INDIRECT(\"'Données Double Service Elec'!I\"&(ROW()-ROW(panier))*4+0+ROW('Données Double Service Elec'!panier)))","v":""},{"$f":"IF(B188=\"\",\"\",INDIRECT(\"'Données Double Service Elec'!I\"&(ROW()-ROW(panier))*4+2+ROW('Données Double Service Elec'!panier)))","v":""},null,""]
[null,{"$f":"IF(INDIRECT(\"'Données Double Service Elec'!I\"&(ROW()-ROW(panier))*4+1+ROW('Données Double Service Elec'!panier))=0,\"\",INDIRECT(\"'Données Double Service Elec'!I\"&(ROW()-ROW(panier))*4+1+ROW('Données Double Service Elec'!panier)))","v":""},null,null,null,{"$f":"IF(B189=\"\",\"\",INDIRECT(\"'Données Double Service Elec'!I\"&(ROW()-ROW(panier))*4+3+ROW('Données Double Service Elec'!panier)))","v":""},{"$f":"IF(B189=\"\",\"\",INDIRECT(\"'Données Double Service Elec'!I\"&(ROW()-ROW(panier))*4+0+ROW('Données Double Service Elec'!panier)))","v":""},{"$f":"IF(B189=\"\",\"\",INDIRECT(\"'Données Double Service Elec'!I\"&(ROW()-ROW(panier))*4+2+ROW('Données Double Service Elec'!panier)))","v":""},null,""]
[null,{"$f":"IF(INDIRECT(\"'Données Double Service Elec'!I\"&(ROW()-ROW(panier))*4+1+ROW('Données Double Service Elec'!panier))=0,\"\",INDIRECT(\"'Données Double Service Elec'!I\"&(ROW()-ROW(panier))*4+1+ROW('Données Double Service Elec'!panier)))","v":""},null,null,null,{"$f":"IF(B190=\"\",\"\",INDIRECT(\"'Données Double Service Elec'!I\"&(ROW()-ROW(panier))*4+3+ROW('Données Double Service Elec'!panier)))","v":""},null,{"$f":"IF(B190=\"\",\"\",INDIRECT(\"'Données Double Service Elec'!I\"&(ROW()-ROW(panier))*4+2+ROW('Données Double Service Elec'!panier)))","v":""},null,""]
[null,{"$f":"IF(INDIRECT(\"'Données Double Service Elec'!I\"&(ROW()-ROW(panier))*4+1+ROW('Données Double Service Elec'!panier))=0,\"\",INDIRECT(\"'Données Double Service Elec'!I\"&(ROW()-ROW(panier))*4+1+ROW('Données Double Service Elec'!panier)))","v":""},null,null,null,{"$f":"IF(B191=\"\",\"\",INDIRECT(\"'Données Double Service Elec'!I\"&(ROW()-ROW(panier))*4+3+ROW('Données Double Service Elec'!panier)))","v":""},{"$f":"IF(B191=\"\",\"\",INDIRECT(\"'Données Double Service Elec'!I\"&(ROW()-ROW(panier))*4+0+ROW('Données Double Service Elec'!panier)))","v":""},{"$f":"IF(B191=\"\",\"\",INDIRECT(\"'Données Double Service Elec'!I\"&(ROW()-ROW(panier))*4+2+ROW('Données Double Service Elec'!panier)))","v":""},null,""]
[null,{"$f":"IF(INDIRECT(\"'Données Double Service Elec'!I\"&(ROW()-ROW(panier))*4+1+ROW('Données Double Service Elec'!panier))=0,\"\",INDIRECT(\"'Données Double Service Elec'!I\"&(ROW()-ROW(panier))*4+1+ROW('Données Double Service Elec'!panier)))","v":""},null,null,null,{"$f":"IF(B192=\"\",\"\",INDIRECT(\"'Données Double Service Elec'!I\"&(ROW()-ROW(panier))*4+3+ROW('Données Double Service Elec'!panier)))","v":""},null,{"$f":"IF(B192=\"\",\"\",INDIRECT(\"'Données Double Service Elec'!I\"&(ROW()-ROW(panier))*4+2+ROW('Données Double Service Elec'!panier)))","v":""},null,""]
[null,"Total fournitures",null,null,null,null,null,null,null,{"$f":"SUM(J176:K192)","v":0}]
[null,"Total fournitures + services obligatoires (voir section service ci-dessous)",null,null,null,null,null,null,null,{"$f":"J193+IFERROR(IF(SEARCH(\"Obligatoire\",B211),J211,0),0)+IFERROR(IF(SEARCH(\"Obligatoire\",B212),J212,0),0)","v":0}]
[]
[null,"Accessoires optionnels non inclus dans le chiffrage "]
[null,"Désignation",null,null,null,"Quantité","Référence","PPHT Unitaire (€)",null,"PPHT Total (€)"]
[null,{"$f":"IF(INDIRECT(\"'Données Double Service Elec'!I\"&(ROW()-ROW(accessoires))*4+1+ROW('Données Double Service Elec'!accessoires))=0,\"\",INDIRECT(\"'Données Double Service Elec'!I\"&(ROW()-ROW(accessoires))*4+1+ROW('Données Double Service Elec'!accessoires)))","v":""},null,null,null,{"$f":"IF(B198=\"\",\"\",INDIRECT(\"'Données Double Service Elec'!I\"&(ROW()-ROW(accessoires))*4+3+ROW('Données Double Service Elec'!accessoires)))","v":""},{"$f":"IF(B198=\"\",\"\",INDIRECT(\"'Données Double Service Elec'!I\"&(ROW()-ROW(accessoires))*4+0+ROW('Données Double Service Elec'!accessoires)))","v":""},{"$f":"IF(B198=\"\",\"\",INDIRECT(\"'Données Double Service Elec'!I\"&(ROW()-ROW(accessoires))*4+2+ROW('Données Double Service Elec'!accessoires)))","v":""},null,{"$f":"IFERROR(H198*F198,\"\")","v":""}]
[null,{"$f":"IF(INDIRECT(\"'Données Double Service Elec'!I\"&(ROW()-ROW(accessoires))*4+1+ROW('Données Double Service Elec'!accessoires))=0,\"\",INDIRECT(\"'Données Double Service Elec'!I\"&(ROW()-ROW(accessoires))*4+1+ROW('Données Double Service Elec'!accessoires)))","v":""},null,null,null,{"$f":"IF(B199=\"\",\"\",INDIRECT(\"'Données Double Service Elec'!I\"&(ROW()-ROW(accessoires))*4+3+ROW('Données Double Service Elec'!accessoires)))","v":""},{"$f":"IF(B199=\"\",\"\",INDIRECT(\"'Données Double Service Elec'!I\"&(ROW()-ROW(accessoires))*4+0+ROW('Données Double Service Elec'!accessoires)))","v":""},{"$f":"IF(B199=\"\",\"\",INDIRECT(\"'Données Double Service Elec'!I\"&(ROW()-ROW(accessoires))*4+2+ROW('Données Double Service Elec'!accessoires)))","v":""},null,{"$f":"IFERROR(H199*F199,\"\")","v":""}]
[null,{"$f":"IF(INDIRECT(\"'Données Double Service Elec'!I\"&(ROW()-ROW(accessoires))*4+1+ROW('Données Double Service Elec'!accessoires))=0,\"\",INDIRECT(\"'Données Double Service Elec'!I\"&(ROW()-ROW(accessoires))*4+1+ROW('Données Double Service Elec'!accessoires)))","v":""},null,null,null,{"$f":"IF(B200=\"\",\"\",INDIRECT(\"'Données Double Service Elec'!I\"&(ROW()-ROW(accessoires))*4+3+ROW('Données Double Service Elec'!accessoires)))","v":""},{"$f":"IF(B200=\"\",\"\",INDIRECT(\"'Données Double Service Elec'!I\"&(ROW()-ROW(accessoires))*4+0+ROW('Données Double Service Elec'!accessoires)))","v":""},{"$f":"IF(B200=\"\",\"\",INDIRECT(\"'Données Double Service Elec'!I\"&(ROW()-ROW(accessoires))*4+2+ROW('Données Double Service Elec'!accessoires)))","v":""},null,""]
[null,{"$f":"IF(INDIRECT(\"'Données Double Service Elec'!I\"&(ROW()-ROW(accessoires))*4+1+ROW('Données Double Service Elec'!accessoires))=0,\"\",INDIRECT(\"'Données Double Service Elec'!I\"&(ROW()-ROW(accessoires))*4+1+ROW('Données Double Service Elec'!accessoires)))","v":""},null,null,null,{"$f":"IF(B201=\"\",\"\",INDIRECT(\"'Données Double Service Elec'!I\"&(ROW()-ROW(accessoires))*4+3+ROW('Données Double Service Elec'!accessoires)))","v":""},{"$f":"IF(B201=\"\",\"\",INDIRECT(\"'Données Double Service Elec'!I\"&(ROW()-ROW(accessoires))*4+0+ROW('Données Double Service Elec'!accessoires)))","v":""},{"$f":"IF(B201=\"\",\"\",INDIRECT(\"'Données Double Service Elec'!I\"&(ROW()-ROW(accessoires))*4+2+ROW('Données Double Service Elec'!accessoires)))","v":""},null,""]
[null,{"$f":"IF(INDIRECT(\"'Données Double Service Elec'!I\"&(ROW()-ROW(accessoires))*4+1+ROW('Données Double Service Elec'!accessoires))=0,\"\",INDIRECT(\"'Données Double Service Elec'!I\"&(ROW()-ROW(accessoires))*4+1+ROW('Données Double Service Elec'!accessoires)))","v":""},null,null,null,{"$f":"IF(B202=\"\",\"\",INDIRECT(\"'Données Double Service Elec'!I\"&(ROW()-ROW(accessoires))*4+3+ROW('Données Double Service Elec'!accessoires)))","v":""},{"$f":"IF(B202=\"\",\"\",INDIRECT(\"'Données Double Service Elec'!I\"&(ROW()-ROW(accessoires))*4+0+ROW('Données Double Service Elec'!accessoires)))","v":""},{"$f":"IF(B202=\"\",\"\",INDIRECT(\"'Données Double Service Elec'!I\"&(ROW()-ROW(accessoires))*4+2+ROW('Données Double Service Elec'!accessoires)))","v":""},null,""]
[null,{"$f":"IF(INDIRECT(\"'Données Double Service Elec'!I\"&(ROW()-ROW(accessoires))*4+1+ROW('Données Double Service Elec'!accessoires))=0,\"\",INDIRECT(\"'Données Double Service Elec'!I\"&(ROW()-ROW(accessoires))*4+1+ROW('Données Double Service Elec'!accessoires)))","v":""},null,null,null,{"$f":"IF(B203=\"\",\"\",INDIRECT(\"'Données Double Service Elec'!I\"&(ROW()-ROW(accessoires))*4+3+ROW('Données Double Service Elec'!accessoires)))","v":""},{"$f":"IF(B203=\"\",\"\",INDIRECT(\"'Données Double Service Elec'!I\"&(ROW()-ROW(accessoires))*4+0+ROW('Données Double Service Elec'!accessoires)))","v":""},{"$f":"IF(B203=\"\",\"\",INDIRECT(\"'Données Double Service Elec'!I\"&(ROW()-ROW(accessoires))*4+2+ROW('Données Double Service Elec'!accessoires)))","v":""},null,""]
[null,{"$f":"IF(INDIRECT(\"'Données Double Service Elec'!I\"&(ROW()-ROW(accessoires))*4+1+ROW('Données Double Service Elec'!accessoires))=0,\"\",INDIRECT(\"'Données Double Service Elec'!I\"&(ROW()-ROW(accessoires))*4+1+ROW('Données Double Service Elec'!accessoires)))","v":""},null,null,null,{"$f":"IF(B204=\"\",\"\",INDIRECT(\"'Données Double Service Elec'!I\"&(ROW()-ROW(accessoires))*4+3+ROW('Données Double Service Elec'!accessoires)))","v":""},{"$f":"IF(B204=\"\",\"\",INDIRECT(\"'Données Double Service Elec'!I\"&(ROW()-ROW(accessoires))*4+0+ROW('Données Double Service Elec'!accessoires)))","v":""},{"$f":"IF(B204=\"\",\"\",INDIRECT(\"'Données Double Service Elec'!I\"&(ROW()-ROW(accessoires))*4+2+ROW('Données Double Service Elec'!accessoires)))","v":""},null,""]
[null,{"$f":"IF(INDIRECT(\"'Données Double Service Elec'!I\"&(ROW()-ROW(accessoires))*4+1+ROW('Données Double Service Elec'!accessoires))=0,\"\",INDIRECT(\"'Données Double Service Elec'!I\"&(ROW()-ROW(accessoires))*4+1+ROW('Données Double Service Elec'!accessoires)))","v":""},null,null,null,{"$f":"IF(B205=\"\",\"\",INDIRECT(\"'Données Double Service Elec'!I\"&(ROW()-ROW(accessoires))*4+3+ROW('Données Double Service Elec'!accessoires)))","v":""},{"$f":"IF(B205=\"\",\"\",INDIRECT(\"'Données Double Service Elec'!I\"&(ROW()-ROW(accessoires))*4+0+ROW('Données Double Service Elec'!accessoires)))","v":""},{"$f":"IF(B205=\"\",\"\",INDIRECT(\"'Données Double Service Elec'!I\"&(ROW()-ROW(accessoires))*4+2+ROW('Données Double Service Elec'!accessoires)))","v":""},null,""]
[null,{"$f":"IF(INDIRECT(\"'Données Double Service Elec'!I\"&(ROW()-ROW(accessoires))*4+1+ROW('Données Double Service Elec'!accessoires))=0,\"\",INDIRECT(\"'Données Double Service Elec'!I\"&(ROW()-ROW(accessoires))*4+1+ROW('Données Double Service Elec'!accessoires)))","v":""},null,null,null,{"$f":"IF(B206=\"\",\"\",INDIRECT(\"'Données Double Service Elec'!I\"&(ROW()-ROW(accessoires))*4+3+ROW('Données Double Service Elec'!accessoires)))","v":""},{"$f":"IF(B206=\"\",\"\",INDIRECT(\"'Données Double Service Elec'!I\"&(ROW()-ROW(accessoires))*4+0+ROW('Données Double Service Elec'!accessoires)))","v":""},{"$f":"IF(B206=\"\",\"\",INDIRECT(\"'Données Double Service Elec'!I\"&(ROW()-ROW(accessoires))*4+2+ROW('Données Double Service Elec'!accessoires)))","v":""},null,""]
[null,{"$f":"IF(INDIRECT(\"'Données Double Service Elec'!I\"&(ROW()-ROW(accessoires))*4+1+ROW('Données Double Service Elec'!accessoires))=0,\"\",INDIRECT(\"'Données Double Service Elec'!I\"&(ROW()-ROW(accessoires))*4+1+ROW('Données Double Service Elec'!accessoires)))","v":""},null,null,null,{"$f":"IF(B207=\"\",\"\",INDIRECT(\"'Données Double Service Elec'!I\"&(ROW()-ROW(accessoires))*4+3+ROW('Données Double Service Elec'!accessoires)))","v":""},{"$f":"IF(B207=\"\",\"\",INDIRECT(\"'Données Double Service Elec'!I\"&(ROW()-ROW(accessoires))*4+0+ROW('Données Double Service Elec'!accessoires)))","v":""},{"$f":"IF(B207=\"\",\"\",INDIRECT(\"'Données Double Service Elec'!I\"&(ROW()-ROW(accessoires))*4+2+ROW('Données Double Service Elec'!accessoires)))","v":""},null,""]
[]
[null,"Services"]
[null,"Désignation",null,null,null,"Quantité","Référence","PPHT Unitaire (€)",null,"PPHT Total (€)"]
[null,{"$f":"IF(INDIRECT(\"'Données Double Service Elec'!I\"&(ROW()-ROW(services))*4+1+ROW('Données Double Service Elec'!services))=0,\"\",INDIRECT(\"'Données Double Service Elec'!I\"&(ROW()-ROW(services))*4+1+ROW('Données Double Service Elec'!services)))&IF(OR(INDIRECT(\"'Données Double Service Elec'!I\"&(ROW()-ROW(services))*4+0+ROW('Données Double Service Elec'!services))=\"880620\",INDIRECT(\"'Données Double Service Elec'!I\"&(ROW()-ROW(services))*4+0+ROW('Données Double Service Elec'!services))=\"880320\",INDIRECT(\"'Données Double Service Elec'!I\"&(ROW()-ROW(services))*4+0+ROW('Données Double Service Elec'!services))=\"880720\"),\" (Obligatoire)\",\"\")","v":""},null,null,null,{"$f":"IF(B211=\"\",\"\",INDIRECT(\"'Données Double Service Elec'!I\"&(ROW()-ROW(services))*4+3+ROW('Données Double Service Elec'!services)))","v":""},{"$f":"IF(B211=\"\",\"\",INDIRECT(\"'Données Double Service Elec'!I\"&(ROW()-ROW(services))*4+0+ROW('Données Double Service Elec'!services)))","v":""},{"$f":"IF(B211=\"\",\"\",INDIRECT(\"'Données Double Service Elec'!I\"&(ROW()-ROW(services))*4+2+ROW('Données Double Service Elec'!services)))","v":""},null,{"$f":"IFERROR(H211*F211,\"\")","v":""}]
[null,{"$f":"IF(INDIRECT(\"'Données Double Service Elec'!I\"&(ROW()-ROW(services))*4+1+ROW('Données Double Service Elec'!services))=0,\"\",INDIRECT(\"'Données Double Service Elec'!I\"&(ROW()-ROW(services))*4+1+ROW('Données Double Service Elec'!services)))&IF(OR(INDIRECT(\"'Données Double Service Elec'!I\"&(ROW()-ROW(services))*4+0+ROW('Données Double Service Elec'!services))=\"880621\",INDIRECT(\"'Données Double Service Elec'!I\"&(ROW()-ROW(services))*4+0+ROW('Données Double Service Elec'!services))=\"880321\"),\" (Obligatoire)\",\"\")","v":""},null,null,null,{"$f":"IF(B212=\"\",\"\",INDIRECT(\"'Données Double Service Elec'!I\"&(ROW()-ROW(services))*4+3+ROW('Données Double Service Elec'!services)))","v":""},{"$f":"IF(B212=\"\",\"\",INDIRECT(\"'Données Double Service Elec'!I\"&(ROW()-ROW(services))*4+0+ROW('Données Double Service Elec'!services)))","v":""},{"$f":"IF(B212=\"\",\"\",INDIRECT(\"'Données Double Service Elec'!I\"&(ROW()-ROW(services))*4+2+ROW('Données Double Service Elec'!services)))","v":""},null,{"$f":"IFERROR(H212*F212,\"\")","v":""}]
[null,{"$f":"IF(INDIRECT(\"'Données Double Service Elec'!I\"&(ROW()-ROW(services))*4+1+ROW('Données Double Service Elec'!services))=0,\"\",INDIRECT(\"'Données Double Service Elec'!I\"&(ROW()-ROW(services))*4+1+ROW('Données Double Service Elec'!services)))","v":""},null,null,null,{"$f":"IF(B213=\"\",\"\",INDIRECT(\"'Données Double Service Elec'!I\"&(ROW()-ROW(services))*4+3+ROW('Données Double Service Elec'!services)))","v":""},{"$f":"IF(B213=\"\",\"\",INDIRECT(\"'Données Double Service Elec'!I\"&(ROW()-ROW(services))*4+0+ROW('Données Double Service Elec'!services)))","v":""},{"$f":"IF(B213=\"\",\"\",INDIRECT(\"'Données Double Service Elec'!I\"&(ROW()-ROW(services))*4+2+ROW('Données Double Service Elec'!services)))","v":""},null,""]
[null,{"$f":"IF(INDIRECT(\"'Données Double Service Elec'!I\"&(ROW()-ROW(services))*4+1+ROW('Données Double Service Elec'!services))=0,\"\",INDIRECT(\"'Données Double Service Elec'!I\"&(ROW()-ROW(services))*4+1+ROW('Données Double Service Elec'!services)))","v":""},null,null,null,{"$f":"IF(B214=\"\",\"\",INDIRECT(\"'Données Double Service Elec'!I\"&(ROW()-ROW(services))*4+3+ROW('Données Double Service Elec'!services)))","v":""},{"$f":"IF(B214=\"\",\"\",INDIRECT(\"'Données Double Service Elec'!I\"&(ROW()-ROW(services))*4+0+ROW('Données Double Service Elec'!services)))","v":""},{"$f":"IF(B214=\"\",\"\",INDIRECT(\"'Données Double Service Elec'!I\"&(ROW()-ROW(services))*4+2+ROW('Données Double Service Elec'!services)))","v":""},null,""]
[null,{"$f":"IF(INDIRECT(\"'Données Double Service Elec'!I\"&(ROW()-ROW(services))*4+1+ROW('Données Double Service Elec'!services))=0,\"\",INDIRECT(\"'Données Double Service Elec'!I\"&(ROW()-ROW(services))*4+1+ROW('Données Double Service Elec'!services)))","v":""},null,null,null,{"$f":"IF(B215=\"\",\"\",INDIRECT(\"'Données Double Service Elec'!I\"&(ROW()-ROW(services))*4+3+ROW('Données Double Service Elec'!services)))","v":""},{"$f":"IF(B215=\"\",\"\",INDIRECT(\"'Données Double Service Elec'!I\"&(ROW()-ROW(services))*4+0+ROW('Données Double Service Elec'!services)))","v":""},{"$f":"IF(B215=\"\",\"\",INDIRECT(\"'Données Double Service Elec'!I\"&(ROW()-ROW(services))*4+2+ROW('Données Double Service Elec'!services)))","v":""},null,""]
[null,{"$f":"IF(INDIRECT(\"'Données Double Service Elec'!I\"&(ROW()-ROW(services))*4+1+ROW('Données Double Service Elec'!services))=0,\"\",INDIRECT(\"'Données Double Service Elec'!I\"&(ROW()-ROW(services))*4+1+ROW('Données Double Service Elec'!services)))","v":""},null,null,null,{"$f":"IF(B216=\"\",\"\",INDIRECT(\"'Données Double Service Elec'!I\"&(ROW()-ROW(services))*4+3+ROW('Données Double Service Elec'!services)))","v":""},{"$f":"IF(B216=\"\",\"\",INDIRECT(\"'Données Double Service Elec'!I\"&(ROW()-ROW(services))*4+0+ROW('Données Double Service Elec'!services)))","v":""},{"$f":"IF(B216=\"\",\"\",INDIRECT(\"'Données Double Service Elec'!I\"&(ROW()-ROW(services))*4+2+ROW('Données Double Service Elec'!services)))","v":""},null,""]

{"sheet":"Tutoriel ECS","index":10,"n_rows":77,"n_cols":6,"rows_kept":77,"cut":false,"hidden":false,"merged":[[1,2,2,7],[25,3,26,16],[4,1,4,9],[7,1,7,2],[9,1,9,2],[12,3,13,16],[14,3,15,16],[17,1,17,2],[17,3,18,16],[19,3,20,16],[22,1,22,2],[22,3,22,16],[10,3,11,16],[29,3,29,16],[30,3,30,16],[37,5,38,16],[41,3,41,16],[61,4,62,16],[70,4,71,16],[47,4,48,16],[51,1,51,2],[52,1,52,2],[53,4,54,16],[55,4,55,16]]}
[]
[null,null,"Tutoriel interface Eau Chaude Sanitaire"]
[]
[]
[null,"Utilisez cette interface afin de dimensionner votre projet ECS 100% électrique en plusieurs étapes:"]
[]
["1)","Paramétrez votre étude en remplissant les différents champs de données d'entrées:"]
[null,"Référence de l'étude",null,"Donnez un nom à votre étude, celui-ci sera le nom du document généré à l'issue de l'étude"]
[]
[null,"Localisation",null,"Indiquez la station météo la plus proche de votre projet, vous pouvez ensuite ajuster l'altitude ou directement la température extérieure de base"]
[null,null,null,"Choisissez si vous voulez appliquer un traitement anti-corrosion à la PAC. Si vous choisissez un dimensionnement en Izea 65, notez que le traitement anti-corosion est de série sur cette machine."]
[]
[null,null,null,"Pour certaines stations météo vous devrez indiquer si vous vous trouvez dans une zone montagne ou bord de mer: cela applique automatiquement un facteur correctif sur les performances de la PAC"]
[]
[null,null,null,"Indiquez la température extérieure maximale atteinte à l'emplacement où la PAC sera installée, en été. Ce paramètre impacte la production d'ECS en été et devra être compris entre 35 et 40°C."]
[]
[]
[null,"Installation",null,"Indiquez les distances entre la PAC et le batiment et entre la PAC et le ballon, afin d'estimer le volume primaire contenu dans les canalisations. Si vous ne les connaissez pas, des valeurs par défaut sont initialisées"]
[]
[null,null,null,"Si vous avez des contraintes de tailles (hauteur sous plafond, passage de porte etc) veuillez les indiquer dans le champs contraintes chaufferie. Le volume primaire de votre solution sera, si possible, adapté à ces contraintes."]
[]
[]
[null,"Besoin ECS",null,"Paramétrez votre batiment en indiquant le type parmis logements privés, sociaux ou senior et sa typologie. Le nombre total de logement est ensuite calculé automoatiquement."]
[null,null,null,"Indiquez la température minimale d'eau froide ainsi que les pertes thermiques du bouclage"]
[null,null,null,"Le volume journalier (en litres à 60°C) est aussi calculé automatiquement"]
[null,null,null,"Indiquez si la PAC doit prendre en charge les cycles anti-légionnelles. Si oui, précisez ensuite la consigne du cycle anti-légionnelles. Notez que pour une consigne suppérieure à 60°C, le cycle anti-légionnelle nécessitera l'usage d'un appoint supplémentaire."]
[]
[]
["2)","Déterminez le préparateur ECS, en cliquant sur le bouton prévu à cet effet"]
[null,null,null,"Choisissez ensuite dans la liste déroulante le préparateur ECS qui correspond le mieux à votre étude avant de générer des solutions."]
[null,null,null,"Attention, si vous modifiez les paramètres ECS après avoir appuyé sur \"Déterminer le préparateur ECS\", veuillez rappuyer sur ce même bouton."]
[]
["3)","Choisissez votre objectif de dimensionnement"]
[null,"Faites votre choix parmi 2 types de dimensionnement:"]
[null,"Un dimensionnement avec appoint électrique:",null,null,null,"Dimensionnement avec un appoint, pouvant permettre de limiter le nombre de PAC et ainsi le coût total de fourniture par rapport à une solution sans appoint."]
[null,"Un dimensionnement sans appoint électrique:",null,null,null,"Dimensionnement sans appoint, 100% thermodynamique, ou avec le minimum d'appoint pour les régions avec une Température de base très basse."]
[]
[null,"Préférence PAC (facultatif):",null,null,null,"Choisissez une PAC dans la liste déroulante. Un dimensionnement vous sera proposé avec cette dernière, si le paramétrage de l'étude le permet, dans la 3ème colonne des résultats."]
[]
[]
["4)","Générez des solutions, en cliquant sur le bouton prévu à cet effet"]
[null,null,null,"Attention, si vous modifiez les paramètres de l'étude après avoir généré des solutions, veuillez rappuyer sur \"générer des solutions\"."]
[]
["5)","Identifiez la solution la plus adaptée à votre projet: "]
[null,"Faites votre choix parmi 3 solutions complètes:"]
[null,"La solution la plus économique:",null,null,"Solution la moins chère en termes de coûts de fourniture."]
[null,"La solution la moins encombrante",null,null,"Solution occupant le moins de place en extérieur (surface PAC + dégagements). Cette solution peut parfois être la même que la solution « la + économique »."]
[null,"La solution choix PAC utilisateur",null,null,"Solution \"la plus économique\", avec la PAC sélectionnée dans l'onglet \"préférence PAC\". Attention, il est possible qu'il n'existe pas de solution dans cette colonne si le choix de la PAC n'est pas adapté à l'étude renseignée."]
[]
[]
[null,"Accédez à de nombreuses données techniques sur les solutions proposées:"]
[null,"PAC",null,null,"Choix de la PAC et nombre"]
[null,"Appoint électrique total",null,null,"Somme des appoints électriques dimensionnés, voir dans les trois lignes en dessous leur répartition dans les différents ballons"]
[null,"Ballons de charge / supplémentaires",null,null,"Possibilité de solutions jusqu’à 3 ballons :ballon de charge 1 et 2 et ballon supplémentaire. Description dans la ligne inférieure de la répartition des appoints électriques."]
[]
[null,"Ballon préparateur et stockage ECS",null,null,"Retrouvez le(s) ballon(s) préparateur et de stockage ECS que vous avez choisi."]
[]
[null,"Part PAC à Tbase (ECS)",null,null,"Part PAC à Tbase de la solution correspondante, pour le poste ECS"]
[null,"Puissance totale PAC à Tbase",null,null,"Puissance calorifique totale à Tbase de la solution"]
[]
[null,"Données électriques",null,null,"Puissance et intensité électrique max associées à la solution: PAC + Appoint(s) électrique(s). "]
[null,null,null,null,"Puissance apparente associée à la solution (seulement PAC + appoint). Permet de donner une indication sur la possibilité ou non pour le client d’un tarif bleu. Un message s’affiche lorsque le tarif bleu est jugé possible, sur la base des données PAC et appoints."]
[]
[null,"Données hydrauliques",null,null,"Débit PAC préconisé de la solution, Diamètre des canalisations préconisé entre la/les PAC et le ballon. Hauteur manométrique disponible pour la solution "]
[null,null,null,null,"Pression maximale: Attention: la pression maximale est de 6 bar pour Izea châssis M, L et XL. La pression max est de 3 bar pour Izea châssis S."]
[]
[null,"Données dimensionnelles",null,null,"Surface nécessaire à l’installation PAC, dimensions pour 1 PAC, hauteur et diamètre du plus gros ballon"]
[]
[null,"Données acoustiques",null,null,"Puissance sonore pour la solution PAC à pleine charge et puissance sonore pour une PAC à charge partielle, selon la norme EN 12102"]
[]
[null,"Coût",null,null,"Prix Public Hors Taxe de la solution choisie. Il s’agit d’une enveloppe qui comprend le prix du système PAC + ballon(s) primaire(s) + ballon prépérateur + appoint(s) + système de régulation et accessoires obligatoires. Le devis final peut légèrement différer de cette enveloppe."]
[]
[]
["6)","Cliquez sur \"générer étude de prédimensionnement\" afin d'être redirigé vers la synthèse de l'étude"]
[null,"Vous retrouverez sur cette onglet un récapitulatif de votre étude ainsi qu'un schéma de principe de votre solution PAC et les dimensions de la PAC sélectionnée."]
[]
["7)","Cliquez sur \"télecharger le rapport\" si vous souhaitez sauvegarder votre étude sur votre PC"]

{"sheet":"ECS","index":11,"n_rows":144,"n_cols":22,"rows_kept":144,"cut":false,"hidden":false,"merged":[[69,15,70,18],[25,2,25,5],[25,6,25,8],[25,17,25,18],[27,2,27,5],[27,6,27,8],[27,17,27,18],[19,6,19,8],[19,17,19,18],[21,2,21,5],[21,6,21,8],[21,17,21,18],[23,2,23,5],[23,6,23,8],[35,12,37,14],[38,12,38,14],[35,17,35,18],[34,4,34,6],[49,11,49,13],[55,3,55,4],[54,3,54,4],[60,8,60,10],[60,11,60,13],[57,3,57,4],[0,7,1,15],[8,5,8,17],[17,6,17,8],[17,17,17,18],[66,4,67,8],[66,15,67,18],[46,11,46,13],[47,5,47,7],[47,8,47,10],[47,11,47,13],[45,5,45,7],[45,8,45,10],[45,11,45,13],[40,12,42,15],[50,11,50,13],[51,5,51,7],[51,8,51,10],[51,11,51,13],[48,5,48,7],[48,8,48,10],[48,11,48,13],[49,5,49,7],[49,8,49,10],[60,5,60,7],[58,19,59,19],[54,5,54,7],[54,8,54,10],[54,11,54,13],[52,5,52,7],[52,8,52,10],[52,11,52,13],[53,5,53,7],[53,8,53,10],[53,11,53,13],[58,16,59,18],[57,11,57,13],[58,5,58,7],[58,8,58,10],[58,11,58,13],[55,5,55,7],[55,8,55,10],[55,11,55,13],[56,5,56,7],[56,8,56,10],[56,11,56,13],[59,11,59,13],[93,8,93,11],[93,13,93,16],[93,18,93,21],[94,8,94,11],[94,13,94,16],[94,18,94,21],[74,3,74,19],[81,1,81,21],[89,9,89,10],[89,14,89,15],[89,19,89,20],[99,18,99,21],[101,8,101,11],[101,13,101,16],[101,18,101,21],[96,8,96,11],[96,13,96,16],[96,18,96,21],[98,8,98,11],[98,13,98,16],[98,18,98,21],[99,8,99,11],[99,13,99,16],[109,30,109,31],[103,8,103,11],[103,13,103,16],[103,18,103,21],[105,8,105,11],[105,13,105,16],[105,18,105,21],[111,3,111,6],[121,3,121,6],[109,3,109,6],[143,4,144,6],[143,8,144,9],[143,10,144,10],[143,13,144,14],[133,13,133,15],[133,18,133,20],[135,3,135,6],[137,3,137,6],[139,2,139,6],[133,3,133,6],[133,8,133,10],[143,7,144,7],[143,15,144,15],[143,18,144,19],[143,20,144,20],[140,3,140,6],[141,2,141,6],[125,3,125,6],[127,3,127,6],[129,3,129,6],[131,3,131,6],[122,3,124,6],[123,9,123,10],[123,14,123,15],[123,19,123,20],[118,3,119,6],[118,7,119,7],[119,8,119,11],[119,13,119,16],[119,18,119,21],[58,3,58,4],[59,3,59,4],[60,3,60,4],[69,3,70,5],[69,7,70,10],[45,3,45,4],[46,3,46,4],[47,3,47,4],[48,3,48,4],[49,3,49,4],[50,3,50,4],[51,3,51,4],[52,3,52,4],[53,3,53,4],[59,5,59,7],[59,8,59,10],[57,5,57,7],[57,8,57,10],[50,5,50,7],[50,8,50,10],[46,5,46,7],[46,8,46,10],[56,3,56,4],[47,16,48,17],[47,18,48,19],[41,17,41,18],[39,17,39,18],[42,7,42,9],[42,1,42,4],[34,8,34,10],[45,14,46,14],[36,1,36,4],[38,1,38,4],[40,1,40,4],[36,6,36,9],[38,6,38,9],[40,6,40,9],[34,13,34,15],[39,1,39,5]]}
[null,null,null,null,null,null,null,"APPLICATION ECS"]
[]
[]
[null,null,null," "]
[]
[]
[]
[]
[null,null,null,null,null,"Référence"]
[]
[]
[]
[]
[]
[]
[]
[]
[null,null,"Ville",null,null,null,"01 - AMBERIEU",null,null,null,null,null,null,"Distance PAC / ballon",null,null,null,null,null,"m"]
[]
[null,null,"Altitude",null,null,null,250,null,null,"m",null,null,null,"Distance PAC / Bâtiment",null,null,null,null,null,"m"]
[]
[null,null,"T° extérieure de base (Tbase)",null,null,null,-11,null,null,"°C"]
[]
[null,null,"T° extérieure maximale été",null,null,null,35,null,null,"°C",null,null,null,"Contraintes local technique / accès (si connues)"]
[]
[null,null,"Traitement Anti Corrosion",null,null,null,"Non",null,null,null,null,null,null,"Hauteur sous plafond",null,null,null,null,null,"mm"]
[]
[null,null,{"$f":"IF(VLOOKUP(G18,'Validation des Données'!A3:B174,2,FALSE)=0,\"\",VLOOKUP(G18,'Validation des Données'!A3:B174,2,FALSE))","v":""},null,null,null,null,null,null,null,null,null,null,"Largeur de passage",null,null,null,null,null,"mm"]
[]
[]
[]
[]
[]
[null,null,null,null,null,null,null,null,null,null,null,null,null,null,null,null,null,"Estimation des besoins ECS:"]
[null,null,null,"Bâtiment : ","Logements",null,null,"Type : ",null,null,null,null,null,"Anti-légionelle"]
[null,null,null,null,null,null,null,null,null,null,null,null,"Prise en charge cycle anti-légionnelle",null,null,null,null,{"$f":"IF(applicatif='Validation des Données'!$AF$1,\"\",\"Volume journalier\")","v":"Volume journalier"},null,{"$f":"IF(applicatif='Validation des Données'!$AF$1,\"\",IF('Données ECS ECS'!H2=\"\",\"\",'Données ECS ECS'!H2))","v":""},{"$f":"IF(applicatif='Validation des Données'!$AF$1,\"\",\"litres à 60°C\")","v":"litres à 60°C"}]
[null,{"$f":"IF('Données ECS ECS'!N2=\"\",\"\",'Données ECS ECS'!N2)","v":""},null,null,null,null,{"$f":"IF('Données ECS ECS'!N5=\"\",\"\",'Données ECS ECS'!N5)","v":""},null,null,null,null,null,null,null,null,"Non"]
[null,null,null,null,null,null,null,null,null,null,null,null,null,null,null,null,null,"Volume plurihoraire",null,{"$f":"IF('Données ECS ECS'!H4=\"\",\"\",'Données ECS ECS'!H4)","v":""},"litres à 60°C"]
[null,{"$f":"IF('Données ECS ECS'!N3=\"\",\"\",'Données ECS ECS'!N3)","v":""},null,null,null,null,{"$f":"IF('Données ECS ECS'!N6=\"\",\"\",'Données ECS ECS'!N6)","v":""},null,null,null,null,null,"Consigne anti-légionnelle",null,null,"60°C / 1h"]
[null,{"$f":"IF(B39=\"Nombre de personnes par match\",_xlfn.SWITCH(sous_applicatif,\"Stade de football\",\"2 matchs par jour espacés de 105 min\",\"Stade de rugby\",\"2 matchs par jour espacés de 90 min\",\"\"),IF(B39=\"Nombre de personnes en simultané\",\"2 activités sportives par jour espacées de 60 min\",\"\"))","v":""},null,null,null,null,null,null,null,null,null,null,null,null,null,null,null,"Durée plurihoraire",null,{"$f":"IF('Données ECS ECS'!H5=\"\",\"\",'Données ECS ECS'!H5/60/24)","v":""},"hh:mm"]
[null,{"$f":"IF('Données ECS ECS'!N4=\"\",\"\",'Données ECS ECS'!N4)","v":""},null,null,null,null,{"$f":"IF('Données ECS ECS'!N7=\"\",\"\",'Données ECS ECS'!N7)","v":""},null,null,null,null,null,"Pour ces températures de consigne, le cycle anti-légionnelle nécessitera l'usage d'un appoint supplémentaire"]
[null,null,null,null,null,null,null,null,null,null,null,null,null,null,null,null,null,{"$f":"IF(applicatif='Validation des Données'!$AF$1,\"\",\"Volume 10min\")","v":"Volume 10min"},null,{"$f":"IF(applicatif='Validation des Données'!$AF$1,\"\",IF('Données ECS ECS'!H3=\"\",\"\",'Données ECS ECS'!H3))","v":""},{"$f":"IF(applicatif='Validation des Données'!$AF$1,\"\",\"litres à 60°C\")","v":"litres à 60°C"}]
[null,"Température minimale d'eau froide",null,null,null,10,"°C","Pertes thermiques du bouclage",null,null,null,"kW"]
[]
[]
[null,null,"Solution","Puissance ECS nécessaire",null,"Production ECS",null,null,"Ballon stockage ECS 1",null,null,"Ballon stockage ECS 2"]
[null,null,{"$f":"IF(D47<>\"\",ROW()-ROW($C$46),\"\")","v":""},{"$f":"IF('Données ECS ECS'!G19=\"\",IF('Données ECS ECS'!F19=\"\",\"\",ROUNDUP('Données ECS ECS'!F19,0)&\" kW\"),ROUNDUP('Données ECS ECS'!G19,0)&\" kW\")","v":""},null,{"$f":"IF('Données ECS ECS'!C19=\"\",\"\",INDEX('Informations Devis'!$B$5:$B$10001,MATCH('Données ECS ECS'!C19&\"\",'Informations Devis'!$A$5:$A$10001,0)))","v":""},null,null,{"$f":"IF('Données ECS ECS'!D19=\"\",\"\",INDEX('Informations Devis'!$C$5:$C$10001,MATCH('Données ECS ECS'!D19&\"\",'Informations Devis'!$A$5:$A$10001,0)))","v":""},null,null,{"$f":"IF('Données ECS ECS'!E19=\"\",\"\",INDEX('Informations Devis'!$C$5:$C$10001,MATCH('Données ECS ECS'!E19&\"\",'Informations Devis'!$A$5:$A$10001,0)))","v":""}]
[null,null,{"$f":"IF(D48<>\"\",ROW()-ROW($C$46),\"\")","v":""},{"$f":"IF('Données ECS ECS'!G20=\"\",IF('Données ECS ECS'!F20=\"\",\"\",ROUNDUP('Données ECS ECS'!F20,0)&\" kW\"),ROUNDUP('Données ECS ECS'!G20,0)&\" kW\")","v":""},null,{"$f":"IF('Données ECS ECS'!C20=\"\",\"\",INDEX('Informations Devis'!$B$5:$B$10001,MATCH('Données ECS ECS'!C20&\"\",'Informations Devis'!$A$5:$A$10001,0)))","v":""},null,null,{"$f":"IF('Données ECS ECS'!D20=\"\",\"\",INDEX('Informations Devis'!$C$5:$C$10001,MATCH('Données ECS ECS'!D20&\"\",'Informations Devis'!$A$5:$A$10001,0)))","v":""},null,null,{"$f":"IF('Données ECS ECS'!E20=\"\",\"\",INDEX('Informations Devis'!$C$5:$C$10001,MATCH('Données ECS ECS'!E20&\"\",'Informations Devis'!$A$5:$A$10001,0)))","v":""},null,null,null,null,"Production ECS : ",null,"Serpentin"]
[null,null,"",{"$f":"IF('Données ECS ECS'!G21=\"\",IF('Données ECS ECS'!F21=\"\",\"\",ROUNDUP('Données ECS ECS'!F21,0)&\" kW\"),ROUNDUP('Données ECS ECS'!G21,0)&\" kW\")","v":""},null,{"$f":"IF('Données ECS ECS'!C21=\"\",\"\",INDEX('Informations Devis'!$B$5:$B$10001,MATCH('Données ECS ECS'!C21&\"\",'Informations Devis'!$A$5:$A$10001,0)))","v":""},null,null,{"$f":"IF('Données ECS ECS'!D21=\"\",\"\",INDEX('Informations Devis'!$C$5:$C$10001,MATCH('Données ECS ECS'!D21&\"\",'Informations Devis'!$A$5:$A$10001,0)))","v":""},null,null,{"$f":"IF('Données ECS ECS'!E21=\"\",\"\",INDEX('Informations Devis'!$C$5:$C$10001,MATCH('Données ECS ECS'!E21&\"\",'Informations Devis'!$A$5:$A$10001,0)))","v":""}]
[null,null,"",{"$f":"IF('Données ECS ECS'!G22=\"\",IF('Données ECS ECS'!F22=\"\",\"\",ROUNDUP('Données ECS ECS'!F22,0)&\" kW\"),ROUNDUP('Données ECS ECS'!G22,0)&\" kW\")","v":""},null,{"$f":"IF('Données ECS ECS'!C22=\"\",\"\",INDEX('Informations Devis'!$B$5:$B$10001,MATCH('Données ECS ECS'!C22&\"\",'Informations Devis'!$A$5:$A$10001,0)))","v":""},null,null,{"$f":"IF('Données ECS ECS'!D22=\"\",\"\",INDEX('Informations Devis'!$C$5:$C$10001,MATCH('Données ECS ECS'!D22&\"\",'Informations Devis'!$A$5:$A$10001,0)))","v":""},null,null,{"$f":"IF('Données ECS ECS'!E22=\"\",\"\",INDEX('Informations Devis'!$C$5:$C$10001,MATCH('Données ECS ECS'!E22&\"\",'Informations Devis'!$A$5:$A$10001,0)))","v":""}]
[null,null,"",{"$f":"IF('Données ECS ECS'!G23=\"\",IF('Données ECS ECS'!F23=\"\",\"\",ROUNDUP('Données ECS ECS'!F23,0)&\" kW\"),ROUNDUP('Données ECS ECS'!G23,0)&\" kW\")","v":""},null,{"$f":"IF('Données ECS ECS'!C23=\"\",\"\",INDEX('Informations Devis'!$B$5:$B$10001,MATCH('Données ECS ECS'!C23&\"\",'Informations Devis'!$A$5:$A$10001,0)))","v":""},null,null,{"$f":"IF('Données ECS ECS'!D23=\"\",\"\",INDEX('Informations Devis'!$C$5:$C$10001,MATCH('Données ECS ECS'!D23&\"\",'Informations Devis'!$A$5:$A$10001,0)))","v":""},null,null,{"$f":"IF('Données ECS ECS'!E23=\"\",\"\",INDEX('Informations Devis'!$C$5:$C$10001,MATCH('Données ECS ECS'!E23&\"\",'Informations Devis'!$A$5:$A$10001,0)))","v":""}]
[null,null,"",{"$f":"IF('Données ECS ECS'!G24=\"\",IF('Données ECS ECS'!F24=\"\",\"\",ROUNDUP('Données ECS ECS'!F24,0)&\" kW\"),ROUNDUP('Données ECS ECS'!G24,0)&\" kW\")","v":""},null,{"$f":"IF('Données ECS ECS'!C24=\"\",\"\",INDEX('Informations Devis'!$B$5:$B$10001,MATCH('Données ECS ECS'!C24&\"\",'Informations Devis'!$A$5:$A$10001,0)))","v":""},null,null,{"$f":"IF('Données ECS ECS'!D24=\"\",\"\",INDEX('Informations Devis'!$C$5:$C$10001,MATCH('Données ECS ECS'!D24&\"\",'Informations Devis'!$A$5:$A$10001,0)))","v":""},null,null,{"$f":"IF('Données ECS ECS'!E24=\"\",\"\",INDEX('Informations Devis'!$C$5:$C$10001,MATCH('Données ECS ECS'!E24&\"\",'Informations Devis'!$A$5:$A$10001,0)))","v":""}]
[null,null,"",{"$f":"IF('Données ECS ECS'!G25=\"\",IF('Données ECS ECS'!F25=\"\",\"\",ROUNDUP('Données ECS ECS'!F25,0)&\" kW\"),ROUNDUP('Données ECS ECS'!G25,0)&\" kW\")","v":""},null,{"$f":"IF('Données ECS ECS'!C25=\"\",\"\",INDEX('Informations Devis'!$B$5:$B$10001,MATCH('Données ECS ECS'!C25&\"\",'Informations Devis'!$A$5:$A$10001,0)))","v":""},null,null,{"$f":"IF('Données ECS ECS'!D25=\"\",\"\",INDEX('Informations Devis'!$C$5:$C$10001,MATCH('Données ECS ECS'!D25&\"\",'Informations Devis'!$A$5:$A$10001,0)))","v":""},null,null,{"$f":"IF('Données ECS ECS'!E25=\"\",\"\",INDEX('Informations Devis'!$C$5:$C$10001,MATCH('Données ECS ECS'!E25&\"\",'Informations Devis'!$A$5:$A$10001,0)))","v":""}]
[null,null,"",{"$f":"IF('Données ECS ECS'!G26=\"\",IF('Données ECS ECS'!F26=\"\",\"\",ROUNDUP('Données ECS ECS'!F26,0)&\" kW\"),ROUNDUP('Données ECS ECS'!G26,0)&\" kW\")","v":""},null,{"$f":"IF('Données ECS ECS'!C26=\"\",\"\",INDEX('Informations Devis'!$B$5:$B$10001,MATCH('Données ECS ECS'!C26&\"\",'Informations Devis'!$A$5:$A$10001,0)))","v":""},null,null,{"$f":"IF('Données ECS ECS'!D26=\"\",\"\",INDEX('Informations Devis'!$C$5:$C$10001,MATCH('Données ECS ECS'!D26&\"\",'Informations Devis'!$A$5:$A$10001,0)))","v":""},null,null,{"$f":"IF('Données ECS ECS'!E26=\"\",\"\",INDEX('Informations Devis'!$C$5:$C$10001,MATCH('Données ECS ECS'!E26&\"\",'Informations Devis'!$A$5:$A$10001,0)))","v":""}]
[null,null,"",{"$f":"IF('Données ECS ECS'!G27=\"\",IF('Données ECS ECS'!F27=\"\",\"\",ROUNDUP('Données ECS ECS'!F27,0)&\" kW\"),ROUNDUP('Données ECS ECS'!G27,0)&\" kW\")","v":""},null,{"$f":"IF('Données ECS ECS'!C27=\"\",\"\",INDEX('Informations Devis'!$B$5:$B$10001,MATCH('Données ECS ECS'!C27&\"\",'Informations Devis'!$A$5:$A$10001,0)))","v":""},null,null,{"$f":"IF('Données ECS ECS'!D27=\"\",\"\",INDEX('Informations Devis'!$C$5:$C$10001,MATCH('Données ECS ECS'!D27&\"\",'Informations Devis'!$A$5:$A$10001,0)))","v":""},null,null,{"$f":"IF('Données ECS ECS'!E27=\"\",\"\",INDEX('Informations Devis'!$C$5:$C$10001,MATCH('Données ECS ECS'!E27&\"\",'Informations Devis'!$A$5:$A$10001,0)))","v":""}]
[null,null,"",{"$f":"IF('Données ECS ECS'!G28=\"\",IF('Données ECS ECS'!F28=\"\",\"\",ROUNDUP('Données ECS ECS'!F28,0)&\" kW\"),ROUNDUP('Données ECS ECS'!G28,0)&\" kW\")","v":""},null,{"$f":"IF('Données ECS ECS'!C28=\"\",\"\",INDEX('Informations Devis'!$B$5:$B$10001,MATCH('Données ECS ECS'!C28&\"\",'Informations Devis'!$A$5:$A$10001,0)))","v":""},null,null,{"$f":"IF('Données ECS ECS'!D28=\"\",\"\",INDEX('Informations Devis'!$C$5:$C$10001,MATCH('Données ECS ECS'!D28&\"\",'Informations Devis'!$A$5:$A$10001,0)))","v":""},null,null,{"$f":"IF('Données ECS ECS'!E28=\"\",\"\",INDEX('Informations Devis'!$C$5:$C$10001,MATCH('Données ECS ECS'!E28&\"\",'Informations Devis'!$A$5:$A$10001,0)))","v":""}]
[null,null,"",{"$f":"IF('Données ECS ECS'!G29=\"\",IF('Données ECS ECS'!F29=\"\",\"\",ROUNDUP('Données ECS ECS'!F29,0)&\" kW\"),ROUNDUP('Données ECS ECS'!G29,0)&\" kW\")","v":""},null,{"$f":"IF('Données ECS ECS'!C29=\"\",\"\",INDEX('Informations Devis'!$B$5:$B$10001,MATCH('Données ECS ECS'!C29&\"\",'Informations Devis'!$A$5:$A$10001,0)))","v":""},null,null,{"$f":"IF('Données ECS ECS'!D29=\"\",\"\",INDEX('Informations Devis'!$C$5:$C$10001,MATCH('Données ECS ECS'!D29&\"\",'Informations Devis'!$A$5:$A$10001,0)))","v":""},null,null,{"$f":"IF('Données ECS ECS'!E29=\"\",\"\",INDEX('Informations Devis'!$C$5:$C$10001,MATCH('Données ECS ECS'!E29&\"\",'Informations Devis'!$A$5:$A$10001,0)))","v":""}]
[null,null,"",{"$f":"IF('Données ECS ECS'!G30=\"\",IF('Données ECS ECS'!F30=\"\",\"\",ROUNDUP('Données ECS ECS'!F30,0)&\" kW\"),ROUNDUP('Données ECS ECS'!G30,0)&\" kW\")","v":""},null,{"$f":"IF('Données ECS ECS'!C30=\"\",\"\",INDEX('Informations Devis'!$B$5:$B$10001,MATCH('Données ECS ECS'!C30&\"\",'Informations Devis'!$A$5:$A$10001,0)))","v":""},null,null,{"$f":"IF('Données ECS ECS'!D30=\"\",\"\",INDEX('Informations Devis'!$C$5:$C$10001,MATCH('Données ECS ECS'!D30&\"\",'Informations Devis'!$A$5:$A$10001,0)))","v":""},null,null,{"$f":"IF('Données ECS ECS'!E30=\"\",\"\",INDEX('Informations Devis'!$C$5:$C$10001,MATCH('Données ECS ECS'!E30&\"\",'Informations Devis'!$A$5:$A$10001,0)))","v":""}]
[null,null,"",{"$f":"IF('Données ECS ECS'!G31=\"\",IF('Données ECS ECS'!F31=\"\",\"\",ROUNDUP('Données ECS ECS'!F31,0)&\" kW\"),ROUNDUP('Données ECS ECS'!G31,0)&\" kW\")","v":""},null,{"$f":"IF('Données ECS ECS'!C31=\"\",\"\",INDEX('Informations Devis'!$B$5:$B$10001,MATCH('Données ECS ECS'!C31&\"\",'Informations Devis'!$A$5:$A$10001,0)))","v":""},null,null,{"$f":"IF('Données ECS ECS'!D31=\"\",\"\",INDEX('Informations Devis'!$C$5:$C$10001,MATCH('Données ECS ECS'!D31&\"\",'Informations Devis'!$A$5:$A$10001,0)))","v":""},null,null,{"$f":"IF('Données ECS ECS'!E31=\"\",\"\",INDEX('Informations Devis'!$C$5:$C$10001,MATCH('Données ECS ECS'!E31&\"\",'Informations Devis'!$A$5:$A$10001,0)))","v":""},null,null,null,null,"Choix solution : "]
[null,null,"",{"$f":"IF('Données ECS ECS'!G32=\"\",IF('Données ECS ECS'!F32=\"\",\"\",ROUNDUP('Données ECS ECS'!F32,0)&\" kW\"),ROUNDUP('Données ECS ECS'!G32,0)&\" kW\")","v":""},null,{"$f":"IF('Données ECS ECS'!C32=\"\",\"\",INDEX('Informations Devis'!$B$5:$B$10001,MATCH('Données ECS ECS'!C32&\"\",'Informations Devis'!$A$5:$A$10001,0)))","v":""},null,null,{"$f":"IF('Données ECS ECS'!D32=\"\",\"\",INDEX('Informations Devis'!$C$5:$C$10001,MATCH('Données ECS ECS'!D32&\"\",'Informations Devis'!$A$5:$A$10001,0)))","v":""},null,null,{"$f":"IF('Données ECS ECS'!E32=\"\",\"\",INDEX('Informations Devis'!$C$5:$C$10001,MATCH('Données ECS ECS'!E32&\"\",'Informations Devis'!$A$5:$A$10001,0)))","v":""}]
[null,null,"",{"$f":"IF('Données ECS ECS'!G33=\"\",IF('Données ECS ECS'!F33=\"\",\"\",ROUNDUP('Données ECS ECS'!F33,0)&\" kW\"),ROUNDUP('Données ECS ECS'!G33,0)&\" kW\")","v":""},null,{"$f":"IF('Données ECS ECS'!C33=\"\",\"\",INDEX('Informations Devis'!$B$5:$B$10001,MATCH('Données ECS ECS'!C33&\"\",'Informations Devis'!$A$5:$A$10001,0)))","v":""},null,null,{"$f":"IF('Données ECS ECS'!D33=\"\",\"\",INDEX('Informations Devis'!$C$5:$C$10001,MATCH('Données ECS ECS'!D33&\"\",'Informations Devis'!$A$5:$A$10001,0)))","v":""},null,null,{"$f":"IF('Données ECS ECS'!E33=\"\",\"\",INDEX('Informations Devis'!$C$5:$C$10001,MATCH('Données ECS ECS'!E33&\"\",'Informations Devis'!$A$5:$A$10001,0)))","v":""}]
[null,null,{"$f":"IF(AND(sous_applicatif<>\"Logements privés\",sous_applicatif<>\"Logements sociaux\",sous_applicatif<>\"Résidence seniors\",sous_applicatif<>\"\"),\"Solution optimale\",\"\")","v":""}]
[]
[]
[]
[]
[null,null,null,null,"Type de dimensionnement",null,null,null,null,null,null,null,null,null,null,"Préférence PAC (facultatif)"]
[]
[]
[null,null,null,"Avec appoint électrique",null,null,null,"Sans appoint électrique"]
[]
[]
[]
[]
[null,null,null,"Si vous modifiez des paramètres de l'étude après avoir généré des solutions, veuillez rappuyer sur \"Déterminer le préparateur ECS\" (si paramètres ECS modifiés), puis sur \"Générer des solutions\"."]
[]
[]
[]
[]
[]
[]
[null,"Ce dimensionnement est réalisé à titre indicatif afin de guider l'utilisateur vers un système en fonction des données d'entrées renseignées. Il ne remplace pas une étude de dimensionnement finale effectuée par le service Avant Vente ACV."]
[]
[]
[]
[]
[]
[]
[]
[null,null,null,null,null,null,"PAC",null,null,{"$f":"IF(ISBLANK('Données ECS'!D31),\"\",_xlfn.TEXTJOIN(\" x \", TRUE, 'Données ECS'!D32, 'Données ECS'!D31))","v":""},null,null,null,null,{"$f":"IF(ISBLANK('Données ECS'!E31),\"\",_xlfn.TEXTJOIN(\" x \", TRUE, 'Données ECS'!E32, 'Données ECS'!E31))","v":""},null,null,null,null,{"$f":"IF(ISBLANK('Données ECS'!F31),\"\",_xlfn.TEXTJOIN(\" x \", TRUE, 'Données ECS'!F32, 'Données ECS'!F31))","v":""}]
[]
[null,null,null,null,null,null,"Appoint électrique total",null,null,{"$f":"IF(ISBLANK('Données ECS'!D34),\"\",'Données ECS'!D34)","v":""},"kW",null,null,null,{"$f":"IF(ISBLANK('Données ECS'!E34),\"\",'Données ECS'!E34)","v":""},"kW",null,null,null,{"$f":"IF(ISBLANK('Données ECS'!F34),\"\",'Données ECS'!F34)","v":""},"kW"]
[]
[null,null,null,null,null,null,"Ballon de charge 1",null,{"$f":"IF(ISBLANK('Données ECS'!D35),\"\",'Données ECS'!D35)","v":""},null,null,null,null,{"$f":"IF(ISBLANK('Données ECS'!E35),\"\",'Données ECS'!E35)","v":""},null,null,null,null,{"$f":"IF(ISBLANK('Données ECS'!F35),\"\",'Données ECS'!F35)","v":""}]
[null,null,null,null,null,null,"Appoint.s équipé.s",null,{"$f":"_xlfn.TEXTJOIN(\" + \",TRUE,_xlfn.MAP('Données ECS'!D36:D38,_xlfn.LAMBDA(_xlpm.puissance,IF(_xlpm.puissance=\"\",\"\",_xlpm.puissance&\" kW\"))))","v":""},null,null,null,null,{"$f":"_xlfn.TEXTJOIN(\" + \",TRUE,_xlfn.MAP('Données ECS'!E36:E38,_xlfn.LAMBDA(_xlpm.puissance,IF(_xlpm.puissance=\"\",\"\",_xlpm.puissance&\" kW\"))))","v":""},null,null,null,null,{"$f":"_xlfn.TEXTJOIN(\" + \",TRUE,_xlfn.MAP('Données ECS'!F36:F38,_xlfn.LAMBDA(_xlpm.puissance,IF(_xlpm.puissance=\"\",\"\",_xlpm.puissance&\" kW\"))))","v":""}]
[]
[null,null,null,null,null,null,"Ballon de charge 2",null,{"$f":"IF(ISBLANK('Données ECS'!D39),\"\",'Données ECS'!D39)","v":""},null,null,null,null,{"$f":"IF(ISBLANK('Données ECS'!E39),\"\",'Données ECS'!E39)","v":""},null,null,null,null,{"$f":"IF(ISBLANK('Données ECS'!F39),\"\",'Données ECS'!F39)","v":""}]
[]
[null,null,null,null,null,null,"Ballon Supplémentaire",null,{"$f":"IF(ISBLANK('Données ECS'!D40),\"\",'Données ECS'!D40)","v":""},null,null,null,null,{"$f":"IF(ISBLANK('Données ECS'!E40),\"\",'Données ECS'!E40)","v":""},null,null,null,null,{"$f":"IF(ISBLANK('Données ECS'!F40),\"\",'Données ECS'!F40)","v":""}]
[null,null,null,null,null,null,"Appoint.s équipé.s",null,{"$f":"_xlfn.TEXTJOIN(\" + \",TRUE,_xlfn.MAP('Données ECS'!D41:D43,_xlfn.LAMBDA(_xlpm.puissance,IF(_xlpm.puissance=\"\",\"\",_xlpm.puissance&\" kW\"))))","v":""},null,null,null,null,{"$f":"_xlfn.TEXTJOIN(\" + \",TRUE,_xlfn.MAP('Données ECS'!E41:E43,_xlfn.LAMBDA(_xlpm.puissance,IF(_xlpm.puissance=\"\",\"\",_xlpm.puissance&\" kW\"))))","v":""},null,null,null,null,{"$f":"_xlfn.TEXTJOIN(\" + \",TRUE,_xlfn.MAP('Données ECS'!F41:F43,_xlfn.LAMBDA(_xlpm.puissance,IF(_xlpm.puissance=\"\",\"\",_xlpm.puissance&\" kW\"))))","v":""}]
[]
[null,null,null,null,null,null,"Production ECS",null,{"$f":"IF(ISBLANK('Données ECS'!D64),\"\",'Données ECS'!D64)","v":""},null,null,null,null,{"$f":"IF(ISBLANK('Données ECS'!E64),\"\",'Données ECS'!E64)","v":""},null,null,null,null,{"$f":"IF(ISBLANK('Données ECS'!F64),\"\",'Données ECS'!F64)","v":""}]
[]
[null,null,null,null,null,null,"Ballon stockage ECS 1",null,{"$f":"IF(ISBLANK('Données ECS'!D65),\"\",'Données ECS'!D65)","v":""},null,null,null,null,{"$f":"IF(ISBLANK('Données ECS'!E65),\"\",'Données ECS'!E65)","v":""},null,null,null,null,{"$f":"IF(ISBLANK('Données ECS'!F65),\"\",'Données ECS'!F65)","v":""}]
[]
[null,null,null,null,null,null,"Ballon stockage ECS 2",null,{"$f":"IF(ISBLANK('Données ECS'!D66),\"\",'Données ECS'!D66)","v":""},null,null,null,null,{"$f":"IF(ISBLANK('Données ECS'!E66),\"\",'Données ECS'!E66)","v":""},null,null,null,null,{"$f":"IF(ISBLANK('Données ECS'!F66),\"\",'Données ECS'!F66)","v":""}]
[]
[]
[]
[null,null,null,"Part PAC à Tbase (ECS)",null,null,null,null,null,{"$f":"IF(ISBLANK('Données ECS'!D44),\"\",'Données ECS'!D44 * 100)","v":""},"%",null,null,null,{"$f":"IF(ISBLANK('Données ECS'!E44),\"\",'Données ECS'!E44 * 100)","v":""},"%",null,null,null,{"$f":"IF(ISBLANK('Données ECS'!F44),\"\",'Données ECS'!F44 * 100)","v":""},"%"]
[]
[null,null,null,"Puissance Totale PAC à Tbase",null,null,null,null,null,{"$f":"IF(ISBLANK('Données ECS'!D45),\"\",'Données ECS'!D45)","v":""},"kW",null,null,null,{"$f":"IF(ISBLANK('Données ECS'!E45),\"\",'Données ECS'!E45)","v":""},"kW",null,null,null,{"$f":"IF(ISBLANK('Données ECS'!F45),\"\",'Données ECS'!F45)","v":""},"kW"]
[]
[]
[null,null,null,null,null,null,"Puissance électrique max",null,null,{"$f":"IF(ISBLANK('Données ECS'!D47),\"\",'Données ECS'!D47)","v":""},"kW",null,null,null,{"$f":"IF(ISBLANK('Données ECS'!E47),\"\",'Données ECS'!E47)","v":""},"kW",null,null,null,{"$f":"IF(ISBLANK('Données ECS'!F47),\"\",'Données ECS'!F47)","v":""},"kW"]
[]
[null,null,null,null,null,null,"Intensité électrique max",null,null,{"$f":"IF(ISBLANK('Données ECS'!D48),\"\",'Données ECS'!D48)","v":""},"A",null,null,null,{"$f":"IF(ISBLANK('Données ECS'!E48),\"\",'Données ECS'!E48)","v":""},"A",null,null,null,{"$f":"IF(ISBLANK('Données ECS'!F48),\"\",'Données ECS'!F48)","v":""},"A"]
[]
[null,null,null,"Puissance apparente",null,null,null,null,null,{"$f":"IF(ISBLANK('Données ECS'!D49),\"\",'Données ECS'!D49)","v":""},"kVA",null,null,null,{"$f":"IF(ISBLANK('Données ECS'!E49),\"\",'Données ECS'!E49)","v":""},"kVA",null,null,null,{"$f":"IF(ISBLANK('Données ECS'!F49),\"\",'Données ECS'!F49)","v":""},"kVA"]
[]
[]
[null,null,null,"Débit global PAC préconisé",null,null,null,null,null,{"$f":"IF(ISBLANK('Données ECS'!D50),\"\",'Données ECS'!D50)","v":""},"m³/h",null,null,null,{"$f":"IF(ISBLANK('Données ECS'!E50),\"\",'Données ECS'!E50)","v":""},"m³/h",null,null,null,{"$f":"IF(ISBLANK('Données ECS'!F50),\"\",'Données ECS'!F50)","v":""},"m³/h"]
[null,null,null,"Diamètre préconisé des canalisations"]
[null,null,null,null,null,null,null,null,null,{"$f":"IF(AND('Données ECS'!I7<>\"\",'Données ECS'!I8<>\"\"),IF(ISBLANK('Données ECS'!D51),\"\",'Données ECS'!D51),IF(ISBLANK('Données ECS'!D51),\"\",\"---\"))","v":""},null,null,null,null,{"$f":"IF(AND('Données ECS'!I7<>\"\",'Données ECS'!I8<>\"\"),IF(ISBLANK('Données ECS'!E51),\"\",'Données ECS'!E51),IF(ISBLANK('Données ECS'!E51),\"\",\"---\"))","v":""},null,null,null,null,{"$f":"IF(AND('Données ECS'!I7<>\"\",'Données ECS'!I8<>\"\"),IF(ISBLANK('Données ECS'!F51),\"\",'Données ECS'!F51),IF(ISBLANK('Données ECS'!F51),\"\",\"---\"))","v":""}]
[]
[null,null,null,"HMT disponible",null,null,null,null,null,{"$f":"IF(ISBLANK('Données ECS'!D52),\"\",'Données ECS'!D52)","v":""},"kPa",null,null,null,{"$f":"IF(ISBLANK('Données ECS'!E52),\"\",'Données ECS'!E52)","v":""},"kPa",null,null,null,{"$f":"IF(ISBLANK('Données ECS'!F52),\"\",'Données ECS'!F52)","v":""},"kPa"]
[]
[null,null,null,"Pression maximum de service",null,null,null,null,null,{"$f":"IF(ISBLANK('Données ECS'!D53),\"\",'Données ECS'!D53)","v":""},"bar",null,null,null,{"$f":"IF(ISBLANK('Données ECS'!E53),\"\",'Données ECS'!E53)","v":""},"bar",null,null,null,{"$f":"IF(ISBLANK('Données ECS'!F53),\"\",'Données ECS'!F53)","v":""},"bar"]
[]
[null,null,null,{"$f":"IF('Données ECS'!K2=\"Serpentin\",\"Débit serpentin préconisé\",\"Débit primaire préconisé\")","v":"Débit primaire préconisé"},null,null,null,null,null,{"$f":"IF(ISBLANK('Données ECS'!D69),\"\",'Données ECS'!D69)","v":""},"m³/h",null,null,null,{"$f":"IF(ISBLANK('Données ECS'!E69),\"\",'Données ECS'!E69)","v":""},"m³/h",null,null,null,{"$f":"IF(ISBLANK('Données ECS'!F69),\"\",'Données ECS'!F69)","v":""},"m³/h"]
[]
[null,null,null,"Surface nécessaire installation PAC",null,null,null,null,null,{"$f":"IF(ISBLANK('Données ECS'!D54),\"\",'Données ECS'!D54)","v":""},"m²",null,null,null,{"$f":"IF(ISBLANK('Données ECS'!E54),\"\",'Données ECS'!E54)","v":""},"m²",null,null,null,{"$f":"IF(ISBLANK('Données ECS'!F54),\"\",'Données ECS'!F54)","v":""},"m²"]
[]
[null,null,null,"Dimensions 1 PAC (HxLxP)",null,null,null,null,{"$f":"IF(ISBLANK('Données ECS'!D55),\"\",_xlfn.TEXTJOIN(\" x \",TRUE, 'Données ECS'!D55:D57))","v":""},null,null,"mm",null,{"$f":"IF(ISBLANK('Données ECS'!E55),\"\",_xlfn.TEXTJOIN(\" x \",TRUE, 'Données ECS'!E55:E57))","v":""},null,null,"mm",null,{"$f":"IF(ISBLANK('Données ECS'!F55),\"\",_xlfn.TEXTJOIN(\" x \",TRUE, 'Données ECS'!F55:F57))","v":""},null,null,"mm"]
[]
[null,null,null,"Hauteur minimale local",null,null,null,null,null,{"$f":"IF(ISBLANK('Données ECS'!D58),\"\",'Données ECS'!D58)","v":""},"mm",null,null,null,{"$f":"IF(ISBLANK('Données ECS'!E58),\"\",'Données ECS'!E58)","v":""},"mm",null,null,null,{"$f":"IF(ISBLANK('Données ECS'!F58),\"\",'Données ECS'!F58)","v":""},"mm"]
[]
[null,null,null,"Largeur de passage minimale local",null,null,null,null,null,{"$f":"IF(ISBLANK('Données ECS'!D59),\"\",'Données ECS'!D59)","v":""},"mm",null,null,null,{"$f":"IF(ISBLANK('Données ECS'!E59),\"\",'Données ECS'!E59)","v":""},"mm",null,null,null,{"$f":"IF(ISBLANK('Données ECS'!F59),\"\",'Données ECS'!F59)","v":""},"mm"]
[]
[null,null,"Puissance sonore 1 PAC à charge partielle\nPuissance sonore 1 PAC à charge partielle\nPuissance sonore 1 PAC à charge partielle",null,null,null,null,null,null,{"$f":"IF(ISBLANK('Données ECS'!D60),\"\",'Données ECS'!D60)","v":""},"dB(A)",null,null,null,{"$f":"IF(ISBLANK('Données ECS'!E60),\"\",'Données ECS'!E60)","v":""},"dB(A)",null,null,null,{"$f":"IF(ISBLANK('Données ECS'!F60),\"\",'Données ECS'!F60)","v":""},"dB(A)"]
[null,null,null,"Selon la norme EN 12-102"]
[null,null,"Puissance sonore totale à pleine charge",null,null,null,null,null,null,{"$f":"IF(ISBLANK('Données ECS'!D61),\"\",'Données ECS'!D61)","v":""},"dB(A)",null,null,null,{"$f":"IF(ISBLANK('Données ECS'!E61),\"\",'Données ECS'!E61)","v":""},"dB(A)",null,null,null,{"$f":"IF(ISBLANK('Données ECS'!F61),\"\",'Données ECS'!F61)","v":""},"dB(A)"]
[]
[null,null,null,null,"PPHT estimé",null,null,null,{"$f":"IF(ISBLANK('Données ECS'!D62),\"\",'Données ECS'!D62)","v":""},null,"€",null,null,{"$f":"IF(ISBLANK('Données ECS'!E62),\"\",'Données ECS'!E62)","v":""},null,"€",null,null,{"$f":"IF(ISBLANK('Données ECS'!F62),\"\",'Données ECS'!F62)","v":""},null,"€"]

{"sheet":"Données ECS ECS","index":12,"n_rows":33,"n_cols":15,"rows_kept":33,"cut":false,"hidden":true,"merged":[]}
["Puissance","Optimale","Code Echangeur","Code Ballon stockage 1","Code Ballon stockage 2","Puissance Réelle","Puissance optimisée","Besoins ECS",null,"Applicatif","Sous-Applicatif","Variable utilisée","Variables URL","Variables Menu","Variables Data"]
[null,null,null,null,null,null,null,null,"Vj",{"$f":"INDEX('Validation des Données'!AB26:AB29,MATCH(ECS!applicatif,'Validation des Données'!AA26:AA29,0))","v":"logement"},{"$f":"INDEX('Validation des Données'!AB2:AB25,MATCH(ECS!sous_applicatif,'Validation des Données'!AA2:AA25,0))","v":{"$error":"#N/A"}},{"$f":"IF(INDEX('Validation des Données'!B183:Y183,MATCH(ECS!sous_applicatif,_xlfn.ANCHORARRAY('Validation des Données'!$B$182),0))=\"\",FALSE,TRUE)","v":{"$error":"#N/A"}},{"$f":"IFERROR(_xlfn._xlws.FILTER('Validation des Données'!A183:A202,L2:L21),\"\")","v":""},{"$f":"IF(M2=\"\",\"\",INDEX('Validation des Données'!$B$183:$Y$202,MATCH(M2,'Validation des Données'!$A$183:$A$202,0),MATCH(ECS!sous_applicatif,_xlfn.ANCHORARRAY('Validation des Données'!$B$182),0)))","v":""},{"$f":"IF(ECS!F37=\"\",\"\",ECS!F37)","v":""}]
[null,null,null,null,null,null,null,null,"V10",null,null,{"$f":"IF(INDEX('Validation des Données'!B184:Y184,MATCH(ECS!sous_applicatif,_xlfn.ANCHORARRAY('Validation des Données'!$B$182),0))=\"\",FALSE,TRUE)","v":{"$error":"#N/A"}},null,{"$f":"IF(M3=\"\",\"\",INDEX('Validation des Données'!$B$183:$Y$202,MATCH(M3,'Validation des Données'!$A$183:$A$202,0),MATCH(ECS!sous_applicatif,_xlfn.ANCHORARRAY('Validation des Données'!$B$182),0)))","v":""},{"$f":"IF(ECS!F39=\"\",\"\",ECS!F39)","v":""}]
[null,null,null,null,null,null,null,null,"Vph",null,null,{"$f":"IF(INDEX('Validation des Données'!B185:Y185,MATCH(ECS!sous_applicatif,_xlfn.ANCHORARRAY('Validation des Données'!$B$182),0))=\"\",FALSE,TRUE)","v":{"$error":"#N/A"}},null,{"$f":"IF(M4=\"\",\"\",INDEX('Validation des Données'!$B$183:$Y$202,MATCH(M4,'Validation des Données'!$A$183:$A$202,0),MATCH(ECS!sous_applicatif,_xlfn.ANCHORARRAY('Validation des Données'!$B$182),0)))","v":""},{"$f":"IF(ECS!F41=\"\",\"\",ECS!F41)","v":""}]
[null,null,null,null,null,null,null,null,"tph",null,null,{"$f":"IF(INDEX('Validation des Données'!B186:Y186,MATCH(ECS!sous_applicatif,_xlfn.ANCHORARRAY('Validation des Données'!$B$182),0))=\"\",FALSE,TRUE)","v":{"$error":"#N/A"}},null,{"$f":"IF(M5=\"\",\"\",INDEX('Validation des Données'!$B$183:$Y$202,MATCH(M5,'Validation des Données'!$A$183:$A$202,0),MATCH(ECS!sous_applicatif,_xlfn.ANCHORARRAY('Validation des Données'!$B$182),0)))","v":""},{"$f":"IF(ECS!K37=\"\",\"\",ECS!K37)","v":""}]
[null,null,null,null,null,null,null,null,null,null,null,{"$f":"IF(INDEX('Validation des Données'!B187:Y187,MATCH(ECS!sous_applicatif,_xlfn.ANCHORARRAY('Validation des Données'!$B$182),0))=\"\",FALSE,TRUE)","v":{"$error":"#N/A"}},null,{"$f":"IF(M6=\"\",\"\",INDEX('Validation des Données'!$B$183:$Y$202,MATCH(M6,'Validation des Données'!$A$183:$A$202,0),MATCH(ECS!sous_applicatif,_xlfn.ANCHORARRAY('Validation des Données'!$B$182),0)))","v":""},{"$f":"IF(ECS!K39=\"\",\"\",ECS!K39)","v":""}]
[null,null,null,null,null,null,null,null,null,null,null,{"$f":"IF(INDEX('Validation des Données'!B188:Y188,MATCH(ECS!sous_applicatif,_xlfn.ANCHORARRAY('Validation des Données'!$B$182),0))=\"\",FALSE,TRUE)","v":{"$error":"#N/A"}},null,{"$f":"IF(M7=\"\",\"\",INDEX('Validation des Données'!$B$183:$Y$202,MATCH(M7,'Validation des Données'!$A$183:$A$202,0),MATCH(ECS!sous_applicatif,_xlfn.ANCHORARRAY('Validation des Données'!$B$182),0)))","v":""},{"$f":"IF(ECS!K41=\"\",\"\",ECS!K41)","v":""}]
[null,null,null,null,null,null,null,null,null,null,null,{"$f":"IF(INDEX('Validation des Données'!B189:Y189,MATCH(ECS!sous_applicatif,_xlfn.ANCHORARRAY('Validation des Données'!$B$182),0))=\"\",FALSE,TRUE)","v":{"$error":"#N/A"}},null,{"$f":"IF(M8=\"\",\"\",INDEX('Validation des Données'!$B$183:$Y$202,MATCH(M8,'Validation des Données'!$A$183:$A$202,0),MATCH(ECS!sous_applicatif,_xlfn.ANCHORARRAY('Validation des Données'!$B$182),0)))","v":""}]
[null,null,null,null,null,null,null,null,null,null,null,{"$f":"IF(INDEX('Validation des Données'!B190:Y190,MATCH(ECS!sous_applicatif,_xlfn.ANCHORARRAY('Validation des Données'!$B$182),0))=\"\",FALSE,TRUE)","v":{"$error":"#N/A"}},null,{"$f":"IF(M9=\"\",\"\",INDEX('Validation des Données'!$B$183:$Y$202,MATCH(M9,'Validation des Données'!$A$183:$A$202,0),MATCH(ECS!sous_applicatif,_xlfn.ANCHORARRAY('Validation des Données'!$B$182),0)))","v":""}]
[null,null,null,null,null,null,null,null,null,null,null,{"$f":"IF(INDEX('Validation des Données'!B191:Y191,MATCH(ECS!sous_applicatif,_xlfn.ANCHORARRAY('Validation des Données'!$B$182),0))=\"\",FALSE,TRUE)","v":{"$error":"#N/A"}},null,{"$f":"IF(M10=\"\",\"\",INDEX('Validation des Données'!$B$183:$Y$202,MATCH(M10,'Validation des Données'!$A$183:$A$202,0),MATCH(ECS!sous_applicatif,_xlfn.ANCHORARRAY('Validation des Données'!$B$182),0)))","v":""}]
[null,null,null,null,null,null,null,null,null,null,null,{"$f":"IF(INDEX('Validation des Données'!B192:Y192,MATCH(ECS!sous_applicatif,_xlfn.ANCHORARRAY('Validation des Données'!$B$182),0))=\"\",FALSE,TRUE)","v":{"$error":"#N/A"}},null,{"$f":"IF(M11=\"\",\"\",INDEX('Validation des Données'!$B$183:$Y$202,MATCH(M11,'Validation des Données'!$A$183:$A$202,0),MATCH(ECS!sous_applicatif,_xlfn.ANCHORARRAY('Validation des Données'!$B$182),0)))","v":""}]
[null,null,null,null,null,null,null,null,null,null,null,{"$f":"IF(INDEX('Validation des Données'!B193:Y193,MATCH(ECS!sous_applicatif,_xlfn.ANCHORARRAY('Validation des Données'!$B$182),0))=\"\",FALSE,TRUE)","v":{"$error":"#N/A"}},null,{"$f":"IF(M12=\"\",\"\",INDEX('Validation des Données'!$B$183:$Y$202,MATCH(M12,'Validation des Données'!$A$183:$A$202,0),MATCH(ECS!sous_applicatif,_xlfn.ANCHORARRAY('Validation des Données'!$B$182),0)))","v":""}]
[null,null,null,null,null,null,null,null,null,null,null,{"$f":"IF(INDEX('Validation des Données'!B194:Y194,MATCH(ECS!sous_applicatif,_xlfn.ANCHORARRAY('Validation des Données'!$B$182),0))=\"\",FALSE,TRUE)","v":{"$error":"#N/A"}},null,{"$f":"IF(M13=\"\",\"\",INDEX('Validation des Données'!$B$183:$Y$202,MATCH(M13,'Validation des Données'!$A$183:$A$202,0),MATCH(ECS!sous_applicatif,_xlfn.ANCHORARRAY('Validation des Données'!$B$182),0)))","v":""}]
[null,null,null,null,null,null,null,null,null,null,null,{"$f":"IF(INDEX('Validation des Données'!B195:Y195,MATCH(ECS!sous_applicatif,_xlfn.ANCHORARRAY('Validation des Données'!$B$182),0))=\"\",FALSE,TRUE)","v":{"$error":"#N/A"}},null,{"$f":"IF(M14=\"\",\"\",INDEX('Validation des Données'!$B$183:$Y$202,MATCH(M14,'Validation des Données'!$A$183:$A$202,0),MATCH(ECS!sous_applicatif,_xlfn.ANCHORARRAY('Validation des Données'!$B$182),0)))","v":""}]
[null,null,null,null,null,null,null,null,null,null,null,{"$f":"IF(INDEX('Validation des Données'!B196:Y196,MATCH(ECS!sous_applicatif,_xlfn.ANCHORARRAY('Validation des Données'!$B$182),0))=\"\",FALSE,TRUE)","v":{"$error":"#N/A"}},null,{"$f":"IF(M15=\"\",\"\",INDEX('Validation des Données'!$B$183:$Y$202,MATCH(M15,'Validation des Données'!$A$183:$A$202,0),MATCH(ECS!sous_applicatif,_xlfn.ANCHORARRAY('Validation des Données'!$B$182),0)))","v":""}]
[null,null,null,null,null,null,null,null,null,null,null,{"$f":"IF(INDEX('Validation des Données'!B197:Y197,MATCH(ECS!sous_applicatif,_xlfn.ANCHORARRAY('Validation des Données'!$B$182),0))=\"\",FALSE,TRUE)","v":{"$error":"#N/A"}},null,{"$f":"IF(M16=\"\",\"\",INDEX('Validation des Données'!$B$183:$Y$202,MATCH(M16,'Validation des Données'!$A$183:$A$202,0),MATCH(ECS!sous_applicatif,_xlfn.ANCHORARRAY('Validation des Données'!$B$182),0)))","v":""}]
[null,null,null,null,null,null,null,null,null,null,null,{"$f":"IF(INDEX('Validation des Données'!B198:Y198,MATCH(ECS!sous_applicatif,_xlfn.ANCHORARRAY('Validation des Données'!$B$182),0))=\"\",FALSE,TRUE)","v":{"$error":"#N/A"}},null,{"$f":"IF(M17=\"\",\"\",INDEX('Validation des Données'!$B$183:$Y$202,MATCH(M17,'Validation des Données'!$A$183:$A$202,0),MATCH(ECS!sous_applicatif,_xlfn.ANCHORARRAY('Validation des Données'!$B$182),0)))","v":""}]
[null,null,null,null,null,null,null,null,null,null,null,{"$f":"IF(INDEX('Validation des Données'!B199:Y199,MATCH(ECS!sous_applicatif,_xlfn.ANCHORARRAY('Validation des Données'!$B$182),0))=\"\",FALSE,TRUE)","v":{"$error":"#N/A"}},null,{"$f":"IF(M18=\"\",\"\",INDEX('Validation des Données'!$B$183:$Y$202,MATCH(M18,'Validation des Données'!$A$183:$A$202,0),MATCH(ECS!sous_applicatif,_xlfn.ANCHORARRAY('Validation des Données'!$B$182),0)))","v":""}]
[{"$f":"IF(solutions_ecs=0,\"\",solutions_ecs)","v":""},"","","","","","",null,null,null,null,{"$f":"IF(INDEX('Validation des Données'!B200:Y200,MATCH(ECS!sous_applicatif,_xlfn.ANCHORARRAY('Validation des Données'!$B$182),0))=\"\",FALSE,TRUE)","v":{"$error":"#N/A"}},null,{"$f":"IF(M19=\"\",\"\",INDEX('Validation des Données'!$B$183:$Y$202,MATCH(M19,'Validation des Données'!$A$183:$A$202,0),MATCH(ECS!sous_applicatif,_xlfn.ANCHORARRAY('Validation des Données'!$B$182),0)))","v":""}]
["","","","","","","",null,null,null,null,{"$f":"IF(INDEX('Validation des Données'!B201:Y201,MATCH(ECS!sous_applicatif,_xlfn.ANCHORARRAY('Validation des Données'!$B$182),0))=\"\",FALSE,TRUE)","v":{"$error":"#N/A"}},null,{"$f":"IF(M20=\"\",\"\",INDEX('Validation des Données'!$B$183:$Y$202,MATCH(M20,'Validation des Données'!$A$183:$A$202,0),MATCH(ECS!sous_applicatif,_xlfn.ANCHORARRAY('Validation des Données'!$B$182),0)))","v":""}]
["","","","","","","",null,null,null,null,{"$f":"IF(INDEX('Validation des Données'!B202:Y202,MATCH(ECS!sous_applicatif,_xlfn.ANCHORARRAY('Validation des Données'!$B$182),0))=\"\",FALSE,TRUE)","v":{"$error":"#N/A"}},null,{"$f":"IF(M21=\"\",\"\",INDEX('Validation des Données'!$B$183:$Y$202,MATCH(M21,'Validation des Données'!$A$183:$A$202,0),MATCH(ECS!sous_applicatif,_xlfn.ANCHORARRAY('Validation des Données'!$B$182),0)))","v":""}]
["","","","","","",""]
["","","","","","",""]
["","","","","","",""]
["","","","","","",""]
["","","","","","",""]
["","","","","","",""]
["","","","","","",""]
["","","","","","",""]
["","","","","","",""]
["","","","","","",""]
["","","","","","",""]
["","","","","","",""]

{"sheet":"Données ECS","index":13,"n_rows":202,"n_cols":8,"rows_kept":202,"cut":false,"hidden":true,"merged":[[70,0,201,0],[138,1,177,1],[178,1,201,1],[0,0,27,0],[26,1,27,1],[0,1,5,1],[6,1,11,1],[13,1,23,1],[28,0,69,0],[59,1,60,1],[61,1,62,1],[70,1,137,1],[28,7,69,7],[63,1,69,1],[30,1,32,1],[33,1,42,1],[46,1,48,1],[49,1,52,1],[53,1,58,1],[28,1,29,1],[43,1,45,1]]}
["Entrées","Localisation","Ville",{"$f":"ECS!G18","v":"01 - AMBERIEU"},"Sans modification","Production ECS"]
[null,null,"Altitude",{"$f":"ECS!$G$20","v":250},null,{"$f":"ECS!S48","v":"Serpentin"}]
[null,null,"Température de base (Tbase)",{"$f":"ECS!G22","v":-11},-11]
[null,null,"Température été (Tete)",{"$f":"ECS!$G$24","v":35}]
[null,null,"Traitement Anti Corrosion",{"$f":"ECS!G26=\"Oui\"","v":false}]
[null,null,"BordDeMer / Montagne",{"$f":"IF(ECS!C28 = \"\",\"\",ECS!G28=\"Oui\")","v":""}]
[null,"Installation","Distance PAC / ballon",{"$f":"\"\"&ECS!R18","v":""}]
[null,null,"Distance PAC / Bâtiment",{"$f":"\"\"&ECS!R20","v":""}]
[null,null,"Taux de glycol",{"$f":"0","v":0}]
[null,null,"Hauteur sous plafond",{"$f":"\"\"&ECS!R26","v":""}]
[null,null,"Largeur de porte",{"$f":"\"\"&ECS!R28","v":""}]
[null,null,"Gamme de Pac","AHP70"]
[null,null,"Applicatif",{"$f":"'Données ECS ECS'!J2","v":"logement"}]
[null,"Circuit ECS","Sous applicatif",{"$f":"'Données ECS ECS'!K2","v":{"$error":"#N/A"}}]
[null,null,{"$f":"\"\"&'Données ECS ECS'!M2","v":""},{"$f":"'Données ECS ECS'!O2","v":""},{"$f":"\"\"&'Données ECS ECS'!N2:N7","v":""},null,"Besoins"]
[null,null,{"$f":"\"\"&'Données ECS ECS'!M3","v":""},{"$f":"'Données ECS ECS'!O3","v":""},"","Vj",{"$f":"ECS!T36","v":""}]
[null,null,{"$f":"\"\"&'Données ECS ECS'!M4","v":""},{"$f":"'Données ECS ECS'!O4","v":""},"","Vph",{"$f":"ECS!T38","v":""}]
[null,null,{"$f":"\"\"&'Données ECS ECS'!M5","v":""},{"$f":"'Données ECS ECS'!O5","v":""},"","Tph",{"$f":"ECS!T40","v":""}]
[null,null,{"$f":"\"\"&'Données ECS ECS'!M6","v":""},{"$f":"'Données ECS ECS'!O6","v":""},"","V10",{"$f":"ECS!T42","v":""}]
[null,null,{"$f":"\"\"&'Données ECS ECS'!M7","v":""},{"$f":"'Données ECS ECS'!O7","v":""},""]
[null,null,"Temperature eau froide",{"$f":"\"\"&ECS!F43","v":"10"}]
[null,null,"Perte thermique de bouclage",{"$f":"\"\"&ECS!pertes_thermiques_de_bouclage","v":""}]
[null,null,"Cycle AL",{"$f":"IF(ECS!P37=\"Non\",\"\",ECS!P39)","v":""}]
[null,null,"Choix Solution ECS",{"$f":"IF(ECS!T59<>\"\",ECS!T59,0)","v":0}]
[null,null,"Puissance relle",{"$f":"INDEX('Données ECS ECS'!F19:F33,choix_solution_ecs)","v":{"$error":"#VALUE!"}}]
[null,null,"Puissance optimisee",{"$f":"INDEX('Données ECS ECS'!G19:G33,choix_solution_ecs)","v":{"$error":"#VALUE!"}}]
[null,"Objectif","Type de dimensionnement",{"$f":"E27=2","v":false},1]
[null,null,"Préférence Pac",{"$f":"IF(E28=\"\",\"\",INDEX('Préférence Pac'!A3:A15,MATCH('Données ECS'!E28,_xlfn.ANCHORARRAY('Préférence Pac'!B3),0)))","v":""},{"$f":"\"\"&ECS!P70","v":""}]
["Sorties","Solutions","nom","Economique","Encombrement","Economique - Choix Utilisateur",null,"Système choisi pour générer le PDF"]
[null,null,"nom pdf","La + économique","La - encombrante","Choix PAC utilisateur"]
[null,"Pac","nom Pac"]
[null,null,"nb Pac"]
[null,null,"ChassisPac"]
[null,"Ballon & Appoints","Puissance App élec total"]
[null,null,"Ballon de charge 1"]
[null,null,"Ballon de charge 1 Appoint 1"]
[null,null,"Ballon de charge 1 Appoint 2"]
[null,null,"Ballon de charge 1 Appoint 3"]
[null,null,"Ballon de charge 2"]
[null,null,"Ballon Supplémentaire"]
[null,null,"Ballon Sup Appoint 1"]
[null,null,"Ballon Sup Appoint 2"]
[null,null,"Ballon Sup Appoint 3"]
[null,"Stats","Part PAC à Tbase"]
[null,null,"Puissance PAC à Tbase"]
[null,null,"Taux de couverture PAC annuel estimé"]
[null,"Besoins Elec","Puissance électrique max"]
[null,null,"Intensité électrique max"]
[null,null,"Puissance active"]
[null,"Hydraulique","Débit PAC préconisé"]
[null,null,"Diamètre préconisé des canalisations"]
[null,null,"HMT disponible"]
[null,null,"Pression maximale"]
[null,"Dimensions","Surface nécessaire installation PAC"]
[null,null,"Hauteur Pac"]
[null,null,"Largeur Pac"]
[null,null,"Profondeur Pac"]
[null,null,"Hauteur du plus gros ballon"]
[null,null,"Diametre du plus gros ballon"]
[null,"Puissance Sonore","P.sonore Charge partielle"]
[null,null,"P.sonore Pleine charge"]
[null,"Prix","PPHT estimé"]
[null,null,"code schéma"]
[null,"Données ECS","Choix Ballon serpentin"]
[null,null,"Choix Ballon stockage 1"]
[null,null,"Choix Ballon stockage 2"]
[null,null,"DS part pac à Tbase"]
[null,null,"DS part pac + appoint à Tbase"]
[null,null,"Debit Primaire préconisé"]
[null,null,"Debit Secondaire préconisé"]
["DEVIS","PANIER","code"]
[null,null,"nom"]
[null,null,"prix"]
[null,null,"qte"]
[null,null,"code"]
[null,null,"nom"]
[null,null,"prix"]
[null,null,"qte"]
[null,null,"code"]
[null,null,"nom"]
[null,null,"prix"]
[null,null,"qte"]
[null,null,"code"]
[null,null,"nom"]
[null,null,"prix"]
[null,null,"qte"]
[null,null,"code"]
[null,null,"nom"]
[null,null,"prix"]
[null,null,"qte"]
[null,null,"code"]
[null,null,"nom"]
[null,null,"prix"]
[null,null,"qte"]
[null,null,"code"]
[null,null,"nom"]
[null,null,"prix"]
[null,null,"qte"]
[null,null,"code"]
[null,null,"nom"]
[null,null,"prix"]
[null,null,"qte"]
[null,null,"code"]
[null,null,"nom"]
[null,null,"prix"]
[null,null,"qte"]
[null,null,"code"]
[null,null,"nom"]
[null,null,"prix"]
[null,null,"qte"]
[null,null,"code"]
[null,null,"nom"]
[null,null,"prix"]
[null,null,"qte"]
[null,null,"code"]
[null,null,"nom"]
[null,null,"prix"]
[null,null,"qte"]
[null,null,"code"]
[null,null,"nom"]
[null,null,"prix"]
[null,null,"qte"]
[null,null,"code"]
[null,null,"nom"]
[null,null,"prix"]
[null,null,"qte"]
[null,null,"code"]
[null,null,"nom"]
[null,null,"prix"]
[null,null,"qte"]
[null,null,"code"]
[null,null,"nom"]
[null,null,"prix"]
[null,null,"qte"]
[null,null,"code"]
[null,null,"nom"]
[null,null,"prix"]
[null,null,"qte"]
[null,"ACCESSOIRES","code"]
[null,null,"nom"]
[null,null,"prix"]
[null,null,"qte"]
[null,null,"code"]
[null,null,"nom"]
[null,null,"prix"]
[null,null,"qte"]
[null,null,"code"]
[null,null,"nom"]
[null,null,"prix"]
[null,null,"qte"]
[null,null,"code"]
[null,null,"nom"]
[null,null,"prix"]
[null,null,"qte"]
[null,null,"code"]
[null,null,"nom"]
[null,null,"prix"]
[null,null,"qte"]
[null,null,"code"]
[null,null,"nom"]
[null,null,"prix"]
[null,null,"qte"]
[null,null,"code"]
[null,null,"nom"]
[null,null,"prix"]
[null,null,"qte"]
[null,null,"code"]
[null,null,"nom"]
[null,null,"prix"]
[null,null,"qte"]
[null,null,"code"]
[null,null,"nom"]
[null,null,"prix"]
[null,null,"qte"]
[null,null,"code"]
[null,null,"nom"]
[null,null,"prix"]
[null,null,"qte"]
[null,"SERVICES","code"]
[null,null,"nom"]
[null,null,"prix"]
[null,null,"qte"]
[null,null,"code"]
[null,null,"nom"]
[null,null,"prix"]
[null,null,"qte"]
[null,null,"code"]
[null,null,"nom"]
[null,null,"prix"]
[null,null,"qte"]
[null,null,"code"]
[null,null,"nom"]
[null,null,"prix"]
[null,null,"qte"]
[null,null,"code"]
[null,null,"nom"]
[null,null,"prix"]
[null,null,"qte"]
[null,null,"code"]
[null,null,"nom"]
[null,null,"prix"]
[null,null,"qte"]

{"sheet":"PDF ECS","index":14,"n_rows":206,"n_cols":11,"rows_kept":206,"cut":false,"hidden":false,"merged":[[24,6,24,9],[200,1,200,4],[200,7,200,8],[200,9,200,10],[201,1,201,4],[201,7,201,8],[201,9,201,10],[196,1,196,4],[196,7,196,8],[196,9,196,10],[199,1,199,4],[199,7,199,8],[199,9,199,10],[194,1,194,4],[194,7,194,8],[194,9,194,10],[195,1,195,4],[195,7,195,8],[195,9,195,10],[192,1,192,4],[192,7,192,8],[192,9,192,10],[193,1,193,4],[193,7,193,8],[204,1,204,4],[204,7,204,8],[204,9,204,10],[205,1,205,4],[205,7,205,8],[205,9,205,10],[202,1,202,4],[202,7,202,8],[202,9,202,10],[203,1,203,4],[203,7,203,8],[203,9,203,10],[193,9,193,10],[190,1,190,4],[190,7,190,8],[190,9,190,10],[191,1,191,4],[191,7,191,8],[191,9,191,10],[188,1,188,4],[188,7,188,8],[188,9,188,10],[189,1,189,4],[189,7,189,8],[189,9,189,10],[186,1,186,4],[186,7,186,8],[186,9,186,10],[187,1,187,4],[187,7,187,8],[187,9,187,10],[181,1,181,4],[181,7,181,8],[181,9,181,10],[182,1,182,8],[182,9,182,10],[183,1,183,8],[183,9,183,10],[1,3,1,8],[3,1,6,10],[9,4,9,7],[10,4,10,7],[12,3,12,4],[12,5,12,6],[21,1,21,4],[16,1,16,3],[16,4,16,5],[16,7,16,8],[17,1,17,4],[17,7,17,8],[18,1,18,4],[18,7,18,8],[19,1,19,4],[20,1,20,4],[19,7,19,8],[44,3,44,4],[29,1,29,3],[29,7,29,9],[30,1,30,3],[31,1,31,3],[35,1,35,3],[36,1,36,3],[37,1,37,3],[38,1,38,3],[67,1,67,3],[61,1,61,3],[66,1,66,3],[62,1,62,3],[65,1,65,3],[68,1,68,3],[51,1,51,2],[51,3,51,4],[51,5,51,6],[52,1,52,2],[52,3,52,4],[52,5,52,6],[53,1,53,2],[53,3,53,4],[66,6,66,8],[65,6,65,8],[56,1,56,4],[57,1,57,4],[60,1,60,3],[51,7,51,8],[52,7,52,8],[53,7,53,8],[175,9,175,10],[176,1,176,4],[169,7,169,8],[169,9,169,10],[170,1,170,4],[171,1,171,4],[171,7,171,8],[171,9,171,10],[172,1,172,4],[172,7,172,8],[172,9,172,10],[170,7,170,8],[170,9,170,10],[173,7,173,8],[173,9,173,10],[174,1,174,4],[174,7,174,8],[174,9,174,10],[179,1,179,4],[180,1,180,4],[167,1,167,4],[179,9,179,10],[180,9,180,10],[179,7,179,8],[180,7,180,8],[165,1,165,4],[165,7,165,8],[165,9,165,10],[166,1,166,4],[169,1,169,4],[166,7,166,8],[166,9,166,10],[177,1,177,4],[177,7,177,8],[176,7,176,8],[176,9,176,10],[177,9,177,10],[178,1,178,4],[178,7,178,8],[178,9,178,10],[175,1,175,4],[175,7,175,8],[168,1,168,4],[168,7,168,8],[168,9,168,10],[173,1,173,4],[158,1,158,4],[160,1,161,10],[135,1,155,10],[164,1,164,4],[164,7,164,8],[164,9,164,10],[167,7,167,8],[167,9,167,10],[72,1,72,4],[72,5,72,6],[73,1,73,4],[73,5,73,6],[86,1,109,10],[114,1,133,10],[82,1,82,4],[134,5,134,6],[74,1,74,4],[74,5,74,6],[75,1,75,4],[75,5,75,6],[78,1,79,2],[78,3,78,5],[79,3,79,5],[25,1,25,4],[26,1,26,4],[27,1,27,4],[25,6,25,9],[26,6,26,9],[27,6,27,9],[24,1,24,2],[24,3,24,4],[49,1,49,2],[49,3,49,4],[44,1,44,2],[45,1,45,2],[47,1,47,2],[47,3,47,4],[47,7,47,8],[48,1,48,2],[48,3,48,4],[48,5,48,6],[48,7,48,8],[47,5,47,6],[32,1,32,3],[41,8,41,10],[42,8,42,10],[43,8,43,10]]}
[]
[null,null,null,"ECS",null,null,null,null,null,null,{"$f":"\"Version \"&version","v":"Version 4.0"}]
[]
[null,"Cet outil est avant tout un outil où les Utilisateurs se voient proposer une aide au dimensionnement pour les pompes à chaleur pour la production d'ECS collective. \nLes informations indiquées sur l'Outil sont données à titre indicatif, et sont susceptibles d’évoluer. Par ailleurs, les renseignements figurants sur l'Outil ne sont pas exhaustifs. Ils sont donnés sous réserve de modifications ayant été apportées depuis leur mise en ligne. ACV n'assume aucune responsabilité quant aux conséquences directes ou indirectes, quelle qu'en soit la nature, de l'utilisation de l’Outil et de son Contenu.\n"]
[]
[]
[]
[]
[]
[null,null,null,"Référence du projet:",{"$f":"ECS!F9","v":"Référence"}]
[null,null,null,"Date:",{"$f":"TODAY()","v":"2025-04-03"}]
[]
[null,null,null,"Technologie",null,{"$f":"_xlfn.SWITCH('Données ECS'!I12, \"AHP60\", \"Effipac R32\", \"AHP70\", \"Aptae R290\",\"\")","v":""}]
[]
[null,"Localisation",null,null,null,null,null,"Installation"]
[]
[null,"Ville",null,null,{"$f":"\"\"&'Données ECS'!I1","v":""},null,null,"Distance PAC / ballon",null,{"$f":"IF('Données ECS'!I7=\"\",\"---\",'Données ECS'!I7)","v":"---"},"m"]
[null,"Altitude",null,null,null,{"$f":"'Données ECS'!I2","v":0},"m","Distance PAC / Bâtiment",null,{"$f":"IF('Données ECS'!I8=\"\",\"---\",'Données ECS'!I8)","v":"---"},"m"]
[null,{"$f":"\"Température extérieure de base\"&IF('Données ECS'!I3='Données ECS'!J3,\"\",\" modifiée\")","v":"Température extérieure de base"},null,null,null,{"$f":"'Données ECS'!I3","v":0},"°C","Hauteur sous plafond",null,{"$f":"'Données ECS'!I10","v":0},"mm"]
[null,"Température maximale été",null,null,null,{"$f":"'Données ECS'!I4","v":0},"°C","Largeur de passage",null,{"$f":"'Données ECS'!I11","v":0},"mm"]
[null,"Traitement Anti Corrosion nécessaire",null,null,null,{"$f":"IF('Données ECS'!I5,\"oui\",\"non\")","v":"non"}]
[null,"Zone \"montagne ou bord de mer\"",null,null,null,{"$f":"IF('Données ECS'!I6=TRUE,\"oui\",\"non\")","v":"non"}]
[]
[null,"Besoins ECS"]
[null,{"$f":"INDEX('Validation des Données'!AA2:AA29,MATCH('Données ECS'!I13,'Validation des Données'!AB2:AB29,0))","v":{"$error":"#N/A"}},null,{"$f":"INDEX('Validation des Données'!AA2:AA29,MATCH('Données ECS'!I14,'Validation des Données'!AB2:AB29,0))","v":{"$error":"#N/A"}},null,null,{"$f":"IF(B27=\"Nombre de personnes par match\",_xlfn.SWITCH(D25,\"Stade de football\",\"2 matchs par jour espacés de 105 min\",\"Stade de rugby\",\"2 matchs par jour espacés de 90 min\",\"\"),IF(B27=\"Nombre de personnes en simultané\",\"2 activités sportives par jour espacées de 60 min\",\"\"))","v":""}]
[null,{"$f":"'Données ECS'!J15","v":0},null,null,null,{"$f":"'Données ECS'!I15","v":0},{"$f":"'Données ECS'!J18","v":0},null,null,null,{"$f":"'Données ECS'!I18","v":0}]
[null,{"$f":"'Données ECS'!J16","v":0},null,null,null,{"$f":"'Données ECS'!I16","v":0},{"$f":"'Données ECS'!J19","v":0},null,null,null,{"$f":"'Données ECS'!I19","v":0}]
[null,{"$f":"'Données ECS'!J17","v":0},null,null,null,{"$f":"'Données ECS'!I17","v":0},{"$f":"'Données ECS'!J20","v":0},null,null,null,{"$f":"'Données ECS'!I20","v":0}]
[]
[null,"Température minimale d'eau froide",null,null,{"$f":"\"\"&'Données ECS'!I21","v":""},"°C",null,{"$f":"IF('Données ECS'!I13='Validation des Données'!AB26,\"Nombre total de logements\",\"\")","v":""},null,null,{"$f":"IF('Données ECS'!I13='Validation des Données'!AB26,SUM(F26:F28,K26:K28),\"\")","v":""}]
[null,"Pertes thermiques du bouclage",null,null,{"$f":"\"\"&'Données ECS'!I22","v":""},"kW"]
[null,"Prise en charge anti-légionelle",null,null,{"$f":"ECS!P37","v":"Non"}]
[null,"Consigne anti-légionelle",null,null,{"$f":"\"\"&'Données ECS'!I23","v":""}]
[]
[null,"Estimation des besoins ECS"]
[null,"Volume journalier",null,null,{"$f":"'Données ECS'!L16","v":0},{"$f":"IF(E36=\"\",\"\",\"litres à 60°C\")","v":"litres à 60°C"}]
[null,"Volume plurihoraire",null,null,{"$f":"'Données ECS'!L17","v":0},"litres à 60°C"]
[null,"Durée plurihoraire",null,null,{"$f":"'Données ECS'!L18","v":"00:00:00"},"hh:mm"]
[null,"Volume 10min",null,null,{"$f":"IF('Données ECS'!L19<>\"\",'Données ECS'!L19,\"\")","v":""},{"$f":"IF(E39=\"\",\"\",\"litres à 60°C\")","v":""}]
[]
[]
[null,"Résultat",null,null,null,null,null,"Solution choisie",{"$f":"_xlfn.SWITCH('Données ECS'!I27,FALSE,\"Avec appoint électrique\",TRUE,\"Sans appoint électrique\",\"\")","v":""}]
[null,null,null,null,null,null,null,null,{"$f":"INDEX('Données ECS'!D30:F30,MATCH('Données ECS'!I29,'Données ECS'!D29:F29,0))","v":{"$error":"#N/A"}}]
[null,"Equipement",null,null,null,null,null,{"$f":"IF('Données ECS'!I29='Données ECS'!F29,\"Préférence PAC\",\"\")","v":""},{"$f":"IF('Données ECS'!I29='Données ECS'!F29,'Données ECS'!J28,\"\")","v":""}]
[null,"PAC",null,{"$f":"_xlfn.TEXTJOIN(\" \", TRUE, 'Données ECS'!I32,'Données ECS'!I31)","v":""}]
[null,"Appoint électrique total",null,{"$f":"'Données ECS'!I34","v":0},"kW"]
[]
[null,"Ballon ECS",null,"Production ECS",null,"Ballon  de stockage 1",null,"Ballon  de stockage 2"]
[null,"Type",null,{"$f":"\"\"&'Données ECS'!I64","v":""},null,{"$f":"\"\"&'Données ECS'!I65","v":""},null,{"$f":"\"\"&'Données ECS'!I66","v":""}]
[null,"Puissance ECS nécessaire",null,{"$f":"IF('Données ECS'!I24=0,\"\",IF(ROUNDUP(INDEX('Données ECS ECS'!G2:G16,'Données ECS'!I24),0)<>0,ROUNDUP(INDEX('Données ECS ECS'!G2:G16,'Données ECS'!I24),0),ROUNDUP(INDEX('Données ECS ECS'!F2:F16,'Données ECS'!I24),0)))","v":""},null,"kW"]
[]
[null,"Ballon primaire",null,"Ballon de charge 1",null,"Ballon de charge 2",null,"Ballon Supplémentaire"]
[null,"Type",null,{"$f":"\"\"&'Données ECS'!I35","v":""},null,{"$f":"\"\"&'Données ECS'!I39","v":""},null,{"$f":"\"\"&'Données ECS'!I40","v":""}]
[null,"Appoint(s) équipé(s)",null,{"$f":"_xlfn.TEXTJOIN(\" + \",TRUE,_xlfn.MAP('Données ECS'!I36:I38,_xlfn.LAMBDA(_xlpm.puissance,IF(_xlpm.puissance=\"\",\"\",_xlpm.puissance&\" kW\"))))","v":""},null,null,null,{"$f":"_xlfn.TEXTJOIN(\" + \",TRUE,_xlfn.MAP('Données ECS'!I41:I43,_xlfn.LAMBDA(_xlpm.puissance,IF(_xlpm.puissance=\"\",\"\",_xlpm.puissance&\" kW\"))))","v":""}]
[]
[null,"Performances estimées"]
[null,"Part PAC à la température de base (ECS)",null,null,null,{"$f":"'Données ECS'!I44","v":0}]
[null,"Puissance PAC à la température de base",null,null,null,{"$f":"'Données ECS'!I45","v":0},"kW"]
[]
[null,"Données électriques"]
[null,"Puissance électrique max",null,null,{"$f":"'Données ECS'!I47","v":0},"kW"]
[null,"Intensité électrique max",null,null,{"$f":"'Données ECS'!I48","v":0},"A"]
[null,"Puissance apparente",null,null,{"$f":"'Données ECS'!I49","v":0},"kVA"]
[]
[null,"Données hydrauliques",null,null,null,null,"Données hydrauliques préparateur ECS"]
[null,"HMT disponible PAC",null,null,{"$f":"'Données ECS'!I52","v":0},"kPa",{"$f":"IF('Données ECS'!K2=\"Serpentin\",\"Débit serpentin préconisé\",\"Débit primaire préconisé HeatSwitch\")","v":"Débit primaire préconisé HeatSwitch"},null,null,{"$f":"'Données ECS'!I69","v":0},"m³/h"]
[null,"Diamètre préconisé des canalisations*",null,null,{"$f":"IF(AND(J17<>\"---\",J18<>\"---\"),'Données ECS'!I51,\"---\")","v":"---"},null,{"$f":"IF('Données ECS'!K2=\"Serpentin\",\"\",\"Débit secondaire préconisé HeatSwitch\")","v":"Débit secondaire préconisé HeatSwitch"},null,null,{"$f":"'Données ECS'!I70","v":0},{"$f":"IF(J67<>0,\"m³/h\",\"\")","v":""}]
[null,"Débit global PAC préconisé",null,null,{"$f":"'Données ECS'!I50","v":0},"m³/h"]
[null,"Pression maximum de service",null,null,{"$f":"'Données ECS'!I53","v":0},"bar"]
[null,"*selon la distance PAC-ballons renseignée et la HMT PAC"]
[]
[null,"Dimensions et encombrement"]
[null,"Surface nécessaire installation PAC",null,null,null,{"$f":"'Données ECS'!I54","v":0},null,"m²"]
[null,"Dimensions 1 PAC (HxLxP)",null,null,null,{"$f":"_xlfn.TEXTJOIN(\" x \", TRUE, 'Données ECS'!I55:I57)","v":""},null,"mm"]
[null,"Hauteur minimale local",null,null,null,{"$f":"'Données ECS'!I58","v":0},null,"mm"]
[null,"Largeur de passage minimale local",null,null,null,{"$f":"'Données ECS'!I59","v":0},null,"mm"]
[]
[null,"Acoustique"]
[null,"Puissance sonore\nselon EN 12 102",null,"Pour une PAC à charge partielle",null,null,{"$f":"'Données ECS'!I60","v":0},"dB(A)"]
[null,null,null,"Pour la solution à pleine charge",null,null,{"$f":"'Données ECS'!I61","v":0},"dB(A)"]
[]
[null,"Coût"]
[null,"PPHT estimé",null,null,null,{"$f":"'Données ECS'!I62","v":0},"€"]
[]
[]
[null,"Schéma de principe"]
[null,{"$f":"getSchemaECS","v":{"$error":"#VALUE!"}}]
[]
[]
[]
[]
[]
[]
[]
[]
[]
[]
[]
[]
[]
[]
[]
[]
[]
[]
[]
[]
[]
[]
[]
[]
[]
[]
[null,"Caractéristiques dimensionnelles (en mm)"]
[null,{"$f":"getImageDimensionsPacECS","v":{"$error":"#VALUE!"}}]
[]
[]
[]
[]
[]
[]
[]
[]
[]
[]
[]
[]
[]
[]
[]
[]
[]
[]
[]
[null,null,null,null,null,{"$f":"\"\"&'Données ECS'!I31","v":""}]
[null,{"$f":"INDEX(ImageDimensionsPac!$C$3:$C$10,_xlfn.XMATCH(IFERROR(_xlfn.TEXTJOIN(\"_\",TRUE, _xlfn.TEXTBEFORE('Données ECS'!I31, \" \"),CHOOSE('Données ECS'!I33,\"S\",\"M\",\"L\",\"XL\")),\"X\"),ImageDimensionsPac!$A$3:$A$10))","v":{"$error":"#VALUE!"}}]
[]
[]
[]
[]
[]
[]
[]
[]
[]
[]
[]
[]
[]
[]
[]
[]
[]
[]
[]
[]
[]
[]
[null,"Récapitulatif des références "]
[]
[null,"Pour plus de détails sur les fournitures et services ci-dessous, veuillez consulter le catalogue ACV, disponible sur le site pro: https://www.acv.com/france/espace-professionnel"]
[]
[]
[null,"Fournitures obligatoires incluses dans le chiffrage "]
[null,"Désignation",null,null,null,"Quantité","Référence","PPHT Unitaire (€)",null,"PPHT Total (€)"]
[null,{"$f":"IF(INDIRECT(\"'Données ECS'!I\"&(ROW()-ROW(panier))*4+1+ROW('Données ECS'!panier))=0,\"\",INDIRECT(\"'Données ECS'!I\"&(ROW()-ROW(panier))*4+1+ROW('Données ECS'!panier)))","v":""},null,null,null,{"$f":"IF(B166=\"\",\"\",INDIRECT(\"'Données ECS'!I\"&(ROW()-ROW(panier))*4+3+ROW('Données ECS'!panier)))","v":""},{"$f":"IF(B166=\"\",\"\",INDIRECT(\"'Données ECS'!I\"&(ROW()-ROW(panier))*4+0+ROW('Données ECS'!panier)))","v":""},{"$f":"IF(B166=\"\",\"\",INDIRECT(\"'Données ECS'!I\"&(ROW()-ROW(panier))*4+2+ROW('Données ECS'!panier)))","v":""},null,{"$f":"IFERROR(F166*H166,\"\")","v":""}]
[null,{"$f":"IF(INDIRECT(\"'Données ECS'!I\"&(ROW()-ROW(panier))*4+1+ROW('Données ECS'!panier))=0,\"\",INDIRECT(\"'Données ECS'!I\"&(ROW()-ROW(panier))*4+1+ROW('Données ECS'!panier)))","v":""},null,null,null,{"$f":"IF(B167=\"\",\"\",INDIRECT(\"'Données ECS'!I\"&(ROW()-ROW(panier))*4+3+ROW('Données ECS'!panier)))","v":""},{"$f":"IF(B167=\"\",\"\",INDIRECT(\"'Données ECS'!I\"&(ROW()-ROW(panier))*4+0+ROW('Données ECS'!panier)))","v":""},{"$f":"IF(B167=\"\",\"\",INDIRECT(\"'Données ECS'!I\"&(ROW()-ROW(panier))*4+2+ROW('Données ECS'!panier)))","v":""},null,{"$f":"IFERROR(F167*H167,\"\")","v":""}]
[null,{"$f":"IF(INDIRECT(\"'Données ECS'!I\"&(ROW()-ROW(panier))*4+1+ROW('Données ECS'!panier))=0,\"\",INDIRECT(\"'Données ECS'!I\"&(ROW()-ROW(panier))*4+1+ROW('Données ECS'!panier)))","v":""},null,null,null,{"$f":"IF(B168=\"\",\"\",INDIRECT(\"'Données ECS'!I\"&(ROW()-ROW(panier))*4+3+ROW('Données ECS'!panier)))","v":""},{"$f":"IF(B168=\"\",\"\",INDIRECT(\"'Données ECS'!I\"&(ROW()-ROW(panier))*4+0+ROW('Données ECS'!panier)))","v":""},{"$f":"IF(B168=\"\",\"\",INDIRECT(\"'Données ECS'!I\"&(ROW()-ROW(panier))*4+2+ROW('Données ECS'!panier)))","v":""},null,""]
[null,{"$f":"IF(INDIRECT(\"'Données ECS'!I\"&(ROW()-ROW(panier))*4+1+ROW('Données ECS'!panier))=0,\"\",INDIRECT(\"'Données ECS'!I\"&(ROW()-ROW(panier))*4+1+ROW('Données ECS'!panier)))","v":""},null,null,null,{"$f":"IF(B169=\"\",\"\",INDIRECT(\"'Données ECS'!I\"&(ROW()-ROW(panier))*4+3+ROW('Données ECS'!panier)))","v":""},{"$f":"IF(B169=\"\",\"\",INDIRECT(\"'Données ECS'!I\"&(ROW()-ROW(panier))*4+0+ROW('Données ECS'!panier)))","v":""},{"$f":"IF(B169=\"\",\"\",INDIRECT(\"'Données ECS'!I\"&(ROW()-ROW(panier))*4+2+ROW('Données ECS'!panier)))","v":""},null,""]
[null,{"$f":"IF(INDIRECT(\"'Données ECS'!I\"&(ROW()-ROW(panier))*4+1+ROW('Données ECS'!panier))=0,\"\",INDIRECT(\"'Données ECS'!I\"&(ROW()-ROW(panier))*4+1+ROW('Données ECS'!panier)))","v":""},null,null,null,{"$f":"IF(B170=\"\",\"\",INDIRECT(\"'Données ECS'!I\"&(ROW()-ROW(panier))*4+3+ROW('Données ECS'!panier)))","v":""},{"$f":"IF(B170=\"\",\"\",INDIRECT(\"'Données ECS'!I\"&(ROW()-ROW(panier))*4+0+ROW('Données ECS'!panier)))","v":""},{"$f":"IF(B170=\"\",\"\",INDIRECT(\"'Données ECS'!I\"&(ROW()-ROW(panier))*4+2+ROW('Données ECS'!panier)))","v":""},null,""]
[null,{"$f":"IF(INDIRECT(\"'Données ECS'!I\"&(ROW()-ROW(panier))*4+1+ROW('Données ECS'!panier))=0,\"\",INDIRECT(\"'Données ECS'!I\"&(ROW()-ROW(panier))*4+1+ROW('Données ECS'!panier)))","v":""},null,null,null,{"$f":"IF(B171=\"\",\"\",INDIRECT(\"'Données ECS'!I\"&(ROW()-ROW(panier))*4+3+ROW('Données ECS'!panier)))","v":""},{"$f":"IF(B171=\"\",\"\",INDIRECT(\"'Données ECS'!I\"&(ROW()-ROW(panier))*4+0+ROW('Données ECS'!panier)))","v":""},{"$f":"IF(B171=\"\",\"\",INDIRECT(\"'Données ECS'!I\"&(ROW()-ROW(panier))*4+2+ROW('Données ECS'!panier)))","v":""},null,""]
[null,{"$f":"IF(INDIRECT(\"'Données ECS'!I\"&(ROW()-ROW(panier))*4+1+ROW('Données ECS'!panier))=0,\"\",INDIRECT(\"'Données ECS'!I\"&(ROW()-ROW(panier))*4+1+ROW('Données ECS'!panier)))","v":""},null,null,null,{"$f":"IF(B172=\"\",\"\",INDIRECT(\"'Données ECS'!I\"&(ROW()-ROW(panier))*4+3+ROW('Données ECS'!panier)))","v":""},{"$f":"IF(B172=\"\",\"\",INDIRECT(\"'Données ECS'!I\"&(ROW()-ROW(panier))*4+0+ROW('Données ECS'!panier)))","v":""},{"$f":"IF(B172=\"\",\"\",INDIRECT(\"'Données ECS'!I\"&(ROW()-ROW(panier))*4+2+ROW('Données ECS'!panier)))","v":""},null,""]
[null,{"$f":"IF(INDIRECT(\"'Données ECS'!I\"&(ROW()-ROW(panier))*4+1+ROW('Données ECS'!panier))=0,\"\",INDIRECT(\"'Données ECS'!I\"&(ROW()-ROW(panier))*4+1+ROW('Données ECS'!panier)))","v":""},null,null,null,{"$f":"IF(B173=\"\",\"\",INDIRECT(\"'Données ECS'!I\"&(ROW()-ROW(panier))*4+3+ROW('Données ECS'!panier)))","v":""},{"$f":"IF(B173=\"\",\"\",INDIRECT(\"'Données ECS'!I\"&(ROW()-ROW(panier))*4+0+ROW('Données ECS'!panier)))","v":""},{"$f":"IF(B173=\"\",\"\",INDIRECT(\"'Données ECS'!I\"&(ROW()-ROW(panier))*4+2+ROW('Données ECS'!panier)))","v":""},null,""]
[null,{"$f":"IF(INDIRECT(\"'Données ECS'!I\"&(ROW()-ROW(panier))*4+1+ROW('Données ECS'!panier))=0,\"\",INDIRECT(\"'Données ECS'!I\"&(ROW()-ROW(panier))*4+1+ROW('Données ECS'!panier)))","v":""},null,null,null,{"$f":"IF(B174=\"\",\"\",INDIRECT(\"'Données ECS'!I\"&(ROW()-ROW(panier))*4+3+ROW('Données ECS'!panier)))","v":""},{"$f":"IF(B174=\"\",\"\",INDIRECT(\"'Données ECS'!I\"&(ROW()-ROW(panier))*4+0+ROW('Données ECS'!panier)))","v":""},{"$f":"IF(B174=\"\",\"\",INDIRECT(\"'Données ECS'!I\"&(ROW()-ROW(panier))*4+2+ROW('Données ECS'!panier)))","v":""},null,""]
[null,{"$f":"IF(INDIRECT(\"'Données ECS'!I\"&(ROW()-ROW(panier))*4+1+ROW('Données ECS'!panier))=0,\"\",INDIRECT(\"'Données ECS'!I\"&(ROW()-ROW(panier))*4+1+ROW('Données ECS'!panier)))","v":""},null,null,null,{"$f":"IF(B175=\"\",\"\",INDIRECT(\"'Données ECS'!I\"&(ROW()-ROW(panier))*4+3+ROW('Données ECS'!panier)))","v":""},{"$f":"IF(B175=\"\",\"\",INDIRECT(\"'Données ECS'!I\"&(ROW()-ROW(panier))*4+0+ROW('Données ECS'!panier)))","v":""},{"$f":"IF(B175=\"\",\"\",INDIRECT(\"'Données ECS'!I\"&(ROW()-ROW(panier))*4+2+ROW('Données ECS'!panier)))","v":""},null,""]
[null,{"$f":"IF(INDIRECT(\"'Données ECS'!I\"&(ROW()-ROW(panier))*4+1+ROW('Données ECS'!panier))=0,\"\",INDIRECT(\"'Données ECS'!I\"&(ROW()-ROW(panier))*4+1+ROW('Données ECS'!panier)))","v":""},null,null,null,{"$f":"IF(B176=\"\",\"\",INDIRECT(\"'Données ECS'!I\"&(ROW()-ROW(panier))*4+3+ROW('Données ECS'!panier)))","v":""},{"$f":"IF(B176=\"\",\"\",INDIRECT(\"'Données ECS'!I\"&(ROW()-ROW(panier))*4+0+ROW('Données ECS'!panier)))","v":""},{"$f":"IF(B176=\"\",\"\",INDIRECT(\"'Données ECS'!I\"&(ROW()-ROW(panier))*4+2+ROW('Données ECS'!panier)))","v":""},null,""]
[null,{"$f":"IF(INDIRECT(\"'Données ECS'!I\"&(ROW()-ROW(panier))*4+1+ROW('Données ECS'!panier))=0,\"\",INDIRECT(\"'Données ECS'!I\"&(ROW()-ROW(panier))*4+1+ROW('Données ECS'!panier)))","v":""},null,null,null,{"$f":"IF(B177=\"\",\"\",INDIRECT(\"'Données ECS'!I\"&(ROW()-ROW(panier))*4+3+ROW('Données ECS'!panier)))","v":""},{"$f":"IF(B177=\"\",\"\",INDIRECT(\"'Données ECS'!I\"&(ROW()-ROW(panier))*4+0+ROW('Données ECS'!panier)))","v":""},{"$f":"IF(B177=\"\",\"\",INDIRECT(\"'Données ECS'!I\"&(ROW()-ROW(panier))*4+2+ROW('Données ECS'!panier)))","v":""},null,""]
[null,{"$f":"IF(INDIRECT(\"'Données ECS'!I\"&(ROW()-ROW(panier))*4+1+ROW('Données ECS'!panier))=0,\"\",INDIRECT(\"'Données ECS'!I\"&(ROW()-ROW(panier))*4+1+ROW('Données ECS'!panier)))","v":""},null,null,null,{"$f":"IF(B178=\"\",\"\",INDIRECT(\"'Données ECS'!I\"&(ROW()-ROW(panier))*4+3+ROW('Données ECS'!panier)))","v":""},{"$f":"IF(B178=\"\",\"\",INDIRECT(\"'Données ECS'!I\"&(ROW()-ROW(panier))*4+0+ROW('Données ECS'!panier)))","v":""},{"$f":"IF(B178=\"\",\"\",INDIRECT(\"'Données ECS'!I\"&(ROW()-ROW(panier))*4+2+ROW('Données ECS'!panier)))","v":""},null,""]
[null,{"$f":"IF(INDIRECT(\"'Données ECS'!I\"&(ROW()-ROW(panier))*4+1+ROW('Données ECS'!panier))=0,\"\",INDIRECT(\"'Données ECS'!I\"&(ROW()-ROW(panier))*4+1+ROW('Données ECS'!panier)))","v":""},null,null,null,{"$f":"IF(B179=\"\",\"\",INDIRECT(\"'Données ECS'!I\"&(ROW()-ROW(panier))*4+3+ROW('Données ECS'!panier)))","v":""},{"$f":"IF(B179=\"\",\"\",INDIRECT(\"'Données ECS'!I\"&(ROW()-ROW(panier))*4+0+ROW('Données ECS'!panier)))","v":""},{"$f":"IF(B179=\"\",\"\",INDIRECT(\"'Données ECS'!I\"&(ROW()-ROW(panier))*4+2+ROW('Données ECS'!panier)))","v":""},null,""]
[null,{"$f":"IF(INDIRECT(\"'Données ECS'!I\"&(ROW()-ROW(panier))*4+1+ROW('Données ECS'!panier))=0,\"\",INDIRECT(\"'Données ECS'!I\"&(ROW()-ROW(panier))*4+1+ROW('Données ECS'!panier)))","v":""},null,null,null,{"$f":"IF(B180=\"\",\"\",INDIRECT(\"'Données ECS'!I\"&(ROW()-ROW(panier))*4+3+ROW('Données ECS'!panier)))","v":""},{"$f":"IF(B180=\"\",\"\",INDIRECT(\"'Données ECS'!I\"&(ROW()-ROW(panier))*4+0+ROW('Données ECS'!panier)))","v":""},{"$f":"IF(B180=\"\",\"\",INDIRECT(\"'Données ECS'!I\"&(ROW()-ROW(panier))*4+2+ROW('Données ECS'!panier)))","v":""},null,""]
[null,{"$f":"IF(INDIRECT(\"'Données ECS'!I\"&(ROW()-ROW(panier))*4+1+ROW('Données ECS'!panier))=0,\"\",INDIRECT(\"'Données ECS'!I\"&(ROW()-ROW(panier))*4+1+ROW('Données ECS'!panier)))","v":""},null,null,null,{"$f":"IF(B181=\"\",\"\",INDIRECT(\"'Données ECS'!I\"&(ROW()-ROW(panier))*4+3+ROW('Données ECS'!panier)))","v":""},{"$f":"IF(B181=\"\",\"\",INDIRECT(\"'Données ECS'!I\"&(ROW()-ROW(panier))*4+0+ROW('Données ECS'!panier)))","v":""},{"$f":"IF(B181=\"\",\"\",INDIRECT(\"'Données ECS'!I\"&(ROW()-ROW(panier))*4+2+ROW('Données ECS'!panier)))","v":""},null,""]
[null,{"$f":"IF(INDIRECT(\"'Données ECS'!I\"&(ROW()-ROW(panier))*4+1+ROW('Données ECS'!panier))=0,\"\",INDIRECT(\"'Données ECS'!I\"&(ROW()-ROW(panier))*4+1+ROW('Données ECS'!panier)))","v":""},null,null,null,{"$f":"IF(B182=\"\",\"\",INDIRECT(\"'Données ECS'!I\"&(ROW()-ROW(panier))*4+3+ROW('Données ECS'!panier)))","v":""},{"$f":"IF(B182=\"\",\"\",INDIRECT(\"'Données ECS'!I\"&(ROW()-ROW(panier))*4+0+ROW('Données ECS'!panier)))","v":""},{"$f":"IF(B182=\"\",\"\",INDIRECT(\"'Données ECS'!I\"&(ROW()-ROW(panier))*4+2+ROW('Données ECS'!panier)))","v":""},null,""]
[null,"Total fournitures",null,null,null,null,null,null,null,{"$f":"SUM(J166:K182)","v":0}]
[null,"Total fournitures + services obligatoires (voir section service ci-dessous)",null,null,null,null,null,null,null,{"$f":"J183+IFERROR(IF(SEARCH(\"Obligatoire\",B201),J201,0),0)+IFERROR(IF(SEARCH(\"Obligatoire\",B202),J202,0),0)","v":0}]
[]
[null,"Accessoires optionnels non inclus dans le chiffrage "]
[null,"Désignation",null,null,null,"Quantité","Référence","PPHT Unitaire (€)",null,"PPHT Total (€)"]
[null,{"$f":"IF(INDIRECT(\"'Données ECS'!I\"&(ROW()-ROW(accessoires))*4+1+ROW('Données ECS'!accessoires))=0,\"\",INDIRECT(\"'Données ECS'!I\"&(ROW()-ROW(accessoires))*4+1+ROW('Données ECS'!accessoires)))","v":""},null,null,null,{"$f":"IF(B188=\"\",\"\",INDIRECT(\"'Données ECS'!I\"&(ROW()-ROW(accessoires))*4+3+ROW('Données ECS'!accessoires)))","v":""},{"$f":"IF(B188=\"\",\"\",INDIRECT(\"'Données ECS'!I\"&(ROW()-ROW(accessoires))*4+0+ROW('Données ECS'!accessoires)))","v":""},{"$f":"IF(B188=\"\",\"\",INDIRECT(\"'Données ECS'!I\"&(ROW()-ROW(accessoires))*4+2+ROW('Données ECS'!accessoires)))","v":""},null,{"$f":"IFERROR(F188*H188,\"\")","v":""}]
[null,{"$f":"IF(INDIRECT(\"'Données ECS'!I\"&(ROW()-ROW(accessoires))*4+1+ROW('Données ECS'!accessoires))=0,\"\",INDIRECT(\"'Données ECS'!I\"&(ROW()-ROW(accessoires))*4+1+ROW('Données ECS'!accessoires)))","v":""},null,null,null,{"$f":"IF(B189=\"\",\"\",INDIRECT(\"'Données ECS'!I\"&(ROW()-ROW(accessoires))*4+3+ROW('Données ECS'!accessoires)))","v":""},{"$f":"IF(B189=\"\",\"\",INDIRECT(\"'Données ECS'!I\"&(ROW()-ROW(accessoires))*4+0+ROW('Données ECS'!accessoires)))","v":""},{"$f":"IF(B189=\"\",\"\",INDIRECT(\"'Données ECS'!I\"&(ROW()-ROW(accessoires))*4+2+ROW('Données ECS'!accessoires)))","v":""},null,{"$f":"IFERROR(F189*H189,\"\")","v":""}]
[null,{"$f":"IF(INDIRECT(\"'Données ECS'!I\"&(ROW()-ROW(accessoires))*4+1+ROW('Données ECS'!accessoires))=0,\"\",INDIRECT(\"'Données ECS'!I\"&(ROW()-ROW(accessoires))*4+1+ROW('Données ECS'!accessoires)))","v":""},null,null,null,{"$f":"IF(B190=\"\",\"\",INDIRECT(\"'Données ECS'!I\"&(ROW()-ROW(accessoires))*4+3+ROW('Données ECS'!accessoires)))","v":""},{"$f":"IF(B190=\"\",\"\",INDIRECT(\"'Données ECS'!I\"&(ROW()-ROW(accessoires))*4+0+ROW('Données ECS'!accessoires)))","v":""},{"$f":"IF(B190=\"\",\"\",INDIRECT(\"'Données ECS'!I\"&(ROW()-ROW(accessoires))*4+2+ROW('Données ECS'!accessoires)))","v":""},null,""]
[null,{"$f":"IF(INDIRECT(\"'Données ECS'!I\"&(ROW()-ROW(accessoires))*4+1+ROW('Données ECS'!accessoires))=0,\"\",INDIRECT(\"'Données ECS'!I\"&(ROW()-ROW(accessoires))*4+1+ROW('Données ECS'!accessoires)))","v":""},null,null,null,{"$f":"IF(B191=\"\",\"\",INDIRECT(\"'Données ECS'!I\"&(ROW()-ROW(accessoires))*4+3+ROW('Données ECS'!accessoires)))","v":""},{"$f":"IF(B191=\"\",\"\",INDIRECT(\"'Données ECS'!I\"&(ROW()-ROW(accessoires))*4+0+ROW('Données ECS'!accessoires)))","v":""},{"$f":"IF(B191=\"\",\"\",INDIRECT(\"'Données ECS'!I\"&(ROW()-ROW(accessoires))*4+2+ROW('Données ECS'!accessoires)))","v":""},null,""]
[null,{"$f":"IF(INDIRECT(\"'Données ECS'!I\"&(ROW()-ROW(accessoires))*4+1+ROW('Données ECS'!accessoires))=0,\"\",INDIRECT(\"'Données ECS'!I\"&(ROW()-ROW(accessoires))*4+1+ROW('Données ECS'!accessoires)))","v":""},null,null,null,{"$f":"IF(B192=\"\",\"\",INDIRECT(\"'Données ECS'!I\"&(ROW()-ROW(accessoires))*4+3+ROW('Données ECS'!accessoires)))","v":""},{"$f":"IF(B192=\"\",\"\",INDIRECT(\"'Données ECS'!I\"&(ROW()-ROW(accessoires))*4+0+ROW('Données ECS'!accessoires)))","v":""},{"$f":"IF(B192=\"\",\"\",INDIRECT(\"'Données ECS'!I\"&(ROW()-ROW(accessoires))*4+2+ROW('Données ECS'!accessoires)))","v":""},null,""]
[null,{"$f":"IF(INDIRECT(\"'Données ECS'!I\"&(ROW()-ROW(accessoires))*4+1+ROW('Données ECS'!accessoires))=0,\"\",INDIRECT(\"'Données ECS'!I\"&(ROW()-ROW(accessoires))*4+1+ROW('Données ECS'!accessoires)))","v":""},null,null,null,{"$f":"IF(B193=\"\",\"\",INDIRECT(\"'Données ECS'!I\"&(ROW()-ROW(accessoires))*4+3+ROW('Données ECS'!accessoires)))","v":""},{"$f":"IF(B193=\"\",\"\",INDIRECT(\"'Données ECS'!I\"&(ROW()-ROW(accessoires))*4+0+ROW('Données ECS'!accessoires)))","v":""},{"$f":"IF(B193=\"\",\"\",INDIRECT(\"'Données ECS'!I\"&(ROW()-ROW(accessoires))*4+2+ROW('Données ECS'!accessoires)))","v":""},null,""]
[null,{"$f":"IF(INDIRECT(\"'Données ECS'!I\"&(ROW()-ROW(accessoires))*4+1+ROW('Données ECS'!accessoires))=0,\"\",INDIRECT(\"'Données ECS'!I\"&(ROW()-ROW(accessoires))*4+1+ROW('Données ECS'!accessoires)))","v":""},null,null,null,{"$f":"IF(B194=\"\",\"\",INDIRECT(\"'Données ECS'!I\"&(ROW()-ROW(accessoires))*4+3+ROW('Données ECS'!accessoires)))","v":""},{"$f":"IF(B194=\"\",\"\",INDIRECT(\"'Données ECS'!I\"&(ROW()-ROW(accessoires))*4+0+ROW('Données ECS'!accessoires)))","v":""},{"$f":"IF(B194=\"\",\"\",INDIRECT(\"'Données ECS'!I\"&(ROW()-ROW(accessoires))*4+2+ROW('Données ECS'!accessoires)))","v":""},null,""]
[null,{"$f":"IF(INDIRECT(\"'Données ECS'!I\"&(ROW()-ROW(accessoires))*4+1+ROW('Données ECS'!accessoires))=0,\"\",INDIRECT(\"'Données ECS'!I\"&(ROW()-ROW(accessoires))*4+1+ROW('Données ECS'!accessoires)))","v":""},null,null,null,{"$f":"IF(B195=\"\",\"\",INDIRECT(\"'Données ECS'!I\"&(ROW()-ROW(accessoires))*4+3+ROW('Données ECS'!accessoires)))","v":""},{"$f":"IF(B195=\"\",\"\",INDIRECT(\"'Données ECS'!I\"&(ROW()-ROW(accessoires))*4+0+ROW('Données ECS'!accessoires)))","v":""},{"$f":"IF(B195=\"\",\"\",INDIRECT(\"'Données ECS'!I\"&(ROW()-ROW(accessoires))*4+2+ROW('Données ECS'!accessoires)))","v":""},null,""]
[null,{"$f":"IF(INDIRECT(\"'Données ECS'!I\"&(ROW()-ROW(accessoires))*4+1+ROW('Données ECS'!accessoires))=0,\"\",INDIRECT(\"'Données ECS'!I\"&(ROW()-ROW(accessoires))*4+1+ROW('Données ECS'!accessoires)))","v":""},null,null,null,{"$f":"IF(B196=\"\",\"\",INDIRECT(\"'Données ECS'!I\"&(ROW()-ROW(accessoires))*4+3+ROW('Données ECS'!accessoires)))","v":""},{"$f":"IF(B196=\"\",\"\",INDIRECT(\"'Données ECS'!I\"&(ROW()-ROW(accessoires))*4+0+ROW('Données ECS'!accessoires)))","v":""},{"$f":"IF(B196=\"\",\"\",INDIRECT(\"'Données ECS'!I\"&(ROW()-ROW(accessoires))*4+2+ROW('Données ECS'!accessoires)))","v":""},null,""]
[null,{"$f":"IF(INDIRECT(\"'Données ECS'!I\"&(ROW()-ROW(accessoires))*4+1+ROW('Données ECS'!accessoires))=0,\"\",INDIRECT(\"'Données ECS'!I\"&(ROW()-ROW(accessoires))*4+1+ROW('Données ECS'!accessoires)))","v":""},null,null,null,{"$f":"IF(B197=\"\",\"\",INDIRECT(\"'Données ECS'!I\"&(ROW()-ROW(accessoires))*4+3+ROW('Données ECS'!accessoires)))","v":""},{"$f":"IF(B197=\"\",\"\",INDIRECT(\"'Données ECS'!I\"&(ROW()-ROW(accessoires))*4+0+ROW('Données ECS'!accessoires)))","v":""},{"$f":"IF(B197=\"\",\"\",INDIRECT(\"'Données ECS'!I\"&(ROW()-ROW(accessoires))*4+2+ROW('Données ECS'!accessoires)))","v":""},null,""]
[]
[null,"Services"]
[null,"Désignation",null,null,null,"Quantité","Référence","PPHT Unitaire (€)",null,"PPHT Total (€)"]
[null,{"$f":"IF(INDIRECT(\"'Données ECS'!I\"&(ROW()-ROW(services))*4+1+ROW('Données ECS'!services))=0,\"\",INDIRECT(\"'Données ECS'!I\"&(ROW()-ROW(services))*4+1+ROW('Données ECS'!services)))&IF(OR(INDIRECT(\"'Données ECS'!I\"&(ROW()-ROW(services))*4+0+ROW('Données ECS'!services))=\"880620\",INDIRECT(\"'Données ECS'!I\"&(ROW()-ROW(services))*4+0+ROW('Données ECS'!services))=\"880320\",INDIRECT(\"'Données ECS'!I\"&(ROW()-ROW(services))*4+0+ROW('Données ECS'!services))=\"880720\"),\" (Obligatoire)\",\"\")","v":""},null,null,null,{"$f":"IF(B201=\"\",\"\",INDIRECT(\"'Données ECS'!I\"&(ROW()-ROW(services))*4+3+ROW('Données ECS'!services)))","v":""},{"$f":"IF(B201=\"\",\"\",INDIRECT(\"'Données ECS'!I\"&(ROW()-ROW(services))*4+0+ROW('Données ECS'!services)))","v":""},{"$f":"IF(B201=\"\",\"\",INDIRECT(\"'Données ECS'!I\"&(ROW()-ROW(services))*4+2+ROW('Données ECS'!services)))","v":""},null,{"$f":"IFERROR(F201*H201,\"\")","v":""}]
[null,{"$f":"IF(INDIRECT(\"'Données ECS'!I\"&(ROW()-ROW(services))*4+1+ROW('Données ECS'!services))=0,\"\",INDIRECT(\"'Données ECS'!I\"&(ROW()-ROW(services))*4+1+ROW('Données ECS'!services)))&IF(OR(INDIRECT(\"'Données ECS'!I\"&(ROW()-ROW(services))*4+0+ROW('Données ECS'!services))=\"880621\",INDIRECT(\"'Données ECS'!I\"&(ROW()-ROW(services))*4+0+ROW('Données ECS'!services))=\"880321\"),\" (Obligatoire)\",\"\")","v":""},null,null,null,{"$f":"IF(B202=\"\",\"\",INDIRECT(\"'Données ECS'!I\"&(ROW()-ROW(services))*4+3+ROW('Données ECS'!services)))","v":""},{"$f":"IF(B202=\"\",\"\",INDIRECT(\"'Données ECS'!I\"&(ROW()-ROW(services))*4+0+ROW('Données ECS'!services)))","v":""},{"$f":"IF(B202=\"\",\"\",INDIRECT(\"'Données ECS'!I\"&(ROW()-ROW(services))*4+2+ROW('Données ECS'!services)))","v":""},null,{"$f":"IFERROR(F202*H202,\"\")","v":""}]
[null,{"$f":"IF(INDIRECT(\"'Données ECS'!I\"&(ROW()-ROW(services))*4+1+ROW('Données ECS'!services))=0,\"\",INDIRECT(\"'Données ECS'!I\"&(ROW()-ROW(services))*4+1+ROW('Données ECS'!services)))","v":""},null,null,null,{"$f":"IF(B203=\"\",\"\",INDIRECT(\"'Données ECS'!I\"&(ROW()-ROW(services))*4+3+ROW('Données ECS'!services)))","v":""},{"$f":"IF(B203=\"\",\"\",INDIRECT(\"'Données ECS'!I\"&(ROW()-ROW(services))*4+0+ROW('Données ECS'!services)))","v":""},{"$f":"IF(B203=\"\",\"\",INDIRECT(\"'Données ECS'!I\"&(ROW()-ROW(services))*4+2+ROW('Données ECS'!services)))","v":""},null,""]
[null,{"$f":"IF(INDIRECT(\"'Données ECS'!I\"&(ROW()-ROW(services))*4+1+ROW('Données ECS'!services))=0,\"\",INDIRECT(\"'Données ECS'!I\"&(ROW()-ROW(services))*4+1+ROW('Données ECS'!services)))","v":""},null,null,null,{"$f":"IF(B204=\"\",\"\",INDIRECT(\"'Données ECS'!I\"&(ROW()-ROW(services))*4+3+ROW('Données ECS'!services)))","v":""},{"$f":"IF(B204=\"\",\"\",INDIRECT(\"'Données ECS'!I\"&(ROW()-ROW(services))*4+0+ROW('Données ECS'!services)))","v":""},{"$f":"IF(B204=\"\",\"\",INDIRECT(\"'Données ECS'!I\"&(ROW()-ROW(services))*4+2+ROW('Données ECS'!services)))","v":""},null,""]
[null,{"$f":"IF(INDIRECT(\"'Données ECS'!I\"&(ROW()-ROW(services))*4+1+ROW('Données ECS'!services))=0,\"\",INDIRECT(\"'Données ECS'!I\"&(ROW()-ROW(services))*4+1+ROW('Données ECS'!services)))","v":""},null,null,null,{"$f":"IF(B205=\"\",\"\",INDIRECT(\"'Données ECS'!I\"&(ROW()-ROW(services))*4+3+ROW('Données ECS'!services)))","v":""},{"$f":"IF(B205=\"\",\"\",INDIRECT(\"'Données ECS'!I\"&(ROW()-ROW(services))*4+0+ROW('Données ECS'!services)))","v":""},{"$f":"IF(B205=\"\",\"\",INDIRECT(\"'Données ECS'!I\"&(ROW()-ROW(services))*4+2+ROW('Données ECS'!services)))","v":""},null,""]
[null,{"$f":"IF(INDIRECT(\"'Données ECS'!I\"&(ROW()-ROW(services))*4+1+ROW('Données ECS'!services))=0,\"\",INDIRECT(\"'Données ECS'!I\"&(ROW()-ROW(services))*4+1+ROW('Données ECS'!services)))","v":""},null,null,null,{"$f":"IF(B206=\"\",\"\",INDIRECT(\"'Données ECS'!I\"&(ROW()-ROW(services))*4+3+ROW('Données ECS'!services)))","v":""},{"$f":"IF(B206=\"\",\"\",INDIRECT(\"'Données ECS'!I\"&(ROW()-ROW(services))*4+0+ROW('Données ECS'!services)))","v":""},{"$f":"IF(B206=\"\",\"\",INDIRECT(\"'Données ECS'!I\"&(ROW()-ROW(services))*4+2+ROW('Données ECS'!services)))","v":""},null,""]

{"sheet":"Tutoriel chauffage Hybride","index":15,"n_rows":86,"n_cols":6,"rows_kept":86,"cut":false,"hidden":false,"merged":[[24,3,25,16],[27,3,29,4],[32,3,33,4],[27,5,29,7],[30,5,31,7],[32,5,33,7],[1,2,2,7],[7,1,7,2],[9,1,9,2],[71,4,72,16],[30,3,31,4],[44,4,45,16],[54,4,55,16],[59,4,59,16],[67,1,68,16],[58,1,58,2],[11,3,12,16],[14,1,14,2],[14,3,15,16],[16,3,17,16],[21,1,21,2],[22,3,23,16]]}
[]
[null,null,"Tutoriel interface chauffage hybride"]
[]
[]
[null,"Utilisez cette interface afin de dimensionner votre projet de chauffage hybride en plusieurs étapes:"]
[]
["1)","Paramétrez votre étude en remplissant les différents champs de données d'entrées:"]
[null,"Référence de l'étude",null,"Donnez un nom à votre étude, celui-ci sera le nom du document généré à l'issue de l'étude"]
[]
[null,"Localisation",null,"Indiquez la station météo la plus proche de votre projet, vous pouvez ensuite ajuster l'altitude ou directement la température extérieure de base"]
[null,null,null,"Choisissez si vous voulez appliquer un traitement anti-corrosion à la PAC"]
[null,null,null,"Pour certaines stations météo vous devrez indiquer si vous vous trouvez dans une zone montagne ou bord de mer: cela applique automatiquement un facteur correctif sur les performances de la PAC"]
[]
[]
[null,"Installation",null,"Indiquez les distances entre la PAC et le batiment et entre la PAC et le ballon, afin d'estimer le volume primaire contenu dans les canalisations. Si vous ne les connaissez pas, des valeurs par défaut sont initialisées."]
[]
[null,null,null,"Si vous avez des contraintes de tailles (hauteur sous plafond, passage de porte etc) veuillez les indiquer dans le champs contraintes chaufferie. Le volume primaire de votre solution sera, si possible, adapté à ces contraintes."]
[]
[]
[null,"Chaudière",null,"Indiquez la présence ou non d'un circuit ECS géré par la chaudière. Ce paramètre pourra avoir un impact sur le type d'hybridation proposé par l'outil"]
[]
[null,"Circuits de chauffage",null,"Paramétrez jusqu'à 5 circuits de chauffage. Appuyez sur \"+\" pour ajouter et sur \"-\" pour retirer un circuit."]
[null,null,null,"Indiquez le type de circuit (constant ou régulé) ainsi que sa puissance. Indiquez  systématiquement s'il s'agit d'un circuit plancher chauffant ou non (un circuit plancher chauffant ne peut être qu'un circuit régulé)"]
[]
[null,null,null,"Renseignez la consigne de température associée au circuit: Attention, pour qu'un circuit soit pris en charge par la PAC, il faut que les consignes de départ maximales présentent dans ce tableau soient respctées. Elles diffèrent selon le type de circuits et la technologie PAC:"]
[]
[]
[null,null,null,"Type de circuit",null,"Consigne départ maximale pour prise en charge possible par la PAC (°C)"]
[]
[]
[null,null,null,"Circuit régulé",null,80]
[]
[null,null,null,"Circuit constant",null,55]
[]
[]
[]
["2)","Choisissez votre objectif de dimensionnement"]
[null,"Faites votre choix selon 2 critères de performance PAC attendues:"]
[null,"Selon les besoins et les données à disposition, indiquez votre critère de sélection de la PAC: Part PAC à Tbase  ou  Taux de couverture annuel"]
[null,"Part PAC à Tbase :",null,null,"Rapport entre la puissance de la PAC à Tbase et les déperditions du bâtiment à Tbase"]
[null,"Taux de couverture annuel:",null,null,"Rapport entre l’énergie apportée par la PAC sur l’ensemble de la saison de chauffe et l’énergie nécessaire pour chauffer le bâtiment."]
[null,"• Selon l'emplacement géographique, une part PAC à Tbase de 30% peut représenter jusqu'à 80% de taux de couverture annuel."]
[null,"• Dans certaines régions à Tbase très basse il sera préférable d'utiliser le critère Taux de couverture annuel car la part PAC à Tbase peut-être égale à 0% mais le taux de couverture sera lui intéressant."]
[]
[null,"Préférence PAC (facultatif):",null,null,"Choisissez une PAC dans la liste déroulante. Un dimensionnement vous sera proposé avec cette dernière, si le paramétrage de l'étude le permet, dans la 3ème colonne des résultats."]
[]
[]
["3)","Générez des solutions, en cliquant sur le bouton prévu à cet effet"]
[null,null,null,"Attention, si vous modifiez les paramètres de l'étude après avoir généré des solutions, veuillez rappuyer sur \"générer des solutions\"."]
[]
["4)","Identifiez la solution la plus adaptée à votre projet: "]
[null,"Faites votre choix parmi 3 solutions complètes:"]
[null,"La solution la plus économique:",null,null,"Solution la moins chère en termes de coûts de fourniture."]
[null,"La solution la moins encombrante",null,null,"Solution occupant le moins de place en extérieur (surface PAC + dégagements). Cette solution peut parfois être la même que la solution « la + économique »."]
[null,"La solution choix PAC utilisateur",null,null,"Solution \"la plus économique\", avec la PAC sélectionnée dans l'onglet \"préférence PAC\". Attention, il est possible qu'il n'existe pas de solution dans cette colonne si le choix de la PAC n'est pas adapté à l'étude renseignée."]
[]
[]
[null,"Accédez à de nombreuses données techniques sur les solutions proposées:"]
[null,"PAC",null,null,"Choix de la PAC et nombre"]
[null,"Ballons de charge",null,null,"Possibilité de solutions jusqu’à 2 ballons :ballon de charge 1 et 2. "]
[null,"Circuit pris en charge par la PAC",null,null,"Indication sur le(s) circuit(s) pris en charge par la PAC, tels que calculés par l'outil."]
[]
[null,"Puissance totale PAC à Tbase",null,null,"Puissance calorifique totale à Tbase de la solution PAC"]
[null,"Part PAC à Tbase total",null,null,"Part PAC à Tbase de la solution PAC vis-à-vis des besoins de chauffage totaux de l'ensemble des circuits."]
[null,"Part PAC à Tbase circuit",null,null,"Part PAC à Tbase de la solution PAC vis-à-vis du circuit de chauffage pris en charge par celle-ci, dans le cas ou un seul circuit ne peut être pris en charge."]
[null,"Taux de couverture PAC annuel estimé total",null,null,null,"Taux de couverture annuel estimé de la solution PAC sur les besoins de chauffage totaux de l'ensemble des circuits."]
[null,"Taux de couverture PAC annuel estimé circuit",null,null,null,"Taux de couverture annuel estimé de la solution PAC sur circuit de chauffage pris en charge par celle-ci, dans le cas ou un seul circuit ne peut être pris en charge."]
[null,"Selon le type d'hybridation et le(s) circuit(s) pris en charge par la PAC, retrouvez des données totales, représentant les performances de la PAC sur l'installation totale, ou les données relatives au circuit pris en charge par la PAC, dans le cas où un seul circuit ne peut être pris en charge."]
[]
[]
[null,"Données électriques",null,null,"Puissance et intensité électrique max associées à la solution PAC "]
[null,null,null,null,"Puissance apparente associée à la solution (seulement PAC). Permet de donner une indication sur la possibilité ou non pour le client d’un tarif bleu. Un message s’affiche lorsque le tarif bleu est jugé possible, sur la base des données PAC et appoints."]
[]
[null,"Données hydrauliques",null,null,"Débit PAC préconisé de la solution, Diamètre des canalisations préconisé entre la/les PAC et le ballon. Hauteur manométrique disponible pour la solution "]
[null,null,null,null,"Pression maximale: Attention: la pression maximale est de 6 bar pour Izea châssis M et L. La pression max est de 3 bar pour Izea châssis S."]
[]
[null,"Données dimensionnelles",null,null,"Surface nécessaire à l’installation PAC, dimensions pour 1 PAC, hauteur et diamètre du plus gros ballon"]
[]
[null,"Données acoustiques",null,null,"\nPuissance sonore pour la solution PAC à pleine charge et puissance sonore pour une PAC à charge partielle, selon la norme EN 12102"]
[]
[null,"Coût",null,null,"Prix Public Hors Taxe de la solution choisie. Il s’agit d’une enveloppe. Le devis final peut légèrement différer du devis final."]
[]
["5)","Cliquez sur \"générer étude de prédimensionnement\" afin d'être redirigé vers la synthèse de l'étude"]
[null,"Vous retrouverez sur cette onglet un récapitulatif de votre étude ainsi qu'un schéma de principe de votre solution PAC et les dimensions de la PAC sélectionnée."]
[]
["6)","Cliquez sur \"télecharger le rapport\" si vous souhaitez sauvegarder votre étude sur votre PC"]

{"sheet":"Chauffage hybride","index":16,"n_rows":124,"n_cols":22,"rows_kept":124,"cut":false,"hidden":false,"merged":[[56,4,57,8],[56,15,57,18],[59,15,60,18],[40,11,40,12],[42,11,42,12],[42,14,42,15],[48,14,48,15],[50,14,50,15],[44,11,44,12],[30,5,30,8],[50,17,50,18],[44,14,44,15],[40,14,40,15],[44,5,44,6],[50,5,50,6],[50,11,50,12],[48,11,48,12],[46,11,46,12],[40,8,40,9],[42,8,42,9],[44,8,44,9],[46,8,46,9],[50,8,50,9],[48,17,48,18],[46,14,46,15],[0,6,1,16],[81,13,81,16],[8,5,8,17],[17,6,17,8],[79,13,79,16],[46,5,46,6],[48,5,48,6],[42,5,42,6],[59,9,59,10],[40,5,40,6],[16,17,16,18],[48,8,48,9],[16,6,16,8],[18,6,18,8],[20,6,20,8],[22,6,22,8],[76,25,76,26],[103,3,105,6],[86,3,86,6],[99,3,100,6],[100,8,100,11],[100,13,100,16],[83,8,83,11],[83,13,83,16],[83,18,83,21],[100,18,100,21],[77,8,77,11],[77,13,77,16],[81,8,81,11],[92,3,92,6],[88,3,88,6],[89,3,89,6],[20,2,20,5],[22,2,22,5],[24,2,24,4],[24,6,24,8],[123,15,124,15],[115,3,115,6],[123,8,124,9],[123,10,124,10],[123,7,124,7],[123,4,124,6],[108,3,108,6],[119,2,119,6],[121,2,121,6],[120,3,120,6],[117,3,117,6],[113,3,113,6],[18,17,18,18],[40,17,40,18],[42,17,42,18],[44,17,44,18],[46,17,46,18],[24,17,24,18],[22,17,22,18],[123,18,124,19],[123,20,124,20],[61,9,61,10],[113,18,113,20],[77,18,77,21],[70,1,70,21],[79,8,79,11],[81,18,81,21],[88,7,89,7],[91,7,92,7],[123,13,124,14],[106,3,106,6],[111,3,111,6],[113,8,113,10],[113,13,113,15],[79,18,79,21]]}
[null,null,null,null,null,null,"APPLICATION CHAUFFAGE HYBRIDE"]
[]
[]
[]
[]
[]
[]
[]
[null,null,null,null,null,"Référence"]
[]
[]
[]
[]
[]
[]
[]
[null,null,"Ville",null,null,null,"01 - AMBERIEU","40 - MONT DE MARSAN","40 - MONT DE MARSAN",null,null,null,null,"Distance PAC / ballon",null,null,null,null,null,"m"]
[]
[null,null,"Altitude",null,null,null,250,null,null,"m",null,null,null,"Distance PAC / Bâtiment",null,null,null,null,null,"m"]
[]
[null,null,"T° extérieure de base (Tbase)",null,null,null,-11,null,null,"°C",null,null,null,"Contraintes chaufferie / accès (si connues)"]
[]
[null,null,"Traitement Anti Corrosion",null,null,null,"Non",null,null,null,null,null,null,"Hauteur sous plafond",null,null,null,null,null,"mm"]
[]
[null,null,{"$f":"IF(VLOOKUP(G17,'Validation des Données'!A3:B174,2,FALSE)=0,\"\",VLOOKUP(G17,'Validation des Données'!A3:B174,2,FALSE))","v":""},null,null,null,null,"Non","Non",null,null,null,null,"Largeur de passage",null,null,null,null,null,"mm"]
[]
[]
[]
[]
[]
[null,null,null,"Type :",null,"Condensation",null,null,null,null,null,"Présence d'un réseau ECS géré par la chaudière seule",null,null,null,null,null,null,"Non"]
[]
[]
[]
[]
[]
[]
[null,null,null,null,null,null,null,null,null,"Ajouter un circuit",null,null,null,"Supprimer un circuit"]
[]
[]
[null,null,null,null,null,"Circuit 1"]
[]
[null,null,null,"Type"]
[]
[null,null,null,"Plancher chauffant"]
[]
[null,null,null,"Puissance circuit",null,null,null,"kW",null,null,"kW",null,null,"kW",null,null,"kW",null,null,"kW"]
[]
[null,null,null,"Consigne de départ",null,null,null,"°C",null,null,"°C",null,null,"°C",null,null,"°C",null,null,"°C"]
[]
[null,null,null,"Delta T°",null,null,null,"K",null,null,"K",null,null,"K",null,null,"K",null,null,"K"]
[]
[]
[]
[]
[]
[null,null,null,null,"Performances PAC attendues",null,null,null,null,null,null,null,null,null,null,"Préférence PAC (facultatif)"]
[]
[]
[null,null,null,"Part PAC à Température de base souhaitée",null,null,null,null,null,null,null,"%"]
[]
[null,null,null,"Taux de couverture annuel souhaité",null,null,null,null,null,null,null,"%"]
[]
[]
[]
[]
[]
[]
[]
[]
[null,"Ce dimensionnement est réalisé à titre indicatif afin de guider l'utilisateur vers un système en fonction des données d'entrées renseignées. Il ne remplace pas une étude de dimensionnement finale effectuée par le service Avant Vente ACV."]
[]
[]
[]
[]
[]
[]
[null,null,null,null,null,null,"PAC",null,{"$f":"IF(ISBLANK('Données Hybride'!D26),\"\",_xlfn.TEXTJOIN(\" x \", TRUE, 'Données Hybride'!D27, 'Données Hybride'!D26))","v":""},null,null,null,null,{"$f":"IF(ISBLANK('Données Hybride'!E26),\"\",_xlfn.TEXTJOIN(\" x \", TRUE, 'Données Hybride'!E27, 'Données Hybride'!E26))","v":""},null,null,null,null,{"$f":"IF(ISBLANK('Données Hybride'!F26),\"\",_xlfn.TEXTJOIN(\" x \", TRUE, 'Données Hybride'!F27, 'Données Hybride'!F26))","v":""}]
[]
[null,null,null,null,null,null,"Ballon de charge 1",null,{"$f":"IF(ISBLANK('Données Hybride'!D29),\"\",'Données Hybride'!D29)","v":""},null,null,null,null,{"$f":"IF(ISBLANK('Données Hybride'!E29),\"\",'Données Hybride'!E29)","v":""},null,null,null,null,{"$f":"IF(ISBLANK('Données Hybride'!F29),\"\",'Données Hybride'!F29)","v":""}]
[]
[null,null,null,null,null,null,"Ballon de charge 2",null,{"$f":"IF(ISBLANK('Données Hybride'!D30),\"\",'Données Hybride'!D30)","v":""},null,null,null,null,{"$f":"IF(ISBLANK('Données Hybride'!E30),\"\",'Données Hybride'!E30)","v":""},null,null,null,null,{"$f":"IF(ISBLANK('Données Hybride'!F30),\"\",'Données Hybride'!F30)","v":""}]
[]
[null,null,null,null,null,null,"Circuit(s) pris en charge(s) par la PAC",null,{"$f":"IF(ISBLANK('Données Hybride'!D31),\"\",'Données Hybride'!D31)","v":""},null,null,null,null,{"$f":"IF(ISBLANK('Données Hybride'!E31),\"\",'Données Hybride'!E31)","v":""},null,null,null,null,{"$f":"IF(ISBLANK('Données Hybride'!F31),\"\",'Données Hybride'!F31)","v":""}]
[]
[]
[null,null,null,"Puissance totale PAC à Tbase",null,null,null,null,null,{"$f":"IF(ISBLANK('Données Hybride'!D35),\"\",'Données Hybride'!D35)","v":""},"kW",null,null,null,{"$f":"IF(ISBLANK('Données Hybride'!E35),\"\",'Données Hybride'!E35)","v":""},"kW",null,null,null,{"$f":"IF(ISBLANK('Données Hybride'!F35),\"\",'Données Hybride'!F35)","v":""},"kW"]
[]
[null,null,null,"Part PAC à Tbase Total",null,null,null,null,null,{"$f":"IF(ISBLANK('Données Hybride'!D34),\"\",'Données Hybride'!D34*100)","v":""},"%",null,null,null,{"$f":"IF(ISBLANK('Données Hybride'!E34),\"\",'Données Hybride'!E34*100)","v":""},"%",null,null,null,{"$f":"IF(ISBLANK('Données Hybride'!F34),\"\",'Données Hybride'!F34*100)","v":""},"%"]
[null,null,null,{"$f":"IF(OR(I84=\"Tous circuits\",I41=\"\"),\"\",\"Part PAC à Tbase Circuit\")","v":""},null,null,null,null,null,{"$f":"IF(OR(I84=\"Tous circuits\",I41=\"\"),\"\",IF(ISBLANK('Données Hybride'!D32),\"\",'Données Hybride'!D32*100))","v":""},{"$f":"IF(OR(I84=\"Tous circuits\",I41=\"\"),\"\",IF(ISBLANK('Données Hybride'!D32),\"\",\"%\"))","v":""},null,null,null,{"$f":"IF(OR(N84=\"Tous circuits\",I41=\"\"),\"\",IF(ISBLANK('Données Hybride'!E32),\"\",'Données Hybride'!E32*100))","v":""},{"$f":"IF(OR(N84=\"Tous circuits\",I41=\"\"),\"\",\"%\")","v":""},null,null,null,{"$f":"IF(OR(S84=\"Tous circuits\",I41=\"\"),\"\",IF(ISBLANK('Données Hybride'!F32),\"\",'Données Hybride'!F32*100))","v":""},{"$f":"IF(OR(S84=\"Tous circuits\",I41=\"\"),\"\",\"%\")","v":""}]
[]
[null,null,null,null,null,null,"Taux de couverture PAC annuel totale",null,null,{"$f":"IF(ISBLANK('Données Hybride'!D36),\"\",'Données Hybride'!D36*100)","v":""},"%",null,null,null,{"$f":"IF(ISBLANK('Données Hybride'!E36),\"\",'Données Hybride'!E36*100)","v":""},"%",null,null,null,{"$f":"IF(ISBLANK('Données Hybride'!F36),\"\",'Données Hybride'!F36*100)","v":""},"%"]
[null,null,null,{"$f":"IF(OR(I84=\"Tous circuits\",I41=\"\"),\"\",\"Taux de couverture PAC annuel circuit\")","v":""},null,null,null,null,null,{"$f":"IF(OR(I84=\"Tous circuits\",I41=\"\"),\"\",IF(ISBLANK('Données Hybride'!D33),\"\",'Données Hybride'!D33*100))","v":""},{"$f":"IF(OR(I84=\"Tous circuits\",I41=\"\"),\"\",IF(ISBLANK('Données Hybride'!D32),\"\",\"%\"))","v":""},null,null,null,{"$f":"IF(OR(N84=\"Tous circuits\",I41=\"\"),\"\",IF(ISBLANK('Données Hybride'!E33),\"\",'Données Hybride'!E33*100))","v":""},{"$f":"IF(OR(N84=\"Tous circuits\",I41=\"\"),\"\",\"%\")","v":""},null,null,null,{"$f":"IF(OR(S84=\"Tous circuits\",I41=\"\"),\"\",IF(ISBLANK('Données Hybride'!F33),\"\",'Données Hybride'!F33*100))","v":""},{"$f":"IF(OR(S84=\"Tous circuits\",I41=\"\"),\"\",\"%\")","v":""}]
[]
[]
[null,null,null,null,null,null," Puissance électrique max",null,null,{"$f":"IF(ISBLANK('Données Hybride'!D37),\"\",'Données Hybride'!D37)","v":""},"kW",null,null,null,{"$f":"IF(ISBLANK('Données Hybride'!E37),\"\",'Données Hybride'!E37)","v":""},"kW",null,null,null,{"$f":"IF(ISBLANK('Données Hybride'!F37),\"\",'Données Hybride'!F37)","v":""},"kW"]
[]
[null,null,null,null,null,null,"Intensité électrique max",null,null,{"$f":"IF(ISBLANK('Données Hybride'!D38),\"\",'Données Hybride'!D38)","v":""},"A",null,null,null,{"$f":"IF(ISBLANK('Données Hybride'!E38),\"\",'Données Hybride'!E38)","v":""},"A",null,null,null,{"$f":"IF(ISBLANK('Données Hybride'!F38),\"\",'Données Hybride'!F38)","v":""},"A"]
[]
[null,null,null,"Puissance apparente",null,null,null,null,null,{"$f":"IF(ISBLANK('Données Hybride'!D39),\"\",'Données Hybride'!D39)","v":""},"kVA",null,null,null,{"$f":"IF(ISBLANK('Données Hybride'!E39),\"\",'Données Hybride'!E39)","v":""},"kVA",null,null,null,{"$f":"IF(ISBLANK('Données Hybride'!F39),\"\",'Données Hybride'!F39)","v":""},"kVA"]
[]
[]
[null,null,null,null,null,null,"Débit global PAC préconisé",null,null,{"$f":"IF(ISBLANK('Données Hybride'!D40),\"\",'Données Hybride'!D40)","v":""},"m³/h",null,null,null,{"$f":"IF(ISBLANK('Données Hybride'!E40),\"\",'Données Hybride'!E40)","v":""},"m³/h",null,null,null,{"$f":"IF(ISBLANK('Données Hybride'!F40),\"\",'Données Hybride'!F40)","v":""},"m³/h"]
[null,null,null,"Diamètre préconisé des canalisations"]
[null,null,null,null,null,null,null,null,null,{"$f":"IF(AND('Données Hybride'!I7<>\"\",'Données Hybride'!I8<>\"\"),IF(ISBLANK('Données Hybride'!D41),\"\",'Données Hybride'!D41),IF(ISBLANK('Données Hybride'!D41),\"\",\"---\"))","v":""},null,null,null,null,{"$f":"IF(AND('Données Hybride'!I7<>\"\",'Données Hybride'!I8<>\"\"),IF(ISBLANK('Données Hybride'!E41),\"\",'Données Hybride'!E41),IF(ISBLANK('Données Hybride'!E41),\"\",\"---\"))","v":""},null,null,null,null,{"$f":"IF(AND('Données Hybride'!I7<>\"\",'Données Hybride'!I8<>\"\"),IF(ISBLANK('Données Hybride'!F41),\"\",'Données Hybride'!F41),IF(ISBLANK('Données Hybride'!F41),\"\",\"---\"))","v":""}]
[]
[null,null,null,"HMT disponible",null,null,null,null,null,{"$f":"IF(ISBLANK('Données Hybride'!D42),\"\",'Données Hybride'!D42)","v":""},"kPa",null,null,null,{"$f":"IF(ISBLANK('Données Hybride'!E42),\"\",'Données Hybride'!E42)","v":""},"kPa",null,null,null,{"$f":"IF(ISBLANK('Données Hybride'!F42),\"\",'Données Hybride'!F42)","v":""},"kPa"]
[]
[null,null,null,"Pression maximum de service",null,null,null,null,null,{"$f":"IF(ISBLANK('Données Hybride'!D43),\"\",'Données Hybride'!D43)","v":""},"bar",null,null,null,{"$f":"IF(ISBLANK('Données Hybride'!E43),\"\",'Données Hybride'!E43)","v":""},"bar",null,null,null,{"$f":"IF(ISBLANK('Données Hybride'!F43),\"\",'Données Hybride'!F43)","v":""},"bar"]
[]
[]
[null,null,null,"Surface nécessaire installation PAC",null,null,null,null,null,{"$f":"IF(ISBLANK('Données Hybride'!D44),\"\",'Données Hybride'!D44)","v":""},"m²",null,null,null,{"$f":"IF(ISBLANK('Données Hybride'!E44),\"\",'Données Hybride'!E44)","v":""},"m²",null,null,null,{"$f":"IF(ISBLANK('Données Hybride'!F44),\"\",'Données Hybride'!F44)","v":""},"m²"]
[]
[null,null,null,"Dimensions 1 PAC (HxLxP)",null,null,null,null,{"$f":"IF(ISBLANK('Données Hybride'!D45),\"\",_xlfn.TEXTJOIN(\" x \",TRUE, 'Données Hybride'!D45:D47))","v":""},null,null,"mm",null,{"$f":"IF(ISBLANK('Données Hybride'!E45),\"\",_xlfn.TEXTJOIN(\" x \",TRUE, 'Données Hybride'!E45:E47))","v":""},null,null,"mm",null,{"$f":"IF(ISBLANK('Données Hybride'!F45),\"\",_xlfn.TEXTJOIN(\" x \",TRUE, 'Données Hybride'!F45:F47))","v":""},null,null,"mm"]
[]
[null,null,null,"Hauteur minimale local",null,null,null,null,null,{"$f":"IF(ISBLANK('Données Hybride'!D48),\"\",'Données Hybride'!D48)","v":""},"mm",null,null,null,{"$f":"IF(ISBLANK('Données Hybride'!E48),\"\",'Données Hybride'!E48)","v":""},"mm",null,null,null,{"$f":"IF(ISBLANK('Données Hybride'!F48),\"\",'Données Hybride'!F48)","v":""},"mm"]
[]
[null,null,null,"Largeur de passage minimale local",null,null,null,null,null,{"$f":"IF(ISBLANK('Données Hybride'!D49),\"\",'Données Hybride'!D49)","v":""},"mm",null,null,null,{"$f":"IF(ISBLANK('Données Hybride'!E49),\"\",'Données Hybride'!E49)","v":""},"mm",null,null,null,{"$f":"IF(ISBLANK('Données Hybride'!F49),\"\",'Données Hybride'!F49)","v":""},"mm"]
[]
[null,null,"Puissance sonore 1 PAC à charge partielle\nPuissance sonore 1 PAC à charge partielle\nPuissance sonore 1 PAC à charge partielle",null,null,null,null,null,null,{"$f":"IF(ISBLANK('Données Hybride'!D50),\"\",'Données Hybride'!D50)","v":""},"dB(A)",null,null,null,{"$f":"IF(ISBLANK('Données Hybride'!E50),\"\",'Données Hybride'!E50)","v":""},"dB(A)",null,null,null,{"$f":"IF(ISBLANK('Données Hybride'!F50),\"\",'Données Hybride'!F50)","v":""},"dB(A)"]
[null,null,null,"Selon la norme EN 12-102"]
[null,null,"Puissance sonore totale à pleine charge",null,null,null,null,null,null,{"$f":"IF(ISBLANK('Données Hybride'!D51),\"\",'Données Hybride'!D51)","v":""},"dB(A)",null,null,null,{"$f":"IF(ISBLANK('Données Hybride'!E51),\"\",'Données Hybride'!E51)","v":""},"dB(A)",null,null,null,{"$f":"IF(ISBLANK('Données Hybride'!F51),\"\",'Données Hybride'!F51)","v":""},"dB(A)"]
[]
[null,null,null,null,"PPHT estimé",null,null,null,{"$f":"IF(ISBLANK('Données Hybride'!D52),\"\",'Données Hybride'!D52)","v":""},null,"€",null,null,{"$f":"IF(ISBLANK('Données Hybride'!E52),\"\",'Données Hybride'!E52)","v":""},null,"€",null,null,{"$f":"IF(ISBLANK('Données Hybride'!F52),\"\",'Données Hybride'!F52)","v":""},null,"€"]

{"sheet":"Données Hybride","index":17,"n_rows":192,"n_cols":8,"rows_kept":192,"cut":false,"hidden":true,"merged":[[0,1,5,1],[17,1,21,1],[6,1,16,1],[23,0,52,0],[39,1,42,1],[43,1,48,1],[49,1,50,1],[51,1,52,1],[0,0,22,0],[60,0,191,0],[60,1,119,1],[128,1,167,1],[168,1,191,1],[23,7,52,7],[25,1,27,1],[28,1,29,1],[33,1,35,1],[36,1,38,1],[23,1,24,1],[30,1,32,1]]}
["Entrées","Localisation","Ville",{"$f":"'Chauffage hybride'!G17","v":"01 - AMBERIEU"},"Sans modification"]
[null,null,"Altitude",{"$f":"'Chauffage hybride'!G19","v":250}]
[null,null,"Température de base (Tbase)",{"$f":"'Chauffage hybride'!G21","v":-11},-11]
[null,null,"Température été (Tete)",35]
[null,null,"Traitement Anti Corrosion",{"$f":"'Chauffage hybride'!G23=\"Oui\"","v":false}]
[null,null,"BordDeMer / Montagne",{"$f":"IF('Chauffage hybride'!C25 = \"\",\"\",'Chauffage hybride'!G25=\"Oui\")","v":""}]
[null,"Installation","Distance PAC / ballon",{"$f":"\"\"&'Chauffage hybride'!R17","v":""}]
[null,null,"Distance PAC / Bâtiment",{"$f":"\"\"&'Chauffage hybride'!R19","v":""}]
[null,null,"taux de glycol"]
[null,null,"Régulation externe"]
[null,null,"Hauteur sous plafond",{"$f":"IF('Chauffage hybride'!R23=\"\",\"\",'Chauffage hybride'!R23)","v":""}]
[null,null,"Largeur de porte",{"$f":"IF('Chauffage hybride'!R25=\"\",\"\",'Chauffage hybride'!R25)","v":""}]
[null,null,"Gamme de Pac",{"$f":"IF(E13= 1,\"AHP60\",\"AHP70\")","v":"AHP70"},2]
[null,null,"PrésenceReseauECS",{"$f":"'Chauffage hybride'!S31=\"Oui\"","v":false}]
[null,null,"Filtre Hybride Choisi",1]
[null,null,"Part PAC à Température de base souhaitée",{"$f":"IF(AND(D15=1,'Chauffage hybride'!J60<>\"\"),'Chauffage hybride'!J60,\"\")","v":""}]
[null,null,"Taux de couverture souhaité",{"$f":"IF(AND(D15=2,'Chauffage hybride'!J62<>\"\"),'Chauffage hybride'!J62,\"\")","v":""}]
[null,"Circuit.s","Type",{"$f":"\"\"&'Chauffage hybride'!F43","v":""},{"$f":"\"\"&'Chauffage hybride'!I43","v":""},{"$f":"\"\"&'Chauffage hybride'!L43","v":""},{"$f":"\"\"&'Chauffage hybride'!O43","v":""},{"$f":"\"\"&'Chauffage hybride'!R43","v":""}]
[null,null,"Plancher chauffant",{"$f":"IF('Chauffage hybride'!F45 = \"\", \"\", 'Chauffage hybride'!F45=\"Oui\")","v":""},{"$f":"IF('Chauffage hybride'!I45 = \"\", \"\", 'Chauffage hybride'!I45=\"Oui\")","v":""},{"$f":"IF('Chauffage hybride'!L45 = \"\", \"\", 'Chauffage hybride'!L45=\"Oui\")","v":""},{"$f":"IF('Chauffage hybride'!O45 = \"\", \"\", 'Chauffage hybride'!O45=\"Oui\")","v":""},{"$f":"IF('Chauffage hybride'!R45 = \"\", \"\", 'Chauffage hybride'!R45=\"Oui\")","v":""}]
[null,null,"Puissance circuit",{"$f":"IF('Chauffage hybride'!F47 = \"\", \"\", 'Chauffage hybride'!F47)","v":""},{"$f":"IF('Chauffage hybride'!I47 = \"\", \"\", 'Chauffage hybride'!I47)","v":""},{"$f":"IF('Chauffage hybride'!L47 = \"\", \"\", 'Chauffage hybride'!L47)","v":""},{"$f":"IF('Chauffage hybride'!O47 = \"\", \"\", 'Chauffage hybride'!O47)","v":""},{"$f":"IF('Chauffage hybride'!R47 = \"\", \"\", 'Chauffage hybride'!R47)","v":""}]
[null,null,"Consigne de départ",{"$f":"IF('Chauffage hybride'!F49 = \"\", \"\", 'Chauffage hybride'!F49)","v":""},{"$f":"IF('Chauffage hybride'!I49 = \"\", \"\", 'Chauffage hybride'!I49)","v":""},{"$f":"IF('Chauffage hybride'!L49 = \"\", \"\", 'Chauffage hybride'!L49)","v":""},{"$f":"IF('Chauffage hybride'!O49 = \"\", \"\", 'Chauffage hybride'!O49)","v":""},{"$f":"IF('Chauffage hybride'!R49 = \"\", \"\", 'Chauffage hybride'!R49)","v":""}]
[null,null,"Delta T",{"$f":"IF('Chauffage hybride'!F51 = \"\", \"\", 'Chauffage hybride'!F51)","v":""},{"$f":"IF('Chauffage hybride'!I51 = \"\", \"\", 'Chauffage hybride'!I51)","v":""},{"$f":"IF('Chauffage hybride'!L51 = \"\", \"\", 'Chauffage hybride'!L51)","v":""},{"$f":"IF('Chauffage hybride'!O51 = \"\", \"\", 'Chauffage hybride'!O51)","v":""},{"$f":"IF('Chauffage hybride'!R51 = \"\", \"\", 'Chauffage hybride'!R51)","v":""}]
[null,"Objectif","Préférence PAC",{"$f":"IF(E23=\"\",\"\",INDEX('Préférence Pac'!A3:A15,MATCH(E23,_xlfn.ANCHORARRAY('Préférence Pac'!B3),0)))","v":""},{"$f":"\"\"&'Chauffage hybride'!P60","v":""}]
["Sorties","Solutions","nom","Economique","Encombrement","Economique - Choix Utilisateur",null,"Système choisi pour générer le PDF"]
[null,null,"nom pdf","La + économique","La - encombrante","Choix PAC utilisateur"]
[null,"Pac","nom Pac"]
[null,null,"nb Pac"]
[null,null,"ChassisPac"]
[null,"Ballons","Ballon de charge 1"]
[null,null,"Ballon de charge 2"]
[null,"Stats hybride","Cyrcuits Hybridés"]
[null,null,"Part PAC Circuit hybridés à Tbase"]
[null,null,"Taux de couverture PAC annuel circuit hybridés"]
[null,"Stats","Part PAC à Tbase"]
[null,null,"Puissance PAC à Tbase"]
[null,null,"Taux de couverture PAC annuel estimé"]
[null,"Besoins Elec","Puissance électrique max"]
[null,null,"Intensité électrique max"]
[null,null,"Puissance active"]
[null,"Hydraulique","Débit PAC préconisé"]
[null,null,"Diamètre préconisé des canalisations"]
[null,null,"HMT disponible"]
[null,null,"Pression maximum"]
[null,"Dimensions","Surface nécessaire installation PAC"]
[null,null,"Hauteur Pac"]
[null,null,"Largeur Pac"]
[null,null,"Profondeur Pac"]
[null,null,"Hauteur du plus gros ballon"]
[null,null,"Diametre du plus gros ballon"]
[null,"Puissance Sonore","P.sonore Charge partielle"]
[null,null,"P.sonore Pleine charge"]
[null,"Prix","PPHT estimé"]
[null,null,"code schéma"]
[]
[]
[]
[]
[]
[]
[]
["DEVIS","PANIER","code"]
[null,null,"nom"]
[null,null,"prix"]
[null,null,"qte"]
[null,null,"code"]
[null,null,"nom"]
[null,null,"prix"]
[null,null,"qte"]
[null,null,"code"]
[null,null,"nom"]
[null,null,"prix"]
[null,null,"qte"]
[null,null,"code"]
[null,null,"nom"]
[null,null,"prix"]
[null,null,"qte"]
[null,null,"code"]
[null,null,"nom"]
[null,null,"prix"]
[null,null,"qte"]
[null,null,"code"]
[null,null,"nom"]
[null,null,"prix"]
[null,null,"qte"]
[null,null,"code"]
[null,null,"nom"]
[null,null,"prix"]
[null,null,"qte"]
[null,null,"code"]
[null,null,"nom"]
[null,null,"prix"]
[null,null,"qte"]
[null,null,"code"]
[null,null,"nom"]
[null,null,"prix"]
[null,null,"qte"]
[null,null,"code"]
[null,null,"nom"]
[null,null,"prix"]
[null,null,"qte"]
[null,null,"code"]
[null,null,"nom"]
[null,null,"prix"]
[null,null,"qte"]
[null,null,"code"]
[null,null,"nom"]
[null,null,"prix"]
[null,null,"qte"]
[null,null,"code"]
[null,null,"nom"]
[null,null,"prix"]
[null,null,"qte"]
[null,null,"code"]
[null,null,"nom"]
[null,null,"prix"]
[null,null,"qte"]
[null,null,"code"]
[null,null,"nom"]
[null,null,"prix"]
[null,null,"qte"]
[null,null,"code"]
[null,null,"nom"]
[null,null,"prix"]
[null,null,"qte"]
[null,null,"code"]
[null,null,"nom"]
[null,null,"prix"]
[null,null,"qte"]
[null,"ACCESSOIRES","code"]
[null,null,"nom"]
[null,null,"prix"]
[null,null,"qte"]
[null,null,"code"]
[null,null,"nom"]
[null,null,"prix"]
[null,null,"qte"]
[null,null,"code"]
[null,null,"nom"]
[null,null,"prix"]
[null,null,"qte"]
[null,null,"code"]
[null,null,"nom"]
[null,null,"prix"]
[null,null,"qte"]
[null,null,"code"]
[null,null,"nom"]
[null,null,"prix"]
[null,null,"qte"]
[null,null,"code"]
[null,null,"nom"]
[null,null,"prix"]
[null,null,"qte"]
[null,null,"code"]
[null,null,"nom"]
[null,null,"prix"]
[null,null,"qte"]
[null,null,"code"]
[null,null,"nom"]
[null,null,"prix"]
[null,null,"qte"]
[null,null,"code"]
[null,null,"nom"]
[null,null,"prix"]
[null,null,"qte"]
[null,null,"code"]
[null,null,"nom"]
[null,null,"prix"]
[null,null,"qte"]
[null,"SERVICES","code"]
[null,null,"nom"]
[null,null,"prix"]
[null,null,"qte"]
[null,null,"code"]
[null,null,"nom"]
[null,null,"prix"]
[null,null,"qte"]
[null,null,"code"]
[null,null,"nom"]
[null,null,"prix"]
[null,null,"qte"]
[null,null,"code"]
[null,null,"nom"]
[null,null,"prix"]
[null,null,"qte"]
[null,null,"code"]
[null,null,"nom"]
[null,null,"prix"]
[null,null,"qte"]
[null,null,"code"]
[null,null,"nom"]
[null,null,"prix"]
[null,null,"qte"]

{"sheet":"PDF chauffage Hybride","index":18,"n_rows":189,"n_cols":12,"rows_kept":189,"cut":false,"hidden":false,"merged":[[117,1,138,10],[1,3,1,8],[9,4,9,7],[10,4,10,7],[14,1,14,3],[14,4,14,5],[14,7,14,8],[96,1,115,10],[116,5,116,6],[17,1,17,4],[18,1,18,4],[17,7,17,8],[18,7,18,8],[23,1,23,2],[15,1,15,4],[15,7,15,8],[16,1,16,4],[3,1,6,10],[91,1,93,10],[68,1,90,10],[24,1,24,2],[57,5,57,6],[34,8,34,10],[37,5,37,6],[30,11,31,11],[25,1,25,2],[48,1,48,3],[26,1,26,2],[30,8,31,9],[56,5,56,6],[55,5,55,6],[54,5,54,6],[30,10,31,10],[36,5,36,6],[31,5,31,6],[49,6,49,8],[40,5,40,6],[39,5,39,6],[30,5,30,6],[27,1,27,2],[30,1,30,4],[31,1,31,4],[54,1,54,4],[55,1,55,4],[56,1,56,4],[37,1,37,4],[50,1,50,3],[33,8,33,10],[64,1,64,4],[36,1,36,4],[39,1,39,2],[40,1,40,2],[40,3,40,4],[49,1,49,3],[51,6,51,8],[60,3,60,5],[61,3,61,5],[44,1,45,2],[43,1,43,3],[44,6,45,7],[60,1,61,2],[48,6,48,8],[57,1,57,4],[50,6,50,8],[39,3,39,4],[148,1,148,4],[148,7,148,8],[148,9,148,10],[149,1,149,4],[149,7,149,8],[149,9,149,10],[141,1,141,4],[143,1,144,10],[147,1,147,4],[147,7,147,8],[147,9,147,10],[152,1,152,4],[152,7,152,8],[152,9,152,10],[153,1,153,4],[153,7,153,8],[153,9,153,10],[150,1,150,4],[150,7,150,8],[150,9,150,10],[151,1,151,4],[151,7,151,8],[151,9,151,10],[156,1,156,4],[156,7,156,8],[156,9,156,10],[157,1,157,4],[157,7,157,8],[157,9,157,10],[154,1,154,4],[154,7,154,8],[154,9,154,10],[155,1,155,4],[155,7,155,8],[155,9,155,10],[160,1,160,4],[160,7,160,8],[160,9,160,10],[163,1,163,4],[163,7,163,8],[163,9,163,10],[158,1,158,4],[158,7,158,8],[158,9,158,10],[159,1,159,4],[159,7,159,8],[159,9,159,10],[161,1,161,4],[162,1,162,4],[161,9,161,10],[162,9,162,10],[161,7,161,8],[162,7,162,8],[169,1,169,4],[169,7,169,8],[169,9,169,10],[170,1,170,4],[170,7,170,8],[170,9,170,10],[164,1,164,4],[164,7,164,8],[164,9,164,10],[165,1,165,8],[165,9,165,10],[166,9,166,10],[166,1,166,8],[173,1,173,4],[173,7,173,8],[173,9,173,10],[174,1,174,4],[174,7,174,8],[174,9,174,10],[171,1,171,4],[171,7,171,8],[171,9,171,10],[172,1,172,4],[172,7,172,8],[172,9,172,10],[177,1,177,4],[177,7,177,8],[177,9,177,10],[178,1,178,4],[178,7,178,8],[178,9,178,10],[175,1,175,4],[175,7,175,8],[175,9,175,10],[176,1,176,4],[176,7,176,8],[176,9,176,10],[188,1,188,4],[188,7,188,8],[188,9,188,10],[185,1,185,4],[185,7,185,8],[185,9,185,10],[186,1,186,4],[186,7,186,8],[186,9,186,10],[183,1,183,4],[183,7,183,8],[183,9,183,10],[184,1,184,4],[184,7,184,8],[184,9,184,10],[179,1,179,4],[179,7,179,8],[187,1,187,4],[187,7,187,8],[187,9,187,10],[179,9,179,10],[182,1,182,4],[182,7,182,8],[182,9,182,10]]}
[]
[null,null,null,"CHAUFFAGE HYBRIDE",null,null,null,null,null,null,{"$f":"\"Version \"&version","v":"Version 4.0"}]
[]
[null,"Cet outil est avant tout un outil où les Utilisateurs se voient proposer une aide au dimensionnement pour les pompes à chaleur pour la production de chauffage collectif. \nLes informations indiquées sur l'Outil sont données à titre indicatif, et sont susceptibles d’évoluer. Par ailleurs, les renseignements figurant sur l'Outil ne sont pas exhaustifs. Ils sont donnés sous réserve de modifications ayant été apportées depuis leur mise en ligne. ACV n'assume aucune responsabilité quant aux conséquences directes ou indirectes, quelle qu'en soit la nature, de l'utilisation de l’Outil et de son Contenu.\n"]
[]
[]
[]
[]
[]
[null,null,null,"Référence du projet:",{"$f":"'Chauffage hybride'!F9","v":"Référence"}]
[null,null,null,"Date:",{"$f":"TODAY()","v":"2025-04-03"}]
[]
[null,"Localisation",null,null,null,null,null,"Installation"]
[]
[null,"Ville",null,null,{"$f":"\"\"&'Données Hybride'!I1","v":""},null,null,"Distance PAC / ballon",null,{"$f":"IF('Données Hybride'!I7=\"\",\"---\",'Données Hybride'!I7)","v":"---"},"m"]
[null,"Altitude",null,null,null,{"$f":"\"\"&'Données Hybride'!I2","v":""},"m","Distance PAC / Bâtiment",null,{"$f":"IF('Données Hybride'!I8=\"\",\"---\",'Données Hybride'!I8)","v":"---"},"m"]
[null,{"$f":"\"Température extérieure de base\"&IF('Données Hybride'!I3='Données Hybride'!J3,\"\",\" modifiée\")","v":"Température extérieure de base"},null,null,null,{"$f":"\"\"&'Données Hybride'!I3","v":""},"°C"]
[null,"Traitement Anti Corrosion nécessaire",null,null,null,{"$f":"IF('Données Hybride'!I5,\"oui\",\"non\")","v":"non"},null,"Hauteur sous plafond",null,{"$f":"\"\"&'Données Hybride'!I11","v":""},"mm"]
[null,"Zone \"montagne ou bord de mer\"",null,null,null,{"$f":"IF('Données Hybride'!I6=TRUE,\"oui\",\"non\")","v":"non"},null,"Largeur de passage",null,{"$f":"\"\"&'Données Hybride'!I12","v":""},"mm"]
[]
[null,"Circuits de chauffage"]
[]
[null,null,null,null,"Circuit 1","Circuit 2","Circuit 3","Circuit 4","Circuit 5"]
[null,"Type",null,"-",{"$f":"\"\"&'Données Hybride'!I18","v":""},{"$f":"\"\"&'Données Hybride'!J18","v":""},{"$f":"\"\"&'Données Hybride'!K18","v":""},{"$f":"\"\"&'Données Hybride'!L18","v":""},{"$f":"\"\"&'Données Hybride'!M18","v":""}]
[null,"Plancher chauffant",null,"-",{"$f":"_xlfn.SWITCH('Données Hybride'!I19, TRUE, \"oui\", FALSE, \"non\",\"\")","v":""},{"$f":"_xlfn.SWITCH('Données Hybride'!J19, TRUE, \"oui\", FALSE, \"non\",\"\")","v":""},{"$f":"_xlfn.SWITCH('Données Hybride'!K19, TRUE, \"oui\", FALSE, \"non\",\"\")","v":""},{"$f":"_xlfn.SWITCH('Données Hybride'!L19, TRUE, \"oui\", FALSE, \"non\",\"\")","v":""},{"$f":"_xlfn.SWITCH('Données Hybride'!M19, TRUE, \"oui\", FALSE, \"non\",\"\")","v":""}]
[null,"Puissance",null,"kW",{"$f":"\"\"&'Données Hybride'!I20","v":""},{"$f":"\"\"&'Données Hybride'!J20","v":""},{"$f":"\"\"&'Données Hybride'!K20","v":""},{"$f":"\"\"&'Données Hybride'!L20","v":""},{"$f":"\"\"&'Données Hybride'!M20","v":""}]
[null,"Consigne",null,"°C",{"$f":"\"\"&'Données Hybride'!I21","v":""},{"$f":"\"\"&'Données Hybride'!J21","v":""},{"$f":"\"\"&'Données Hybride'!K21","v":""},{"$f":"\"\"&'Données Hybride'!L21","v":""},{"$f":"\"\"&'Données Hybride'!M21","v":""}]
[null,"Delta T°",null,"K",{"$f":"\"\"&'Données Hybride'!I22","v":""},{"$f":"\"\"&'Données Hybride'!J22","v":""},{"$f":"\"\"&'Données Hybride'!K22","v":""},{"$f":"\"\"&'Données Hybride'!L22","v":""},{"$f":"\"\"&'Données Hybride'!M22","v":""}]
[]
[null,"Chaudière",null,null,null,null,null,null,"Performances attendues"]
[null,"Type de chaudière",null,null,null,"Condensation",null,null,{"$f":"_xlfn.SWITCH('Données Hybride'!I15,1, 'Données Hybride'!C16, 2, 'Données Hybride'!C17,\"\")","v":""},null,{"$f":"_xlfn.SWITCH('Données Hybride'!I15,1,'Données Hybride'!I16,2,'Données Hybride'!I17,\"\")","v":""},"%"]
[null,"Présence d'un réseau ECS géré par la chaudière seule",null,null,null,{"$f":"_xlfn.SWITCH('Données Hybride'!I14,  TRUE, \"oui\", FALSE, \"non\",\"\")","v":""}]
[]
[null,"Résultat",null,null,null,null,null,"Solution choisie",{"$f":"'Données Hybride'!I25","v":0}]
[null,null,null,null,null,null,null,{"$f":"IF('Données Hybride'!I25='Données Hybride'!F25,\"Préférence PAC\",\"\")","v":""},{"$f":"IF('Données Hybride'!I25='Données Hybride'!F25,'Données Hybride'!J23,\"\")","v":""}]
[null,"Equipement"]
[null,"PAC",null,null,null,{"$f":"_xlfn.TEXTJOIN(\" \", TRUE, 'Données Hybride'!I27,'Données Hybride'!I26)","v":""}]
[null,"Circuit(s) pris en charge(s) par la PAC",null,null,null,{"$f":"IF('Données Hybride'!I31=\"\",\"\",'Données Hybride'!I31)","v":""}]
[]
[null,"Ballon",null,"Ballon de charge 1",null,"Ballon de charge 2"]
[null,"Type",null,{"$f":"IF('Données Hybride'!I29=\"\",\"\",'Données Hybride'!I29)","v":""},null,{"$f":"IF('Données Hybride'!I30=\"\",\"\",'Données Hybride'!I30)","v":""}]
[]
[null,"Performances estimées"]
[null,"Puissance PAC à la température de base",null,null,{"$f":"'Données Hybride'!I35","v":0},"kW"]
[null,"Part PAC à la température de base",null,"Total",{"$f":"'Données Hybride'!I34","v":0},null,"Taux de couverture PAC annuel estimé",null,"Total",{"$f":"'Données Hybride'!I36","v":0}]
[null,null,null,"Circuit",{"$f":"'Données Hybride'!I32","v":0},null,null,null,"Circuit",{"$f":"'Données Hybride'!I33","v":0}]
[]
[null,"Données électriques",null,null,null,null,"Données hydrauliques"]
[null,"Puissance électrique max",null,null,{"$f":"'Données Hybride'!I37","v":0},"kW","HMT disponible PAC",null,null,{"$f":"'Données Hybride'!I42","v":0},"kPa"]
[null,"Intensité électrique max",null,null,{"$f":"'Données Hybride'!I38","v":0},"A","Diamètre préconisé des canalisations*",null,null,{"$f":"IF(AND(J15<>\"---\",J16<>\"---\"),'Données Hybride'!I41,\"---\")","v":"---"}]
[null,"Puissance apparente",null,null,{"$f":"'Données Hybride'!I39","v":0},"kVA","Débit global PAC préconisé",null,null,{"$f":"'Données Hybride'!I40","v":0},"m³/h"]
[null,null,null,null,null,null,"Pression maximum de service",null,null,{"$f":"'Données Hybride'!I43","v":0},"bar"]
[null,null,null,null,null,null,"*selon la distance PAC-ballons renseignée et la HMT PAC"]
[null,"Dimensions et encombrement"]
[null,"Surface nécessaire installation PAC",null,null,null,{"$f":"'Données Hybride'!I44","v":0},null,"m²"]
[null,"Dimensions 1 PAC (HxLxP)",null,null,null,{"$f":"_xlfn.TEXTJOIN(\" x \", TRUE, 'Données Hybride'!I45:I47)","v":""},null,"mm"]
[null,"Hauteur minimale local",null,null,null,{"$f":"'Données Hybride'!I48","v":0},null,"mm"]
[null,"Largeur de passage minimale local",null,null,null,{"$f":"'Données Hybride'!I49","v":0},null,"mm"]
[]
[null,"Acoustique"]
[null,"Puissance sonore\nselon EN 12 102",null,"Pour une PAC à charge partielle",null,null,{"$f":"'Données Hybride'!I50","v":0},"dB(A)"]
[null,null,null,"Pour la solution à pleine charge",null,null,{"$f":"'Données Hybride'!I51","v":0},"dB(A)"]
[]
[null,"Coût"]
[null,"PPHT estimé",null,null,null,{"$f":"'Données Hybride'!I52","v":0},"€"]
[]
[]
[null,"Schéma de principe"]
[null,{"$f":"getSchemaHybride","v":{"$error":"#VALUE!"}}]
[]
[]
[]
[]
[]
[]
[]
[]
[]
[]
[]
[]
[]
[]
[]
[]
[]
[]
[]
[]
[]
[]
[null,"Attention : il s’agit d’un schéma générique dans le cas d’une hybridation avec une chaudière ACV équipée d’une régulation B3000. Dans le cas d’un autre générateur ou pour toute demande de schéma spécifique, veuillez contacter notre service avant-vente et chiffrage."]
[]
[]
[]
[null,"Caractéristiques dimensionnelles (en mm)"]
[null,{"$f":"getImageDimensionsPacHybride","v":{"$error":"#VALUE!"}}]
[]
[]
[]
[]
[]
[]
[]
[]
[]
[]
[]
[]
[]
[]
[]
[]
[]
[]
[]
[null,null,null,null,null,{"$f":"IF('Données Hybride'!I26=\"\",\"\",'Données Hybride'!I26)","v":""}]
[null,{"$f":"INDEX(ImageDimensionsPac!$C$3:$C$10,_xlfn.XMATCH(IFERROR(_xlfn.TEXTJOIN(\"_\",TRUE, _xlfn.TEXTBEFORE('Données Hybride'!I26, \" \"),CHOOSE('Données Hybride'!I28,\"S\",\"M\",\"L\",\"XL\")),\"X\"),ImageDimensionsPac!$A$3:$A$10))","v":{"$error":"#VALUE!"}}]
[]
[]
[]
[]
[]
[]
[]
[]
[]
[]
[]
[]
[]
[]
[]
[]
[]
[]
[]
[]
[]
[]
[]
[null,"Récapitulatif des références "]
[]
[null,"Pour plus de détails sur les fournitures et services ci-dessous, veuillez consulter le catalogue ACV, disponible sur le site pro: https://www.acv.com/france/espace-professionnel"]
[]
[]
[null,"Fournitures obligatoires incluses dans le chiffrage "]
[null,"Désignation",null,null,null,"Quantité","Référence","PPHT Unitaire (€)",null,"PPHT Total (€)"]
[null,{"$f":"IF(INDIRECT(\"'Données Hybride'!I\"&(ROW()-ROW(panier))*4+1+ROW('Données Hybride'!panier))=0,\"\",INDIRECT(\"'Données Hybride'!I\"&(ROW()-ROW(panier))*4+1+ROW('Données Hybride'!panier)))","v":""},null,null,null,{"$f":"IF(B149=\"\",\"\",INDIRECT(\"'Données Hybride'!I\"&(ROW()-ROW(panier))*4+3+ROW('Données Hybride'!panier)))","v":""},{"$f":"IF(B149=\"\",\"\",INDIRECT(\"'Données Hybride'!I\"&(ROW()-ROW(panier))*4+0+ROW('Données Hybride'!panier)))","v":""},{"$f":"IF(B149=\"\",\"\",INDIRECT(\"'Données Hybride'!I\"&(ROW()-ROW(panier))*4+2+ROW('Données Hybride'!panier)))","v":""},null,{"$f":"IFERROR(F149*H149,\"\")","v":""}]
[null,{"$f":"IF(INDIRECT(\"'Données Hybride'!I\"&(ROW()-ROW(panier))*4+1+ROW('Données Hybride'!panier))=0,\"\",INDIRECT(\"'Données Hybride'!I\"&(ROW()-ROW(panier))*4+1+ROW('Données Hybride'!panier)))","v":""},null,null,null,{"$f":"IF(B150=\"\",\"\",INDIRECT(\"'Données Hybride'!I\"&(ROW()-ROW(panier))*4+3+ROW('Données Hybride'!panier)))","v":""},{"$f":"IF(B150=\"\",\"\",INDIRECT(\"'Données Hybride'!I\"&(ROW()-ROW(panier))*4+0+ROW('Données Hybride'!panier)))","v":""},{"$f":"IF(B150=\"\",\"\",INDIRECT(\"'Données Hybride'!I\"&(ROW()-ROW(panier))*4+2+ROW('Données Hybride'!panier)))","v":""},null,{"$f":"IFERROR(F150*H150,\"\")","v":""}]
[null,{"$f":"IF(INDIRECT(\"'Données Hybride'!I\"&(ROW()-ROW(panier))*4+1+ROW('Données Hybride'!panier))=0,\"\",INDIRECT(\"'Données Hybride'!I\"&(ROW()-ROW(panier))*4+1+ROW('Données Hybride'!panier)))","v":""},null,null,null,{"$f":"IF(B151=\"\",\"\",INDIRECT(\"'Données Hybride'!I\"&(ROW()-ROW(panier))*4+3+ROW('Données Hybride'!panier)))","v":""},{"$f":"IF(B151=\"\",\"\",INDIRECT(\"'Données Hybride'!I\"&(ROW()-ROW(panier))*4+0+ROW('Données Hybride'!panier)))","v":""},{"$f":"IF(B151=\"\",\"\",INDIRECT(\"'Données Hybride'!I\"&(ROW()-ROW(panier))*4+2+ROW('Données Hybride'!panier)))","v":""},null,""]
[null,{"$f":"IF(INDIRECT(\"'Données Hybride'!I\"&(ROW()-ROW(panier))*4+1+ROW('Données Hybride'!panier))=0,\"\",INDIRECT(\"'Données Hybride'!I\"&(ROW()-ROW(panier))*4+1+ROW('Données Hybride'!panier)))","v":""},null,null,null,{"$f":"IF(B152=\"\",\"\",INDIRECT(\"'Données Hybride'!I\"&(ROW()-ROW(panier))*4+3+ROW('Données Hybride'!panier)))","v":""},{"$f":"IF(B152=\"\",\"\",INDIRECT(\"'Données Hybride'!I\"&(ROW()-ROW(panier))*4+0+ROW('Données Hybride'!panier)))","v":""},{"$f":"IF(B152=\"\",\"\",INDIRECT(\"'Données Hybride'!I\"&(ROW()-ROW(panier))*4+2+ROW('Données Hybride'!panier)))","v":""},null,""]
[null,{"$f":"IF(INDIRECT(\"'Données Hybride'!I\"&(ROW()-ROW(panier))*4+1+ROW('Données Hybride'!panier))=0,\"\",INDIRECT(\"'Données Hybride'!I\"&(ROW()-ROW(panier))*4+1+ROW('Données Hybride'!panier)))","v":""},null,null,null,{"$f":"IF(B153=\"\",\"\",INDIRECT(\"'Données Hybride'!I\"&(ROW()-ROW(panier))*4+3+ROW('Données Hybride'!panier)))","v":""},{"$f":"IF(B153=\"\",\"\",INDIRECT(\"'Données Hybride'!I\"&(ROW()-ROW(panier))*4+0+ROW('Données Hybride'!panier)))","v":""},{"$f":"IF(B153=\"\",\"\",INDIRECT(\"'Données Hybride'!I\"&(ROW()-ROW(panier))*4+2+ROW('Données Hybride'!panier)))","v":""},null,""]
[null,{"$f":"IF(INDIRECT(\"'Données Hybride'!I\"&(ROW()-ROW(panier))*4+1+ROW('Données Hybride'!panier))=0,\"\",INDIRECT(\"'Données Hybride'!I\"&(ROW()-ROW(panier))*4+1+ROW('Données Hybride'!panier)))","v":""},null,null,null,{"$f":"IF(B154=\"\",\"\",INDIRECT(\"'Données Hybride'!I\"&(ROW()-ROW(panier))*4+3+ROW('Données Hybride'!panier)))","v":""},{"$f":"IF(B154=\"\",\"\",INDIRECT(\"'Données Hybride'!I\"&(ROW()-ROW(panier))*4+0+ROW('Données Hybride'!panier)))","v":""},{"$f":"IF(B154=\"\",\"\",INDIRECT(\"'Données Hybride'!I\"&(ROW()-ROW(panier))*4+2+ROW('Données Hybride'!panier)))","v":""},null,""]
[null,{"$f":"IF(INDIRECT(\"'Données Hybride'!I\"&(ROW()-ROW(panier))*4+1+ROW('Données Hybride'!panier))=0,\"\",INDIRECT(\"'Données Hybride'!I\"&(ROW()-ROW(panier))*4+1+ROW('Données Hybride'!panier)))","v":""},null,null,null,{"$f":"IF(B155=\"\",\"\",INDIRECT(\"'Données Hybride'!I\"&(ROW()-ROW(panier))*4+3+ROW('Données Hybride'!panier)))","v":""},{"$f":"IF(B155=\"\",\"\",INDIRECT(\"'Données Hybride'!I\"&(ROW()-ROW(panier))*4+0+ROW('Données Hybride'!panier)))","v":""},{"$f":"IF(B155=\"\",\"\",INDIRECT(\"'Données Hybride'!I\"&(ROW()-ROW(panier))*4+2+ROW('Données Hybride'!panier)))","v":""},null,""]
[null,{"$f":"IF(INDIRECT(\"'Données Hybride'!I\"&(ROW()-ROW(panier))*4+1+ROW('Données Hybride'!panier))=0,\"\",INDIRECT(\"'Données Hybride'!I\"&(ROW()-ROW(panier))*4+1+ROW('Données Hybride'!panier)))","v":""},null,null,null,{"$f":"IF(B156=\"\",\"\",INDIRECT(\"'Données Hybride'!I\"&(ROW()-ROW(panier))*4+3+ROW('Données Hybride'!panier)))","v":""},{"$f":"IF(B156=\"\",\"\",INDIRECT(\"'Données Hybride'!I\"&(ROW()-ROW(panier))*4+0+ROW('Données Hybride'!panier)))","v":""},{"$f":"IF(B156=\"\",\"\",INDIRECT(\"'Données Hybride'!I\"&(ROW()-ROW(panier))*4+2+ROW('Données Hybride'!panier)))","v":""},null,""]
[null,{"$f":"IF(INDIRECT(\"'Données Hybride'!I\"&(ROW()-ROW(panier))*4+1+ROW('Données Hybride'!panier))=0,\"\",INDIRECT(\"'Données Hybride'!I\"&(ROW()-ROW(panier))*4+1+ROW('Données Hybride'!panier)))","v":""},null,null,null,{"$f":"IF(B157=\"\",\"\",INDIRECT(\"'Données Hybride'!I\"&(ROW()-ROW(panier))*4+3+ROW('Données Hybride'!panier)))","v":""},{"$f":"IF(B157=\"\",\"\",INDIRECT(\"'Données Hybride'!I\"&(ROW()-ROW(panier))*4+0+ROW('Données Hybride'!panier)))","v":""},{"$f":"IF(B157=\"\",\"\",INDIRECT(\"'Données Hybride'!I\"&(ROW()-ROW(panier))*4+2+ROW('Données Hybride'!panier)))","v":""},null,""]
[null,{"$f":"IF(INDIRECT(\"'Données Hybride'!I\"&(ROW()-ROW(panier))*4+1+ROW('Données Hybride'!panier))=0,\"\",INDIRECT(\"'Données Hybride'!I\"&(ROW()-ROW(panier))*4+1+ROW('Données Hybride'!panier)))","v":""},null,null,null,{"$f":"IF(B158=\"\",\"\",INDIRECT(\"'Données Hybride'!I\"&(ROW()-ROW(panier))*4+3+ROW('Données Hybride'!panier)))","v":""},{"$f":"IF(B158=\"\",\"\",INDIRECT(\"'Données Hybride'!I\"&(ROW()-ROW(panier))*4+0+ROW('Données Hybride'!panier)))","v":""},{"$f":"IF(B158=\"\",\"\",INDIRECT(\"'Données Hybride'!I\"&(ROW()-ROW(panier))*4+2+ROW('Données Hybride'!panier)))","v":""},null,""]
[null,{"$f":"IF(INDIRECT(\"'Données Hybride'!I\"&(ROW()-ROW(panier))*4+1+ROW('Données Hybride'!panier))=0,\"\",INDIRECT(\"'Données Hybride'!I\"&(ROW()-ROW(panier))*4+1+ROW('Données Hybride'!panier)))","v":""},null,null,null,{"$f":"IF(B159=\"\",\"\",INDIRECT(\"'Données Hybride'!I\"&(ROW()-ROW(panier))*4+3+ROW('Données Hybride'!panier)))","v":""},{"$f":"IF(B159=\"\",\"\",INDIRECT(\"'Données Hybride'!I\"&(ROW()-ROW(panier))*4+0+ROW('Données Hybride'!panier)))","v":""},{"$f":"IF(B159=\"\",\"\",INDIRECT(\"'Données Hybride'!I\"&(ROW()-ROW(panier))*4+2+ROW('Données Hybride'!panier)))","v":""},null,""]
[null,{"$f":"IF(INDIRECT(\"'Données Hybride'!I\"&(ROW()-ROW(panier))*4+1+ROW('Données Hybride'!panier))=0,\"\",INDIRECT(\"'Données Hybride'!I\"&(ROW()-ROW(panier))*4+1+ROW('Données Hybride'!panier)))","v":""},null,null,null,{"$f":"IF(B160=\"\",\"\",INDIRECT(\"'Données Hybride'!I\"&(ROW()-ROW(panier))*4+3+ROW('Données Hybride'!panier)))","v":""},{"$f":"IF(B160=\"\",\"\",INDIRECT(\"'Données Hybride'!I\"&(ROW()-ROW(panier))*4+0+ROW('Données Hybride'!panier)))","v":""},{"$f":"IF(B160=\"\",\"\",INDIRECT(\"'Données Hybride'!I\"&(ROW()-ROW(panier))*4+2+ROW('Données Hybride'!panier)))","v":""},null,""]
[null,{"$f":"IF(INDIRECT(\"'Données Hybride'!I\"&(ROW()-ROW(panier))*4+1+ROW('Données Hybride'!panier))=0,\"\",INDIRECT(\"'Données Hybride'!I\"&(ROW()-ROW(panier))*4+1+ROW('Données Hybride'!panier)))","v":""},null,null,null,{"$f":"IF(B161=\"\",\"\",INDIRECT(\"'Données Hybride'!I\"&(ROW()-ROW(panier))*4+3+ROW('Données Hybride'!panier)))","v":""},{"$f":"IF(B161=\"\",\"\",INDIRECT(\"'Données Hybride'!I\"&(ROW()-ROW(panier))*4+0+ROW('Données Hybride'!panier)))","v":""},{"$f":"IF(B161=\"\",\"\",INDIRECT(\"'Données Hybride'!I\"&(ROW()-ROW(panier))*4+2+ROW('Données Hybride'!panier)))","v":""},null,""]
[null,null,null,null,null,{"$f":"IF(B162=\"\",\"\",INDIRECT(\"'Données Hybride'!I\"&(ROW()-ROW(panier))*4+3+ROW('Données Hybride'!panier)))","v":""},{"$f":"IF(B162=\"\",\"\",INDIRECT(\"'Données Hybride'!I\"&(ROW()-ROW(panier))*4+0+ROW('Données Hybride'!panier)))","v":""},{"$f":"IF(B162=\"\",\"\",INDIRECT(\"'Données Hybride'!I\"&(ROW()-ROW(panier))*4+2+ROW('Données Hybride'!panier)))","v":""},null,""]
[null,null,null,null,null,{"$f":"IF(B163=\"\",\"\",INDIRECT(\"'Données Hybride'!I\"&(ROW()-ROW(panier))*4+3+ROW('Données Hybride'!panier)))","v":""},{"$f":"IF(B163=\"\",\"\",INDIRECT(\"'Données Hybride'!I\"&(ROW()-ROW(panier))*4+0+ROW('Données Hybride'!panier)))","v":""},{"$f":"IF(B163=\"\",\"\",INDIRECT(\"'Données Hybride'!I\"&(ROW()-ROW(panier))*4+2+ROW('Données Hybride'!panier)))","v":""},null,""]
[null,{"$f":"IF(INDIRECT(\"'Données Hybride'!I\"&(ROW()-ROW(panier))*4+1+ROW('Données Hybride'!panier))=0,\"\",INDIRECT(\"'Données Hybride'!I\"&(ROW()-ROW(panier))*4+1+ROW('Données Hybride'!panier)))","v":""},null,null,null,{"$f":"IF(B164=\"\",\"\",INDIRECT(\"'Données Hybride'!I\"&(ROW()-ROW(panier))*4+3+ROW('Données Hybride'!panier)))","v":""},{"$f":"IF(B164=\"\",\"\",INDIRECT(\"'Données Hybride'!I\"&(ROW()-ROW(panier))*4+0+ROW('Données Hybride'!panier)))","v":""},{"$f":"IF(B164=\"\",\"\",INDIRECT(\"'Données Hybride'!I\"&(ROW()-ROW(panier))*4+2+ROW('Données Hybride'!panier)))","v":""},null,""]
[null,{"$f":"IF(INDIRECT(\"'Données Hybride'!I\"&(ROW()-ROW(panier))*4+1+ROW('Données Hybride'!panier))=0,\"\",INDIRECT(\"'Données Hybride'!I\"&(ROW()-ROW(panier))*4+1+ROW('Données Hybride'!panier)))","v":""},null,null,null,{"$f":"IF(B165=\"\",\"\",INDIRECT(\"'Données Hybride'!I\"&(ROW()-ROW(panier))*4+3+ROW('Données Hybride'!panier)))","v":""},{"$f":"IF(B165=\"\",\"\",INDIRECT(\"'Données Hybride'!I\"&(ROW()-ROW(panier))*4+0+ROW('Données Hybride'!panier)))","v":""},{"$f":"IF(B165=\"\",\"\",INDIRECT(\"'Données Hybride'!I\"&(ROW()-ROW(panier))*4+2+ROW('Données Hybride'!panier)))","v":""},null,""]
[null,"Total fournitures",null,null,null,null,null,null,null,{"$f":"SUM(J149:K165)","v":0}]
[null,"Total fournitures + services obligatoires (voir section service ci-dessous)",null,null,null,null,null,null,null,{"$f":"J166+IFERROR(IF(SEARCH(\"Obligatoire\",B184),J184,0),0)+IFERROR(IF(SEARCH(\"Obligatoire\",B185),J185,0),0)","v":0}]
[]
[null,"Accessoires optionnels non inclus dans le chiffrage "]
[null,"Désignation",null,null,null,"Quantité","Référence","PPHT Unitaire (€)",null,"PPHT Total (€)"]
[null,{"$f":"IF(INDIRECT(\"'Données Hybride'!I\"&(ROW()-ROW(accessoires))*4+1+ROW('Données Hybride'!accessoires))=0,\"\",INDIRECT(\"'Données Hybride'!I\"&(ROW()-ROW(accessoires))*4+1+ROW('Données Hybride'!accessoires)))","v":""},null,null,null,{"$f":"IF(B171=\"\",\"\",INDIRECT(\"'Données Hybride'!I\"&(ROW()-ROW(accessoires))*4+3+ROW('Données Hybride'!accessoires)))","v":""},{"$f":"IF(B171=\"\",\"\",INDIRECT(\"'Données Hybride'!I\"&(ROW()-ROW(accessoires))*4+0+ROW('Données Hybride'!accessoires)))","v":""},{"$f":"IF(B171=\"\",\"\",INDIRECT(\"'Données Hybride'!I\"&(ROW()-ROW(accessoires))*4+2+ROW('Données Hybride'!accessoires)))","v":""},null,{"$f":"IFERROR(G171*F171,\"\")","v":""}]
[null,{"$f":"IF(INDIRECT(\"'Données Hybride'!I\"&(ROW()-ROW(accessoires))*4+1+ROW('Données Hybride'!accessoires))=0,\"\",INDIRECT(\"'Données Hybride'!I\"&(ROW()-ROW(accessoires))*4+1+ROW('Données Hybride'!accessoires)))","v":""},null,null,null,{"$f":"IF(B172=\"\",\"\",INDIRECT(\"'Données Hybride'!I\"&(ROW()-ROW(accessoires))*4+3+ROW('Données Hybride'!accessoires)))","v":""},{"$f":"IF(B172=\"\",\"\",INDIRECT(\"'Données Hybride'!I\"&(ROW()-ROW(accessoires))*4+0+ROW('Données Hybride'!accessoires)))","v":""},{"$f":"IF(B172=\"\",\"\",INDIRECT(\"'Données Hybride'!I\"&(ROW()-ROW(accessoires))*4+2+ROW('Données Hybride'!accessoires)))","v":""},null,{"$f":"IFERROR(G172*F172,\"\")","v":""}]
[null,{"$f":"IF(INDIRECT(\"'Données Hybride'!I\"&(ROW()-ROW(accessoires))*4+1+ROW('Données Hybride'!accessoires))=0,\"\",INDIRECT(\"'Données Hybride'!I\"&(ROW()-ROW(accessoires))*4+1+ROW('Données Hybride'!accessoires)))","v":""},null,null,null,{"$f":"IF(B173=\"\",\"\",INDIRECT(\"'Données Hybride'!I\"&(ROW()-ROW(accessoires))*4+3+ROW('Données Hybride'!accessoires)))","v":""},{"$f":"IF(B173=\"\",\"\",INDIRECT(\"'Données Hybride'!I\"&(ROW()-ROW(accessoires))*4+0+ROW('Données Hybride'!accessoires)))","v":""},{"$f":"IF(B173=\"\",\"\",INDIRECT(\"'Données Hybride'!I\"&(ROW()-ROW(accessoires))*4+2+ROW('Données Hybride'!accessoires)))","v":""},null,""]
[null,{"$f":"IF(INDIRECT(\"'Données Hybride'!I\"&(ROW()-ROW(accessoires))*4+1+ROW('Données Hybride'!accessoires))=0,\"\",INDIRECT(\"'Données Hybride'!I\"&(ROW()-ROW(accessoires))*4+1+ROW('Données Hybride'!accessoires)))","v":""},null,null,null,{"$f":"IF(B174=\"\",\"\",INDIRECT(\"'Données Hybride'!I\"&(ROW()-ROW(accessoires))*4+3+ROW('Données Hybride'!accessoires)))","v":""},{"$f":"IF(B174=\"\",\"\",INDIRECT(\"'Données Hybride'!I\"&(ROW()-ROW(accessoires))*4+0+ROW('Données Hybride'!accessoires)))","v":""},{"$f":"IF(B174=\"\",\"\",INDIRECT(\"'Données Hybride'!I\"&(ROW()-ROW(accessoires))*4+2+ROW('Données Hybride'!accessoires)))","v":""},null,""]
[null,{"$f":"IF(INDIRECT(\"'Données Hybride'!I\"&(ROW()-ROW(accessoires))*4+1+ROW('Données Hybride'!accessoires))=0,\"\",INDIRECT(\"'Données Hybride'!I\"&(ROW()-ROW(accessoires))*4+1+ROW('Données Hybride'!accessoires)))","v":""},null,null,null,{"$f":"IF(B175=\"\",\"\",INDIRECT(\"'Données Hybride'!I\"&(ROW()-ROW(accessoires))*4+3+ROW('Données Hybride'!accessoires)))","v":""},{"$f":"IF(B175=\"\",\"\",INDIRECT(\"'Données Hybride'!I\"&(ROW()-ROW(accessoires))*4+0+ROW('Données Hybride'!accessoires)))","v":""},{"$f":"IF(B175=\"\",\"\",INDIRECT(\"'Données Hybride'!I\"&(ROW()-ROW(accessoires))*4+2+ROW('Données Hybride'!accessoires)))","v":""},null,""]
[null,{"$f":"IF(INDIRECT(\"'Données Hybride'!I\"&(ROW()-ROW(accessoires))*4+1+ROW('Données Hybride'!accessoires))=0,\"\",INDIRECT(\"'Données Hybride'!I\"&(ROW()-ROW(accessoires))*4+1+ROW('Données Hybride'!accessoires)))","v":""},null,null,null,{"$f":"IF(B176=\"\",\"\",INDIRECT(\"'Données Hybride'!I\"&(ROW()-ROW(accessoires))*4+3+ROW('Données Hybride'!accessoires)))","v":""},{"$f":"IF(B176=\"\",\"\",INDIRECT(\"'Données Hybride'!I\"&(ROW()-ROW(accessoires))*4+0+ROW('Données Hybride'!accessoires)))","v":""},{"$f":"IF(B176=\"\",\"\",INDIRECT(\"'Données Hybride'!I\"&(ROW()-ROW(accessoires))*4+2+ROW('Données Hybride'!accessoires)))","v":""},null,""]
[null,{"$f":"IF(INDIRECT(\"'Données Hybride'!I\"&(ROW()-ROW(accessoires))*4+1+ROW('Données Hybride'!accessoires))=0,\"\",INDIRECT(\"'Données Hybride'!I\"&(ROW()-ROW(accessoires))*4+1+ROW('Données Hybride'!accessoires)))","v":""},null,null,null,{"$f":"IF(B177=\"\",\"\",INDIRECT(\"'Données Hybride'!I\"&(ROW()-ROW(accessoires))*4+3+ROW('Données Hybride'!accessoires)))","v":""},{"$f":"IF(B177=\"\",\"\",INDIRECT(\"'Données Hybride'!I\"&(ROW()-ROW(accessoires))*4+0+ROW('Données Hybride'!accessoires)))","v":""},{"$f":"IF(B177=\"\",\"\",INDIRECT(\"'Données Hybride'!I\"&(ROW()-ROW(accessoires))*4+2+ROW('Données Hybride'!accessoires)))","v":""},null,""]
[null,{"$f":"IF(INDIRECT(\"'Données Hybride'!I\"&(ROW()-ROW(accessoires))*4+1+ROW('Données Hybride'!accessoires))=0,\"\",INDIRECT(\"'Données Hybride'!I\"&(ROW()-ROW(accessoires))*4+1+ROW('Données Hybride'!accessoires)))","v":""},null,null,null,{"$f":"IF(B178=\"\",\"\",INDIRECT(\"'Données Hybride'!I\"&(ROW()-ROW(accessoires))*4+3+ROW('Données Hybride'!accessoires)))","v":""},{"$f":"IF(B178=\"\",\"\",INDIRECT(\"'Données Hybride'!I\"&(ROW()-ROW(accessoires))*4+0+ROW('Données Hybride'!accessoires)))","v":""},{"$f":"IF(B178=\"\",\"\",INDIRECT(\"'Données Hybride'!I\"&(ROW()-ROW(accessoires))*4+2+ROW('Données Hybride'!accessoires)))","v":""},null,""]
[null,{"$f":"IF(INDIRECT(\"'Données Hybride'!I\"&(ROW()-ROW(accessoires))*4+1+ROW('Données Hybride'!accessoires))=0,\"\",INDIRECT(\"'Données Hybride'!I\"&(ROW()-ROW(accessoires))*4+1+ROW('Données Hybride'!accessoires)))","v":""},null,null,null,{"$f":"IF(B179=\"\",\"\",INDIRECT(\"'Données Hybride'!I\"&(ROW()-ROW(accessoires))*4+3+ROW('Données Hybride'!accessoires)))","v":""},{"$f":"IF(B179=\"\",\"\",INDIRECT(\"'Données Hybride'!I\"&(ROW()-ROW(accessoires))*4+0+ROW('Données Hybride'!accessoires)))","v":""},{"$f":"IF(B179=\"\",\"\",INDIRECT(\"'Données Hybride'!I\"&(ROW()-ROW(accessoires))*4+2+ROW('Données Hybride'!accessoires)))","v":""},null,""]
[null,{"$f":"IF(INDIRECT(\"'Données Hybride'!I\"&(ROW()-ROW(accessoires))*4+1+ROW('Données Hybride'!accessoires))=0,\"\",INDIRECT(\"'Données Hybride'!I\"&(ROW()-ROW(accessoires))*4+1+ROW('Données Hybride'!accessoires)))","v":""},null,null,null,{"$f":"IF(B180=\"\",\"\",INDIRECT(\"'Données Hybride'!I\"&(ROW()-ROW(accessoires))*4+3+ROW('Données Hybride'!accessoires)))","v":""},{"$f":"IF(B180=\"\",\"\",INDIRECT(\"'Données Hybride'!I\"&(ROW()-ROW(accessoires))*4+0+ROW('Données Hybride'!accessoires)))","v":""},{"$f":"IF(B180=\"\",\"\",INDIRECT(\"'Données Hybride'!I\"&(ROW()-ROW(accessoires))*4+2+ROW('Données Hybride'!accessoires)))","v":""},null,""]
[]
[null,"Services"]
[null,"Désignation",null,null,null,"Quantité","Référence","PPHT Unitaire (€)",null,"PPHT Total (€)"]
[null,{"$f":"IF(INDIRECT(\"'Données Hybride'!I\"&(ROW()-ROW(services))*4+1+ROW('Données Hybride'!services))=0,\"\",INDIRECT(\"'Données Hybride'!I\"&(ROW()-ROW(services))*4+1+ROW('Données Hybride'!services)))&IF(OR(INDIRECT(\"'Données Hybride'!I\"&(ROW()-ROW(services))*4+0+ROW('Données Hybride'!services))=\"880620\",INDIRECT(\"'Données Hybride'!I\"&(ROW()-ROW(services))*4+0+ROW('Données Hybride'!services))=\"880320\",INDIRECT(\"'Données Hybride'!I\"&(ROW()-ROW(services))*4+0+ROW('Données Hybride'!services))=\"880720\"),\" (Obligatoire)\",\"\")","v":""},null,null,null,{"$f":"IF(B184=\"\",\"\",INDIRECT(\"'Données Hybride'!I\"&(ROW()-ROW(services))*4+3+ROW('Données Hybride'!services)))","v":""},{"$f":"IF(B184=\"\",\"\",INDIRECT(\"'Données Hybride'!I\"&(ROW()-ROW(services))*4+0+ROW('Données Hybride'!services)))","v":""},{"$f":"IF(B184=\"\",\"\",INDIRECT(\"'Données Hybride'!I\"&(ROW()-ROW(services))*4+2+ROW('Données Hybride'!services)))","v":""},null,{"$f":"IFERROR(F184*H184,\"\")","v":""}]
[null,{"$f":"IF(INDIRECT(\"'Données Hybride'!I\"&(ROW()-ROW(services))*4+1+ROW('Données Hybride'!services))=0,\"\",INDIRECT(\"'Données Hybride'!I\"&(ROW()-ROW(services))*4+1+ROW('Données Hybride'!services)))&IF(OR(INDIRECT(\"'Données Hybride'!I\"&(ROW()-ROW(services))*4+0+ROW('Données Hybride'!services))=\"880621\",INDIRECT(\"'Données Hybride'!I\"&(ROW()-ROW(services))*4+0+ROW('Données Hybride'!services))=\"880321\"),\" (Obligatoire)\",\"\")","v":""},null,null,null,{"$f":"IF(B185=\"\",\"\",INDIRECT(\"'Données Hybride'!I\"&(ROW()-ROW(services))*4+3+ROW('Données Hybride'!services)))","v":""},{"$f":"IF(B185=\"\",\"\",INDIRECT(\"'Données Hybride'!I\"&(ROW()-ROW(services))*4+0+ROW('Données Hybride'!services)))","v":""},{"$f":"IF(B185=\"\",\"\",INDIRECT(\"'Données Hybride'!I\"&(ROW()-ROW(services))*4+2+ROW('Données Hybride'!services)))","v":""},null,{"$f":"IFERROR(F185*H185,\"\")","v":""}]
[null,{"$f":"IF(INDIRECT(\"'Données Hybride'!I\"&(ROW()-ROW(services))*4+1+ROW('Données Hybride'!services))=0,\"\",INDIRECT(\"'Données Hybride'!I\"&(ROW()-ROW(services))*4+1+ROW('Données Hybride'!services)))","v":""},null,null,null,{"$f":"IF(B186=\"\",\"\",INDIRECT(\"'Données Hybride'!I\"&(ROW()-ROW(services))*4+3+ROW('Données Hybride'!services)))","v":""},{"$f":"IF(B186=\"\",\"\",INDIRECT(\"'Données Hybride'!I\"&(ROW()-ROW(services))*4+0+ROW('Données Hybride'!services)))","v":""},{"$f":"IF(B186=\"\",\"\",INDIRECT(\"'Données Hybride'!I\"&(ROW()-ROW(services))*4+2+ROW('Données Hybride'!services)))","v":""},null,""]
[null,{"$f":"IF(INDIRECT(\"'Données Hybride'!I\"&(ROW()-ROW(services))*4+1+ROW('Données Hybride'!services))=0,\"\",INDIRECT(\"'Données Hybride'!I\"&(ROW()-ROW(services))*4+1+ROW('Données Hybride'!services)))","v":""},null,null,null,{"$f":"IF(B187=\"\",\"\",INDIRECT(\"'Données Hybride'!I\"&(ROW()-ROW(services))*4+3+ROW('Données Hybride'!services)))","v":""},{"$f":"IF(B187=\"\",\"\",INDIRECT(\"'Données Hybride'!I\"&(ROW()-ROW(services))*4+0+ROW('Données Hybride'!services)))","v":""},{"$f":"IF(B187=\"\",\"\",INDIRECT(\"'Données Hybride'!I\"&(ROW()-ROW(services))*4+2+ROW('Données Hybride'!services)))","v":""},null,""]
[null,{"$f":"IF(INDIRECT(\"'Données Hybride'!I\"&(ROW()-ROW(services))*4+1+ROW('Données Hybride'!services))=0,\"\",INDIRECT(\"'Données Hybride'!I\"&(ROW()-ROW(services))*4+1+ROW('Données Hybride'!services)))","v":""},null,null,null,{"$f":"IF(B188=\"\",\"\",INDIRECT(\"'Données Hybride'!I\"&(ROW()-ROW(services))*4+3+ROW('Données Hybride'!services)))","v":""},{"$f":"IF(B188=\"\",\"\",INDIRECT(\"'Données Hybride'!I\"&(ROW()-ROW(services))*4+0+ROW('Données Hybride'!services)))","v":""},{"$f":"IF(B188=\"\",\"\",INDIRECT(\"'Données Hybride'!I\"&(ROW()-ROW(services))*4+2+ROW('Données Hybride'!services)))","v":""},null,""]
[null,{"$f":"IF(INDIRECT(\"'Données Hybride'!I\"&(ROW()-ROW(services))*4+1+ROW('Données Hybride'!services))=0,\"\",INDIRECT(\"'Données Hybride'!I\"&(ROW()-ROW(services))*4+1+ROW('Données Hybride'!services)))","v":""},null,null,null,{"$f":"IF(B189=\"\",\"\",INDIRECT(\"'Données Hybride'!I\"&(ROW()-ROW(services))*4+3+ROW('Données Hybride'!services)))","v":""},{"$f":"IF(B189=\"\",\"\",INDIRECT(\"'Données Hybride'!I\"&(ROW()-ROW(services))*4+0+ROW('Données Hybride'!services)))","v":""},{"$f":"IF(B189=\"\",\"\",INDIRECT(\"'Données Hybride'!I\"&(ROW()-ROW(services))*4+2+ROW('Données Hybride'!services)))","v":""},null,""]

{"sheet":"Préférence Pac","index":19,"n_rows":15,"n_cols":4,"rows_kept":15,"cut":false,"hidden":true,"merged":[[0,2,0,3],[0,0,1,0],[0,1,1,1]]}
["PAC","Labels affichés","Label interface"]
[null,null,"ATLFR","ACVFR"]
["AHP60_14",{"$f":"_xlfn.MAP(_xlfn.CHOOSECOLS('Préférence Pac'!C3:D15,MATCH(reseau_commercial,'Préférence Pac'!C2:D2,0)),_xlfn.LAMBDA(_xlpm.v,IF(_xlpm.v=\"\",\"\",_xlpm.v)))","v":""},"Effipac 14 - Chassis S"]
["AHP60_18","","Effipac 18 - Chassis S"]
["AHP60_26","","Effipac 26 - Chassis M"]
["AHP60_32","","Effipac 32 - Chassis M"]
["AHP60_50","","Effipac 50 - Chassis L"]
["AHP60_70","","Effipac 70 - Chassis L"]
["AHP70_15","Izea 15 - Chassis S","Aptae 15 - Chassis S","Izea 15 - Chassis S"]
["AHP70_18","Izea 18 - Chassis S","Aptae 18 - Chassis S","Izea 18 - Chassis S"]
["AHP70_23","Izea 23 - Chassis M","Aptae 23 - Chassis M","Izea 23 - Chassis M"]
["AHP70_27","Izea 27 - Chassis M","Aptae 27 - Chassis M","Izea 27 - Chassis M"]
["AHP70_40","Izea 40 - Chassis L","Aptae 40 - Chassis L","Izea 40 - Chassis L"]
["AHP70_50","Izea 50 - Chassis L","Aptae 50 - Chassis L","Izea 50 - Chassis L"]
["AHP70_65","Izea 65 - Chassis XL","Aptae 65 - Chassis XL","Izea 65 - Chassis XL"]

{"sheet":"Validation des Données","index":20,"n_rows":202,"n_cols":33,"rows_kept":202,"cut":false,"hidden":true,"merged":[[180,1,180,24],[7,16,25,16],[26,16,44,16],[0,13,1,13],[0,15,1,15]]}
["Villes","Choix ","Taux de Glycol","Oui/Non","BDM / Montagne","Type Circuit","Type Chaudière","Bord de Mer / Montagne de base","Gamme de Pac","Type de logement","Cycle Al","Consigne AL",null,"Temperature eau froide","Chassis Pac","Production ECS","Interface","n° circuit","Formules de validations des données","Formule","Titre Erreur","Msg Erreur",null,"Mise en forme conditionnelle",null,null,"Sous application","url","Applicatif","Logements","Hôtel","Restaurant","Etablissement sportif"]
[null,null,null,null,null,null,null,null,null,null,null,null,null,null,null,null,null,null,"tBase",null,null,null,null,null,null,null,{"$f":"AD2:AD6","v":"Logements privés"},"prives","Sous applicatif","Logements privés","Affaire","Traditionnelle","Stade de football"]
["01 - AMBERIEU",null,0,"Oui","Oui","Régulé","Condensation",null,"Effipac au R32","Logements privés","Oui","60°C / 1h",null,2,null,"HeatSwitch 2",null,null,"distancePacBallon","=ET(ESTNUM(R16); R16=ARRONDI(R16; 0); R16>=R18; R16<=200)","Donnée non Valide","La Distance Pac / Ballon doit être un entier compris entre 0 et 200. Elle doit et supérieure à la distance Pac / Batiment.",null,null,null,null,"Logements sociaux","sociaux",null,"Logements sociaux","Tourisme","Gastronomique","Stade de rugby"]
["02 - EPARCY",null,10,"Non","Non","Constant","Non Condensation",null,"Aptae au R290","Logements sociaux","Non","65°C / 4min",null,10,"S","Serpentin",null,null,"distancePacBatiment","=ET(ESTNUM(R18); R18=ARRONDI(R18; 0); R18>=0; R18<R16)","Donnée non Valide","La Distance Pac / Batiment doit être un entier compris entre 0 et 200. Elle doit et inférieure à la distance Pac / Ballon.",null,null,null,null,"Résidence seniors","seniors",null,"Résidence seniors","Montagne","Rapide","Gymnase / terrain couvert"]
["02 - ST QUENTIN",null,20,null,null,null,null,null,null,"Résidence seniors",null,"70°C / 2min",null,15,"M",null,null,null,"Hauteur de porte/ chaufferie","=ET(ESTNUM(R26); R26=ARRONDI(R26; 2); R26>=0; R26<5000)","Donnée non Valide","La Hauteur de porte/chaufferie doit être comprise entre 0 et 5m. Sa précision maximale doit être le centième.",null,null,null,null,"Foyer de jeunes travailleurs","travailleur",null,"Foyer de jeunes travailleurs",null,"Collective (cantine/self)","Piscine"]
["03 - VICHY",null,30,null,null,null,null,null,null,null,null,null,null,null,"L",null,null,null,"Largeur de porte","=ET(ESTNUM(R28); R28=ARRONDI(R28; 2); R28>=0; R28<5000)","Donnée non Valide","La largeur de porte doit être comprise entre 0 et 5m. Sa précision maximale doit être le centième.",null,null,null,null,"Résidence étudiante","etudiant",null,"Résidence étudiante",null,null,"Salle de fitness / centre multisport"]
["04 - ALLOS",null,40,null,null,null,null,null,null,null,null,null,null,null,null,null,null,null,null,null,null,null,null,null,null,null,{"$f":"AE2:AE4","v":"Affaire"},"affaires"]
["05 - EMBRUN",null,50,null,null,null,null,null,null,null,null,null,null,null,null,null,"Elec","Circuit 1","Puissance Circuit","'=ET(ESTNUM(F46); F46=ARRONDI(F46; 1); 0<F46; F46<=1000)","Donnée non Valide","La Puissance doit être inférieure à 1000kW. La précision maximum autorisée est le dixième.",null,null,null,null,"Tourisme","tourisme"]
["05 - GAP",null,null,null,null,null,null,null,null,null,null,null,null,null,null,null,null,null,"Consigne Depart","'=ET(ESTNUM(F48); F48=ARRONDI(F48; 0); 10<=F48; SI('Données Elec'!$D$13=1; SI(F44=\"Constant\"; F48<=55; F48<=60); SI(F44=\"Constant\"; F48<=70; F48<=75)))","Donnée non Valide","La consigne de départ doit être un entier compris entre 10 et 75°C. Selon le type de circuit et la gamme de Pac choisie, des limites supplémentaires peuvent s'appliquer.",null,"'=NON(SI('Données Elec'!$D$13=1; SI(F44=\"Constant\"; F48<=55; F48<=60); SI(F44=\"Constant\"; F48<=70; F48<=75)))",null,null,"Montagne","montagne"]
["05 - LARAGNE",null,null,null,null,null,null,null,null,null,null,null,null,null,null,null,null,null,"Delta T","'=ET(ESTNUM(F50); F50=ARRONDI(F50; 0); 1<=F50; F50<=40; F50<=F48)","Donnée non Valide","Le delta T doit être un entier compris entre 1 et 40 K ou Consigne de départ si consigne de départ < 40.",null,null,null,null,{"$f":"AG2:AG6","v":"Stade de football"},"football"]
["06 - ANDON-bas Thorenc","Bord de mer",null,null,null,null,null,false,null,null,null,null,null,null,null,null,null,null,null,null,null,null,null,null,null,null,"Stade de rugby","rugby"]
["06 - BREIL SUR ROYA","Bord de mer",null,null,null,null,null,true,null,null,null,null,null,null,null,null,null,"Circuit 2","Puissance Circuit","'=ET(ESTNUM(I46); I46=ARRONDI(I46; 1); 0<I46; I46<=1000)","Donnée non Valide","La Puissance doit être inférieure à 1000kW. La précision maximum autorisée est le dixième.",null,null,null,null,"Gymnase / terrain couvert","gymnase"]
["06 - GRASSE","Bord de mer",null,null,null,null,null,true,null,null,null,null,null,null,null,null,null,null,"Consigne Depart","'=ET(ESTNUM(I48); I48=ARRONDI(I48; 0); 10<=I48; SI('Données Elec'!$D$13=1; SI(I44=\"Constant\"; I48<=55; I48<=60); SI(I44=\"Constant\"; I48<=70; I48<=75)))","Donnée non Valide","La consigne de départ doit être un entier compris entre 10 et 75°C. Selon le type de circuit et la gamme de Pac choisie, des limites supplémentaires peuvent s'appliquer.",null,"'=NON(SI('Données Elec'!$D$13=1; SI(I44=\"Constant\"; I48<=55; I48<=60); SI(I44=\"Constant\"; I48<=70; I48<=75)))",null,null,"Piscine","piscine"]
["06 - ISOLA","Bord de mer",null,null,null,null,null,false,null,null,null,null,null,null,null,null,null,null,"Delta T","'=ET(ESTNUM(I50); I50=ARRONDI(I50; 0); 1<=I50; I50<=40; I50<=I48)","Donnée non Valide","Le delta T doit être un entier compris entre 1 et 40 K ou Consigne de départ si consigne de départ < 40.",null,null,null,null,"Salle de fitness / centre multisport","multisport"]
["06 - NICE","Bord de mer",null,null,null,null,null,true,null,null,null,null,null,null,null,null,null,null,null,null,null,null,null,null,null,null,"Internat (douche collective)"]
["06 - PUGET THENIERS","Bord de mer",null,null,null,null,null,true,null,null,null,null,null,null,null,null,null,"Circuit 3","Puissance Circuit","'=ET(ESTNUM(L46); L46=ARRONDI(L46; 1); 0<L46; L46<=1000)","Donnée non Valide","La Puissance doit être inférieure à 1000kW. La précision maximum autorisée est le dixième.",null,null,null,null,"Caserne"]
["06 - ST DALMAS LE SELVAGE","Bord de mer",null,null,null,null,null,false,null,null,null,null,null,null,null,null,null,null,"Consigne Depart","'=ET(ESTNUM(L48); L48=ARRONDI(L48; 0); 10<=L48; SI('Données Elec'!$D$13=1; SI(L44=\"Constant\"; L48<=55; L48<=60); SI(L44=\"Constant\"; L48<=70; L48<=75)))","Donnée non Valide","La consigne de départ doit être un entier compris entre 10 et 75°C. Selon le type de circuit et la gamme de Pac choisie, des limites supplémentaires peuvent s'appliquer.",null,"'=NON(SI('Données Elec'!$D$13=1; SI(L44=\"Constant\"; L48<=55; L48<=60); SI(L44=\"Constant\"; L48<=70; L48<=75)))",null,null,"Hôpital / clinique (douches)"]
["06 - ST ETIENNE DE THINEE-Auron","Bord de mer",null,null,null,null,null,false,null,null,null,null,null,null,null,null,null,null,"Delta T","'=ET(ESTNUM(L50); L50=ARRONDI(L50; 0); 1<=L50; L50<=40; L50<=L48)","Donnée non Valide","Le delta T doit être un entier compris entre 1 et 40 K ou Consigne de départ si consigne de départ < 40.",null,null,null,null,"EHPAD"]
["06 - VENCE","Bord de mer",null,null,null,null,null,true,null,null,null,null,null,null,null,null,null,null,null,null,null,null,null,null,null,null,{"$f":"AF2:AF5","v":"Traditionnelle"},"traditionnel"]
["07 - TOURNON",null,null,null,null,null,null,null,null,null,null,null,null,null,null,null,null,"Circuit 4","Puissance Circuit","'=ET(ESTNUM(O46); O46=ARRONDI(O46; 1); 0<O46; O46<=1000)","Donnée non Valide","La Puissance doit être inférieure à 1000kW. La précision maximum autorisée est le dixième.",null,null,null,null,"Gastronomique","gastronomique"]
["08 - ROCROI",null,null,null,null,null,null,null,null,null,null,null,null,null,null,null,null,null,"Consigne Depart","'=ET(ESTNUM(O48); O48=ARRONDI(O48; 0); 10<=O48; SI('Données Elec'!$D$13=1; SI(O44=\"Constant\"; O48<=55; O48<=60); SI(O44=\"Constant\"; O48<=70; O48<=75)))","Donnée non Valide","La consigne de départ doit être un entier compris entre 10 et 75°C. Selon le type de circuit et la gamme de Pac choisie, des limites supplémentaires peuvent s'appliquer.",null,"'=NON(SI('Données Elec'!$D$13=1; SI(O44=\"Constant\"; O48<=55; O48<=60); SI(O44=\"Constant\"; O48<=70; O48<=75)))",null,null,"Rapide","rapide"]
["08 - SEDAN",null,null,null,null,null,null,null,null,null,null,null,null,null,null,null,null,null,"Delta T","'=ET(ESTNUM(O50); O50=ARRONDI(O50; 0); 1<=O50; O50<=40; O50<=O48)","Donnée non Valide","Le delta T doit être un entier compris entre 1 et 40 K ou Consigne de départ si consigne de départ < 40.",null,null,null,null,"Collective (cantine/self)","collectif"]
["09 - ASTRON",null,null,null,null,null,null,null,null,null,null,null,null,null,null,null,null,null,null,null,null,null,null,null,null,null,"Vestiaire d'entreprise"]
["09 - AUZAT-PRADIERES",null,null,null,null,null,null,null,null,null,null,null,null,null,null,null,null,"Circuit 5","Puissance Circuit","'=ET(ESTNUM(R46); R46=ARRONDI(R46; 1); 0<R46; R46<=1000)","Donnée non Valide","La Puissance doit être inférieure à 1000kW. La précision maximum autorisée est le dixième.",null,null,null,null,"Station de lavage"]
["09 - CONFLANS-SALAU",null,null,null,null,null,null,null,null,null,null,null,null,null,null,null,null,null,"Consigne Depart","'=ET(ESTNUM(R48); R48=ARRONDI(R48; 0); 10<=R48; SI('Données Elec'!$D$13=1; SI(R44=\"Constant\"; R48<=55; R48<=60); SI(R44=\"Constant\"; R48<=70; R48<=75)))","Donnée non Valide","La consigne de départ doit être un entier compris entre 10 et 75°C. Selon le type de circuit et la gamme de Pac choisie, des limites supplémentaires peuvent s'appliquer.",null,"'=NON(SI('Données Elec'!$D$13=1; SI(R44=\"Constant\"; R48<=55; R48<=60); SI(R44=\"Constant\"; R48<=70; R48<=75)))",null,null,"Tout processus jusqu'à 65°C"]
["09 - L'HOSPITALET (Andorre)",null,null,null,null,null,null,null,null,null,null,null,null,null,null,null,null,null,"Delta T","'=ET(ESTNUM(R50); R50=ARRONDI(R50; 0); 1<=R50; R50<=40; R50<=R48)","Donnée non Valide","Le delta T doit être un entier compris entre 1 et 40 K ou Consigne de départ-9 si consigne de départ-9 < 40.",null,null,null,null,{"$f":"TRANSPOSE(AD1:AG1)","v":"Logements"},"logement"]
["09 - MERENS LES VALS",null,null,null,null,null,null,null,null,null,null,null,null,null,null,null,"Hybride","Circuit 1","Puissance Circuit","'=ET(ESTNUM(F60); F60=ARRONDI(F60; 1); 0<F60; F60<=1000)","Donnée non Valide","La Puissance doit être inférieure à 1000kW. La précision maximum autorisée est le dixième.",null,null,null,null,"Hôtel","hotel"]
["09 - SAINT GIRONS",null,null,null,null,null,null,null,null,null,null,null,null,null,null,null,null,null,"Consigne Depart","'=ET(ESTNUM(F62); F62=ARRONDI(F62; 0); 10<=F62; SI('Données Hybride'!$D$13=1; SI(F56=\"Constant\"; F62<=55; F62<=60); SI(F56=\"Constant\"; F62<=70; F62<=75)))","Donnée non Valide","La consigne de départ doit être un entier compris entre 10 et 75°C. Selon le type de circuit et la gamme de Pac choisie, des limites supplémentaires peuvent s'appliquer.",null,"'=NON(SI('Données Hybride'!$D$13=1; SI(F56=\"Constant\"; F62<=55; F62<=60); SI(F56=\"Constant\"; F62<=70; F62<=75)))",null,null,"Restaurant","restaurant"]
["09 - SANTEIN-EYLIE",null,null,null,null,null,null,null,null,null,null,null,null,null,null,null,null,null,"Delta T","'=ET(ESTNUM(F64); F64=ARRONDI(F64; 0); 1<=F64; F64<=40; F64<=F62)","Donnée non Valide","Le delta T doit être un entier compris entre 1 et 40 K ou Consigne de départ si consigne de départ < 40.",null,null,null,null,"Etablissement sportif","sport"]
["10 - ROMILLY"]
["11 - CARCASSONNE","Bord de mer",null,null,null,null,null,false,null,null,null,null,null,null,null,null,null,"Circuit 2","Puissance Circuit","'=ET(ESTNUM(I60); I60=ARRONDI(I60; 1); 0<I60; I60<=1000)","Donnée non Valide","La Puissance doit être inférieure à 1000kW. La précision maximum autorisée est le dixième."]
["12 - MILLAU","Montagne",null,null,null,null,null,false,null,null,null,null,null,null,null,null,null,null,"Consigne Depart","'=ET(ESTNUM(I62); I62=ARRONDI(I62; 0); 10<=I62; SI('Données Hybride'!$D$13=1; SI(I56=\"Constant\"; I62<=55; I62<=60); SI(I56=\"Constant\"; I62<=70; I62<=75)))","Donnée non Valide","La consigne de départ doit être un entier compris entre 10 et 75°C. Selon le type de circuit et la gamme de Pac choisie, des limites supplémentaires peuvent s'appliquer.",null,"'=NON(SI('Données Hybride'!$D$13=1; SI(I56=\"Constant\"; I62<=55; I62<=60); SI(I56=\"Constant\"; I62<=70; I62<=75)))"]
["13 - ISTRES",null,null,null,null,null,null,null,null,null,null,null,null,null,null,null,null,null,"Delta T","'=ET(ESTNUM(I64); I64=ARRONDI(I64; 0); 1<=I64; I64<=40; I64<=I62)","Donnée non Valide","Le delta T doit être un entier compris entre 1 et 40 K ou Consigne de départ si consigne de départ < 40."]
["13 - PORT DE BOUC"]
["14 - CAEN",null,null,null,null,null,null,null,null,null,null,null,null,null,null,null,null,"Circuit 3","Puissance Circuit","'=ET(ESTNUM(L60); L60=ARRONDI(L60; 1); 0<L60; L60<=1000)","Donnée non Valide","La Puissance doit être inférieure à 1000kW. La précision maximum autorisée est le dixième."]
["15 - AURILLAC",null,null,null,null,null,null,null,null,null,null,null,null,null,null,null,null,null,"Consigne Depart","'=ET(ESTNUM(L62); L62=ARRONDI(L62; 0); 10<=L62; SI('Données Hybride'!$D$13=1; SI(L56=\"Constant\"; L62<=55; L62<=60); SI(L56=\"Constant\"; L62<=70; L62<=75)))","Donnée non Valide","La consigne de départ doit être un entier compris entre 10 et 75°C. Selon le type de circuit et la gamme de Pac choisie, des limites supplémentaires peuvent s'appliquer.",null,"'=NON(SI('Données Hybride'!$D$13=1; SI(L56=\"Constant\"; L62<=55; L62<=60); SI(L56=\"Constant\"; L62<=70; L62<=75)))"]
["15 - CHALVIGNAC L AIGLE",null,null,null,null,null,null,null,null,null,null,null,null,null,null,null,null,null,"Delta T","'=ET(ESTNUM(L64); L64=ARRONDI(L64; 0); 1<=L64; L64<=40; L64<=L62)","Donnée non Valide","Le delta T doit être un entier compris entre 1 et 40 K ou Consigne de départ si consigne de départ < 40."]
["15 - FERRIERES ST MARY"]
["15 - LAFEUILLADE EN VEZIE",null,null,null,null,null,null,null,null,null,null,null,null,null,null,null,null,"Circuit 4","Puissance Circuit","'=ET(ESTNUM(O60); O60=ARRONDI(O60; 1); 0<O60; O60<=1000)","Donnée non Valide","La Puissance doit être inférieure à 1000kW. La précision maximum autorisée est le dixième."]
["15 - LAVASTRIE GRANDVAL",null,null,null,null,null,null,null,null,null,null,null,null,null,null,null,null,null,"Consigne Depart","'=ET(ESTNUM(O62); O62=ARRONDI(O62; 0); 10<=O62; SI('Données Hybride'!$D$13=1; SI(O56=\"Constant\"; O62<=55; O62<=60); SI(O56=\"Constant\"; O62<=70; O62<=75)))","Donnée non Valide","La consigne de départ doit être un entier compris entre 10 et 75°C. Selon le type de circuit et la gamme de Pac choisie, des limites supplémentaires peuvent s'appliquer.",null,"'=NON(SI('Données Hybride'!$D$13=1; SI(O56=\"Constant\"; O62<=55; O62<=60); SI(O56=\"Constant\"; O62<=70; O62<=75)))"]
["15 - LE CLAUX",null,null,null,null,null,null,null,null,null,null,null,null,null,null,null,null,null,"Delta T","'=ET(ESTNUM(O64); O64=ARRONDI(O64; 0); 1<=O64; O64<=40; O64<=O62)","Donnée non Valide","Le delta T doit être un entier compris entre 1 et 40 K ou Consigne de départ si consigne de départ < 40."]
["15 - MARCOLES"]
["15 - MARMANHAC",null,null,null,null,null,null,null,null,null,null,null,null,null,null,null,null,"Circuit 5","Puissance Circuit","'=ET(ESTNUM(R60); R60=ARRONDI(R60; 1); 0<R60; R60<=1000)","Donnée non Valide","La Puissance doit être inférieure à 1000kW. La précision maximum autorisée est le dixième."]
["15 - MASSIAC",null,null,null,null,null,null,null,null,null,null,null,null,null,null,null,null,null,"Consigne Depart","'=ET(ESTNUM(R62); R62=ARRONDI(R62; 0); 10<=R62; SI('Données Hybride'!$D$13=1; SI(R56=\"Constant\"; R62<=55; R62<=60); SI(R56=\"Constant\"; R62<=70; R62<=75)))","Donnée non Valide","La consigne de départ doit être un entier compris entre 10 et 75°C. Selon le type de circuit et la gamme de Pac choisie, des limites supplémentaires peuvent s'appliquer.",null,"'=NON(SI('Données Hybride'!$D$13=1; SI(R56=\"Constant\"; R62<=55; R62<=60); SI(R56=\"Constant\"; R62<=70; R62<=75)))"]
["16 - ANGOULEME",null,null,null,null,null,null,null,null,null,null,null,null,null,null,null,null,null,"Delta T","'=ET(ESTNUM(R64); R64=ARRONDI(R64; 0); 1<=R64; R64<=40; R64<=R62)","Donnée non Valide","Le delta T doit être un entier compris entre 1 et 40 K ou Consigne de départ-9 si consigne de départ-9 < 40."]
["16 - COGNAC"]
["17 - LA ROCHELLE","Bord de mer",null,null,null,null,null,true]
["18 - BOURGES"]
["19 - BRIVES"]
["20 - AJACCIO-CAMPO DEL ORO"]
["20 - ALBERTACCE-POPAJA"]
["20 - CALVI STE CATHERINE"]
["20 - CARBINI-MARGHESE"]
["20 - PILA-CANALE"]
["20 - SARTENE-MADONINA"]
["20 - SOLENZARA"]
["21 - BAIGNEUX LES JUIFS"]
["21 - DIJON"]
["22 - ILE DE BREHAT"]
["22 - ROSTRENEN"]
["23 - GUERET-GRANCHER"]
["24 - BERGERAC"]
["25 - BESANCON"]
["26 - MONSEGUR-LAUZON"]
["26 - MONTELIMAR"]
["26 - NYON"]
["27 - EVREUX-HUEST"]
["28 - CHARTRES"]
["29 - BREST"]
["29 - FOUESNANT"]
["30 - NIMES"]
["31 - BAGNERES DE LUCHON"]
["31 - TOULOUSE"]
["31 - TOULOUSE-BLAGNAC"]
["32 - AUCH"]
["33 - BORDEAUX","Bord de mer",null,null,null,null,null,true]
["33 - CAZAUX","Bord de mer",null,null,null,null,null,true]
["34 - MONTPELLIER"]
["35 - RENNES-ST JACQUES","Bord de mer",null,null,null,null,null,false]
["36 - CHATEAUROUX"]
["37 - TOURS"]
["38 - ALPES DE VENOSC"]
["38 - GRENOBLE-EYBENS"]
["38 - LA COTE ST ANDRE"]
["38 - VIENNE"]
["39 - ST CLAUDE - ETABLE"]
["40 - MONT DE MARSAN","Bord de mer",null,null,null,null,null,false]
["41 - BLOIS"]
["42 - ST ETIENNE-BOUTHEON"]
["43 - LE PUY-LOUDES"]
["44 - ESCOUBLAC-LA BAULE","Bord de mer",null,null,null,null,null,true]
["44 - NANTES-Chateau Bougon","Bord de mer",null,null,null,null,null,true]
["45 - ORLEANS"]
["46 - GOURDON"]
["47 - AGEN"]
["48 - MENDE-BRENOUX"]
["49 - ANGERS",null,null,null,null,null,null,false]
["50 - CHERBOURG"]
["51 - REIMS"]
["52 - CHAUMONT"]
["53 - LAVAL-ENTRAMMES"]
["54 - NANCY-ESSEY"]
["55 - HAUDIOMONT"]
["56 - LORIENT-LANN BIHOUE"]
["57 - METZ-FRESCATY"]
["58 - NEVERS"]
["59 - DUNKERQUE"]
["59 - LILLE"]
["60 - BEAUVAIS-TILLE"]
["61 - ALENCON"]
["62 - BOULOGNE"]
["63 - AUZAT sur Allier-La Combelle"]
["63 - CHATEAUNEUF LES BAINS"]
["63 - CLERMONT-FERRAND-Aulnat"]
["63 - EGLISENEUVE D ENGRAYGUES"]
["63 - LE MONT DORE"]
["63 - PICHERANDE"]
["63 - SAINT ANTHEME"]
["63 - SAINT NECTAIRE"]
["63 - VIVEROLS"]
["64 - BIARRITZ"]
["64 - LARUNS"]
["64 - PAU"]
["65 - GEDRE"]
["65 - LASSOULA"]
["65 - TARBES OSSUN"]
["66 - FONT ROMEU","Bord de mer",null,null,null,null,null,false]
["66 - PERPIGNAN","Bord de mer",null,null,null,null,null,true]
["66 - PRATS DE MOLLO","Bord de mer",null,null,null,null,null,false]
["67 - STRASBOURG Enteheim"]
["68 - COLMAR-MEYENHEIM"]
["69 - LYON"]
["70 - LUXEUIL"]
["71 - CHALON SUR SAONE"]
["71 - LA GUICHE"]
["71 - MACON"]
["71 - MONT ST VINCENT"]
["72 - LE MANS"]
["73 - CHALLES-LES-EAUX"]
["74 - ANNECY"]
["74 - ANNEMASSE"]
["74 - THONON-LES-BAINS"]
["74 - USINENS"]
["75 - PARIS-MONTSOURIS"]
["75 - PARIS-TOUR ST JACQUES"]
["76 - CAP DE LA HEVE"]
["76 - ROUEN"]
["77 - MELUN"]
["78 - TRAPPES"]
["79 - NIORT"]
["80 - ABBEVILLE"]
["81 - ALBI"]
["82 - MONTAUBAN"]
["83 - BRIGNOLES","Bord de mer",null,null,null,null,null,false]
["83 - COLLOBRIERES","Bord de mer",null,null,null,null,null,true]
["83 - DRAGUIGNAN","Bord de mer",null,null,null,null,null,false]
["83 - PLAN D AUPS","Bord de mer",null,null,null,null,null,false]
["84 - APT"]
["84 - AVIGNON-MONTFAVET"]
["84 - CAVAILLON"]
["84 - GORDES"]
["85 - LES SABLES D OLONNES","Bord de mer",null,null,null,null,null,true]
["86 - POITIERS"]
["87 - LIMOGES"]
["88 - EPINAL"]
["89 - AUXERRE"]
["90 - BELFORT"]
["91 - BRETIGNY SUR ORGE"]
["91 - ORLY"]
["92 - NANTERRE"]
["93 - ST-DENIS"]
["94 - CRETEIL"]
["95 - LE BOURGET"]
["95 - PONTOISE CORMELLES"]
[]
[]
[]
[]
[]
[]
[null,"Nom des variables par sous application"]
[null,{"$f":"TRANSPOSE(AA2:AA25)","v":"Logements privés"},"Logements sociaux","Résidence seniors","Foyer de jeunes travailleurs","Résidence étudiante","Affaire","Tourisme","Montagne","Stade de football","Stade de rugby","Gymnase / terrain couvert","Piscine","Salle de fitness / centre multisport","Internat (douche collective)","Caserne","Hôpital / clinique (douches)","EHPAD","Traditionnelle","Gastronomique","Rapide","Collective (cantine/self)","Vestiaire d'entreprise","Station de lavage","Tout processus jusqu'à 65°C"]
["nbT1","Nombre de T1","Nombre de T1","Nombre de résidence seniors"]
["nbT2","Nombre de T2","Nombre de T2"]
["nbT3","Nombre de T3","Nombre de T3"]
["nbT4","Nombre de T4","Nombre de T4"]
["nbT5","Nombre de T5","Nombre de T5"]
["nbT6","Nombre de T6","Nombre de T6"]
["NbE",null,null,null,null,null,"Nombre d'étoiles","Nombre d'étoiles","Nombre d'étoiles"]
["NbC",null,null,null,null,null,"Nombre de chambres","Nombre de chambres","Nombre de chambres"]
["NbLit",null,null,null,"Nombre de lits","Nombre de lits"]
["NbCouvM",null,null,null,"Nombre de couverts à midi","Nombre de couverts à midi","Nombre de couverts à midi","Nombre de couverts à midi","Nombre de couverts à midi"]
["NbCouvS",null,null,null,"Nombre de couverts le soir","Nombre de couverts le soir","Nombre de couverts le soir","Nombre de couverts le soir","Nombre de couverts le soir"]
["NbRepasMidi",null,null,null,null,null,null,null,null,null,null,null,null,null,null,null,null,null,"Nombre de repas le midi","Nombre de repas le midi","Nombre de repas le midi","Nombre de repas le midi"]
["NbRepasSoir",null,null,null,null,null,null,null,null,null,null,null,null,null,null,null,null,null,"Nombre de repas le soir","Nombre de repas le soir","Nombre de repas le soir","Nombre de repas le soir"]
["NbD",null,null,null,null,null,null,null,null,"Nombre de postes de douches","Nombre de postes de douches","Nombre de postes de douches","Nombre de postes de douches","Nombre de postes de douches"]
["PersActiv",null,null,null,null,null,null,null,null,"Nombre de personnes par match","Nombre de personnes par match"]
["personnes",null,null,null,null,null,null,null,null,null,null,"Nombre de personnes en simultané"]
["NbMPJ"]
["NbActiv"]
["TpsActSport"]
["freq",null,null,null,null,null,null,null,null,null,null,null,"Fréquentation journalière","Fréquentation journalière"]

{"sheet":"Informations Devis","index":21,"n_rows":212,"n_cols":5,"rows_kept":212,"cut":false,"hidden":true,"merged":[]}
[]
[]
[]
["Code","Nom Commercial","Nom Interface","NomDevis","Nb Brides\n(pour les ballons)"]
[null,"Effipac 14","Effipac 14","Effipac 14"]
[null,"Effipac 18","Effipac 18","Effipac 18"]
[null,"Effipac 26","Effipac 26","Effipac 26"]
[null,"Effipac 32","Effipac 32","Effipac 32"]
[null,"Effipac 50","Effipac 50","Effipac 50"]
[null,"Effipac 70","Effipac 70","Effipac 70"]
[null,"Effipac 14 AC","Effipac 14 AC","Effipac 14 AC"]
[null,"Effipac 18 AC","Effipac 18 AC","Effipac 18 AC"]
[null,"Effipac 26 AC","Effipac 26 AC","Effipac 26 AC"]
[null,"Effipac 32 AC","Effipac 32 AC","Effipac 32 AC"]
[null,"Effipac 50 AC","Effipac 50 AC","Effipac 50 AC"]
[null,"Effipac 70 AC","Effipac 70 AC","Effipac 70 AC"]
[null,"Effipac 14","Effipac 14","Effipac 14 Hybride"]
[null,"Effipac 18","Effipac 18","Effipac 18 Hybride"]
[null,"Effipac 26","Effipac 26","Effipac 26 Hybride"]
[null,"Effipac 32","Effipac 32","Effipac 32 Hybride"]
[null,"Effipac 50","Effipac 50","Effipac 50 Hybride"]
[null,"Effipac 70","Effipac 70","Effipac 70 Hybride"]
[null,"Effipac 14 AC","Effipac 14 AC","Effipac 14 AC Hybride"]
[null,"Effipac 18 AC","Effipac 18 AC","Effipac 18 AC Hybride"]
[null,"Effipac 26 AC","Effipac 26 AC","Effipac 26 AC Hybride"]
[null,"Effipac 32 AC","Effipac 32 AC","Effipac 32 AC Hybride"]
[null,"Effipac 50 AC","Effipac 50 AC","Effipac 50 AC Hybride"]
[null,"Effipac 70 AC","Effipac 70 AC","Effipac 70 AC Hybride"]
[null,"Bouteille Effi 100L","Bouteille Effi 100L","Bouteille Effi 100L",0]
[null,"Bouteille Effi 200L","Bouteille Effi 200L","Bouteille Effi 200L",0]
[null,"Corflex Effi 0B 500L SM1","Corflex Effi 0B 500L SM1","Corflex Effi 0B 500L SM1",0]
[null,"Corflex Effi 3B 500L SM1","Corflex Effi 3B 500L SM1","Corflex Effi 3B 500L SM1",3]
[null,"Corflex Effi 0B 900L SM1","Corflex Effi 0B 900L SM1","Corflex Effi 0B 900L SM1",0]
[null,"Corflex Effi 2B 900L SM1","Corflex Effi 2B 900L SM1","Corflex Effi 2B 900L SM1",2]
[null,"Corflex Effi 2B 1500L SM1","Corflex Effi 2B 1500L SM1","Corflex Effi 2B 1500L SM1",2]
[null,"Résistance blindée 6kw pac chauffage","6 kW","Résistance blindée 6kw"]
[null,"Résistance blindée 15kw pac chauffage","15 kW","Résistance blindée 15kw"]
[null,"Résistance blindée 30kw pac chauffage","30 kW","Résistance blindée 30kw"]
["059261","QAZ36 - Sonde départ système","QAZ36 - Sonde départ système","QAZ 36 - Sonde départ système"]
["059260","QAC34 - Sonde extérieure","QAC34 - Sonde extérieure","QAC 34 - Sonde extérieure"]
["059592","QAD 36 - Sonde circuit régulé","QAD 36 - Sonde circuit régulé","QAD 36 - Sonde circuit régulé"]
["059752","Interface de communication OCI 345","Interface de communication OCI 345","Interface de communication LPB OCI 345"]
["040941",null,null,"Kit RVS 63"]
["040943",null,null,"Kit RVS 46"]
["059775","Module d'extension de pilotage circuit chauffage AVS75","Module d'extension de pilotage circuit chauffage AVS75","Module d'extension de pilotage circuit chauffage (AVS75)"]
["091471","Bouton marche forcée","Bouton marche forcée","Bouton de marche forcéedes resistances"]
["030497","KIT DOIGT DE GANT RETOUR PAC 1\"1/4","KIT DOIGT DE GANT RETOUR PAC 1\"1/4","Kit doigt de gants retour Pac 1\"1/4"]
["030498","KIT DOIGT DE GANT RETOUR PAC 2\"1/2","KIT DOIGT DE GANT RETOUR PAC 2\"1/2","Kit doigt de gants retour Pac 2\"1/2"]
["030499","KIT DOIGT DE GANT RETOUR PAC 3\"","KIT DOIGT DE GANT RETOUR PAC 3\"","Kit doigt de gants retour Pac 3\""]
["092038","Kit antivibratile 14-18 kw","Kit antivibratile 14-18 kw","Supports anti-vibratiles châssis S"]
["092039","Kit antivibratile 26-32 kw","Kit antivibratile 26-32 kw","Supports anti-vibratiles châssis M"]
["092040","Kit antivibratile 50-70 kw","Kit antivibratile 50-70 kw","Supports anti-vibratiles châssis L"]
["030527",null,null,"Support sur-étanchéité châssis S"]
["030528",null,null,"Support sur-étanchéité châssis M"]
["030529",null,null,"Support sur-étanchéité châssis L"]
["030530",null,null,"Support sous-étanchéité châssis S"]
["030531",null,null,"Support sous-étanchéité châssis M"]
["030532",null,null,"Support sous-étanchéité châssis L"]
["074977",null,null,"Vanne de réglage châssis S"]
["074978",null,null,"Vanne de réglage châssis M"]
["074979",null,null,"Vanne de réglage châssis L"]
["059833","Navipass MODBUS","Navipass MODBUS","Navipass MODBUS"]
["092000",null,null,"Kit raccord hydraulique châssis L"]
["074976",null,null,"Relais temporisé"]
["880320","Mise en service Effipac ou Hydramax Effipac","Mise en service Effipac ou Hydramax Effipac","Mise en service d'une Effipac"]
["880321","Mise en service Effipac ou Hydramax Effipac supplémentaire","Mise en service Effipac ou Hydramax Effipac supplémentaire","Mise en service d'une Effipac supplémentaire"]
["880322","Pré-visite Effipac ou Hydramax Effipac","Pré-visite Effipac ou Hydramax Effipac","Pré-visite d'installation"]
["880323","Assistance installation Effipac ou Hydramax Effipac","Assistance installation Effipac ou Hydramax Effipac","Assistance à l'installation"]
["080013","Mise a terre avec hayon","Mise a terre avec hayon","Mise à terre avec hayon"]
[null,"Aptae 15","Aptae 15","Aptae 15"]
[null,"Aptae 18","Aptae 18","Aptae 18"]
[null,"Aptae 23","Aptae 23","Aptae 23"]
[null,"Aptae 27","Aptae 27","Aptae 27"]
[null,"Aptae 40","Aptae 40","Aptae 40"]
[null,"Aptae 50","Aptae 50","Aptae 50"]
[null,"Aptae 65","Aptae 65","Aptae 65"]
[null,"Aptae 15 AC","Aptae 15 AC","Aptae 15 AC"]
[null,"Aptae 18 AC","Aptae 18 AC","Aptae 18 AC"]
[null,"Aptae 23 AC","Aptae 23 AC","Aptae 23 AC"]
[null,"Aptae 27 AC","Aptae 27 AC","Aptae 27 AC"]
[null,"Aptae 40 AC","Aptae 40 AC","Aptae 40 AC"]
[null,"Aptae 50 AC","Aptae 50 AC","Aptae 50 AC"]
["930102","Neofirst 500 BR SM1","Neofirst 500 BR SM1","Neofirst 500 BR SM1"]
["930103","Neofirst 750 BR SM1","Neofirst 750 BR SM1","Neofirst 750 BR SM1"]
["930104","Neofirst 900 BR SM1","Neofirst 900 BR SM1","Neofirst 900 BR SM1"]
["930105","Neofirst 1000 BR SM1","Neofirst 1000 BR SM1","Neofirst 1000 BR SM1"]
["930106","Neofirst 1500 BR SM1","Neofirst 1500 BR SM1","Neofirst 1500 BR SM1"]
["930107","Neofirst 2000 BR SM1","Neofirst 2000 BR SM1","Neofirst 2000 BR SM1"]
["930120","Neoflow 500 BR SM1","Neoflow 500 BR SM1","Neoflow 500 BR SM1"]
["930121","Neoflow 750 BR SM1","Neoflow 750 BR SM1","Neoflow 750 BR SM1"]
["930122","Neoflow 900 BR SM1","Neoflow 900 BR SM1","Neoflow 900 BR SM1"]
["930123","Neoflow 1000 BR SM1","Neoflow 1000 BR SM1","Neoflow 1000 BR SM1"]
["930124","Neoflow 1500 BR SM1","Neoflow 1500 BR SM1","Neoflow 1500 BR SM1"]
["930125","Neoflow 2000 BR SM1","Neoflow 2000 BR SM1","Neoflow 2000 BR SM1"]
["930126","Neoflow 2500 BR SM1","Neoflow 2500 BR SM1","Neoflow 2500 BR SM1"]
["930127","Neoflow 3000 BR SM1","Neoflow 3000 BR SM1","Neoflow 3000 BR SM1"]
["520434","Corhydro 500L SM1","Corhydro 500L SM1","Corhydro 500L SM1"]
["520435","Corhydro 750L SM1","Corhydro 750L SM1","Corhydro 750L SM1"]
["520650","Corhydro 900L SM1","Corhydro 900L SM1","Corhydro 900L SM1"]
["520436","Corhydro 1000L SM1","Corhydro 1000L SM1","Corhydro 1000L SM1"]
["520437","Corhydro 1000L TB SM1","Corhydro 1000L TB SM1","Corhydro 1000L TB SM1"]
["520480","Corhydro 1500L SM1","Corhydro 1500L SM1","Corhydro 1500L SM1"]
["520439","Corhydro 1500L TB SM1","Corhydro 1500L TB SM1","Corhydro 1500L TB SM1"]
["520440","Corhydro 2000L SM1","Corhydro 2000L SM1","Corhydro 2000L SM1"]
["520441","Corhydro 2500L SM1","Corhydro 2500L SM1","Corhydro 2500L SM1"]
["520442","Corhydro 2500L TB SM1","Corhydro 2500L TB SM1","Corhydro 2500L TB SM1"]
["520443","Corhydro 3000L SM1","Corhydro 3000L SM1","Corhydro 3000L SM1"]
["520444","Corhydro 3000L TB SM1","Corhydro 3000L TB SM1","Corhydro 3000L TB SM1"]
[null,"IZEA 15","IZEA 15","IZEA 15"]
[null,"IZEA 15 AC","IZEA 15 AC","IZEA 15 AC"]
[null,"IZEA 18","IZEA 18","IZEA 18"]
[null,"IZEA 18 AC","IZEA 18 AC","IZEA 18 AC"]
[null,"IZEA 23","IZEA 23","IZEA 23"]
[null,"IZEA 23 AC","IZEA 23 AC","IZEA 23 AC"]
[null,"IZEA 27","IZEA 27","IZEA 27"]
[null,"IZEA 27 AC","IZEA 27 AC","IZEA 27 AC"]
[null,"IZEA 40","IZEA 40","IZEA 40"]
[null,"IZEA 40 AC","IZEA 40 AC","IZEA 40 AC"]
[null,"IZEA 50","IZEA 50","IZEA 50"]
[null,"IZEA 50 AC","IZEA 50 AC","IZEA 50 AC"]
[null,"IZEA 65","IZEA 65","IZEA 65"]
["950109","Elara 1 CO 500 TP SM1","Elara 1 CO 500 TP SM1","Elara 1 CO 500 TP SM1"]
["950110","Elara 1 CO 750 TP SM1","Elara 1 CO 750 TP SM1","Elara 1 CO 750 TP SM1"]
["950111","Elara 1 CO 900 TP SM1","Elara 1 CO 900 TP SM1","Elara 1 CO 900 TP SM1"]
["950112","Elara 1 CO 1000 TP SM1","Elara 1 CO 1000 TP SM1","Elara 1 CO 1000 TP SM1"]
["950113","Elara 1 CO 1500 TP SM1","Elara 1 CO 1500 TP SM1","Elara 1 CO 1500 TP SM1"]
["950114","Elara 1 CO 2000 TP SM1","Elara 1 CO 2000 TP SM1","Elara 1 CO 2000 TP SM1"]
["950116","Elara 1+ 500 TP SM1","Elara 1+ 500 TP SM1","Elara 1+ 500 TP SM1"]
["950117","Elara 1+ 750 TP SM1","Elara 1+ 750 TP SM1","Elara 1+ 750 TP SM1"]
["950118","Elara 1+ 900 TP SM1","Elara 1+ 900 TP SM1","Elara 1+ 900 TP SM1"]
["950119","Elara 1+ 1000 TP SM1","Elara 1+ 1000 TP SM1","Elara 1+ 1000 TP SM1"]
["950120","Elara 1+ 1500 TP SM1","Elara 1+ 1500 TP SM1","Elara 1+ 1500 TP SM1"]
["950121","Elara 1+ 2000 TP SM1","Elara 1+ 2000 TP SM1","Elara 1+ 2000 TP SM1"]
["950122","Elara 1+ 2500 TP SM1","Elara 1+ 2500 TP SM1","Elara 1+ 2500 TP SM1"]
["950123","Elara 1+ 3000 TP SM1","Elara 1+ 3000 TP SM1","Elara 1+ 3000 TP SM1"]
[520274,"BOUTEILLE P MAX 100L","BOUTEILLE P MAX 100L","BOUTEILLE P MAX 100L",0]
["520275","BOUTEILLE P MAX 200L","BOUTEILLE P MAX 200L","BOUTEILLE P MAX 200L",0]
[520351,"LCT P MAX 500 L 0TP SM1","LCT P MAX 500 L 0TP SM1","LCT P MAX 500 L 0TP SM1",0]
[520403,"LCT P MAX 500L 3TP SM1","LCT P MAX 500L 3TP SM1","LCT P MAX 500L 3TP SM1",3]
[520372,"LCT P MAX 900 L 0TP SM1","LCT P MAX 900 L 0TP SM1","LCT P MAX 900 L 0TP SM1",0]
[520404,"LCT P MAX 900L 2TP SM1","LCT P MAX 900L 2TP SM1","LCT P MAX 900L 2TP SM1",2]
[520405,"LCT P MAX 1500L 2TP SM1","LCT P MAX 1500L 2TP SM1","LCT P MAX 1500L 2TP SM1",2]
["065227","LCT 500 TP M1","LCT 500 TP M2","LCT 500 TP M3"]
["065228","LCT 750 TP M1","LCT 750 TP M2","LCT 750 TP M3"]
["065229","LCT 900 TP M2","LCT 900 TP M3","LCT 900 TP M4"]
["065230","LCT 1000 TP M3","LCT 1000 TP M4","LCT 1000 TP M5"]
["065232","LCT 1500 TP M4","LCT 1500 TP M5","LCT 1500 TP M6"]
["065234","LCT 2000 TP M5","LCT 2000 TP M6","LCT 2000 TP M7"]
["065235","LCT 2500 TP M6","LCT 2500 TP M7","LCT 2500 TP M8"]
["065237","LCT 3000 TP M7","LCT 3000 TP M8","LCT 3000 TP M9"]
["057062","Rubis EVO SI","Rubis EVO SI 206 SS","Rubis EVO SI 206 SS"]
["057063","Rubis EVO SI","Rubis EVO SI 210 SS","Rubis EVO SI 210 SS"]
["057064","Rubis EVO SI","Rubis EVO SI 214 SS","Rubis EVO SI 214 SS"]
["057065","Rubis EVO SI","Rubis EVO SI 218 SS","Rubis EVO SI 218 SS"]
["057066","Rubis EVO SI","Rubis EVO SI 222 SS","Rubis EVO SI 222 SS"]
["057067","Rubis EVO SI","Rubis EVO SI 226 SS","Rubis EVO SI 226 SS"]
["057068","Rubis EVO SI","Rubis EVO SI 230 SS","Rubis EVO SI 230 SS"]
["057069","Rubis EVO SI","Rubis EVO SI 608 SS","Rubis EVO SI 608 SS"]
["057070","Rubis EVO SI","Rubis EVO SI 612 SS","Rubis EVO SI 612 SS"]
["057071","Rubis EVO SI","Rubis EVO SI 616 SS","Rubis EVO SI 616 SS"]
["057072","Rubis EVO SI","Rubis EVO SI 620 SS","Rubis EVO SI 620 SS"]
["057073","Rubis EVO SI","Rubis EVO SI 624 SS","Rubis EVO SI 624 SS"]
["057074","Rubis EVO SI","Rubis EVO SI 628 SS","Rubis EVO SI 628 SS"]
["057075","Rubis EVO SI","Rubis EVO SI 632 SS","Rubis EVO SI 632 SS"]
["057076","Rubis EVO SI","Rubis EVO SI 636 SS","Rubis EVO SI 636 SS"]
["057077","Rubis EVO SI","Rubis EVO SI 640 SS","Rubis EVO SI 640 SS"]
["057078","Rubis EVO SI","Rubis EVO SI 820 SS","Rubis EVO SI 820 SS"]
["057079","Rubis EVO SI","Rubis EVO SI 824 SS","Rubis EVO SI 824 SS"]
["057080","Rubis EVO SI","Rubis EVO SI 828 SS","Rubis EVO SI 828 SS"]
["057081","Rubis EVO SI","Rubis EVO SI 832 SS","Rubis EVO SI 832 SS"]
["057082","Rubis EVO SI","Rubis EVO SI 836 SS","Rubis EVO SI 836 SS"]
["057083","Rubis EVO SI","Rubis EVO SI 840 SS","Rubis EVO SI 840 SS"]
["057084","Rubis EVO SI","Rubis EVO SI 2420 SS","Rubis EVO SI 2420 SS"]
["057085","Rubis EVO SI","Rubis EVO SI 2424 SS","Rubis EVO SI 2424 SS"]
["057086","Rubis EVO SI","Rubis EVO SI 2428 SS","Rubis EVO SI 2428 SS"]
["057087","Rubis EVO SI","Rubis EVO SI 2432 SS","Rubis EVO SI 2432 SS"]
["057088","Rubis EVO SI","Rubis EVO SI 2436 SS","Rubis EVO SI 2436 SS"]
["057089","Rubis EVO SI","Rubis EVO SI 2440 SS","Rubis EVO SI 2440 SS"]
["057090","Rubis EVO SI","Rubis EVO SI 2444 SS","Rubis EVO SI 2444 SS"]
["057091","Rubis EVO SI","Rubis EVO SI 2448 SS","Rubis EVO SI 2448 SS"]
["057092","Rubis EVO SI","Rubis EVO SI 2452 SS","Rubis EVO SI 2452 SS"]
["058026","HeatSwitch 2","HeatSwitch 2 12-06-11","HeatSwitch 2 12-06-11"]
["058027","HeatSwitch 2","HeatSwitch 2 12-10-11","HeatSwitch 2 12-10-11"]
["058028","HeatSwitch 2","HeatSwitch 2 12-14-11","HeatSwitch 2 12-14-11"]
["058029","HeatSwitch 2","HeatSwitch 2 12-18-11","HeatSwitch 2 12-18-11"]
["058030","HeatSwitch 2","HeatSwitch 2 12-22-11","HeatSwitch 2 12-22-11"]
["058031","HeatSwitch 2","HeatSwitch 2 12-26-11","HeatSwitch 2 12-26-11"]
["058032","HeatSwitch 2","HeatSwitch 2 12-30-11","HeatSwitch 2 12-30-11"]
["058033","HeatSwitch 2","HeatSwitch 2 32-08-11","HeatSwitch 2 32-08-11"]
["058034","HeatSwitch 2","HeatSwitch 2 32-12-11","HeatSwitch 2 32-12-11"]
["058035","HeatSwitch 2","HeatSwitch 2 32-16-11","HeatSwitch 2 32-16-11"]
["058036","HeatSwitch 2","HeatSwitch 2 32-20-11","HeatSwitch 2 32-20-11"]
["058037","HeatSwitch 2","HeatSwitch 2 32-24-11","HeatSwitch 2 32-24-11"]
["058038","HeatSwitch 2","HeatSwitch 2 32-28-11","HeatSwitch 2 32-28-11"]
["058071","HeatSwitch 2","HeatSwitch 2 32-32-11","HeatSwitch 2 32-32-11"]
["058072","HeatSwitch 2","HeatSwitch 2 32-36-11","HeatSwitch 2 32-36-11"]
["058073","HeatSwitch 2","HeatSwitch 2 32-40-11","HeatSwitch 2 32-40-11"]
["058281","HeatSwitch 2","HeatSwitch 2 40-20-11","HeatSwitch 2 40-20-11"]
["058282","HeatSwitch 2","HeatSwitch 2 40-24-11","HeatSwitch 2 40-24-11"]
["058283","HeatSwitch 2","HeatSwitch 2 40-28-11","HeatSwitch 2 40-28-11"]
["058284","HeatSwitch 2","HeatSwitch 2 40-32-11","HeatSwitch 2 40-32-11"]
["058285","HeatSwitch 2","HeatSwitch 2 40-36-11","HeatSwitch 2 40-36-11"]
["058286","HeatSwitch 2","HeatSwitch 2 40-40-11","HeatSwitch 2 40-40-11"]
["058287","HeatSwitch 2","HeatSwitch 2 50-20-11","HeatSwitch 2 50-20-11"]
["058288","HeatSwitch 2","HeatSwitch 2 50-24-11","HeatSwitch 2 50-24-11"]
["058289","HeatSwitch 2","HeatSwitch 2 50-28-11","HeatSwitch 2 50-28-11"]
["058290","HeatSwitch 2","HeatSwitch 2 50-32-11","HeatSwitch 2 50-32-11"]
["058291","HeatSwitch 2","HeatSwitch 2 50-36-11","HeatSwitch 2 50-36-11"]
["058292","HeatSwitch 2","HeatSwitch 2 50-40-11","HeatSwitch 2 50-40-11"]
["058293","HeatSwitch 2","HeatSwitch 2 50-44-11","HeatSwitch 2 50-44-11"]
["058294","HeatSwitch 2","HeatSwitch 2 50-48-11","HeatSwitch 2 50-48-11"]
["058295","HeatSwitch 2","HeatSwitch 2 50-52-11","HeatSwitch 2 50-52-11"]

{"sheet":"ImageDimensionsPac","index":22,"n_rows":10,"n_cols":4,"rows_kept":10,"cut":false,"hidden":true,"merged":[]}
[]
["ImageDimensionsPac A Afficher","AHP70_","Formula",{"$f":"INDEX(ImageDimensionsPac!$B$3:$B$6,_xlfn.XMATCH(ImageDimensionsPac!$B$2,ImageDimensionsPac!$A$3:$A$6))","v":{"$error":"#N/A"}}]
["X",{"$error":"#VALUE!"},{"$error":"#VALUE!"}]
["Effipac_S",{"$error":"#VALUE!"},{"$error":"#VALUE!"}]
["Effipac_M",{"$error":"#VALUE!"},{"$error":"#VALUE!"}]
["Effipac_L",{"$error":"#VALUE!"},{"$error":"#VALUE!"}]
["Izea_S",{"$error":"#VALUE!"},{"$error":"#VALUE!"}]
["Izea_M",{"$error":"#VALUE!"},{"$error":"#VALUE!"}]
["Izea_L",{"$error":"#VALUE!"},{"$error":"#VALUE!"}]
["Izea_XL",{"$error":"#VALUE!"},{"$error":"#VALUE!"}]

{"sheet":"Schématèque","index":23,"n_rows":42,"n_cols":4,"rows_kept":42,"cut":false,"hidden":true,"merged":[]}
["Aide","Racine système : EF\nNombre de PAC : chiffre 1 pour une seule PAC  / chiffre 2 pour représentation de 2 PAC  en cascade\nNombre de volume primaire : de 1 à 3  (limité à la schémathèque)\nNombre d’appoint électrique : de 2 à 5 (limité à la schémathèque)\nNombre de circuit de chauffage :  1 ou 3 (limité à la schémathèque)\nPilotage de l’installation : T3100 ou T3100(Rext)","1 Pac OU Cascade\n1 ou 2 volumes primaires\n2 ou 5 appoins Electriques\n1 ou 3 Circuits"]
["Schema Affiché",211511,"Formula",{"$f":"INDEX(Schématèque!$B$3:$B$21,_xlfn.XMATCH(Schématèque!#REF!,Schématèque!$A$3:$A$21))","v":{"$error":"#REF!"}}]
["00_0000_00000",{"$error":"#VALUE!"}]
["EF2123_T3100",{"$error":"#VALUE!"}]
["EF2223_T3100",{"$error":"#VALUE!"}]
["EF2253_T3100",{"$error":"#VALUE!"}]
["EF2353_T3100",{"$error":"#VALUE!"}]
["AP2123_T3100",{"$error":"#VALUE!"}]
["AP2223_T3100",{"$error":"#VALUE!"}]
["AP2253_T3100",{"$error":"#VALUE!"}]
["AP2353_T3100",{"$error":"#VALUE!"}]
["HYB200",{"$error":"#VALUE!"}]
["HYB400",{"$error":"#VALUE!"}]
["HYB401",{"$error":"#VALUE!"}]
["S-021_AP(L)_3123_ECS1_T4100",{"$error":"#VALUE!"}]
["S-021_AP(L)_3123_ECS2_T4100",{"$error":"#VALUE!"}]
["S-021_AP(L)_3223_ECS1_T4100",{"$error":"#VALUE!"}]
["S-021_AP(L)_3223_ECS2_T4100",{"$error":"#VALUE!"}]
["S-021_AP(L)_3253_ECS1_T4100",{"$error":"#VALUE!"}]
["S-021_AP(L)_3253_ECS2_T4100",{"$error":"#VALUE!"}]
["S-021_AP(L)_3353_ECS1_T4100",{"$error":"#VALUE!"}]
["S-021_AP(L)_3353_ECS2_T4100",{"$error":"#VALUE!"}]
["S-012_AP(L)_2120_ECS1_T3100",{"$error":"#VALUE!"}]
["S-012_AP(L)_2120_ECS2_T3100",{"$error":"#VALUE!"}]
["S-012_AP(L)_2220_ECS1_T3100",{"$error":"#VALUE!"}]
["S-012_AP(L)_2220_ECS2_T3100",{"$error":"#VALUE!"}]
["S-012_AP(L)_2250_ECS1_T3100",{"$error":"#VALUE!"}]
["S-012_AP(L)_2250_ECS2_T3100",{"$error":"#VALUE!"}]
["S-012_AP(L)_2350_ECS1_T3100",{"$error":"#VALUE!"}]
["S-012_AP(L)_2350_ECS2_T3100",{"$error":"#VALUE!"}]
["AP2123_T4100",{"$error":"#VALUE!"}]
["AP2223_T4100",{"$error":"#VALUE!"}]
["AP2253_T4100",{"$error":"#VALUE!"}]
["AP2353_T4100",{"$error":"#VALUE!"}]
["S-021_AP(L)_3113_ECS4_T4100",{"$error":"#VALUE!"}]
["S-021_AP(L)_3213_ECS4_T4100",{"$error":"#VALUE!"}]
["S-021_AP(L)_3233_ECS4_T4100",{"$error":"#VALUE!"}]
["S-021_AP(L)_3333_ECS4_T4100",{"$error":"#VALUE!"}]
["S-012_AP(L)_3110_ECS4_T4100",{"$error":"#VALUE!"}]
["S-012_AP(L)_3210_ECS4_T4100",{"$error":"#VALUE!"}]
["S-012_AP(L)_3230_ECS4_T4100",{"$error":"#VALUE!"}]
["S-012_AP(L)_3330_ECS4_T4100",{"$error":"#VALUE!"}]